Workbook

Sheet Sheet1 (hidden)
A1: 2021年苏州工业园区产业转型升级（技术改造）专项资金项目综合评分表
A2: 序号 | B2: 企业名称 | C2: 统一社会信用代码/组织机构代码 | D2: 经济效益得分 | E2: 智能化效益得分 | F2: 综合素质认定 | G2: 扣分项 | J2: 企业综合评价得分 | K2: 分类 | L2: 投入总金额 | M2: 园区设备金额 | N2: 园区采购比例超70% | O2: 理论奖补金额 | P2: 【扣减项】省技改综合奖补 | Q2: 【扣减项】省转型升级技改奖补 | R2: 【扣减项】节能改造奖补 | S2: 【扣减项】人工智能奖补 | T2: 【扣减项】科创委产业化落地固定资产兑现 | U2: 【扣减项】投促委核心产业政策奖补 | V2: 扣减后奖补金额 | W2: 扣减后奖补金额 | X2: 最终奖补比例 | Y2: 项目纳统比对 | Z2: 备注 | AA2: 扣减后奖补金额
D3: 70% | E3: 20% | F3: 10% | G3: 项目投资情况未列入统计部门统计，或者统计部门显示企业年度的固定资产投资金额不足500万元（不含软件） | H3: 专家现场核验与评估时，发现技改投入资金与项目申报书描述存在较大不符 | I3: 申报中所涉及的固定资产（含软、硬件设备）原则上在企业内使用不少于三年，如核查时企业无正当理由，设备不在现场的
A4: 1 | B4: =[1]苏州工业园区工业企业技术改造经济效益表!B4 -> SEW-传动设备(苏州)有限公司 | C4: =[1]苏州工业园区工业企业技术改造经济效益表!C4 -> 91320594730135548U | D4: =[1]经济效益!N4 -> 23.70 | E4: =[1]智能化效益!R4 -> 80.28 | F4: =IF([1]综合素质认定!O4>10,10,[1]综合素质认定!O4) -> 1 | G4: 0 | H4: 0 | I4: 0 | J4: =D4*$D$3+E4*$E$3+F4-G4-H4-I4 -> 33.65 | K4: =IF(J4<[1]奖补比例!$D$2,"D",IF(J4<[1]奖补比例!$C$2,"C",IF(J4<[1]奖补比例!$B$2,"B","A"))) -> D | L4: =[1]苏州工业园区工业企业技术改造经济效益表!AJ4 -> 0 | M4: =[1]苏州工业园区工业企业技术改造经济效益表!AM4 -> 0 | N4: =IF([1]苏州工业园区工业企业技术改造经济效益表!AN4>=0.7,[1]苏州工业园区工业企业技术改造经济效益表!AM4,0) -> 0 | O4: =IF(IF(K4="A",[1]苏州工业园区工业企业技术改造经济效益表!AJ4*[1]奖补比例!$B$3+N4*[1]奖补比例!$B$5,IF(K4="B",[1]苏州工业园区工业企业技术改造经济效益表!AJ4*[1]奖补比例!$C$3+N4*[1]奖补比例!$C$5,IF(K4="C",[1]苏州工业园区工业企业技术改造经济效益表!AJ4*[1]奖补比例!$D$3+N4*[1]奖补比例!$D$5,[1]苏州工业园区工业企业技术改造经济效益表!AJ4*[1]奖补比例!$E$3+N4*[1]奖补比例!$E$5)))*[1]奖补比例!$G$2>1000,1000,IF(K4="A",[1]苏州工业园区工业企业技术改造经济效益表!AJ4*[1]奖补比例!$B$3+N4*[1]奖补比例!$B$5,IF(K4="B",[1]苏州工业园区工业企业技术改造经济效益表!AJ4*[1]奖补比例!$C$3+N4*[1]奖补比例!$C$5,IF(K4="C",[1]苏州工业园区工业企业技术改造经济效益表!AJ4*[1]奖补比例!$D$3+N4*[1]奖补比例!$D$5,[1]苏州工业园区工业企业技术改造经济效益表!AJ4*[1]奖补比例!$E$3+N4*[1]奖补比例!$E$5)))*[1]奖补比例!$G$2) -> 0 | P4: 0 | Q4: 0 | R4: 0 | S4: =[1]【扣减】人工智能奖补!F3 -> 0 | T4: 0 | U4: =[1]【扣减】投促委!F3 -> 0 | V4: 0 | W4: =ROUND(V4,2) -> 0.00 | X4: 0.00% | Y4: =IF([1]项目纳统比对表!D4="否","未纳统",IF([1]项目纳统比对表!F4="否","不足500万元","")) ->  | Z4: 未通过 | AA4: 0.00
A5: 2 | B5: =[1]苏州工业园区工业企业技术改造经济效益表!B5 -> SEW-电机(苏州)有限公司 | C5: =[1]苏州工业园区工业企业技术改造经济效益表!C5 -> 91320594759661656F | D5: =[1]经济效益!N5 -> 68.66 | E5: =[1]智能化效益!R5 -> 81.55 | F5: =IF([1]综合素质认定!O5>10,10,[1]综合素质认定!O5) -> 0 | G5: 0 | H5: 0 | I5: 0 | J5: 64.37 | K5: =IF(J5<[1]奖补比例!$D$2,"D",IF(J5<[1]奖补比例!$C$2,"C",IF(J5<[1]奖补比例!$B$2,"B","A"))) -> B | L5: =[1]苏州工业园区工业企业技术改造经济效益表!AJ5 -> 7597.02 | M5: =[1]苏州工业园区工业企业技术改造经济效益表!AM5 -> 188.51 | N5: =IF([1]苏州工业园区工业企业技术改造经济效益表!AN5>=0.7,[1]苏州工业园区工业企业技术改造经济效益表!AM5,0) -> 0 | O5: =IF(IF(K5="A",[1]苏州工业园区工业企业技术改造经济效益表!AJ5*[1]奖补比例!$B$3+N5*[1]奖补比例!$B$5,IF(K5="B",[1]苏州工业园区工业企业技术改造经济效益表!AJ5*[1]奖补比例!$C$3+N5*[1]奖补比例!$C$5,IF(K5="C",[1]苏州工业园区工业企业技术改造经济效益表!AJ5*[1]奖补比例!$D$3+N5*[1]奖补比例!$D$5,[1]苏州工业园区工业企业技术改造经济效益表!AJ5*[1]奖补比例!$E$3+N5*[1]奖补比例!$E$5)))*[1]奖补比例!$G$2>1000,1000,IF(K5="A",[1]苏州工业园区工业企业技术改造经济效益表!AJ5*[1]奖补比例!$B$3+N5*[1]奖补比例!$B$5,IF(K5="B",[1]苏州工业园区工业企业技术改造经济效益表!AJ5*[1]奖补比例!$C$3+N5*[1]奖补比例!$C$5,IF(K5="C",[1]苏州工业园区工业企业技术改造经济效益表!AJ5*[1]奖补比例!$D$3+N5*[1]奖补比例!$D$5,[1]苏州工业园区工业企业技术改造经济效益表!AJ5*[1]奖补比例!$E$3+N5*[1]奖补比例!$E$5)))*[1]奖补比例!$G$2) -> 483.91 | P5: =VLOOKUP(B5,[1]【扣减】省技改综合奖补!$C$2:$E$59,3,0)/10000 -> 34 | Q5: 0 | R5: 0 | S5: =[1]【扣减】人工智能奖补!F4 -> 0 | T5: 0 | U5: =[1]【扣减】投促委!F4 -> 1500 | V5: 0 | W5: 0.00 | X5: =O5/L5 -> 6.37% | Y5: =IF([1]项目纳统比对表!D5="否","未纳统",IF([1]项目纳统比对表!F5="否","不足500万元","")) -> 未纳统 | AA5: 0.00
A6: 3 | B6: =[1]苏州工业园区工业企业技术改造经济效益表!B6 -> 艾利（苏州）有限公司 | C6: =[1]苏州工业园区工业企业技术改造经济效益表!C6 -> 91320594769869813E | D6: =[1]经济效益!N6 -> 56.61 | E6: =[1]智能化效益!R6 -> 91.94 | F6: =IF([1]综合素质认定!O6>10,10,[1]综合素质认定!O6) -> 0 | G6: 0 | H6: 0 | I6: 0 | J6: 58.02 | K6: =IF(J6<[1]奖补比例!$D$2,"D",IF(J6<[1]奖补比例!$C$2,"C",IF(J6<[1]奖补比例!$B$2,"B","A"))) -> C | L6: =[1]苏州工业园区工业企业技术改造经济效益表!AJ6 -> 704.87 | M6: =[1]苏州工业园区工业企业技术改造经济效益表!AM6 -> 0 | N6: =IF([1]苏州工业园区工业企业技术改造经济效益表!AN6>=0.7,[1]苏州工业园区工业企业技术改造经济效益表!AM6,0) -> 0 | O6: =IF(IF(K6="A",[1]苏州工业园区工业企业技术改造经济效益表!AJ6*[1]奖补比例!$B$3+N6*[1]奖补比例!$B$5,IF(K6="B",[1]苏州工业园区工业企业技术改造经济效益表!AJ6*[1]奖补比例!$C$3+N6*[1]奖补比例!$C$5,IF(K6="C",[1]苏州工业园区工业企业技术改造经济效益表!AJ6*[1]奖补比例!$D$3+N6*[1]奖补比例!$D$5,[1]苏州工业园区工业企业技术改造经济效益表!AJ6*[1]奖补比例!$E$3+N6*[1]奖补比例!$E$5)))*[1]奖补比例!$G$2>1000,1000,IF(K6="A",[1]苏州工业园区工业企业技术改造经济效益表!AJ6*[1]奖补比例!$B$3+N6*[1]奖补比例!$B$5,IF(K6="B",[1]苏州工业园区工业企业技术改造经济效益表!AJ6*[1]奖补比例!$C$3+N6*[1]奖补比例!$C$5,IF(K6="C",[1]苏州工业园区工业企业技术改造经济效益表!AJ6*[1]奖补比例!$D$3+N6*[1]奖补比例!$D$5,[1]苏州工业园区工业企业技术改造经济效益表!AJ6*[1]奖补比例!$E$3+N6*[1]奖补比例!$E$5)))*[1]奖补比例!$G$2) -> 28.06 | P6: 0 | Q6: 0 | R6: 0 | S6: =[1]【扣减】人工智能奖补!F5 -> 0 | T6: 0 | U6: =[1]【扣减】投促委!F5 -> 0 | V6: 28.06 | W6: 28.06 | X6: 3.98% | Y6: =IF([1]项目纳统比对表!D6="否","未纳统",IF([1]项目纳统比对表!F6="否","不足500万元","")) -> 未纳统 | AA6: 28.06
A7: 4 | B7: =[1]苏州工业园区工业企业技术改造经济效益表!B7 -> 艾默生环境优化技术（苏州）有限公司 | C7: =[1]苏州工业园区工业企业技术改造经济效益表!C7 -> 9132059460820727XQ | D7: =[1]经济效益!N7 -> 53.10 | E7: =[1]智能化效益!R7 -> 89.60 | F7: =IF([1]综合素质认定!O7>10,10,[1]综合素质认定!O7) -> 1 | G7: 0 | H7: 0 | I7: 0 | J7: 56.09 | K7: =IF(J7<[1]奖补比例!$D$2,"D",IF(J7<[1]奖补比例!$C$2,"C",IF(J7<[1]奖补比例!$B$2,"B","A"))) -> C | L7: =[1]苏州工业园区工业企业技术改造经济效益表!AJ7 -> 3708.31 | M7: =[1]苏州工业园区工业企业技术改造经济效益表!AM7 -> 358.66 | N7: =IF([1]苏州工业园区工业企业技术改造经济效益表!AN7>=0.7,[1]苏州工业园区工业企业技术改造经济效益表!AM7,0) -> 0 | O7: =IF(IF(K7="A",[1]苏州工业园区工业企业技术改造经济效益表!AJ7*[1]奖补比例!$B$3+N7*[1]奖补比例!$B$5,IF(K7="B",[1]苏州工业园区工业企业技术改造经济效益表!AJ7*[1]奖补比例!$C$3+N7*[1]奖补比例!$C$5,IF(K7="C",[1]苏州工业园区工业企业技术改造经济效益表!AJ7*[1]奖补比例!$D$3+N7*[1]奖补比例!$D$5,[1]苏州工业园区工业企业技术改造经济效益表!AJ7*[1]奖补比例!$E$3+N7*[1]奖补比例!$E$5)))*[1]奖补比例!$G$2>1000,1000,IF(K7="A",[1]苏州工业园区工业企业技术改造经济效益表!AJ7*[1]奖补比例!$B$3+N7*[1]奖补比例!$B$5,IF(K7="B",[1]苏州工业园区工业企业技术改造经济效益表!AJ7*[1]奖补比例!$C$3+N7*[1]奖补比例!$C$5,IF(K7="C",[1]苏州工业园区工业企业技术改造经济效益表!AJ7*[1]奖补比例!$D$3+N7*[1]奖补比例!$D$5,[1]苏州工业园区工业企业技术改造经济效益表!AJ7*[1]奖补比例!$E$3+N7*[1]奖补比例!$E$5)))*[1]奖补比例!$G$2) -> 147.63 | P7: =VLOOKUP(B7,[1]【扣减】省技改综合奖补!$C$2:$E$59,3,0)/10000 -> 38 | Q7: 0 | R7: 0 | S7: =[1]【扣减】人工智能奖补!F6 -> 0 | T7: 0 | U7: =[1]【扣减】投促委!F6 -> 0 | V7: 109.63 | W7: 109.63 | X7: 3.98% | Y7: =IF([1]项目纳统比对表!D7="否","未纳统",IF([1]项目纳统比对表!F7="否","不足500万元","")) ->  | AA7: 109.63
A8: 5 | B8: =[1]苏州工业园区工业企业技术改造经济效益表!B8 -> 爱发科电子材料（苏州）有限公司 | C8: =[1]苏州工业园区工业企业技术改造经济效益表!C8 -> 91320594687174022W | D8: =[1]经济效益!N8 -> 58.14 | E8: =[1]智能化效益!R8 -> 80.04 | F8: =IF([1]综合素质认定!O8>10,10,[1]综合素质认定!O8) -> 1 | G8: 0 | H8: 0 | I8: 0 | J8: 57.70 | K8: =IF(J8<[1]奖补比例!$D$2,"D",IF(J8<[1]奖补比例!$C$2,"C",IF(J8<[1]奖补比例!$B$2,"B","A"))) -> C | L8: =[1]苏州工业园区工业企业技术改造经济效益表!AJ8 -> 745.45 | M8: =[1]苏州工业园区工业企业技术改造经济效益表!AM8 -> 14.35 | N8: =IF([1]苏州工业园区工业企业技术改造经济效益表!AN8>=0.7,[1]苏州工业园区工业企业技术改造经济效益表!AM8,0) -> 0 | O8: =IF(IF(K8="A",[1]苏州工业园区工业企业技术改造经济效益表!AJ8*[1]奖补比例!$B$3+N8*[1]奖补比例!$B$5,IF(K8="B",[1]苏州工业园区工业企业技术改造经济效益表!AJ8*[1]奖补比例!$C$3+N8*[1]奖补比例!$C$5,IF(K8="C",[1]苏州工业园区工业企业技术改造经济效益表!AJ8*[1]奖补比例!$D$3+N8*[1]奖补比例!$D$5,[1]苏州工业园区工业企业技术改造经济效益表!AJ8*[1]奖补比例!$E$3+N8*[1]奖补比例!$E$5)))*[1]奖补比例!$G$2>1000,1000,IF(K8="A",[1]苏州工业园区工业企业技术改造经济效益表!AJ8*[1]奖补比例!$B$3+N8*[1]奖补比例!$B$5,IF(K8="B",[1]苏州工业园区工业企业技术改造经济效益表!AJ8*[1]奖补比例!$C$3+N8*[1]奖补比例!$C$5,IF(K8="C",[1]苏州工业园区工业企业技术改造经济效益表!AJ8*[1]奖补比例!$D$3+N8*[1]奖补比例!$D$5,[1]苏州工业园区工业企业技术改造经济效益表!AJ8*[1]奖补比例!$E$3+N8*[1]奖补比例!$E$5)))*[1]奖补比例!$G$2) -> 29.68 | P8: 0 | Q8: 0 | R8: 0 | S8: =[1]【扣减】人工智能奖补!F7 -> 0 | T8: 0 | U8: =[1]【扣减】投促委!F7 -> 0 | V8: 29.68 | W8: 29.68 | X8: 3.98% | Y8: =IF([1]项目纳统比对表!D8="否","未纳统",IF([1]项目纳统比对表!F8="否","不足500万元","")) ->  | AA8: 29.68
A9: 6 | B9: =[1]苏州工业园区工业企业技术改造经济效益表!B9 -> 安波福电子（苏州）有限公司 | C9: =[1]苏州工业园区工业企业技术改造经济效益表!C9 -> 9132059475393991XQ | D9: =[1]经济效益!N9 -> 61.15 | E9: =[1]智能化效益!R9 -> 94.79 | F9: =IF([1]综合素质认定!O9>10,10,[1]综合素质认定!O9) -> 3 | G9: 0 | H9: 0 | I9: 0 | J9: 64.76 | K9: =IF(J9<[1]奖补比例!$D$2,"D",IF(J9<[1]奖补比例!$C$2,"C",IF(J9<[1]奖补比例!$B$2,"B","A"))) -> B | L9: =[1]苏州工业园区工业企业技术改造经济效益表!AJ9 -> 7028.94 | M9: =[1]苏州工业园区工业企业技术改造经济效益表!AM9 -> 2305.16 | N9: =IF([1]苏州工业园区工业企业技术改造经济效益表!AN9>=0.7,[1]苏州工业园区工业企业技术改造经济效益表!AM9,0) -> 0 | O9: =IF(IF(K9="A",[1]苏州工业园区工业企业技术改造经济效益表!AJ9*[1]奖补比例!$B$3+N9*[1]奖补比例!$B$5,IF(K9="B",[1]苏州工业园区工业企业技术改造经济效益表!AJ9*[1]奖补比例!$C$3+N9*[1]奖补比例!$C$5,IF(K9="C",[1]苏州工业园区工业企业技术改造经济效益表!AJ9*[1]奖补比例!$D$3+N9*[1]奖补比例!$D$5,[1]苏州工业园区工业企业技术改造经济效益表!AJ9*[1]奖补比例!$E$3+N9*[1]奖补比例!$E$5)))*[1]奖补比例!$G$2>1000,1000,IF(K9="A",[1]苏州工业园区工业企业技术改造经济效益表!AJ9*[1]奖补比例!$B$3+N9*[1]奖补比例!$B$5,IF(K9="B",[1]苏州工业园区工业企业技术改造经济效益表!AJ9*[1]奖补比例!$C$3+N9*[1]奖补比例!$C$5,IF(K9="C",[1]苏州工业园区工业企业技术改造经济效益表!AJ9*[1]奖补比例!$D$3+N9*[1]奖补比例!$D$5,[1]苏州工业园区工业企业技术改造经济效益表!AJ9*[1]奖补比例!$E$3+N9*[1]奖补比例!$E$5)))*[1]奖补比例!$G$2) -> 447.73 | P9: =VLOOKUP(B9,[1]【扣减】省技改综合奖补!$C$2:$E$59,3,0)/10000 -> 37 | Q9: 0 | R9: 0 | S9: =[1]【扣减】人工智能奖补!F8 -> 0 | T9: 0 | U9: =[1]【扣减】投促委!F8 -> 400 | V9: 10.73 | W9: 10.73 | X9: 6.37% | Y9: =IF([1]项目纳统比对表!D9="否","未纳统",IF([1]项目纳统比对表!F9="否","不足500万元","")) ->  | AA9: 10.73
A10: 7 | B10: =[1]苏州工业园区工业企业技术改造经济效益表!B10 -> 安拓锐高新测试技术（苏州）有限公司 | C10: =[1]苏州工业园区工业企业技术改造经济效益表!C10 -> 913205947923058131 | D10: =[1]经济效益!N10 -> 83.93 | E10: =[1]智能化效益!R10 -> 88.34 | F10: =IF([1]综合素质认定!O10>10,10,[1]综合素质认定!O10) -> 1 | G10: 0 | H10: 0 | I10: 0 | J10: 77.42 | K10: =IF(J10<[1]奖补比例!$D$2,"D",IF(J10<[1]奖补比例!$C$2,"C",IF(J10<[1]奖补比例!$B$2,"B","A"))) -> B | L10: =[1]苏州工业园区工业企业技术改造经济效益表!AJ10 -> 963.52 | M10: =[1]苏州工业园区工业企业技术改造经济效益表!AM10 -> 0 | N10: =IF([1]苏州工业园区工业企业技术改造经济效益表!AN10>=0.7,[1]苏州工业园区工业企业技术改造经济效益表!AM10,0) -> 0 | O10: =IF(IF(K10="A",[1]苏州工业园区工业企业技术改造经济效益表!AJ10*[1]奖补比例!$B$3+N10*[1]奖补比例!$B$5,IF(K10="B",[1]苏州工业园区工业企业技术改造经济效益表!AJ10*[1]奖补比例!$C$3+N10*[1]奖补比例!$C$5,IF(K10="C",[1]苏州工业园区工业企业技术改造经济效益表!AJ10*[1]奖补比例!$D$3+N10*[1]奖补比例!$D$5,[1]苏州工业园区工业企业技术改造经济效益表!AJ10*[1]奖补比例!$E$3+N10*[1]奖补比例!$E$5)))*[1]奖补比例!$G$2>1000,1000,IF(K10="A",[1]苏州工业园区工业企业技术改造经济效益表!AJ10*[1]奖补比例!$B$3+N10*[1]奖补比例!$B$5,IF(K10="B",[1]苏州工业园区工业企业技术改造经济效益表!AJ10*[1]奖补比例!$C$3+N10*[1]奖补比例!$C$5,IF(K10="C",[1]苏州工业园区工业企业技术改造经济效益表!AJ10*[1]奖补比例!$D$3+N10*[1]奖补比例!$D$5,[1]苏州工业园区工业企业技术改造经济效益表!AJ10*[1]奖补比例!$E$3+N10*[1]奖补比例!$E$5)))*[1]奖补比例!$G$2) -> 61.37 | P10: 0 | Q10: 0 | R10: 0 | S10: =[1]【扣减】人工智能奖补!F9 -> 0 | T10: 0 | U10: =[1]【扣减】投促委!F9 -> 0 | V10: 61.37 | W10: 61.37 | X10: 6.37% | Y10: =IF([1]项目纳统比对表!D10="否","未纳统",IF([1]项目纳统比对表!F10="否","不足500万元","")) ->  | AA10: 61.37
A11: 8 | B11: =[1]苏州工业园区工业企业技术改造经济效益表!B11 -> 安特（苏州）精密机械有限公司 | C11: =[1]苏州工业园区工业企业技术改造经济效益表!C11 -> 91320594608236716P | D11: =[1]经济效益!N11 -> 87.41 | E11: =[1]智能化效益!R11 -> 87.17 | F11: =IF([1]综合素质认定!O11>10,10,[1]综合素质认定!O11) -> 0 | G11: 0 | H11: 0 | I11: 0 | J11: 78.62 | K11: =IF(J11<[1]奖补比例!$D$2,"D",IF(J11<[1]奖补比例!$C$2,"C",IF(J11<[1]奖补比例!$B$2,"B","A"))) -> B | L11: =[1]苏州工业园区工业企业技术改造经济效益表!AJ11 -> 1069.47 | M11: =[1]苏州工业园区工业企业技术改造经济效益表!AM11 -> 356.58 | N11: =IF([1]苏州工业园区工业企业技术改造经济效益表!AN11>=0.7,[1]苏州工业园区工业企业技术改造经济效益表!AM11,0) -> 0 | O11: =IF(IF(K11="A",[1]苏州工业园区工业企业技术改造经济效益表!AJ11*[1]奖补比例!$B$3+N11*[1]奖补比例!$B$5,IF(K11="B",[1]苏州工业园区工业企业技术改造经济效益表!AJ11*[1]奖补比例!$C$3+N11*[1]奖补比例!$C$5,IF(K11="C",[1]苏州工业园区工业企业技术改造经济效益表!AJ11*[1]奖补比例!$D$3+N11*[1]奖补比例!$D$5,[1]苏州工业园区工业企业技术改造经济效益表!AJ11*[1]奖补比例!$E$3+N11*[1]奖补比例!$E$5)))*[1]奖补比例!$G$2>1000,1000,IF(K11="A",[1]苏州工业园区工业企业技术改造经济效益表!AJ11*[1]奖补比例!$B$3+N11*[1]奖补比例!$B$5,IF(K11="B",[1]苏州工业园区工业企业技术改造经济效益表!AJ11*[1]奖补比例!$C$3+N11*[1]奖补比例!$C$5,IF(K11="C",[1]苏州工业园区工业企业技术改造经济效益表!AJ11*[1]奖补比例!$D$3+N11*[1]奖补比例!$D$5,[1]苏州工业园区工业企业技术改造经济效益表!AJ11*[1]奖补比例!$E$3+N11*[1]奖补比例!$E$5)))*[1]奖补比例!$G$2) -> 68.12 | P11: 0 | Q11: 0 | R11: 0 | S11: =[1]【扣减】人工智能奖补!F10 -> 0 | T11: 0 | U11: =[1]【扣减】投促委!F10 -> 0 | V11: 68.12 | W11: 68.12 | X11: 6.37% | Y11: =IF([1]项目纳统比对表!D11="否","未纳统",IF([1]项目纳统比对表!F11="否","不足500万元","")) -> 未纳统 | AA11: 68.12
A12: 9 | B12: =[1]苏州工业园区工业企业技术改造经济效益表!B12 -> 百得（苏州）电动工具有限公司 | C12: =[1]苏州工业园区工业企业技术改造经济效益表!C12 -> 91320594608205418E | D12: =[1]经济效益!N12 -> 61 | E12: =[1]智能化效益!R12 -> 85 | F12: =IF([1]综合素质认定!O12>10,10,[1]综合素质认定!O12) -> 0 | G12: 0 | H12: 0 | I12: 0 | J12: 59.70 | K12: =IF(J12<[1]奖补比例!$D$2,"D",IF(J12<[1]奖补比例!$C$2,"C",IF(J12<[1]奖补比例!$B$2,"B","A"))) -> C | L12: =[1]苏州工业园区工业企业技术改造经济效益表!AJ12 -> 2102.41 | M12: =[1]苏州工业园区工业企业技术改造经济效益表!AM12 -> 21.12 | N12: =IF([1]苏州工业园区工业企业技术改造经济效益表!AN12>=0.7,[1]苏州工业园区工业企业技术改造经济效益表!AM12,0) -> 0 | O12: =IF(IF(K12="A",[1]苏州工业园区工业企业技术改造经济效益表!AJ12*[1]奖补比例!$B$3+N12*[1]奖补比例!$B$5,IF(K12="B",[1]苏州工业园区工业企业技术改造经济效益表!AJ12*[1]奖补比例!$C$3+N12*[1]奖补比例!$C$5,IF(K12="C",[1]苏州工业园区工业企业技术改造经济效益表!AJ12*[1]奖补比例!$D$3+N12*[1]奖补比例!$D$5,[1]苏州工业园区工业企业技术改造经济效益表!AJ12*[1]奖补比例!$E$3+N12*[1]奖补比例!$E$5)))*[1]奖补比例!$G$2>1000,1000,IF(K12="A",[1]苏州工业园区工业企业技术改造经济效益表!AJ12*[1]奖补比例!$B$3+N12*[1]奖补比例!$B$5,IF(K12="B",[1]苏州工业园区工业企业技术改造经济效益表!AJ12*[1]奖补比例!$C$3+N12*[1]奖补比例!$C$5,IF(K12="C",[1]苏州工业园区工业企业技术改造经济效益表!AJ12*[1]奖补比例!$D$3+N12*[1]奖补比例!$D$5,[1]苏州工业园区工业企业技术改造经济效益表!AJ12*[1]奖补比例!$E$3+N12*[1]奖补比例!$E$5)))*[1]奖补比例!$G$2) -> 83.70 | P12: =VLOOKUP(B12,[1]【扣减】省技改综合奖补!$C$2:$E$59,3,0)/10000 -> 23 | Q12: 0 | R12: 0 | S12: =[1]【扣减】人工智能奖补!F11 -> 0 | T12: 0 | U12: =[1]【扣减】投促委!F11 -> 0 | V12: 60.70 | W12: 60.70 | X12: 3.98% | Y12: =IF([1]项目纳统比对表!D12="否","未纳统",IF([1]项目纳统比对表!F12="否","不足500万元","")) -> 未纳统 | AA12: 60.70
A13: 10 | B13: =[1]苏州工业园区工业企业技术改造经济效益表!B13 -> 百得（苏州）精密制造有限公司 | C13: =[1]苏州工业园区工业企业技术改造经济效益表!C13 -> 91320594789949394L | D13: =[1]经济效益!N13 -> 71 | E13: =[1]智能化效益!R13 -> 86.86 | F13: =IF([1]综合素质认定!O13>10,10,[1]综合素质认定!O13) -> 0 | G13: 0 | H13: 0 | I13: 0 | J13: 67.07 | K13: =IF(J13<[1]奖补比例!$D$2,"D",IF(J13<[1]奖补比例!$C$2,"C",IF(J13<[1]奖补比例!$B$2,"B","A"))) -> B | L13: =[1]苏州工业园区工业企业技术改造经济效益表!AJ13 -> 512.03 | M13: =[1]苏州工业园区工业企业技术改造经济效益表!AM13 -> 308.41 | N13: =IF([1]苏州工业园区工业企业技术改造经济效益表!AN13>=0.7,[1]苏州工业园区工业企业技术改造经济效益表!AM13,0) -> 0 | O13: =IF(IF(K13="A",[1]苏州工业园区工业企业技术改造经济效益表!AJ13*[1]奖补比例!$B$3+N13*[1]奖补比例!$B$5,IF(K13="B",[1]苏州工业园区工业企业技术改造经济效益表!AJ13*[1]奖补比例!$C$3+N13*[1]奖补比例!$C$5,IF(K13="C",[1]苏州工业园区工业企业技术改造经济效益表!AJ13*[1]奖补比例!$D$3+N13*[1]奖补比例!$D$5,[1]苏州工业园区工业企业技术改造经济效益表!AJ13*[1]奖补比例!$E$3+N13*[1]奖补比例!$E$5)))*[1]奖补比例!$G$2>1000,1000,IF(K13="A",[1]苏州工业园区工业企业技术改造经济效益表!AJ13*[1]奖补比例!$B$3+N13*[1]奖补比例!$B$5,IF(K13="B",[1]苏州工业园区工业企业技术改造经济效益表!AJ13*[1]奖补比例!$C$3+N13*[1]奖补比例!$C$5,IF(K13="C",[1]苏州工业园区工业企业技术改造经济效益表!AJ13*[1]奖补比例!$D$3+N13*[1]奖补比例!$D$5,[1]苏州工业园区工业企业技术改造经济效益表!AJ13*[1]奖补比例!$E$3+N13*[1]奖补比例!$E$5)))*[1]奖补比例!$G$2) -> 32.62 | P13: 0 | Q13: 0 | R13: 0 | S13: =[1]【扣减】人工智能奖补!F12 -> 0 | T13: 0 | U13: =[1]【扣减】投促委!F12 -> 0 | V13: 32.62 | W13: 32.62 | X13: 6.37% | Y13: =IF([1]项目纳统比对表!D13="否","未纳统",IF([1]项目纳统比对表!F13="否","不足500万元","")) -> 未纳统 | AA13: 32.62
A14: 11 | B14: =[1]苏州工业园区工业企业技术改造经济效益表!B14 -> 百得（苏州）科技有限公司 | C14: =[1]苏州工业园区工业企业技术改造经济效益表!C14 -> 913205947439059510 | D14: =[1]经济效益!N14 -> 86 | E14: =[1]智能化效益!R14 -> 90.54 | F14: =IF([1]综合素质认定!O14>10,10,[1]综合素质认定!O14) -> 0 | G14: 0 | H14: 0 | I14: 0 | J14: 78.31 | K14: =IF(J14<[1]奖补比例!$D$2,"D",IF(J14<[1]奖补比例!$C$2,"C",IF(J14<[1]奖补比例!$B$2,"B","A"))) -> B | L14: =[1]苏州工业园区工业企业技术改造经济效益表!AJ14 -> 3889.14 | M14: =[1]苏州工业园区工业企业技术改造经济效益表!AM14 -> 1518.69 | N14: =IF([1]苏州工业园区工业企业技术改造经济效益表!AN14>=0.7,[1]苏州工业园区工业企业技术改造经济效益表!AM14,0) -> 0 | O14: =IF(IF(K14="A",[1]苏州工业园区工业企业技术改造经济效益表!AJ14*[1]奖补比例!$B$3+N14*[1]奖补比例!$B$5,IF(K14="B",[1]苏州工业园区工业企业技术改造经济效益表!AJ14*[1]奖补比例!$C$3+N14*[1]奖补比例!$C$5,IF(K14="C",[1]苏州工业园区工业企业技术改造经济效益表!AJ14*[1]奖补比例!$D$3+N14*[1]奖补比例!$D$5,[1]苏州工业园区工业企业技术改造经济效益表!AJ14*[1]奖补比例!$E$3+N14*[1]奖补比例!$E$5)))*[1]奖补比例!$G$2>1000,1000,IF(K14="A",[1]苏州工业园区工业企业技术改造经济效益表!AJ14*[1]奖补比例!$B$3+N14*[1]奖补比例!$B$5,IF(K14="B",[1]苏州工业园区工业企业技术改造经济效益表!AJ14*[1]奖补比例!$C$3+N14*[1]奖补比例!$C$5,IF(K14="C",[1]苏州工业园区工业企业技术改造经济效益表!AJ14*[1]奖补比例!$D$3+N14*[1]奖补比例!$D$5,[1]苏州工业园区工业企业技术改造经济效益表!AJ14*[1]奖补比例!$E$3+N14*[1]奖补比例!$E$5)))*[1]奖补比例!$G$2) -> 247.73 | P14: =VLOOKUP(B14,[1]【扣减】省技改综合奖补!$C$2:$E$59,3,0)/10000 -> 29 | Q14: 0 | R14: 0 | S14: =[1]【扣减】人工智能奖补!F13 -> 0 | T14: 0 | U14: =[1]【扣减】投促委!F13 -> 0 | V14: 218.73 | W14: 218.73 | X14: 6.37% | Y14: =IF([1]项目纳统比对表!D14="否","未纳统",IF([1]项目纳统比对表!F14="否","不足500万元","")) -> 不足500万元 | AA14: 218.73
A15: 12 | B15: =[1]苏州工业园区工业企业技术改造经济效益表!B15 -> 佰电科技（苏州）有限公司 | C15: =[1]苏州工业园区工业企业技术改造经济效益表!C15 -> 9132059473829931XX | D15: =[1]经济效益!N15 -> 52.60 | E15: =[1]智能化效益!R15 -> 95 | F15: =IF([1]综合素质认定!O15>10,10,[1]综合素质认定!O15) -> 1 | G15: 0 | H15: 0 | I15: 0 | J15: 56.82 | K15: =IF(J15<[1]奖补比例!$D$2,"D",IF(J15<[1]奖补比例!$C$2,"C",IF(J15<[1]奖补比例!$B$2,"B","A"))) -> C | L15: =[1]苏州工业园区工业企业技术改造经济效益表!AJ15 -> 879.31 | M15: =[1]苏州工业园区工业企业技术改造经济效益表!AM15 -> 38.62 | N15: =IF([1]苏州工业园区工业企业技术改造经济效益表!AN15>=0.7,[1]苏州工业园区工业企业技术改造经济效益表!AM15,0) -> 0 | O15: =IF(IF(K15="A",[1]苏州工业园区工业企业技术改造经济效益表!AJ15*[1]奖补比例!$B$3+N15*[1]奖补比例!$B$5,IF(K15="B",[1]苏州工业园区工业企业技术改造经济效益表!AJ15*[1]奖补比例!$C$3+N15*[1]奖补比例!$C$5,IF(K15="C",[1]苏州工业园区工业企业技术改造经济效益表!AJ15*[1]奖补比例!$D$3+N15*[1]奖补比例!$D$5,[1]苏州工业园区工业企业技术改造经济效益表!AJ15*[1]奖补比例!$E$3+N15*[1]奖补比例!$E$5)))*[1]奖补比例!$G$2>1000,1000,IF(K15="A",[1]苏州工业园区工业企业技术改造经济效益表!AJ15*[1]奖补比例!$B$3+N15*[1]奖补比例!$B$5,IF(K15="B",[1]苏州工业园区工业企业技术改造经济效益表!AJ15*[1]奖补比例!$C$3+N15*[1]奖补比例!$C$5,IF(K15="C",[1]苏州工业园区工业企业技术改造经济效益表!AJ15*[1]奖补比例!$D$3+N15*[1]奖补比例!$D$5,[1]苏州工业园区工业企业技术改造经济效益表!AJ15*[1]奖补比例!$E$3+N15*[1]奖补比例!$E$5)))*[1]奖补比例!$G$2) -> 35.01 | P15: 0 | Q15: 0 | R15: 0 | S15: =[1]【扣减】人工智能奖补!F14 -> 0 | T15: 0 | U15: =[1]【扣减】投促委!F14 -> 0 | V15: 35.01 | W15: 35.01 | X15: 3.98% | Y15: =IF([1]项目纳统比对表!D15="否","未纳统",IF([1]项目纳统比对表!F15="否","不足500万元","")) -> 未纳统 | AA15: 35.01
A16: 13 | B16: =[1]苏州工业园区工业企业技术改造经济效益表!B16 -> 宝时得科技（中国）有限公司 | C16: =[1]苏州工业园区工业企业技术改造经济效益表!C16 -> 91320594739577318W | D16: =[1]经济效益!N16 -> 53.76 | E16: =[1]智能化效益!R16 -> 90 | F16: =IF([1]综合素质认定!O16>10,10,[1]综合素质认定!O16) -> 1 | G16: 0 | H16: 0 | I16: 0 | J16: 56.63 | K16: =IF(J16<[1]奖补比例!$D$2,"D",IF(J16<[1]奖补比例!$C$2,"C",IF(J16<[1]奖补比例!$B$2,"B","A"))) -> C | L16: =[1]苏州工业园区工业企业技术改造经济效益表!AJ16 -> 563.19 | M16: =[1]苏州工业园区工业企业技术改造经济效益表!AM16 -> 94.70 | N16: =IF([1]苏州工业园区工业企业技术改造经济效益表!AN16>=0.7,[1]苏州工业园区工业企业技术改造经济效益表!AM16,0) -> 0 | O16: =IF(IF(K16="A",[1]苏州工业园区工业企业技术改造经济效益表!AJ16*[1]奖补比例!$B$3+N16*[1]奖补比例!$B$5,IF(K16="B",[1]苏州工业园区工业企业技术改造经济效益表!AJ16*[1]奖补比例!$C$3+N16*[1]奖补比例!$C$5,IF(K16="C",[1]苏州工业园区工业企业技术改造经济效益表!AJ16*[1]奖补比例!$D$3+N16*[1]奖补比例!$D$5,[1]苏州工业园区工业企业技术改造经济效益表!AJ16*[1]奖补比例!$E$3+N16*[1]奖补比例!$E$5)))*[1]奖补比例!$G$2>1000,1000,IF(K16="A",[1]苏州工业园区工业企业技术改造经济效益表!AJ16*[1]奖补比例!$B$3+N16*[1]奖补比例!$B$5,IF(K16="B",[1]苏州工业园区工业企业技术改造经济效益表!AJ16*[1]奖补比例!$C$3+N16*[1]奖补比例!$C$5,IF(K16="C",[1]苏州工业园区工业企业技术改造经济效益表!AJ16*[1]奖补比例!$D$3+N16*[1]奖补比例!$D$5,[1]苏州工业园区工业企业技术改造经济效益表!AJ16*[1]奖补比例!$E$3+N16*[1]奖补比例!$E$5)))*[1]奖补比例!$G$2) -> 22.42 | P16: 0 | Q16: 0 | R16: 0 | S16: =[1]【扣减】人工智能奖补!F15 -> 0 | T16: 0 | U16: =[1]【扣减】投促委!F15 -> 0 | V16: 22.42 | W16: 22.42 | X16: 3.98% | Y16: =IF([1]项目纳统比对表!D16="否","未纳统",IF([1]项目纳统比对表!F16="否","不足500万元","")) ->  | AA16: 22.42
A17: 14 | B17: =[1]苏州工业园区工业企业技术改造经济效益表!B17 -> 贝朗医疗（苏州）有限公司 | C17: =[1]苏州工业园区工业企业技术改造经济效益表!C17 -> 91320594753217757D | D17: =[1]经济效益!N17 -> 48.98 | E17: =[1]智能化效益!R17 -> 83.36 | F17: =IF([1]综合素质认定!O17>10,10,[1]综合素质认定!O17) -> 1 | G17: 0 | H17: 0 | I17: 0 | J17: 51.96 | K17: =IF(J17<[1]奖补比例!$D$2,"D",IF(J17<[1]奖补比例!$C$2,"C",IF(J17<[1]奖补比例!$B$2,"B","A"))) -> C | L17: =[1]苏州工业园区工业企业技术改造经济效益表!AJ17 -> 2184 | M17: =[1]苏州工业园区工业企业技术改造经济效益表!AM17 -> 0 | N17: =IF([1]苏州工业园区工业企业技术改造经济效益表!AN17>=0.7,[1]苏州工业园区工业企业技术改造经济效益表!AM17,0) -> 0 | O17: =IF(IF(K17="A",[1]苏州工业园区工业企业技术改造经济效益表!AJ17*[1]奖补比例!$B$3+N17*[1]奖补比例!$B$5,IF(K17="B",[1]苏州工业园区工业企业技术改造经济效益表!AJ17*[1]奖补比例!$C$3+N17*[1]奖补比例!$C$5,IF(K17="C",[1]苏州工业园区工业企业技术改造经济效益表!AJ17*[1]奖补比例!$D$3+N17*[1]奖补比例!$D$5,[1]苏州工业园区工业企业技术改造经济效益表!AJ17*[1]奖补比例!$E$3+N17*[1]奖补比例!$E$5)))*[1]奖补比例!$G$2>1000,1000,IF(K17="A",[1]苏州工业园区工业企业技术改造经济效益表!AJ17*[1]奖补比例!$B$3+N17*[1]奖补比例!$B$5,IF(K17="B",[1]苏州工业园区工业企业技术改造经济效益表!AJ17*[1]奖补比例!$C$3+N17*[1]奖补比例!$C$5,IF(K17="C",[1]苏州工业园区工业企业技术改造经济效益表!AJ17*[1]奖补比例!$D$3+N17*[1]奖补比例!$D$5,[1]苏州工业园区工业企业技术改造经济效益表!AJ17*[1]奖补比例!$E$3+N17*[1]奖补比例!$E$5)))*[1]奖补比例!$G$2) -> 86.95 | P17: 0 | Q17: 0 | R17: 0 | S17: =[1]【扣减】人工智能奖补!F16 -> 0 | T17: 0 | U17: =[1]【扣减】投促委!F16 -> 0 | V17: 86.95 | W17: 86.95 | X17: 3.98% | Y17: =IF([1]项目纳统比对表!D17="否","未纳统",IF([1]项目纳统比对表!F17="否","不足500万元","")) -> 未纳统 | AA17: 86.95
A18: 15 | B18: =[1]苏州工业园区工业企业技术改造经济效益表!B18 -> 博瑞制药(苏州)有限公司 | C18: =[1]苏州工业园区工业企业技术改造经济效益表!C18 -> 9132059455378057X2 | D18: =[1]经济效益!N18 -> 68 | E18: =[1]智能化效益!R18 -> 88 | F18: =IF([1]综合素质认定!O18>10,10,[1]综合素质认定!O18) -> 1 | G18: 0 | H18: 0 | I18: 0 | J18: 66.20 | K18: =IF(J18<[1]奖补比例!$D$2,"D",IF(J18<[1]奖补比例!$C$2,"C",IF(J18<[1]奖补比例!$B$2,"B","A"))) -> B | L18: =[1]苏州工业园区工业企业技术改造经济效益表!AJ18 -> 777.45 | M18: =[1]苏州工业园区工业企业技术改造经济效益表!AM18 -> 186.93 | N18: =IF([1]苏州工业园区工业企业技术改造经济效益表!AN18>=0.7,[1]苏州工业园区工业企业技术改造经济效益表!AM18,0) -> 0 | O18: =IF(IF(K18="A",[1]苏州工业园区工业企业技术改造经济效益表!AJ18*[1]奖补比例!$B$3+N18*[1]奖补比例!$B$5,IF(K18="B",[1]苏州工业园区工业企业技术改造经济效益表!AJ18*[1]奖补比例!$C$3+N18*[1]奖补比例!$C$5,IF(K18="C",[1]苏州工业园区工业企业技术改造经济效益表!AJ18*[1]奖补比例!$D$3+N18*[1]奖补比例!$D$5,[1]苏州工业园区工业企业技术改造经济效益表!AJ18*[1]奖补比例!$E$3+N18*[1]奖补比例!$E$5)))*[1]奖补比例!$G$2>1000,1000,IF(K18="A",[1]苏州工业园区工业企业技术改造经济效益表!AJ18*[1]奖补比例!$B$3+N18*[1]奖补比例!$B$5,IF(K18="B",[1]苏州工业园区工业企业技术改造经济效益表!AJ18*[1]奖补比例!$C$3+N18*[1]奖补比例!$C$5,IF(K18="C",[1]苏州工业园区工业企业技术改造经济效益表!AJ18*[1]奖补比例!$D$3+N18*[1]奖补比例!$D$5,[1]苏州工业园区工业企业技术改造经济效益表!AJ18*[1]奖补比例!$E$3+N18*[1]奖补比例!$E$5)))*[1]奖补比例!$G$2) -> 49.52 | P18: 0 | Q18: 0 | R18: 0 | S18: =[1]【扣减】人工智能奖补!F17 -> 0 | T18: 0 | U18: =[1]【扣减】投促委!F17 -> 0 | V18: 49.52 | W18: 49.52 | X18: 6.37% | Y18: =IF([1]项目纳统比对表!D18="否","未纳统",IF([1]项目纳统比对表!F18="否","不足500万元","")) -> 未纳统 | AA18: 49.52
A19: 16 | B19: =[1]苏州工业园区工业企业技术改造经济效益表!B19 -> 博世汽车部件（苏州）有限公司 | C19: =[1]苏州工业园区工业企业技术改造经济效益表!C19 -> 91320594716805103D | D19: =[1]经济效益!N19 -> 90 | E19: =[1]智能化效益!R19 -> 95 | F19: =IF([1]综合素质认定!O19>10,10,[1]综合素质认定!O19) -> 10 | G19: 0 | H19: 0 | I19: 0 | J19: 92 | K19: =IF(J19<[1]奖补比例!$D$2,"D",IF(J19<[1]奖补比例!$C$2,"C",IF(J19<[1]奖补比例!$B$2,"B","A"))) -> A | L19: =[1]苏州工业园区工业企业技术改造经济效益表!AJ19 -> 12198.49 | M19: =[1]苏州工业园区工业企业技术改造经济效益表!AM19 -> 0 | N19: =IF([1]苏州工业园区工业企业技术改造经济效益表!AN19>=0.7,[1]苏州工业园区工业企业技术改造经济效益表!AM19,0) -> 0 | O19: =IF(IF(K19="A",[1]苏州工业园区工业企业技术改造经济效益表!AJ19*[1]奖补比例!$B$3+N19*[1]奖补比例!$B$5,IF(K19="B",[1]苏州工业园区工业企业技术改造经济效益表!AJ19*[1]奖补比例!$C$3+N19*[1]奖补比例!$C$5,IF(K19="C",[1]苏州工业园区工业企业技术改造经济效益表!AJ19*[1]奖补比例!$D$3+N19*[1]奖补比例!$D$5,[1]苏州工业园区工业企业技术改造经济效益表!AJ19*[1]奖补比例!$E$3+N19*[1]奖补比例!$E$5)))*[1]奖补比例!$G$2>1000,1000,IF(K19="A",[1]苏州工业园区工业企业技术改造经济效益表!AJ19*[1]奖补比例!$B$3+N19*[1]奖补比例!$B$5,IF(K19="B",[1]苏州工业园区工业企业技术改造经济效益表!AJ19*[1]奖补比例!$C$3+N19*[1]奖补比例!$C$5,IF(K19="C",[1]苏州工业园区工业企业技术改造经济效益表!AJ19*[1]奖补比例!$D$3+N19*[1]奖补比例!$D$5,[1]苏州工业园区工业企业技术改造经济效益表!AJ19*[1]奖补比例!$E$3+N19*[1]奖补比例!$E$5)))*[1]奖补比例!$G$2) -> 971.27 | P19: =VLOOKUP(B19,[1]【扣减】省技改综合奖补!$C$2:$E$59,3,0)/10000 -> 131 | Q19: 0 | R19: 0 | S19: =[1]【扣减】人工智能奖补!F18 -> 22.9 | T19: 0 | U19: =[1]【扣减】投促委!F18 -> 1600 | V19: 0 | W19: 0.00 | X19: 7.96% | Y19: =IF([1]项目纳统比对表!D19="否","未纳统",IF([1]项目纳统比对表!F19="否","不足500万元","")) ->  | AA19: 0.00
A20: 17 | B20: =[1]苏州工业园区工业企业技术改造经济效益表!B20 -> 博思格钢铁（苏州）有限公司 | C20: =[1]苏州工业园区工业企业技术改造经济效益表!C20 -> 91320594756431572G | D20: =[1]经济效益!N20 -> 45.07 | E20: =[1]智能化效益!R20 -> 74.97 | F20: =IF([1]综合素质认定!O20>10,10,[1]综合素质认定!O20) -> 1 | G20: 0 | H20: 0 | I20: 0 | J20: 47.54 | K20: =IF(J20<[1]奖补比例!$D$2,"D",IF(J20<[1]奖补比例!$C$2,"C",IF(J20<[1]奖补比例!$B$2,"B","A"))) -> D | L20: =[1]苏州工业园区工业企业技术改造经济效益表!AJ20 -> 629.37 | M20: =[1]苏州工业园区工业企业技术改造经济效益表!AM20 -> 38 | N20: =IF([1]苏州工业园区工业企业技术改造经济效益表!AN20>=0.7,[1]苏州工业园区工业企业技术改造经济效益表!AM20,0) -> 0 | O20: =IF(IF(K20="A",[1]苏州工业园区工业企业技术改造经济效益表!AJ20*[1]奖补比例!$B$3+N20*[1]奖补比例!$B$5,IF(K20="B",[1]苏州工业园区工业企业技术改造经济效益表!AJ20*[1]奖补比例!$C$3+N20*[1]奖补比例!$C$5,IF(K20="C",[1]苏州工业园区工业企业技术改造经济效益表!AJ20*[1]奖补比例!$D$3+N20*[1]奖补比例!$D$5,[1]苏州工业园区工业企业技术改造经济效益表!AJ20*[1]奖补比例!$E$3+N20*[1]奖补比例!$E$5)))*[1]奖补比例!$G$2>1000,1000,IF(K20="A",[1]苏州工业园区工业企业技术改造经济效益表!AJ20*[1]奖补比例!$B$3+N20*[1]奖补比例!$B$5,IF(K20="B",[1]苏州工业园区工业企业技术改造经济效益表!AJ20*[1]奖补比例!$C$3+N20*[1]奖补比例!$C$5,IF(K20="C",[1]苏州工业园区工业企业技术改造经济效益表!AJ20*[1]奖补比例!$D$3+N20*[1]奖补比例!$D$5,[1]苏州工业园区工业企业技术改造经济效益表!AJ20*[1]奖补比例!$E$3+N20*[1]奖补比例!$E$5)))*[1]奖补比例!$G$2) -> 15.03 | P20: 0 | Q20: 0 | R20: =VLOOKUP(B20,[1]【扣减】节能改造项目奖补!$B$2:$C$23,2,0) -> 35 | S20: =[1]【扣减】人工智能奖补!F19 -> 9.4 | T20: 0 | U20: =[1]【扣减】投促委!F19 -> 0 | V20: 0 | W20: 0.00 | X20: 2.39% | Y20: =IF([1]项目纳统比对表!D20="否","未纳统",IF([1]项目纳统比对表!F20="否","不足500万元","")) -> 未纳统 | AA20: 0.00
A21: 18 | B21: =[1]苏州工业园区工业企业技术改造经济效益表!B21 -> 参天制药（中国）有限公司 | C21: =[1]苏州工业园区工业企业技术改造经济效益表!C21 -> 91320594778675877J | D21: =[1]经济效益!N21 -> 42.06 | E21: =[1]智能化效益!R21 -> 79 | F21: =IF([1]综合素质认定!O21>10,10,[1]综合素质认定!O21) -> 1 | G21: 0 | H21: 0 | I21: 0 | J21: 46.24 | K21: =IF(J21<[1]奖补比例!$D$2,"D",IF(J21<[1]奖补比例!$C$2,"C",IF(J21<[1]奖补比例!$B$2,"B","A"))) -> D | L21: =[1]苏州工业园区工业企业技术改造经济效益表!AJ21 -> 2370.59 | M21: =[1]苏州工业园区工业企业技术改造经济效益表!AM21 -> 0 | N21: =IF([1]苏州工业园区工业企业技术改造经济效益表!AN21>=0.7,[1]苏州工业园区工业企业技术改造经济效益表!AM21,0) -> 0 | O21: =IF(IF(K21="A",[1]苏州工业园区工业企业技术改造经济效益表!AJ21*[1]奖补比例!$B$3+N21*[1]奖补比例!$B$5,IF(K21="B",[1]苏州工业园区工业企业技术改造经济效益表!AJ21*[1]奖补比例!$C$3+N21*[1]奖补比例!$C$5,IF(K21="C",[1]苏州工业园区工业企业技术改造经济效益表!AJ21*[1]奖补比例!$D$3+N21*[1]奖补比例!$D$5,[1]苏州工业园区工业企业技术改造经济效益表!AJ21*[1]奖补比例!$E$3+N21*[1]奖补比例!$E$5)))*[1]奖补比例!$G$2>1000,1000,IF(K21="A",[1]苏州工业园区工业企业技术改造经济效益表!AJ21*[1]奖补比例!$B$3+N21*[1]奖补比例!$B$5,IF(K21="B",[1]苏州工业园区工业企业技术改造经济效益表!AJ21*[1]奖补比例!$C$3+N21*[1]奖补比例!$C$5,IF(K21="C",[1]苏州工业园区工业企业技术改造经济效益表!AJ21*[1]奖补比例!$D$3+N21*[1]奖补比例!$D$5,[1]苏州工业园区工业企业技术改造经济效益表!AJ21*[1]奖补比例!$E$3+N21*[1]奖补比例!$E$5)))*[1]奖补比例!$G$2) -> 56.63 | P21: 0 | Q21: 0 | R21: 0 | S21: =[1]【扣减】人工智能奖补!F20 -> 0 | T21: 0 | U21: =[1]【扣减】投促委!F20 -> 0 | V21: 56.63 | W21: 56.63 | X21: 2.39% | Y21: =IF([1]项目纳统比对表!D21="否","未纳统",IF([1]项目纳统比对表!F21="否","不足500万元","")) ->  | AA21: 56.63
A22: 19 | B22: =[1]苏州工业园区工业企业技术改造经济效益表!B22 -> 大金机电设备（苏州）有限公司 | C22: =[1]苏州工业园区工业企业技术改造经济效益表!C22 -> 91320594755855023J | D22: =[1]经济效益!N22 -> 66.25 | E22: =[1]智能化效益!R22 -> 90 | F22: =IF([1]综合素质认定!O22>10,10,[1]综合素质认定!O22) -> 0 | G22: 0 | H22: 0 | I22: 0 | J22: 64.37 | K22: =IF(J22<[1]奖补比例!$D$2,"D",IF(J22<[1]奖补比例!$C$2,"C",IF(J22<[1]奖补比例!$B$2,"B","A"))) -> B | L22: =[1]苏州工业园区工业企业技术改造经济效益表!AJ22 -> 1568.39 | M22: =[1]苏州工业园区工业企业技术改造经济效益表!AM22 -> 165.55 | N22: =IF([1]苏州工业园区工业企业技术改造经济效益表!AN22>=0.7,[1]苏州工业园区工业企业技术改造经济效益表!AM22,0) -> 0 | O22: =IF(IF(K22="A",[1]苏州工业园区工业企业技术改造经济效益表!AJ22*[1]奖补比例!$B$3+N22*[1]奖补比例!$B$5,IF(K22="B",[1]苏州工业园区工业企业技术改造经济效益表!AJ22*[1]奖补比例!$C$3+N22*[1]奖补比例!$C$5,IF(K22="C",[1]苏州工业园区工业企业技术改造经济效益表!AJ22*[1]奖补比例!$D$3+N22*[1]奖补比例!$D$5,[1]苏州工业园区工业企业技术改造经济效益表!AJ22*[1]奖补比例!$E$3+N22*[1]奖补比例!$E$5)))*[1]奖补比例!$G$2>1000,1000,IF(K22="A",[1]苏州工业园区工业企业技术改造经济效益表!AJ22*[1]奖补比例!$B$3+N22*[1]奖补比例!$B$5,IF(K22="B",[1]苏州工业园区工业企业技术改造经济效益表!AJ22*[1]奖补比例!$C$3+N22*[1]奖补比例!$C$5,IF(K22="C",[1]苏州工业园区工业企业技术改造经济效益表!AJ22*[1]奖补比例!$D$3+N22*[1]奖补比例!$D$5,[1]苏州工业园区工业企业技术改造经济效益表!AJ22*[1]奖补比例!$E$3+N22*[1]奖补比例!$E$5)))*[1]奖补比例!$G$2) -> 99.90 | P22: =VLOOKUP(B22,[1]【扣减】省技改综合奖补!$C$2:$E$59,3,0)/10000 -> 40 | Q22: 0 | R22: 0 | S22: =[1]【扣减】人工智能奖补!F21 -> 0 | T22: 0 | U22: =[1]【扣减】投促委!F21 -> 0 | V22: 59.90 | W22: 59.90 | X22: 6.37% | Y22: =IF([1]项目纳统比对表!D22="否","未纳统",IF([1]项目纳统比对表!F22="否","不足500万元","")) -> 未纳统 | AA22: 59.90
A23: 20 | B23: =[1]苏州工业园区工业企业技术改造经济效益表!B23 -> 大金空调（苏州）有限公司 | C23: =[1]苏州工业园区工业企业技术改造经济效益表!C23 -> 91320594586672794Y | D23: =[1]经济效益!N23 -> 46.61 | E23: =[1]智能化效益!R23 -> 85.26 | F23: =IF([1]综合素质认定!O23>10,10,[1]综合素质认定!O23) -> 1 | G23: 0 | H23: 0 | I23: 0 | J23: 50.68 | K23: =IF(J23<[1]奖补比例!$D$2,"D",IF(J23<[1]奖补比例!$C$2,"C",IF(J23<[1]奖补比例!$B$2,"B","A"))) -> C | L23: =[1]苏州工业园区工业企业技术改造经济效益表!AJ23 -> 4351.14 | M23: =[1]苏州工业园区工业企业技术改造经济效益表!AM23 -> 0 | N23: =IF([1]苏州工业园区工业企业技术改造经济效益表!AN23>=0.7,[1]苏州工业园区工业企业技术改造经济效益表!AM23,0) -> 0 | O23: =IF(IF(K23="A",[1]苏州工业园区工业企业技术改造经济效益表!AJ23*[1]奖补比例!$B$3+N23*[1]奖补比例!$B$5,IF(K23="B",[1]苏州工业园区工业企业技术改造经济效益表!AJ23*[1]奖补比例!$C$3+N23*[1]奖补比例!$C$5,IF(K23="C",[1]苏州工业园区工业企业技术改造经济效益表!AJ23*[1]奖补比例!$D$3+N23*[1]奖补比例!$D$5,[1]苏州工业园区工业企业技术改造经济效益表!AJ23*[1]奖补比例!$E$3+N23*[1]奖补比例!$E$5)))*[1]奖补比例!$G$2>1000,1000,IF(K23="A",[1]苏州工业园区工业企业技术改造经济效益表!AJ23*[1]奖补比例!$B$3+N23*[1]奖补比例!$B$5,IF(K23="B",[1]苏州工业园区工业企业技术改造经济效益表!AJ23*[1]奖补比例!$C$3+N23*[1]奖补比例!$C$5,IF(K23="C",[1]苏州工业园区工业企业技术改造经济效益表!AJ23*[1]奖补比例!$D$3+N23*[1]奖补比例!$D$5,[1]苏州工业园区工业企业技术改造经济效益表!AJ23*[1]奖补比例!$E$3+N23*[1]奖补比例!$E$5)))*[1]奖补比例!$G$2) -> 173.22 | P23: =VLOOKUP(B23,[1]【扣减】省技改综合奖补!$C$2:$E$59,3,0)/10000 -> 110 | Q23: 0 | R23: 0 | S23: =[1]【扣减】人工智能奖补!F22 -> 0 | T23: 0 | U23: =[1]【扣减】投促委!F22 -> 0 | V23: 63.22 | W23: 63.22 | X23: 3.98% | Y23: =IF([1]项目纳统比对表!D23="否","未纳统",IF([1]项目纳统比对表!F23="否","不足500万元","")) ->  | AA23: 63.22
A24: 21 | B24: =[1]苏州工业园区工业企业技术改造经济效益表!B24 -> 大金制冷（苏州）有限公司 | C24: =[1]苏州工业园区工业企业技术改造经济效益表!C24 -> 91320594666363721D | D24: =[1]经济效益!N24 -> 66.11 | E24: =[1]智能化效益!R24 -> 83.97 | F24: =IF([1]综合素质认定!O24>10,10,[1]综合素质认定!O24) -> 0 | G24: 0 | H24: 0 | I24: 0 | J24: 63.07 | K24: =IF(J24<[1]奖补比例!$D$2,"D",IF(J24<[1]奖补比例!$C$2,"C",IF(J24<[1]奖补比例!$B$2,"B","A"))) -> B | L24: =[1]苏州工业园区工业企业技术改造经济效益表!AJ24 -> 609.59 | M24: =[1]苏州工业园区工业企业技术改造经济效益表!AM24 -> 11.01 | N24: =IF([1]苏州工业园区工业企业技术改造经济效益表!AN24>=0.7,[1]苏州工业园区工业企业技术改造经济效益表!AM24,0) -> 0 | O24: =IF(IF(K24="A",[1]苏州工业园区工业企业技术改造经济效益表!AJ24*[1]奖补比例!$B$3+N24*[1]奖补比例!$B$5,IF(K24="B",[1]苏州工业园区工业企业技术改造经济效益表!AJ24*[1]奖补比例!$C$3+N24*[1]奖补比例!$C$5,IF(K24="C",[1]苏州工业园区工业企业技术改造经济效益表!AJ24*[1]奖补比例!$D$3+N24*[1]奖补比例!$D$5,[1]苏州工业园区工业企业技术改造经济效益表!AJ24*[1]奖补比例!$E$3+N24*[1]奖补比例!$E$5)))*[1]奖补比例!$G$2>1000,1000,IF(K24="A",[1]苏州工业园区工业企业技术改造经济效益表!AJ24*[1]奖补比例!$B$3+N24*[1]奖补比例!$B$5,IF(K24="B",[1]苏州工业园区工业企业技术改造经济效益表!AJ24*[1]奖补比例!$C$3+N24*[1]奖补比例!$C$5,IF(K24="C",[1]苏州工业园区工业企业技术改造经济效益表!AJ24*[1]奖补比例!$D$3+N24*[1]奖补比例!$D$5,[1]苏州工业园区工业企业技术改造经济效益表!AJ24*[1]奖补比例!$E$3+N24*[1]奖补比例!$E$5)))*[1]奖补比例!$G$2) -> 38.83 | P24: 0 | Q24: 0 | R24: 0 | S24: =[1]【扣减】人工智能奖补!F23 -> 0 | T24: 0 | U24: =[1]【扣减】投促委!F23 -> 0 | V24: 38.83 | W24: 38.83 | X24: 6.37% | Y24: =IF([1]项目纳统比对表!D24="否","未纳统",IF([1]项目纳统比对表!F24="否","不足500万元","")) -> 未纳统 | AA24: 38.83
A25: 22 | B25: =[1]苏州工业园区工业企业技术改造经济效益表!B25 -> 大同电工(苏州)有限公司 | C25: =[1]苏州工业园区工业企业技术改造经济效益表!C25 -> 91320594754637956M | D25: =[1]经济效益!N25 -> 42.96 | E25: =[1]智能化效益!R25 -> 74.85 | F25: =IF([1]综合素质认定!O25>10,10,[1]综合素质认定!O25) -> 1 | G25: 0 | H25: 0 | I25: 0 | J25: 46.04 | K25: =IF(J25<[1]奖补比例!$D$2,"D",IF(J25<[1]奖补比例!$C$2,"C",IF(J25<[1]奖补比例!$B$2,"B","A"))) -> D | L25: =[1]苏州工业园区工业企业技术改造经济效益表!AJ25 -> 1030.484656 | M25: =[1]苏州工业园区工业企业技术改造经济效益表!AM25 -> 0 | N25: =IF([1]苏州工业园区工业企业技术改造经济效益表!AN25>=0.7,[1]苏州工业园区工业企业技术改造经济效益表!AM25,0) -> 0 | O25: =IF(IF(K25="A",[1]苏州工业园区工业企业技术改造经济效益表!AJ25*[1]奖补比例!$B$3+N25*[1]奖补比例!$B$5,IF(K25="B",[1]苏州工业园区工业企业技术改造经济效益表!AJ25*[1]奖补比例!$C$3+N25*[1]奖补比例!$C$5,IF(K25="C",[1]苏州工业园区工业企业技术改造经济效益表!AJ25*[1]奖补比例!$D$3+N25*[1]奖补比例!$D$5,[1]苏州工业园区工业企业技术改造经济效益表!AJ25*[1]奖补比例!$E$3+N25*[1]奖补比例!$E$5)))*[1]奖补比例!$G$2>1000,1000,IF(K25="A",[1]苏州工业园区工业企业技术改造经济效益表!AJ25*[1]奖补比例!$B$3+N25*[1]奖补比例!$B$5,IF(K25="B",[1]苏州工业园区工业企业技术改造经济效益表!AJ25*[1]奖补比例!$C$3+N25*[1]奖补比例!$C$5,IF(K25="C",[1]苏州工业园区工业企业技术改造经济效益表!AJ25*[1]奖补比例!$D$3+N25*[1]奖补比例!$D$5,[1]苏州工业园区工业企业技术改造经济效益表!AJ25*[1]奖补比例!$E$3+N25*[1]奖补比例!$E$5)))*[1]奖补比例!$G$2) -> 24.61 | P25: 0 | Q25: 0 | R25: 0 | S25: =[1]【扣减】人工智能奖补!F24 -> 0 | T25: 0 | U25: =[1]【扣减】投促委!F24 -> 0 | V25: 24.61 | W25: 24.61 | X25: 2.39% | Y25: =IF([1]项目纳统比对表!D25="否","未纳统",IF([1]项目纳统比对表!F25="否","不足500万元","")) -> 未纳统 | AA25: 24.61
A26: 23 | B26: =[1]苏州工业园区工业企业技术改造经济效益表!B26 -> 大同精密金属（苏州）有限公司 | C26: =[1]苏州工业园区工业企业技术改造经济效益表!C26 -> 913205947424737983 | D26: =[1]经济效益!N26 -> 68.21 | E26: =[1]智能化效益!R26 -> 92 | F26: =IF([1]综合素质认定!O26>10,10,[1]综合素质认定!O26) -> 0 | G26: 0 | H26: 0 | I26: 0 | J26: 66.15 | K26: =IF(J26<[1]奖补比例!$D$2,"D",IF(J26<[1]奖补比例!$C$2,"C",IF(J26<[1]奖补比例!$B$2,"B","A"))) -> B | L26: =[1]苏州工业园区工业企业技术改造经济效益表!AJ26 -> 2497.07 | M26: =[1]苏州工业园区工业企业技术改造经济效益表!AM26 -> 0 | N26: =IF([1]苏州工业园区工业企业技术改造经济效益表!AN26>=0.7,[1]苏州工业园区工业企业技术改造经济效益表!AM26,0) -> 0 | O26: =IF(IF(K26="A",[1]苏州工业园区工业企业技术改造经济效益表!AJ26*[1]奖补比例!$B$3+N26*[1]奖补比例!$B$5,IF(K26="B",[1]苏州工业园区工业企业技术改造经济效益表!AJ26*[1]奖补比例!$C$3+N26*[1]奖补比例!$C$5,IF(K26="C",[1]苏州工业园区工业企业技术改造经济效益表!AJ26*[1]奖补比例!$D$3+N26*[1]奖补比例!$D$5,[1]苏州工业园区工业企业技术改造经济效益表!AJ26*[1]奖补比例!$E$3+N26*[1]奖补比例!$E$5)))*[1]奖补比例!$G$2>1000,1000,IF(K26="A",[1]苏州工业园区工业企业技术改造经济效益表!AJ26*[1]奖补比例!$B$3+N26*[1]奖补比例!$B$5,IF(K26="B",[1]苏州工业园区工业企业技术改造经济效益表!AJ26*[1]奖补比例!$C$3+N26*[1]奖补比例!$C$5,IF(K26="C",[1]苏州工业园区工业企业技术改造经济效益表!AJ26*[1]奖补比例!$D$3+N26*[1]奖补比例!$D$5,[1]苏州工业园区工业企业技术改造经济效益表!AJ26*[1]奖补比例!$E$3+N26*[1]奖补比例!$E$5)))*[1]奖补比例!$G$2) -> 159.06 | P26: =VLOOKUP(B26,[1]【扣减】省技改综合奖补!$C$2:$E$59,3,0)/10000 -> 15 | Q26: 0 | R26: 0 | S26: =[1]【扣减】人工智能奖补!F25 -> 0 | T26: 0 | U26: =[1]【扣减】投促委!F25 -> 0 | V26: 144.06 | W26: 144.06 | X26: 6.37% | Y26: =IF([1]项目纳统比对表!D26="否","未纳统",IF([1]项目纳统比对表!F26="否","不足500万元","")) ->  | AA26: 144.06
A27: 24 | B27: =[1]苏州工业园区工业企业技术改造经济效益表!B27 -> 德莎（苏州）胶带技术有限公司 | C27: =[1]苏州工业园区工业企业技术改造经济效益表!C27 -> 91320594761504668U | D27: =[1]经济效益!N27 -> 50 | E27: =[1]智能化效益!R27 -> 90 | F27: =IF([1]综合素质认定!O27>10,10,[1]综合素质认定!O27) -> 1 | G27: 0 | H27: 0 | I27: 0 | J27: 54 | K27: =IF(J27<[1]奖补比例!$D$2,"D",IF(J27<[1]奖补比例!$C$2,"C",IF(J27<[1]奖补比例!$B$2,"B","A"))) -> C | L27: =[1]苏州工业园区工业企业技术改造经济效益表!AJ27 -> 4945.33 | M27: =[1]苏州工业园区工业企业技术改造经济效益表!AM27 -> 0 | N27: =IF([1]苏州工业园区工业企业技术改造经济效益表!AN27>=0.7,[1]苏州工业园区工业企业技术改造经济效益表!AM27,0) -> 0 | O27: =IF(IF(K27="A",[1]苏州工业园区工业企业技术改造经济效益表!AJ27*[1]奖补比例!$B$3+N27*[1]奖补比例!$B$5,IF(K27="B",[1]苏州工业园区工业企业技术改造经济效益表!AJ27*[1]奖补比例!$C$3+N27*[1]奖补比例!$C$5,IF(K27="C",[1]苏州工业园区工业企业技术改造经济效益表!AJ27*[1]奖补比例!$D$3+N27*[1]奖补比例!$D$5,[1]苏州工业园区工业企业技术改造经济效益表!AJ27*[1]奖补比例!$E$3+N27*[1]奖补比例!$E$5)))*[1]奖补比例!$G$2>1000,1000,IF(K27="A",[1]苏州工业园区工业企业技术改造经济效益表!AJ27*[1]奖补比例!$B$3+N27*[1]奖补比例!$B$5,IF(K27="B",[1]苏州工业园区工业企业技术改造经济效益表!AJ27*[1]奖补比例!$C$3+N27*[1]奖补比例!$C$5,IF(K27="C",[1]苏州工业园区工业企业技术改造经济效益表!AJ27*[1]奖补比例!$D$3+N27*[1]奖补比例!$D$5,[1]苏州工业园区工业企业技术改造经济效益表!AJ27*[1]奖补比例!$E$3+N27*[1]奖补比例!$E$5)))*[1]奖补比例!$G$2) -> 196.88 | P27: =VLOOKUP(B27,[1]【扣减】省技改综合奖补!$C$2:$E$59,3,0)/10000 -> 19 | Q27: 0 | R27: 0 | S27: =[1]【扣减】人工智能奖补!F26 -> 0 | T27: 0 | U27: =[1]【扣减】投促委!F26 -> 0 | V27: 177.88 | W27: 177.88 | X27: 3.98% | Y27: =IF([1]项目纳统比对表!D27="否","未纳统",IF([1]项目纳统比对表!F27="否","不足500万元","")) ->  | AA27: 177.88
A28: 25 | B28: =[1]苏州工业园区工业企业技术改造经济效益表!B28 -> 恩德斯豪斯流量仪表技术（中国）有限公司 | C28: =[1]苏州工业园区工业企业技术改造经济效益表!C28 -> 913205947424731302 | D28: =[1]经济效益!N28 -> 61 | E28: =[1]智能化效益!R28 -> 76.48 | F28: =IF([1]综合素质认定!O28>10,10,[1]综合素质认定!O28) -> 1 | G28: 0 | H28: 0 | I28: 0 | J28: 59.00 | K28: =IF(J28<[1]奖补比例!$D$2,"D",IF(J28<[1]奖补比例!$C$2,"C",IF(J28<[1]奖补比例!$B$2,"B","A"))) -> C | L28: =[1]苏州工业园区工业企业技术改造经济效益表!AJ28 -> 845.03 | M28: =[1]苏州工业园区工业企业技术改造经济效益表!AM28 -> 3.17 | N28: =IF([1]苏州工业园区工业企业技术改造经济效益表!AN28>=0.7,[1]苏州工业园区工业企业技术改造经济效益表!AM28,0) -> 0 | O28: =IF(IF(K28="A",[1]苏州工业园区工业企业技术改造经济效益表!AJ28*[1]奖补比例!$B$3+N28*[1]奖补比例!$B$5,IF(K28="B",[1]苏州工业园区工业企业技术改造经济效益表!AJ28*[1]奖补比例!$C$3+N28*[1]奖补比例!$C$5,IF(K28="C",[1]苏州工业园区工业企业技术改造经济效益表!AJ28*[1]奖补比例!$D$3+N28*[1]奖补比例!$D$5,[1]苏州工业园区工业企业技术改造经济效益表!AJ28*[1]奖补比例!$E$3+N28*[1]奖补比例!$E$5)))*[1]奖补比例!$G$2>1000,1000,IF(K28="A",[1]苏州工业园区工业企业技术改造经济效益表!AJ28*[1]奖补比例!$B$3+N28*[1]奖补比例!$B$5,IF(K28="B",[1]苏州工业园区工业企业技术改造经济效益表!AJ28*[1]奖补比例!$C$3+N28*[1]奖补比例!$C$5,IF(K28="C",[1]苏州工业园区工业企业技术改造经济效益表!AJ28*[1]奖补比例!$D$3+N28*[1]奖补比例!$D$5,[1]苏州工业园区工业企业技术改造经济效益表!AJ28*[1]奖补比例!$E$3+N28*[1]奖补比例!$E$5)))*[1]奖补比例!$G$2) -> 33.64 | P28: 0 | Q28: 0 | R28: 0 | S28: =[1]【扣减】人工智能奖补!F27 -> 0 | T28: 0 | U28: =[1]【扣减】投促委!F27 -> 0 | V28: 33.64 | W28: 33.64 | X28: 3.98% | Y28: =IF([1]项目纳统比对表!D28="否","未纳统",IF([1]项目纳统比对表!F28="否","不足500万元","")) ->  | AA28: 33.64
A29: 26 | B29: =[1]苏州工业园区工业企业技术改造经济效益表!B29 -> 飞比达电子元器件（苏州）有限公司 | C29: =[1]苏州工业园区工业企业技术改造经济效益表!C29 -> 91320594768276530J | D29: =[1]经济效益!N29 -> 48.74 | E29: =[1]智能化效益!R29 -> 94.12 | F29: =IF([1]综合素质认定!O29>10,10,[1]综合素质认定!O29) -> 1 | G29: 0 | H29: 0 | I29: 0 | J29: 53.94 | K29: =IF(J29<[1]奖补比例!$D$2,"D",IF(J29<[1]奖补比例!$C$2,"C",IF(J29<[1]奖补比例!$B$2,"B","A"))) -> C | L29: =[1]苏州工业园区工业企业技术改造经济效益表!AJ29 -> 587.75 | M29: =[1]苏州工业园区工业企业技术改造经济效益表!AM29 -> 30.33 | N29: =IF([1]苏州工业园区工业企业技术改造经济效益表!AN29>=0.7,[1]苏州工业园区工业企业技术改造经济效益表!AM29,0) -> 0 | O29: =IF(IF(K29="A",[1]苏州工业园区工业企业技术改造经济效益表!AJ29*[1]奖补比例!$B$3+N29*[1]奖补比例!$B$5,IF(K29="B",[1]苏州工业园区工业企业技术改造经济效益表!AJ29*[1]奖补比例!$C$3+N29*[1]奖补比例!$C$5,IF(K29="C",[1]苏州工业园区工业企业技术改造经济效益表!AJ29*[1]奖补比例!$D$3+N29*[1]奖补比例!$D$5,[1]苏州工业园区工业企业技术改造经济效益表!AJ29*[1]奖补比例!$E$3+N29*[1]奖补比例!$E$5)))*[1]奖补比例!$G$2>1000,1000,IF(K29="A",[1]苏州工业园区工业企业技术改造经济效益表!AJ29*[1]奖补比例!$B$3+N29*[1]奖补比例!$B$5,IF(K29="B",[1]苏州工业园区工业企业技术改造经济效益表!AJ29*[1]奖补比例!$C$3+N29*[1]奖补比例!$C$5,IF(K29="C",[1]苏州工业园区工业企业技术改造经济效益表!AJ29*[1]奖补比例!$D$3+N29*[1]奖补比例!$D$5,[1]苏州工业园区工业企业技术改造经济效益表!AJ29*[1]奖补比例!$E$3+N29*[1]奖补比例!$E$5)))*[1]奖补比例!$G$2) -> 23.40 | P29: 0 | Q29: 0 | R29: 0 | S29: =[1]【扣减】人工智能奖补!F28 -> 0 | T29: 0 | U29: =[1]【扣减】投促委!F28 -> 0 | V29: 23.40 | W29: 23.40 | X29: 3.98% | Y29: =IF([1]项目纳统比对表!D29="否","未纳统",IF([1]项目纳统比对表!F29="否","不足500万元","")) -> 未纳统 | AA29: 23.40
A30: 27 | B30: =[1]苏州工业园区工业企业技术改造经济效益表!B30 -> 高德（苏州）电子有限公司 | C30: =[1]苏州工业园区工业企业技术改造经济效益表!C30 -> 91320594608207413D | D30: =[1]经济效益!N30 -> 42.70 | E30: =[1]智能化效益!R30 -> 90 | F30: =IF([1]综合素质认定!O30>10,10,[1]综合素质认定!O30) -> 1 | G30: 0 | H30: 0 | I30: 0 | J30: 48.89 | K30: =IF(J30<[1]奖补比例!$D$2,"D",IF(J30<[1]奖补比例!$C$2,"C",IF(J30<[1]奖补比例!$B$2,"B","A"))) -> D | L30: =[1]苏州工业园区工业企业技术改造经济效益表!AJ30 -> 761.12 | M30: =[1]苏州工业园区工业企业技术改造经济效益表!AM30 -> 0 | N30: =IF([1]苏州工业园区工业企业技术改造经济效益表!AN30>=0.7,[1]苏州工业园区工业企业技术改造经济效益表!AM30,0) -> 0 | O30: =IF(IF(K30="A",[1]苏州工业园区工业企业技术改造经济效益表!AJ30*[1]奖补比例!$B$3+N30*[1]奖补比例!$B$5,IF(K30="B",[1]苏州工业园区工业企业技术改造经济效益表!AJ30*[1]奖补比例!$C$3+N30*[1]奖补比例!$C$5,IF(K30="C",[1]苏州工业园区工业企业技术改造经济效益表!AJ30*[1]奖补比例!$D$3+N30*[1]奖补比例!$D$5,[1]苏州工业园区工业企业技术改造经济效益表!AJ30*[1]奖补比例!$E$3+N30*[1]奖补比例!$E$5)))*[1]奖补比例!$G$2>1000,1000,IF(K30="A",[1]苏州工业园区工业企业技术改造经济效益表!AJ30*[1]奖补比例!$B$3+N30*[1]奖补比例!$B$5,IF(K30="B",[1]苏州工业园区工业企业技术改造经济效益表!AJ30*[1]奖补比例!$C$3+N30*[1]奖补比例!$C$5,IF(K30="C",[1]苏州工业园区工业企业技术改造经济效益表!AJ30*[1]奖补比例!$D$3+N30*[1]奖补比例!$D$5,[1]苏州工业园区工业企业技术改造经济效益表!AJ30*[1]奖补比例!$E$3+N30*[1]奖补比例!$E$5)))*[1]奖补比例!$G$2) -> 18.18 | P30: 0 | Q30: 0 | R30: 0 | S30: =[1]【扣减】人工智能奖补!F29 -> 0 | T30: 0 | U30: =[1]【扣减】投促委!F29 -> 0 | V30: 18.18 | W30: 18.18 | X30: 2.39% | Y30: =IF([1]项目纳统比对表!D30="否","未纳统",IF([1]项目纳统比对表!F30="否","不足500万元","")) -> 未纳统 | AA30: 18.18
A31: 28 | B31: =[1]苏州工业园区工业企业技术改造经济效益表!B31 -> 格里森齿轮科技（苏州）有限责任公司 | C31: =[1]苏州工业园区工业企业技术改造经济效益表!C31 -> 913205947933405737 | D31: =[1]经济效益!N31 -> 42 | E31: =[1]智能化效益!R31 -> 92 | F31: =IF([1]综合素质认定!O31>10,10,[1]综合素质认定!O31) -> 1 | G31: 0 | H31: 0 | I31: 0 | J31: 48.80 | K31: =IF(J31<[1]奖补比例!$D$2,"D",IF(J31<[1]奖补比例!$C$2,"C",IF(J31<[1]奖补比例!$B$2,"B","A"))) -> D | L31: =[1]苏州工业园区工业企业技术改造经济效益表!AJ31 -> 2120.42 | M31: =[1]苏州工业园区工业企业技术改造经济效益表!AM31 -> 0 | N31: =IF([1]苏州工业园区工业企业技术改造经济效益表!AN31>=0.7,[1]苏州工业园区工业企业技术改造经济效益表!AM31,0) -> 0 | O31: =IF(IF(K31="A",[1]苏州工业园区工业企业技术改造经济效益表!AJ31*[1]奖补比例!$B$3+N31*[1]奖补比例!$B$5,IF(K31="B",[1]苏州工业园区工业企业技术改造经济效益表!AJ31*[1]奖补比例!$C$3+N31*[1]奖补比例!$C$5,IF(K31="C",[1]苏州工业园区工业企业技术改造经济效益表!AJ31*[1]奖补比例!$D$3+N31*[1]奖补比例!$D$5,[1]苏州工业园区工业企业技术改造经济效益表!AJ31*[1]奖补比例!$E$3+N31*[1]奖补比例!$E$5)))*[1]奖补比例!$G$2>1000,1000,IF(K31="A",[1]苏州工业园区工业企业技术改造经济效益表!AJ31*[1]奖补比例!$B$3+N31*[1]奖补比例!$B$5,IF(K31="B",[1]苏州工业园区工业企业技术改造经济效益表!AJ31*[1]奖补比例!$C$3+N31*[1]奖补比例!$C$5,IF(K31="C",[1]苏州工业园区工业企业技术改造经济效益表!AJ31*[1]奖补比例!$D$3+N31*[1]奖补比例!$D$5,[1]苏州工业园区工业企业技术改造经济效益表!AJ31*[1]奖补比例!$E$3+N31*[1]奖补比例!$E$5)))*[1]奖补比例!$G$2) -> 50.65 | P31: =VLOOKUP(B31,[1]【扣减】省技改综合奖补!$C$2:$E$59,3,0)/10000 -> 15 | Q31: 0 | R31: 0 | S31: =[1]【扣减】人工智能奖补!F30 -> 0 | T31: 0 | U31: =[1]【扣减】投促委!F30 -> 0 | V31: 35.65 | W31: 35.65 | X31: 2.39% | Y31: =IF([1]项目纳统比对表!D31="否","未纳统",IF([1]项目纳统比对表!F31="否","不足500万元","")) ->  | AA31: 35.65
A32: 29 | B32: =[1]苏州工业园区工业企业技术改造经济效益表!B32 -> 广濑电机（苏州）有限公司 | C32: =[1]苏州工业园区工业企业技术改造经济效益表!C32 -> 91320594662732286R | D32: =[1]经济效益!N32 -> 81 | E32: =[1]智能化效益!R32 -> 88.72 | F32: =IF([1]综合素质认定!O32>10,10,[1]综合素质认定!O32) -> 0 | G32: 0 | H32: 0 | I32: 0 | J32: 74.44 | K32: =IF(J32<[1]奖补比例!$D$2,"D",IF(J32<[1]奖补比例!$C$2,"C",IF(J32<[1]奖补比例!$B$2,"B","A"))) -> B | L32: =[1]苏州工业园区工业企业技术改造经济效益表!AJ32 -> 1364 | M32: =[1]苏州工业园区工业企业技术改造经济效益表!AM32 -> 62.98 | N32: =IF([1]苏州工业园区工业企业技术改造经济效益表!AN32>=0.7,[1]苏州工业园区工业企业技术改造经济效益表!AM32,0) -> 0 | O32: =IF(IF(K32="A",[1]苏州工业园区工业企业技术改造经济效益表!AJ32*[1]奖补比例!$B$3+N32*[1]奖补比例!$B$5,IF(K32="B",[1]苏州工业园区工业企业技术改造经济效益表!AJ32*[1]奖补比例!$C$3+N32*[1]奖补比例!$C$5,IF(K32="C",[1]苏州工业园区工业企业技术改造经济效益表!AJ32*[1]奖补比例!$D$3+N32*[1]奖补比例!$D$5,[1]苏州工业园区工业企业技术改造经济效益表!AJ32*[1]奖补比例!$E$3+N32*[1]奖补比例!$E$5)))*[1]奖补比例!$G$2>1000,1000,IF(K32="A",[1]苏州工业园区工业企业技术改造经济效益表!AJ32*[1]奖补比例!$B$3+N32*[1]奖补比例!$B$5,IF(K32="B",[1]苏州工业园区工业企业技术改造经济效益表!AJ32*[1]奖补比例!$C$3+N32*[1]奖补比例!$C$5,IF(K32="C",[1]苏州工业园区工业企业技术改造经济效益表!AJ32*[1]奖补比例!$D$3+N32*[1]奖补比例!$D$5,[1]苏州工业园区工业企业技术改造经济效益表!AJ32*[1]奖补比例!$E$3+N32*[1]奖补比例!$E$5)))*[1]奖补比例!$G$2) -> 86.88 | P32: 0 | Q32: 0 | R32: 0 | S32: =[1]【扣减】人工智能奖补!F31 -> 0 | T32: 0 | U32: =[1]【扣减】投促委!F31 -> 0 | V32: 86.88 | W32: 86.88 | X32: 6.37% | Y32: =IF([1]项目纳统比对表!D32="否","未纳统",IF([1]项目纳统比对表!F32="否","不足500万元","")) ->  | AA32: 86.88
A33: 30 | B33: =[1]苏州工业园区工业企业技术改造经济效益表!B33 -> 豪梅特航空机件(苏州)有限公司 | C33: =[1]苏州工业园区工业企业技术改造经济效益表!C33 -> 91320594762849502E | D33: =[1]经济效益!N33 -> 51.77 | E33: =[1]智能化效益!R33 -> 88.06 | F33: =IF([1]综合素质认定!O33>10,10,[1]综合素质认定!O33) -> 1 | G33: 0 | H33: 0 | I33: 0 | J33: 54.85 | K33: =IF(J33<[1]奖补比例!$D$2,"D",IF(J33<[1]奖补比例!$C$2,"C",IF(J33<[1]奖补比例!$B$2,"B","A"))) -> C | L33: =[1]苏州工业园区工业企业技术改造经济效益表!AJ33 -> 5816.19 | M33: =[1]苏州工业园区工业企业技术改造经济效益表!AM33 -> 103.2 | N33: =IF([1]苏州工业园区工业企业技术改造经济效益表!AN33>=0.7,[1]苏州工业园区工业企业技术改造经济效益表!AM33,0) -> 0 | O33: =IF(IF(K33="A",[1]苏州工业园区工业企业技术改造经济效益表!AJ33*[1]奖补比例!$B$3+N33*[1]奖补比例!$B$5,IF(K33="B",[1]苏州工业园区工业企业技术改造经济效益表!AJ33*[1]奖补比例!$C$3+N33*[1]奖补比例!$C$5,IF(K33="C",[1]苏州工业园区工业企业技术改造经济效益表!AJ33*[1]奖补比例!$D$3+N33*[1]奖补比例!$D$5,[1]苏州工业园区工业企业技术改造经济效益表!AJ33*[1]奖补比例!$E$3+N33*[1]奖补比例!$E$5)))*[1]奖补比例!$G$2>1000,1000,IF(K33="A",[1]苏州工业园区工业企业技术改造经济效益表!AJ33*[1]奖补比例!$B$3+N33*[1]奖补比例!$B$5,IF(K33="B",[1]苏州工业园区工业企业技术改造经济效益表!AJ33*[1]奖补比例!$C$3+N33*[1]奖补比例!$C$5,IF(K33="C",[1]苏州工业园区工业企业技术改造经济效益表!AJ33*[1]奖补比例!$D$3+N33*[1]奖补比例!$D$5,[1]苏州工业园区工业企业技术改造经济效益表!AJ33*[1]奖补比例!$E$3+N33*[1]奖补比例!$E$5)))*[1]奖补比例!$G$2) -> 231.55 | P33: =VLOOKUP(B33,[1]【扣减】省技改综合奖补!$C$2:$E$59,3,0)/10000 -> 32 | Q33: 0 | R33: 0 | S33: =[1]【扣减】人工智能奖补!F32 -> 0 | T33: 0 | U33: =[1]【扣减】投促委!F32 -> 0 | V33: 199.55 | W33: 199.55 | X33: 3.98% | Y33: =IF([1]项目纳统比对表!D33="否","未纳统",IF([1]项目纳统比对表!F33="否","不足500万元","")) -> 未纳统 | AA33: 199.55
A34: 31 | B34: =[1]苏州工业园区工业企业技术改造经济效益表!B34 -> 和铂医药（苏州）有限公司 | C34: =[1]苏州工业园区工业企业技术改造经济效益表!C34 -> 91320594MA1X67BM08 | D34: =[1]经济效益!N34 -> 64 | E34: =[1]智能化效益!R34 -> 88.98 | F34: =IF([1]综合素质认定!O34>10,10,[1]综合素质认定!O34) -> 0 | G34: 0 | H34: 0 | I34: 0 | J34: 62.60 | K34: =IF(J34<[1]奖补比例!$D$2,"D",IF(J34<[1]奖补比例!$C$2,"C",IF(J34<[1]奖补比例!$B$2,"B","A"))) -> B | L34: =[1]苏州工业园区工业企业技术改造经济效益表!AJ34 -> 0 | M34: =[1]苏州工业园区工业企业技术改造经济效益表!AM34 -> 0 | N34: =IF([1]苏州工业园区工业企业技术改造经济效益表!AN34>=0.7,[1]苏州工业园区工业企业技术改造经济效益表!AM34,0) -> 0 | O34: =IF(IF(K34="A",[1]苏州工业园区工业企业技术改造经济效益表!AJ34*[1]奖补比例!$B$3+N34*[1]奖补比例!$B$5,IF(K34="B",[1]苏州工业园区工业企业技术改造经济效益表!AJ34*[1]奖补比例!$C$3+N34*[1]奖补比例!$C$5,IF(K34="C",[1]苏州工业园区工业企业技术改造经济效益表!AJ34*[1]奖补比例!$D$3+N34*[1]奖补比例!$D$5,[1]苏州工业园区工业企业技术改造经济效益表!AJ34*[1]奖补比例!$E$3+N34*[1]奖补比例!$E$5)))*[1]奖补比例!$G$2>1000,1000,IF(K34="A",[1]苏州工业园区工业企业技术改造经济效益表!AJ34*[1]奖补比例!$B$3+N34*[1]奖补比例!$B$5,IF(K34="B",[1]苏州工业园区工业企业技术改造经济效益表!AJ34*[1]奖补比例!$C$3+N34*[1]奖补比例!$C$5,IF(K34="C",[1]苏州工业园区工业企业技术改造经济效益表!AJ34*[1]奖补比例!$D$3+N34*[1]奖补比例!$D$5,[1]苏州工业园区工业企业技术改造经济效益表!AJ34*[1]奖补比例!$E$3+N34*[1]奖补比例!$E$5)))*[1]奖补比例!$G$2) -> 0 | P34: 0 | Q34: 0 | R34: 0 | S34: =[1]【扣减】人工智能奖补!F33 -> 0 | T34: 0 | U34: =[1]【扣减】投促委!F33 -> 0 | V34: 0 | W34: 0.00 | X34: 0.00% | Y34: =IF([1]项目纳统比对表!D34="否","未纳统",IF([1]项目纳统比对表!F34="否","不足500万元","")) -> 未纳统 | Z34: 未通过 | AA34: 0.00
A35: 32 | B35: =[1]苏州工业园区工业企业技术改造经济效益表!B35 -> 横河电机（苏州）有限公司 | C35: =[1]苏州工业园区工业企业技术改造经济效益表!C35 -> 91320594742473229J | D35: =[1]经济效益!N35 -> 40.13 | E35: =[1]智能化效益!R35 -> 81.70 | F35: =IF([1]综合素质认定!O35>10,10,[1]综合素质认定!O35) -> 2 | G35: 0 | H35: 0 | I35: 0 | J35: 46.43 | K35: =IF(J35<[1]奖补比例!$D$2,"D",IF(J35<[1]奖补比例!$C$2,"C",IF(J35<[1]奖补比例!$B$2,"B","A"))) -> D | L35: =[1]苏州工业园区工业企业技术改造经济效益表!AJ35 -> 692.45 | M35: =[1]苏州工业园区工业企业技术改造经济效益表!AM35 -> 14 | N35: =IF([1]苏州工业园区工业企业技术改造经济效益表!AN35>=0.7,[1]苏州工业园区工业企业技术改造经济效益表!AM35,0) -> 0 | O35: =IF(IF(K35="A",[1]苏州工业园区工业企业技术改造经济效益表!AJ35*[1]奖补比例!$B$3+N35*[1]奖补比例!$B$5,IF(K35="B",[1]苏州工业园区工业企业技术改造经济效益表!AJ35*[1]奖补比例!$C$3+N35*[1]奖补比例!$C$5,IF(K35="C",[1]苏州工业园区工业企业技术改造经济效益表!AJ35*[1]奖补比例!$D$3+N35*[1]奖补比例!$D$5,[1]苏州工业园区工业企业技术改造经济效益表!AJ35*[1]奖补比例!$E$3+N35*[1]奖补比例!$E$5)))*[1]奖补比例!$G$2>1000,1000,IF(K35="A",[1]苏州工业园区工业企业技术改造经济效益表!AJ35*[1]奖补比例!$B$3+N35*[1]奖补比例!$B$5,IF(K35="B",[1]苏州工业园区工业企业技术改造经济效益表!AJ35*[1]奖补比例!$C$3+N35*[1]奖补比例!$C$5,IF(K35="C",[1]苏州工业园区工业企业技术改造经济效益表!AJ35*[1]奖补比例!$D$3+N35*[1]奖补比例!$D$5,[1]苏州工业园区工业企业技术改造经济效益表!AJ35*[1]奖补比例!$E$3+N35*[1]奖补比例!$E$5)))*[1]奖补比例!$G$2) -> 16.54 | P35: 0 | Q35: 0 | R35: 0 | S35: =[1]【扣减】人工智能奖补!F34 -> 0 | T35: 0 | U35: =[1]【扣减】投促委!F34 -> 0 | V35: 16.54 | W35: 16.54 | X35: =O35/L35 -> 2.39% | Y35: =IF([1]项目纳统比对表!D35="否","未纳统",IF([1]项目纳统比对表!F35="否","不足500万元","")) ->  | AA35: 16.54
A36: 33 | B36: =[1]苏州工业园区工业企业技术改造经济效益表!B36 -> 宏利科技（苏州）有限公司 | C36: =[1]苏州工业园区工业企业技术改造经济效益表!C36 -> 913205947462400518 | D36: =[1]经济效益!N36 -> 83.51 | E36: =[1]智能化效益!R36 -> 74.34 | F36: =IF([1]综合素质认定!O36>10,10,[1]综合素质认定!O36) -> 0 | G36: 0 | H36: 0 | I36: 0 | J36: 73.33 | K36: =IF(J36<[1]奖补比例!$D$2,"D",IF(J36<[1]奖补比例!$C$2,"C",IF(J36<[1]奖补比例!$B$2,"B","A"))) -> B | L36: =[1]苏州工业园区工业企业技术改造经济效益表!AJ36 -> 1195.81 | M36: =[1]苏州工业园区工业企业技术改造经济效益表!AM36 -> 9.74 | N36: =IF([1]苏州工业园区工业企业技术改造经济效益表!AN36>=0.7,[1]苏州工业园区工业企业技术改造经济效益表!AM36,0) -> 0 | O36: =IF(IF(K36="A",[1]苏州工业园区工业企业技术改造经济效益表!AJ36*[1]奖补比例!$B$3+N36*[1]奖补比例!$B$5,IF(K36="B",[1]苏州工业园区工业企业技术改造经济效益表!AJ36*[1]奖补比例!$C$3+N36*[1]奖补比例!$C$5,IF(K36="C",[1]苏州工业园区工业企业技术改造经济效益表!AJ36*[1]奖补比例!$D$3+N36*[1]奖补比例!$D$5,[1]苏州工业园区工业企业技术改造经济效益表!AJ36*[1]奖补比例!$E$3+N36*[1]奖补比例!$E$5)))*[1]奖补比例!$G$2>1000,1000,IF(K36="A",[1]苏州工业园区工业企业技术改造经济效益表!AJ36*[1]奖补比例!$B$3+N36*[1]奖补比例!$B$5,IF(K36="B",[1]苏州工业园区工业企业技术改造经济效益表!AJ36*[1]奖补比例!$C$3+N36*[1]奖补比例!$C$5,IF(K36="C",[1]苏州工业园区工业企业技术改造经济效益表!AJ36*[1]奖补比例!$D$3+N36*[1]奖补比例!$D$5,[1]苏州工业园区工业企业技术改造经济效益表!AJ36*[1]奖补比例!$E$3+N36*[1]奖补比例!$E$5)))*[1]奖补比例!$G$2) -> 76.17 | P36: 0 | Q36: 0 | R36: 0 | S36: =[1]【扣减】人工智能奖补!F35 -> 0 | T36: 0 | U36: =[1]【扣减】投促委!F35 -> 0 | V36: 76.17 | W36: 76.17 | X36: 6.37% | Y36: =IF([1]项目纳统比对表!D36="否","未纳统",IF([1]项目纳统比对表!F36="否","不足500万元","")) -> 未纳统 | AA36: 76.17
A37: 34 | B37: =[1]苏州工业园区工业企业技术改造经济效益表!B37 -> 基美电子（苏州）有限公司 | C37: =[1]苏州工业园区工业企业技术改造经济效益表!C37 -> 91320594746239755M | D37: =[1]经济效益!N37 -> 92.50 | E37: =[1]智能化效益!R37 -> 91.61 | F37: =IF([1]综合素质认定!O37>10,10,[1]综合素质认定!O37) -> 1 | G37: 0 | H37: 0 | I37: 0 | J37: 84.08 | K37: =IF(J37<[1]奖补比例!$D$2,"D",IF(J37<[1]奖补比例!$C$2,"C",IF(J37<[1]奖补比例!$B$2,"B","A"))) -> A | L37: =[1]苏州工业园区工业企业技术改造经济效益表!AJ37 -> 5387.89 | M37: =[1]苏州工业园区工业企业技术改造经济效益表!AM37 -> 0 | N37: =IF([1]苏州工业园区工业企业技术改造经济效益表!AN37>=0.7,[1]苏州工业园区工业企业技术改造经济效益表!AM37,0) -> 0 | O37: =IF(IF(K37="A",[1]苏州工业园区工业企业技术改造经济效益表!AJ37*[1]奖补比例!$B$3+N37*[1]奖补比例!$B$5,IF(K37="B",[1]苏州工业园区工业企业技术改造经济效益表!AJ37*[1]奖补比例!$C$3+N37*[1]奖补比例!$C$5,IF(K37="C",[1]苏州工业园区工业企业技术改造经济效益表!AJ37*[1]奖补比例!$D$3+N37*[1]奖补比例!$D$5,[1]苏州工业园区工业企业技术改造经济效益表!AJ37*[1]奖补比例!$E$3+N37*[1]奖补比例!$E$5)))*[1]奖补比例!$G$2>1000,1000,IF(K37="A",[1]苏州工业园区工业企业技术改造经济效益表!AJ37*[1]奖补比例!$B$3+N37*[1]奖补比例!$B$5,IF(K37="B",[1]苏州工业园区工业企业技术改造经济效益表!AJ37*[1]奖补比例!$C$3+N37*[1]奖补比例!$C$5,IF(K37="C",[1]苏州工业园区工业企业技术改造经济效益表!AJ37*[1]奖补比例!$D$3+N37*[1]奖补比例!$D$5,[1]苏州工业园区工业企业技术改造经济效益表!AJ37*[1]奖补比例!$E$3+N37*[1]奖补比例!$E$5)))*[1]奖补比例!$G$2) -> 428.99 | P37: 0 | Q37: 0 | R37: 0 | S37: =[1]【扣减】人工智能奖补!F36 -> 0 | T37: 0 | U37: =[1]【扣减】投促委!F36 -> 0 | V37: 428.99 | W37: 428.99 | X37: 7.96% | Y37: =IF([1]项目纳统比对表!D37="否","未纳统",IF([1]项目纳统比对表!F37="否","不足500万元","")) ->  | AA37: 428.99
A38: 35 | B38: =[1]苏州工业园区工业企业技术改造经济效益表!B38 -> 嘉盛半导体（苏州）有限公司 | C38: =[1]苏州工业园区工业企业技术改造经济效益表!C38 -> 91320594735739957U | D38: =[1]经济效益!N38 -> 87.51 | E38: =[1]智能化效益!R38 -> 76.25 | F38: =IF([1]综合素质认定!O38>10,10,[1]综合素质认定!O38) -> 6 | G38: 0 | H38: 0 | I38: 0 | J38: 82.51 | K38: =IF(J38<[1]奖补比例!$D$2,"D",IF(J38<[1]奖补比例!$C$2,"C",IF(J38<[1]奖补比例!$B$2,"B","A"))) -> A | L38: =[1]苏州工业园区工业企业技术改造经济效益表!AJ38 -> 16978.27 | M38: =[1]苏州工业园区工业企业技术改造经济效益表!AM38 -> 849.20 | N38: =IF([1]苏州工业园区工业企业技术改造经济效益表!AN38>=0.7,[1]苏州工业园区工业企业技术改造经济效益表!AM38,0) -> 0 | O38: =IF(IF(K38="A",[1]苏州工业园区工业企业技术改造经济效益表!AJ38*[1]奖补比例!$B$3+N38*[1]奖补比例!$B$5,IF(K38="B",[1]苏州工业园区工业企业技术改造经济效益表!AJ38*[1]奖补比例!$C$3+N38*[1]奖补比例!$C$5,IF(K38="C",[1]苏州工业园区工业企业技术改造经济效益表!AJ38*[1]奖补比例!$D$3+N38*[1]奖补比例!$D$5,[1]苏州工业园区工业企业技术改造经济效益表!AJ38*[1]奖补比例!$E$3+N38*[1]奖补比例!$E$5)))*[1]奖补比例!$G$2>1000,1000,IF(K38="A",[1]苏州工业园区工业企业技术改造经济效益表!AJ38*[1]奖补比例!$B$3+N38*[1]奖补比例!$B$5,IF(K38="B",[1]苏州工业园区工业企业技术改造经济效益表!AJ38*[1]奖补比例!$C$3+N38*[1]奖补比例!$C$5,IF(K38="C",[1]苏州工业园区工业企业技术改造经济效益表!AJ38*[1]奖补比例!$D$3+N38*[1]奖补比例!$D$5,[1]苏州工业园区工业企业技术改造经济效益表!AJ38*[1]奖补比例!$E$3+N38*[1]奖补比例!$E$5)))*[1]奖补比例!$G$2) -> 1000 | P38: =VLOOKUP(B38,[1]【扣减】省技改综合奖补!$C$2:$E$59,3,0)/10000 -> 56 | Q38: 0 | R38: 0 | S38: =[1]【扣减】人工智能奖补!F37 -> 0 | T38: 0 | U38: =[1]【扣减】投促委!F37 -> 0 | V38: 944 | W38: 944.00 | X38: 5.89% | Y38: =IF([1]项目纳统比对表!D38="否","未纳统",IF([1]项目纳统比对表!F38="否","不足500万元","")) ->  | AA38: 944.00
A39: 36 | B39: =[1]苏州工业园区工业企业技术改造经济效益表!B39 -> 江天精密制造科技（苏州）有限公司 | C39: =[1]苏州工业园区工业企业技术改造经济效益表!C39 -> 913205945592752836 | D39: =[1]经济效益!N39 -> 47 | E39: =[1]智能化效益!R39 -> 89.66 | F39: =IF([1]综合素质认定!O39>10,10,[1]综合素质认定!O39) -> 0 | G39: 0 | H39: 0 | I39: 0 | J39: 50.83 | K39: =IF(J39<[1]奖补比例!$D$2,"D",IF(J39<[1]奖补比例!$C$2,"C",IF(J39<[1]奖补比例!$B$2,"B","A"))) -> C | L39: =[1]苏州工业园区工业企业技术改造经济效益表!AJ39 -> 2490.58 | M39: =[1]苏州工业园区工业企业技术改造经济效益表!AM39 -> 197.85 | N39: =IF([1]苏州工业园区工业企业技术改造经济效益表!AN39>=0.7,[1]苏州工业园区工业企业技术改造经济效益表!AM39,0) -> 0 | O39: =IF(IF(K39="A",[1]苏州工业园区工业企业技术改造经济效益表!AJ39*[1]奖补比例!$B$3+N39*[1]奖补比例!$B$5,IF(K39="B",[1]苏州工业园区工业企业技术改造经济效益表!AJ39*[1]奖补比例!$C$3+N39*[1]奖补比例!$C$5,IF(K39="C",[1]苏州工业园区工业企业技术改造经济效益表!AJ39*[1]奖补比例!$D$3+N39*[1]奖补比例!$D$5,[1]苏州工业园区工业企业技术改造经济效益表!AJ39*[1]奖补比例!$E$3+N39*[1]奖补比例!$E$5)))*[1]奖补比例!$G$2>1000,1000,IF(K39="A",[1]苏州工业园区工业企业技术改造经济效益表!AJ39*[1]奖补比例!$B$3+N39*[1]奖补比例!$B$5,IF(K39="B",[1]苏州工业园区工业企业技术改造经济效益表!AJ39*[1]奖补比例!$C$3+N39*[1]奖补比例!$C$5,IF(K39="C",[1]苏州工业园区工业企业技术改造经济效益表!AJ39*[1]奖补比例!$D$3+N39*[1]奖补比例!$D$5,[1]苏州工业园区工业企业技术改造经济效益表!AJ39*[1]奖补比例!$E$3+N39*[1]奖补比例!$E$5)))*[1]奖补比例!$G$2) -> 99.15 | P39: =VLOOKUP(B39,[1]【扣减】省技改综合奖补!$C$2:$E$59,3,0)/10000 -> 15 | Q39: 0 | R39: 0 | S39: =[1]【扣减】人工智能奖补!F38 -> 185 | T39: 0 | U39: =[1]【扣减】投促委!F38 -> 0 | V39: 0 | W39: 0.00 | X39: 3.98% | Y39: =IF([1]项目纳统比对表!D39="否","未纳统",IF([1]项目纳统比对表!F39="否","不足500万元","")) ->  | AA39: 0.00
A40: 37 | B40: =[1]苏州工业园区工业企业技术改造经济效益表!B40 -> 皆可博（苏州）车辆控制系统有限公司 | C40: =[1]苏州工业园区工业企业技术改造经济效益表!C40 -> 91320594673042854G | D40: =[1]经济效益!N40 -> 86.36 | E40: =[1]智能化效益!R40 -> 70 | F40: =IF([1]综合素质认定!O40>10,10,[1]综合素质认定!O40) -> 0 | G40: 0 | H40: 0 | I40: 0 | J40: 74.45 | K40: =IF(J40<[1]奖补比例!$D$2,"D",IF(J40<[1]奖补比例!$C$2,"C",IF(J40<[1]奖补比例!$B$2,"B","A"))) -> B | L40: =[1]苏州工业园区工业企业技术改造经济效益表!AJ40 -> 1626.09 | M40: =[1]苏州工业园区工业企业技术改造经济效益表!AM40 -> 0 | N40: =IF([1]苏州工业园区工业企业技术改造经济效益表!AN40>=0.7,[1]苏州工业园区工业企业技术改造经济效益表!AM40,0) -> 0 | O40: =IF(IF(K40="A",[1]苏州工业园区工业企业技术改造经济效益表!AJ40*[1]奖补比例!$B$3+N40*[1]奖补比例!$B$5,IF(K40="B",[1]苏州工业园区工业企业技术改造经济效益表!AJ40*[1]奖补比例!$C$3+N40*[1]奖补比例!$C$5,IF(K40="C",[1]苏州工业园区工业企业技术改造经济效益表!AJ40*[1]奖补比例!$D$3+N40*[1]奖补比例!$D$5,[1]苏州工业园区工业企业技术改造经济效益表!AJ40*[1]奖补比例!$E$3+N40*[1]奖补比例!$E$5)))*[1]奖补比例!$G$2>1000,1000,IF(K40="A",[1]苏州工业园区工业企业技术改造经济效益表!AJ40*[1]奖补比例!$B$3+N40*[1]奖补比例!$B$5,IF(K40="B",[1]苏州工业园区工业企业技术改造经济效益表!AJ40*[1]奖补比例!$C$3+N40*[1]奖补比例!$C$5,IF(K40="C",[1]苏州工业园区工业企业技术改造经济效益表!AJ40*[1]奖补比例!$D$3+N40*[1]奖补比例!$D$5,[1]苏州工业园区工业企业技术改造经济效益表!AJ40*[1]奖补比例!$E$3+N40*[1]奖补比例!$E$5)))*[1]奖补比例!$G$2) -> 103.58 | P40: =VLOOKUP(B40,[1]【扣减】省技改综合奖补!$C$2:$E$59,3,0)/10000 -> 15 | Q40: 0 | R40: 0 | S40: =[1]【扣减】人工智能奖补!F39 -> 0 | T40: 0 | U40: =[1]【扣减】投促委!F39 -> 0 | V40: 88.58 | W40: 88.58 | X40: 6.37% | Y40: =IF([1]项目纳统比对表!D40="否","未纳统",IF([1]项目纳统比对表!F40="否","不足500万元","")) -> 未纳统 | AA40: 88.58
A41: 38 | B41: =[1]苏州工业园区工业企业技术改造经济效益表!B41 -> 杰纬特科技(苏州)有限公司 | C41: =[1]苏州工业园区工业企业技术改造经济效益表!C41 -> 91320594MA1TARA07U | D41: =[1]经济效益!N41 -> 59 | E41: =[1]智能化效益!R41 -> 80 | F41: =IF([1]综合素质认定!O41>10,10,[1]综合素质认定!O41) -> 0 | G41: 0 | H41: 0 | I41: 0 | J41: 57.30 | K41: =IF(J41<[1]奖补比例!$D$2,"D",IF(J41<[1]奖补比例!$C$2,"C",IF(J41<[1]奖补比例!$B$2,"B","A"))) -> C | L41: =[1]苏州工业园区工业企业技术改造经济效益表!AJ41 -> 1340.94 | M41: =[1]苏州工业园区工业企业技术改造经济效益表!AM41 -> 0 | N41: =IF([1]苏州工业园区工业企业技术改造经济效益表!AN41>=0.7,[1]苏州工业园区工业企业技术改造经济效益表!AM41,0) -> 0 | O41: =IF(IF(K41="A",[1]苏州工业园区工业企业技术改造经济效益表!AJ41*[1]奖补比例!$B$3+N41*[1]奖补比例!$B$5,IF(K41="B",[1]苏州工业园区工业企业技术改造经济效益表!AJ41*[1]奖补比例!$C$3+N41*[1]奖补比例!$C$5,IF(K41="C",[1]苏州工业园区工业企业技术改造经济效益表!AJ41*[1]奖补比例!$D$3+N41*[1]奖补比例!$D$5,[1]苏州工业园区工业企业技术改造经济效益表!AJ41*[1]奖补比例!$E$3+N41*[1]奖补比例!$E$5)))*[1]奖补比例!$G$2>1000,1000,IF(K41="A",[1]苏州工业园区工业企业技术改造经济效益表!AJ41*[1]奖补比例!$B$3+N41*[1]奖补比例!$B$5,IF(K41="B",[1]苏州工业园区工业企业技术改造经济效益表!AJ41*[1]奖补比例!$C$3+N41*[1]奖补比例!$C$5,IF(K41="C",[1]苏州工业园区工业企业技术改造经济效益表!AJ41*[1]奖补比例!$D$3+N41*[1]奖补比例!$D$5,[1]苏州工业园区工业企业技术改造经济效益表!AJ41*[1]奖补比例!$E$3+N41*[1]奖补比例!$E$5)))*[1]奖补比例!$G$2) -> 53.38 | P41: 0 | Q41: 0 | R41: 0 | S41: =[1]【扣减】人工智能奖补!F40 -> 0 | T41: 0 | U41: =[1]【扣减】投促委!F40 -> 0 | V41: 53.38 | W41: 53.38 | X41: 3.98% | Y41: =IF([1]项目纳统比对表!D41="否","未纳统",IF([1]项目纳统比对表!F41="否","不足500万元","")) -> 未纳统 | AA41: 53.38
A42: 39 | B42: =[1]苏州工业园区工业企业技术改造经济效益表!B42 -> 京隆科技（苏州）有限公司 | C42: =[1]苏州工业园区工业企业技术改造经济效益表!C42 -> 913205947424732458 | D42: =[1]经济效益!N42 -> 93.87 | E42: =[1]智能化效益!R42 -> 85 | F42: =IF([1]综合素质认定!O42>10,10,[1]综合素质认定!O42) -> 7 | G42: 0 | H42: 0 | I42: 0 | J42: 89.71 | K42: =IF(J42<[1]奖补比例!$D$2,"D",IF(J42<[1]奖补比例!$C$2,"C",IF(J42<[1]奖补比例!$B$2,"B","A"))) -> A | L42: =[1]苏州工业园区工业企业技术改造经济效益表!AJ42 -> 45036.73746 | M42: =[1]苏州工业园区工业企业技术改造经济效益表!AM42 -> 180.03 | N42: =IF([1]苏州工业园区工业企业技术改造经济效益表!AN42>=0.7,[1]苏州工业园区工业企业技术改造经济效益表!AM42,0) -> 0 | O42: =IF(IF(K42="A",[1]苏州工业园区工业企业技术改造经济效益表!AJ42*[1]奖补比例!$B$3+N42*[1]奖补比例!$B$5,IF(K42="B",[1]苏州工业园区工业企业技术改造经济效益表!AJ42*[1]奖补比例!$C$3+N42*[1]奖补比例!$C$5,IF(K42="C",[1]苏州工业园区工业企业技术改造经济效益表!AJ42*[1]奖补比例!$D$3+N42*[1]奖补比例!$D$5,[1]苏州工业园区工业企业技术改造经济效益表!AJ42*[1]奖补比例!$E$3+N42*[1]奖补比例!$E$5)))*[1]奖补比例!$G$2>1000,1000,IF(K42="A",[1]苏州工业园区工业企业技术改造经济效益表!AJ42*[1]奖补比例!$B$3+N42*[1]奖补比例!$B$5,IF(K42="B",[1]苏州工业园区工业企业技术改造经济效益表!AJ42*[1]奖补比例!$C$3+N42*[1]奖补比例!$C$5,IF(K42="C",[1]苏州工业园区工业企业技术改造经济效益表!AJ42*[1]奖补比例!$D$3+N42*[1]奖补比例!$D$5,[1]苏州工业园区工业企业技术改造经济效益表!AJ42*[1]奖补比例!$E$3+N42*[1]奖补比例!$E$5)))*[1]奖补比例!$G$2) -> 1000 | P42: =VLOOKUP(B42,[1]【扣减】省技改综合奖补!$C$2:$E$59,3,0)/10000 -> 148 | Q42: 0 | R42: =VLOOKUP(B42,[1]【扣减】节能改造项目奖补!$B$2:$C$23,2,0) -> 35 | S42: =[1]【扣减】人工智能奖补!F41 -> 0 | T42: 0 | U42: =[1]【扣减】投促委!F41 -> 0 | V42: 817 | W42: 817.00 | X42: 2.22% | Y42: =IF([1]项目纳统比对表!D42="否","未纳统",IF([1]项目纳统比对表!F42="否","不足500万元","")) ->  | AA42: 817.00
A43: 40 | B43: =[1]苏州工业园区工业企业技术改造经济效益表!B43 -> 久保田农业机械（苏州）有限公司 | C43: =[1]苏州工业园区工业企业技术改造经济效益表!C43 -> 91320594608208459B | D43: =[1]经济效益!N43 -> 63.11 | E43: =[1]智能化效益!R43 -> 89.62 | F43: =IF([1]综合素质认定!O43>10,10,[1]综合素质认定!O43) -> 1 | G43: 0 | H43: 0 | I43: 0 | J43: 63.10 | K43: =IF(J43<[1]奖补比例!$D$2,"D",IF(J43<[1]奖补比例!$C$2,"C",IF(J43<[1]奖补比例!$B$2,"B","A"))) -> B | L43: =[1]苏州工业园区工业企业技术改造经济效益表!AJ43 -> 869.58 | M43: =[1]苏州工业园区工业企业技术改造经济效益表!AM43 -> 194.61 | N43: =IF([1]苏州工业园区工业企业技术改造经济效益表!AN43>=0.7,[1]苏州工业园区工业企业技术改造经济效益表!AM43,0) -> 0 | O43: =IF(IF(K43="A",[1]苏州工业园区工业企业技术改造经济效益表!AJ43*[1]奖补比例!$B$3+N43*[1]奖补比例!$B$5,IF(K43="B",[1]苏州工业园区工业企业技术改造经济效益表!AJ43*[1]奖补比例!$C$3+N43*[1]奖补比例!$C$5,IF(K43="C",[1]苏州工业园区工业企业技术改造经济效益表!AJ43*[1]奖补比例!$D$3+N43*[1]奖补比例!$D$5,[1]苏州工业园区工业企业技术改造经济效益表!AJ43*[1]奖补比例!$E$3+N43*[1]奖补比例!$E$5)))*[1]奖补比例!$G$2>1000,1000,IF(K43="A",[1]苏州工业园区工业企业技术改造经济效益表!AJ43*[1]奖补比例!$B$3+N43*[1]奖补比例!$B$5,IF(K43="B",[1]苏州工业园区工业企业技术改造经济效益表!AJ43*[1]奖补比例!$C$3+N43*[1]奖补比例!$C$5,IF(K43="C",[1]苏州工业园区工业企业技术改造经济效益表!AJ43*[1]奖补比例!$D$3+N43*[1]奖补比例!$D$5,[1]苏州工业园区工业企业技术改造经济效益表!AJ43*[1]奖补比例!$E$3+N43*[1]奖补比例!$E$5)))*[1]奖补比例!$G$2) -> 55.39 | P43: 0 | Q43: 0 | R43: 0 | S43: =[1]【扣减】人工智能奖补!F42 -> 0 | T43: 0 | U43: =[1]【扣减】投促委!F42 -> 0 | V43: 55.39 | W43: 55.39 | X43: 6.37% | Y43: =IF([1]项目纳统比对表!D43="否","未纳统",IF([1]项目纳统比对表!F43="否","不足500万元","")) ->  | AA43: 55.39
A44: 41 | B44: =[1]苏州工业园区工业企业技术改造经济效益表!B44 -> 康德瑞恩电磁科技（中国）有限公司 | C44: =[1]苏州工业园区工业企业技术改造经济效益表!C44 -> 91320594773759510N | D44: =[1]经济效益!N44 -> 63.38 | E44: =[1]智能化效益!R44 -> 89.98 | F44: =IF([1]综合素质认定!O44>10,10,[1]综合素质认定!O44) -> 0 | G44: 0 | H44: 0 | I44: 0 | J44: 62.36 | K44: =IF(J44<[1]奖补比例!$D$2,"D",IF(J44<[1]奖补比例!$C$2,"C",IF(J44<[1]奖补比例!$B$2,"B","A"))) -> B | L44: =[1]苏州工业园区工业企业技术改造经济效益表!AJ44 -> 2279.11 | M44: =[1]苏州工业园区工业企业技术改造经济效益表!AM44 -> 0 | N44: =IF([1]苏州工业园区工业企业技术改造经济效益表!AN44>=0.7,[1]苏州工业园区工业企业技术改造经济效益表!AM44,0) -> 0 | O44: =IF(IF(K44="A",[1]苏州工业园区工业企业技术改造经济效益表!AJ44*[1]奖补比例!$B$3+N44*[1]奖补比例!$B$5,IF(K44="B",[1]苏州工业园区工业企业技术改造经济效益表!AJ44*[1]奖补比例!$C$3+N44*[1]奖补比例!$C$5,IF(K44="C",[1]苏州工业园区工业企业技术改造经济效益表!AJ44*[1]奖补比例!$D$3+N44*[1]奖补比例!$D$5,[1]苏州工业园区工业企业技术改造经济效益表!AJ44*[1]奖补比例!$E$3+N44*[1]奖补比例!$E$5)))*[1]奖补比例!$G$2>1000,1000,IF(K44="A",[1]苏州工业园区工业企业技术改造经济效益表!AJ44*[1]奖补比例!$B$3+N44*[1]奖补比例!$B$5,IF(K44="B",[1]苏州工业园区工业企业技术改造经济效益表!AJ44*[1]奖补比例!$C$3+N44*[1]奖补比例!$C$5,IF(K44="C",[1]苏州工业园区工业企业技术改造经济效益表!AJ44*[1]奖补比例!$D$3+N44*[1]奖补比例!$D$5,[1]苏州工业园区工业企业技术改造经济效益表!AJ44*[1]奖补比例!$E$3+N44*[1]奖补比例!$E$5)))*[1]奖补比例!$G$2) -> 145.17 | P44: =VLOOKUP(B44,[1]【扣减】省技改综合奖补!$C$2:$E$59,3,0)/10000 -> 15 | Q44: 0 | R44: 0 | S44: =[1]【扣减】人工智能奖补!F43 -> 0 | T44: 0 | U44: =[1]【扣减】投促委!F43 -> 127 | V44: 3.17 | W44: 3.17 | X44: 6.37% | Y44: =IF([1]项目纳统比对表!D44="否","未纳统",IF([1]项目纳统比对表!F44="否","不足500万元","")) -> 未纳统 | AA44: 3.17
A45: 42 | B45: =[1]苏州工业园区工业企业技术改造经济效益表!B45 -> 康美包（苏州）有限公司 | C45: =[1]苏州工业园区工业企业技术改造经济效益表!C45 -> 913205947382993609 | D45: =[1]经济效益!N45 -> 50.08 | E45: =[1]智能化效益!R45 -> 80 | F45: =IF([1]综合素质认定!O45>10,10,[1]综合素质认定!O45) -> 10 | G45: 0 | H45: 0 | I45: 0 | J45: 61.06 | K45: =IF(J45<[1]奖补比例!$D$2,"D",IF(J45<[1]奖补比例!$C$2,"C",IF(J45<[1]奖补比例!$B$2,"B","A"))) -> B | L45: =[1]苏州工业园区工业企业技术改造经济效益表!AJ45 -> 1099.46 | M45: =[1]苏州工业园区工业企业技术改造经济效益表!AM45 -> 0 | N45: =IF([1]苏州工业园区工业企业技术改造经济效益表!AN45>=0.7,[1]苏州工业园区工业企业技术改造经济效益表!AM45,0) -> 0 | O45: =IF(IF(K45="A",[1]苏州工业园区工业企业技术改造经济效益表!AJ45*[1]奖补比例!$B$3+N45*[1]奖补比例!$B$5,IF(K45="B",[1]苏州工业园区工业企业技术改造经济效益表!AJ45*[1]奖补比例!$C$3+N45*[1]奖补比例!$C$5,IF(K45="C",[1]苏州工业园区工业企业技术改造经济效益表!AJ45*[1]奖补比例!$D$3+N45*[1]奖补比例!$D$5,[1]苏州工业园区工业企业技术改造经济效益表!AJ45*[1]奖补比例!$E$3+N45*[1]奖补比例!$E$5)))*[1]奖补比例!$G$2>1000,1000,IF(K45="A",[1]苏州工业园区工业企业技术改造经济效益表!AJ45*[1]奖补比例!$B$3+N45*[1]奖补比例!$B$5,IF(K45="B",[1]苏州工业园区工业企业技术改造经济效益表!AJ45*[1]奖补比例!$C$3+N45*[1]奖补比例!$C$5,IF(K45="C",[1]苏州工业园区工业企业技术改造经济效益表!AJ45*[1]奖补比例!$D$3+N45*[1]奖补比例!$D$5,[1]苏州工业园区工业企业技术改造经济效益表!AJ45*[1]奖补比例!$E$3+N45*[1]奖补比例!$E$5)))*[1]奖补比例!$G$2) -> 70.03 | P45: =VLOOKUP(B45,[1]【扣减】省技改综合奖补!$C$2:$E$59,3,0)/10000 -> 55 | Q45: 0 | R45: =VLOOKUP(B45,[1]【扣减】节能改造项目奖补!$B$2:$C$23,2,0) -> 7 | S45: =[1]【扣减】人工智能奖补!F44 -> 151.5 | T45: 0 | U45: =[1]【扣减】投促委!F44 -> 2000 | V45: 0 | W45: 0.00 | X45: 6.37% | Y45: =IF([1]项目纳统比对表!D45="否","未纳统",IF([1]项目纳统比对表!F45="否","不足500万元","")) -> 不足500万元 | AA45: 0.00
A46: 43 | B46: =[1]苏州工业园区工业企业技术改造经济效益表!B46 -> 库力索法半导体（苏州）有限公司 | C46: =[1]苏州工业园区工业企业技术改造经济效益表!C46 -> 91320594735740069N | D46: =[1]经济效益!N46 -> 55.78 | E46: =[1]智能化效益!R46 -> 79.04 | F46: =IF([1]综合素质认定!O46>10,10,[1]综合素质认定!O46) -> 1 | G46: 0 | H46: 0 | I46: 0 | J46: 55.86 | K46: =IF(J46<[1]奖补比例!$D$2,"D",IF(J46<[1]奖补比例!$C$2,"C",IF(J46<[1]奖补比例!$B$2,"B","A"))) -> C | L46: =[1]苏州工业园区工业企业技术改造经济效益表!AJ46 -> 950.67 | M46: =[1]苏州工业园区工业企业技术改造经济效益表!AM46 -> 50.17 | N46: =IF([1]苏州工业园区工业企业技术改造经济效益表!AN46>=0.7,[1]苏州工业园区工业企业技术改造经济效益表!AM46,0) -> 0 | O46: =IF(IF(K46="A",[1]苏州工业园区工业企业技术改造经济效益表!AJ46*[1]奖补比例!$B$3+N46*[1]奖补比例!$B$5,IF(K46="B",[1]苏州工业园区工业企业技术改造经济效益表!AJ46*[1]奖补比例!$C$3+N46*[1]奖补比例!$C$5,IF(K46="C",[1]苏州工业园区工业企业技术改造经济效益表!AJ46*[1]奖补比例!$D$3+N46*[1]奖补比例!$D$5,[1]苏州工业园区工业企业技术改造经济效益表!AJ46*[1]奖补比例!$E$3+N46*[1]奖补比例!$E$5)))*[1]奖补比例!$G$2>1000,1000,IF(K46="A",[1]苏州工业园区工业企业技术改造经济效益表!AJ46*[1]奖补比例!$B$3+N46*[1]奖补比例!$B$5,IF(K46="B",[1]苏州工业园区工业企业技术改造经济效益表!AJ46*[1]奖补比例!$C$3+N46*[1]奖补比例!$C$5,IF(K46="C",[1]苏州工业园区工业企业技术改造经济效益表!AJ46*[1]奖补比例!$D$3+N46*[1]奖补比例!$D$5,[1]苏州工业园区工业企业技术改造经济效益表!AJ46*[1]奖补比例!$E$3+N46*[1]奖补比例!$E$5)))*[1]奖补比例!$G$2) -> 37.85 | P46: 0 | Q46: 0 | R46: 0 | S46: =[1]【扣减】人工智能奖补!F45 -> 0 | T46: 0 | U46: =[1]【扣减】投促委!F45 -> 0 | V46: 37.85 | W46: 37.85 | X46: 3.98% | Y46: =IF([1]项目纳统比对表!D46="否","未纳统",IF([1]项目纳统比对表!F46="否","不足500万元","")) ->  | AA46: 37.85
A47: 44 | B47: =[1]苏州工业园区工业企业技术改造经济效益表!B47 -> 快捷半导体（苏州）有限公司 | C47: =[1]苏州工业园区工业企业技术改造经济效益表!C47 -> 91320594726665781W | D47: =[1]经济效益!N47 -> 57.78 | E47: =[1]智能化效益!R47 -> 88 | F47: =IF([1]综合素质认定!O47>10,10,[1]综合素质认定!O47) -> 1 | G47: 0 | H47: 0 | I47: 0 | J47: 59.04 | K47: =IF(J47<[1]奖补比例!$D$2,"D",IF(J47<[1]奖补比例!$C$2,"C",IF(J47<[1]奖补比例!$B$2,"B","A"))) -> C | L47: =[1]苏州工业园区工业企业技术改造经济效益表!AJ47 -> 8639.36 | M47: =[1]苏州工业园区工业企业技术改造经济效益表!AM47 -> 691.11 | N47: =IF([1]苏州工业园区工业企业技术改造经济效益表!AN47>=0.7,[1]苏州工业园区工业企业技术改造经济效益表!AM47,0) -> 0 | O47: =IF(IF(K47="A",[1]苏州工业园区工业企业技术改造经济效益表!AJ47*[1]奖补比例!$B$3+N47*[1]奖补比例!$B$5,IF(K47="B",[1]苏州工业园区工业企业技术改造经济效益表!AJ47*[1]奖补比例!$C$3+N47*[1]奖补比例!$C$5,IF(K47="C",[1]苏州工业园区工业企业技术改造经济效益表!AJ47*[1]奖补比例!$D$3+N47*[1]奖补比例!$D$5,[1]苏州工业园区工业企业技术改造经济效益表!AJ47*[1]奖补比例!$E$3+N47*[1]奖补比例!$E$5)))*[1]奖补比例!$G$2>1000,1000,IF(K47="A",[1]苏州工业园区工业企业技术改造经济效益表!AJ47*[1]奖补比例!$B$3+N47*[1]奖补比例!$B$5,IF(K47="B",[1]苏州工业园区工业企业技术改造经济效益表!AJ47*[1]奖补比例!$C$3+N47*[1]奖补比例!$C$5,IF(K47="C",[1]苏州工业园区工业企业技术改造经济效益表!AJ47*[1]奖补比例!$D$3+N47*[1]奖补比例!$D$5,[1]苏州工业园区工业企业技术改造经济效益表!AJ47*[1]奖补比例!$E$3+N47*[1]奖补比例!$E$5)))*[1]奖补比例!$G$2) -> 343.94 | P47: 0 | Q47: 0 | R47: 0 | S47: =[1]【扣减】人工智能奖补!F46 -> 0 | T47: 0 | U47: =[1]【扣减】投促委!F46 -> 0 | V47: 343.94 | W47: 343.94 | X47: 3.98% | Y47: =IF([1]项目纳统比对表!D47="否","未纳统",IF([1]项目纳统比对表!F47="否","不足500万元","")) ->  | AA47: 343.94
A48: 45 | B48: =[1]苏州工业园区工业企业技术改造经济效益表!B48 -> 乐家洁具（苏州）有限公司 | C48: =[1]苏州工业园区工业企业技术改造经济效益表!C48 -> 91320594758957973E | D48: =[1]经济效益!N48 -> 81.81 | E48: =[1]智能化效益!R48 -> 74.96 | F48: =IF([1]综合素质认定!O48>10,10,[1]综合素质认定!O48) -> 0 | G48: 0 | H48: 0 | I48: 0 | J48: 72.26 | K48: =IF(J48<[1]奖补比例!$D$2,"D",IF(J48<[1]奖补比例!$C$2,"C",IF(J48<[1]奖补比例!$B$2,"B","A"))) -> B | L48: =[1]苏州工业园区工业企业技术改造经济效益表!AJ48 -> 527.21 | M48: =[1]苏州工业园区工业企业技术改造经济效益表!AM48 -> 161.09 | N48: =IF([1]苏州工业园区工业企业技术改造经济效益表!AN48>=0.7,[1]苏州工业园区工业企业技术改造经济效益表!AM48,0) -> 0 | O48: =IF(IF(K48="A",[1]苏州工业园区工业企业技术改造经济效益表!AJ48*[1]奖补比例!$B$3+N48*[1]奖补比例!$B$5,IF(K48="B",[1]苏州工业园区工业企业技术改造经济效益表!AJ48*[1]奖补比例!$C$3+N48*[1]奖补比例!$C$5,IF(K48="C",[1]苏州工业园区工业企业技术改造经济效益表!AJ48*[1]奖补比例!$D$3+N48*[1]奖补比例!$D$5,[1]苏州工业园区工业企业技术改造经济效益表!AJ48*[1]奖补比例!$E$3+N48*[1]奖补比例!$E$5)))*[1]奖补比例!$G$2>1000,1000,IF(K48="A",[1]苏州工业园区工业企业技术改造经济效益表!AJ48*[1]奖补比例!$B$3+N48*[1]奖补比例!$B$5,IF(K48="B",[1]苏州工业园区工业企业技术改造经济效益表!AJ48*[1]奖补比例!$C$3+N48*[1]奖补比例!$C$5,IF(K48="C",[1]苏州工业园区工业企业技术改造经济效益表!AJ48*[1]奖补比例!$D$3+N48*[1]奖补比例!$D$5,[1]苏州工业园区工业企业技术改造经济效益表!AJ48*[1]奖补比例!$E$3+N48*[1]奖补比例!$E$5)))*[1]奖补比例!$G$2) -> 33.58 | P48: 0 | Q48: 0 | R48: 0 | S48: =[1]【扣减】人工智能奖补!F47 -> 0 | T48: 0 | U48: =[1]【扣减】投促委!F47 -> 0 | V48: 33.58 | W48: 33.58 | X48: 6.37% | Y48: =IF([1]项目纳统比对表!D48="否","未纳统",IF([1]项目纳统比对表!F48="否","不足500万元","")) -> 不足500万元 | AA48: 33.58
A49: 46 | B49: =[1]苏州工业园区工业企业技术改造经济效益表!B49 -> 力成科技（苏州）有限公司 | C49: =[1]苏州工业园区工业企业技术改造经济效益表!C49 -> 91320594608199396T | D49: =[1]经济效益!N49 -> 63.02 | E49: =[1]智能化效益!R49 -> 81.02 | F49: =IF([1]综合素质认定!O49>10,10,[1]综合素质认定!O49) -> 1 | G49: 0 | H49: 0 | I49: 0 | J49: 61.32 | K49: =IF(J49<[1]奖补比例!$D$2,"D",IF(J49<[1]奖补比例!$C$2,"C",IF(J49<[1]奖补比例!$B$2,"B","A"))) -> B | L49: =[1]苏州工业园区工业企业技术改造经济效益表!AJ49 -> 2947.5 | M49: =[1]苏州工业园区工业企业技术改造经济效益表!AM49 -> 0 | N49: =IF([1]苏州工业园区工业企业技术改造经济效益表!AN49>=0.7,[1]苏州工业园区工业企业技术改造经济效益表!AM49,0) -> 0 | O49: =IF(IF(K49="A",[1]苏州工业园区工业企业技术改造经济效益表!AJ49*[1]奖补比例!$B$3+N49*[1]奖补比例!$B$5,IF(K49="B",[1]苏州工业园区工业企业技术改造经济效益表!AJ49*[1]奖补比例!$C$3+N49*[1]奖补比例!$C$5,IF(K49="C",[1]苏州工业园区工业企业技术改造经济效益表!AJ49*[1]奖补比例!$D$3+N49*[1]奖补比例!$D$5,[1]苏州工业园区工业企业技术改造经济效益表!AJ49*[1]奖补比例!$E$3+N49*[1]奖补比例!$E$5)))*[1]奖补比例!$G$2>1000,1000,IF(K49="A",[1]苏州工业园区工业企业技术改造经济效益表!AJ49*[1]奖补比例!$B$3+N49*[1]奖补比例!$B$5,IF(K49="B",[1]苏州工业园区工业企业技术改造经济效益表!AJ49*[1]奖补比例!$C$3+N49*[1]奖补比例!$C$5,IF(K49="C",[1]苏州工业园区工业企业技术改造经济效益表!AJ49*[1]奖补比例!$D$3+N49*[1]奖补比例!$D$5,[1]苏州工业园区工业企业技术改造经济效益表!AJ49*[1]奖补比例!$E$3+N49*[1]奖补比例!$E$5)))*[1]奖补比例!$G$2) -> 187.75 | P49: =VLOOKUP(B49,[1]【扣减】省技改综合奖补!$C$2:$E$59,3,0)/10000 -> 15 | Q49: 0 | R49: 0 | S49: =[1]【扣减】人工智能奖补!F48 -> 0 | T49: 0 | U49: =[1]【扣减】投促委!F48 -> 0 | V49: 172.75 | W49: 172.75 | X49: 6.37% | Y49: =IF([1]项目纳统比对表!D49="否","未纳统",IF([1]项目纳统比对表!F49="否","不足500万元","")) ->  | AA49: 172.75
A50: 47 | B50: =[1]苏州工业园区工业企业技术改造经济效益表!B50 -> 绿点（苏州）科技有限公司 | C50: =[1]苏州工业园区工业企业技术改造经济效益表!C50 -> 913205947174653828 | D50: =[1]经济效益!N50 -> 68 | E50: =[1]智能化效益!R50 -> 80.1 | F50: =IF([1]综合素质认定!O50>10,10,[1]综合素质认定!O50) -> 5 | G50: 0 | H50: 0 | I50: 0 | J50: 68.62 | K50: =IF(J50<[1]奖补比例!$D$2,"D",IF(J50<[1]奖补比例!$C$2,"C",IF(J50<[1]奖补比例!$B$2,"B","A"))) -> B | L50: =[1]苏州工业园区工业企业技术改造经济效益表!AJ50 -> 5125.32 | M50: =[1]苏州工业园区工业企业技术改造经济效益表!AM50 -> 0 | N50: =IF([1]苏州工业园区工业企业技术改造经济效益表!AN50>=0.7,[1]苏州工业园区工业企业技术改造经济效益表!AM50,0) -> 0 | O50: =IF(IF(K50="A",[1]苏州工业园区工业企业技术改造经济效益表!AJ50*[1]奖补比例!$B$3+N50*[1]奖补比例!$B$5,IF(K50="B",[1]苏州工业园区工业企业技术改造经济效益表!AJ50*[1]奖补比例!$C$3+N50*[1]奖补比例!$C$5,IF(K50="C",[1]苏州工业园区工业企业技术改造经济效益表!AJ50*[1]奖补比例!$D$3+N50*[1]奖补比例!$D$5,[1]苏州工业园区工业企业技术改造经济效益表!AJ50*[1]奖补比例!$E$3+N50*[1]奖补比例!$E$5)))*[1]奖补比例!$G$2>1000,1000,IF(K50="A",[1]苏州工业园区工业企业技术改造经济效益表!AJ50*[1]奖补比例!$B$3+N50*[1]奖补比例!$B$5,IF(K50="B",[1]苏州工业园区工业企业技术改造经济效益表!AJ50*[1]奖补比例!$C$3+N50*[1]奖补比例!$C$5,IF(K50="C",[1]苏州工业园区工业企业技术改造经济效益表!AJ50*[1]奖补比例!$D$3+N50*[1]奖补比例!$D$5,[1]苏州工业园区工业企业技术改造经济效益表!AJ50*[1]奖补比例!$E$3+N50*[1]奖补比例!$E$5)))*[1]奖补比例!$G$2) -> 326.47 | P50: =VLOOKUP(B50,[1]【扣减】省技改综合奖补!$C$2:$E$59,3,0)/10000 -> 27 | Q50: 0 | R50: 0 | S50: =[1]【扣减】人工智能奖补!F49 -> 0 | T50: 0 | U50: =[1]【扣减】投促委!F49 -> 0 | V50: 299.47 | W50: 299.47 | X50: 6.37% | Y50: =IF([1]项目纳统比对表!D50="否","未纳统",IF([1]项目纳统比对表!F50="否","不足500万元","")) ->  | AA50: 299.47
A51: 48 | B51: =[1]苏州工业园区工业企业技术改造经济效益表!B51 -> 米巴精密零部件（中国）有限公司 | C51: =[1]苏州工业园区工业企业技术改造经济效益表!C51 -> 91320594778676175U | D51: =[1]经济效益!N51 -> 78.80 | E51: =[1]智能化效益!R51 -> 89.51 | F51: =IF([1]综合素质认定!O51>10,10,[1]综合素质认定!O51) -> 7 | G51: 0 | H51: 0 | I51: 0 | J51: 80.06 | K51: =IF(J51<[1]奖补比例!$D$2,"D",IF(J51<[1]奖补比例!$C$2,"C",IF(J51<[1]奖补比例!$B$2,"B","A"))) -> A | L51: =[1]苏州工业园区工业企业技术改造经济效益表!AJ51 -> 7848.41 | M51: =[1]苏州工业园区工业企业技术改造经济效益表!AM51 -> 82.38 | N51: =IF([1]苏州工业园区工业企业技术改造经济效益表!AN51>=0.7,[1]苏州工业园区工业企业技术改造经济效益表!AM51,0) -> 0 | O51: =IF(IF(K51="A",[1]苏州工业园区工业企业技术改造经济效益表!AJ51*[1]奖补比例!$B$3+N51*[1]奖补比例!$B$5,IF(K51="B",[1]苏州工业园区工业企业技术改造经济效益表!AJ51*[1]奖补比例!$C$3+N51*[1]奖补比例!$C$5,IF(K51="C",[1]苏州工业园区工业企业技术改造经济效益表!AJ51*[1]奖补比例!$D$3+N51*[1]奖补比例!$D$5,[1]苏州工业园区工业企业技术改造经济效益表!AJ51*[1]奖补比例!$E$3+N51*[1]奖补比例!$E$5)))*[1]奖补比例!$G$2>1000,1000,IF(K51="A",[1]苏州工业园区工业企业技术改造经济效益表!AJ51*[1]奖补比例!$B$3+N51*[1]奖补比例!$B$5,IF(K51="B",[1]苏州工业园区工业企业技术改造经济效益表!AJ51*[1]奖补比例!$C$3+N51*[1]奖补比例!$C$5,IF(K51="C",[1]苏州工业园区工业企业技术改造经济效益表!AJ51*[1]奖补比例!$D$3+N51*[1]奖补比例!$D$5,[1]苏州工业园区工业企业技术改造经济效益表!AJ51*[1]奖补比例!$E$3+N51*[1]奖补比例!$E$5)))*[1]奖补比例!$G$2) -> 624.90 | P51: =VLOOKUP(B51,[1]【扣减】省技改综合奖补!$C$2:$E$59,3,0)/10000 -> 35 | Q51: 0 | R51: 0 | S51: =[1]【扣减】人工智能奖补!F50 -> 0 | T51: 0 | U51: =[1]【扣减】投促委!F50 -> 0 | V51: 589.90 | W51: 589.90 | X51: 7.96% | Y51: =IF([1]项目纳统比对表!D51="否","未纳统",IF([1]项目纳统比对表!F51="否","不足500万元","")) ->  | AA51: 589.90
A52: 49 | B52: =[1]苏州工业园区工业企业技术改造经济效益表!B52 -> 摩登纳（中国）自动化设备有限公司 | C52: =[1]苏州工业园区工业企业技术改造经济效益表!C52 -> 91320594MA1X0HAH81 | D52: =[1]经济效益!N52 -> 77 | E52: =[1]智能化效益!R52 -> 87.98 | F52: =IF([1]综合素质认定!O52>10,10,[1]综合素质认定!O52) -> 2 | G52: 0 | H52: 0 | I52: 0 | J52: 73.50 | K52: =IF(J52<[1]奖补比例!$D$2,"D",IF(J52<[1]奖补比例!$C$2,"C",IF(J52<[1]奖补比例!$B$2,"B","A"))) -> B | L52: =[1]苏州工业园区工业企业技术改造经济效益表!AJ52 -> 6535.38 | M52: =[1]苏州工业园区工业企业技术改造经济效益表!AM52 -> 0 | N52: =IF([1]苏州工业园区工业企业技术改造经济效益表!AN52>=0.7,[1]苏州工业园区工业企业技术改造经济效益表!AM52,0) -> 0 | O52: =IF(IF(K52="A",[1]苏州工业园区工业企业技术改造经济效益表!AJ52*[1]奖补比例!$B$3+N52*[1]奖补比例!$B$5,IF(K52="B",[1]苏州工业园区工业企业技术改造经济效益表!AJ52*[1]奖补比例!$C$3+N52*[1]奖补比例!$C$5,IF(K52="C",[1]苏州工业园区工业企业技术改造经济效益表!AJ52*[1]奖补比例!$D$3+N52*[1]奖补比例!$D$5,[1]苏州工业园区工业企业技术改造经济效益表!AJ52*[1]奖补比例!$E$3+N52*[1]奖补比例!$E$5)))*[1]奖补比例!$G$2>1000,1000,IF(K52="A",[1]苏州工业园区工业企业技术改造经济效益表!AJ52*[1]奖补比例!$B$3+N52*[1]奖补比例!$B$5,IF(K52="B",[1]苏州工业园区工业企业技术改造经济效益表!AJ52*[1]奖补比例!$C$3+N52*[1]奖补比例!$C$5,IF(K52="C",[1]苏州工业园区工业企业技术改造经济效益表!AJ52*[1]奖补比例!$D$3+N52*[1]奖补比例!$D$5,[1]苏州工业园区工业企业技术改造经济效益表!AJ52*[1]奖补比例!$E$3+N52*[1]奖补比例!$E$5)))*[1]奖补比例!$G$2) -> 416.29 | P52: =VLOOKUP(B52,[1]【扣减】省技改综合奖补!$C$2:$E$59,3,0)/10000 -> 24 | Q52: 0 | R52: 0 | S52: =[1]【扣减】人工智能奖补!F51 -> 0 | T52: 0 | U52: =[1]【扣减】投促委!F51 -> 0 | V52: 392.29 | W52: 392.29 | X52: 6.37% | Y52: =IF([1]项目纳统比对表!D52="否","未纳统",IF([1]项目纳统比对表!F52="否","不足500万元","")) -> 未纳统 | AA52: 392.29
A53: 50 | B53: =[1]苏州工业园区工业企业技术改造经济效益表!B53 -> 牧东光电科技有限公司 | C53: =[1]苏州工业园区工业企业技术改造经济效益表!C53 -> 91320594676364242F | D53: =[1]经济效益!N53 -> 54.45 | E53: =[1]智能化效益!R53 -> 70.60 | F53: =IF([1]综合素质认定!O53>10,10,[1]综合素质认定!O53) -> 2 | G53: 0 | H53: 0 | I53: 0 | J53: 54.24 | K53: =IF(J53<[1]奖补比例!$D$2,"D",IF(J53<[1]奖补比例!$C$2,"C",IF(J53<[1]奖补比例!$B$2,"B","A"))) -> C | L53: =[1]苏州工业园区工业企业技术改造经济效益表!AJ53 -> 6951.4 | M53: =[1]苏州工业园区工业企业技术改造经济效益表!AM53 -> 0 | N53: =IF([1]苏州工业园区工业企业技术改造经济效益表!AN53>=0.7,[1]苏州工业园区工业企业技术改造经济效益表!AM53,0) -> 0 | O53: =IF(IF(K53="A",[1]苏州工业园区工业企业技术改造经济效益表!AJ53*[1]奖补比例!$B$3+N53*[1]奖补比例!$B$5,IF(K53="B",[1]苏州工业园区工业企业技术改造经济效益表!AJ53*[1]奖补比例!$C$3+N53*[1]奖补比例!$C$5,IF(K53="C",[1]苏州工业园区工业企业技术改造经济效益表!AJ53*[1]奖补比例!$D$3+N53*[1]奖补比例!$D$5,[1]苏州工业园区工业企业技术改造经济效益表!AJ53*[1]奖补比例!$E$3+N53*[1]奖补比例!$E$5)))*[1]奖补比例!$G$2>1000,1000,IF(K53="A",[1]苏州工业园区工业企业技术改造经济效益表!AJ53*[1]奖补比例!$B$3+N53*[1]奖补比例!$B$5,IF(K53="B",[1]苏州工业园区工业企业技术改造经济效益表!AJ53*[1]奖补比例!$C$3+N53*[1]奖补比例!$C$5,IF(K53="C",[1]苏州工业园区工业企业技术改造经济效益表!AJ53*[1]奖补比例!$D$3+N53*[1]奖补比例!$D$5,[1]苏州工业园区工业企业技术改造经济效益表!AJ53*[1]奖补比例!$E$3+N53*[1]奖补比例!$E$5)))*[1]奖补比例!$G$2) -> 276.74 | P53: =VLOOKUP(B53,[1]【扣减】省技改综合奖补!$C$2:$E$59,3,0)/10000 -> 31 | Q53: 0 | R53: 0 | S53: =[1]【扣减】人工智能奖补!F52 -> 0 | T53: 0 | U53: =[1]【扣减】投促委!F52 -> 0 | V53: 245.74 | W53: 245.74 | X53: 3.98% | Y53: =IF([1]项目纳统比对表!D53="否","未纳统",IF([1]项目纳统比对表!F53="否","不足500万元","")) -> 不足500万元 | AA53: 245.74
A54: 51 | B54: =[1]苏州工业园区工业企业技术改造经济效益表!B54 -> 耐世特汽车系统（苏州）有限公司 | C54: =[1]苏州工业园区工业企业技术改造经济效益表!C54 -> 91320594796523981N | D54: =[1]经济效益!N54 -> 60.85 | E54: =[1]智能化效益!R54 -> 79.45 | F54: =IF([1]综合素质认定!O54>10,10,[1]综合素质认定!O54) -> 9 | G54: 0 | H54: 0 | I54: 0 | J54: 67.48 | K54: =IF(J54<[1]奖补比例!$D$2,"D",IF(J54<[1]奖补比例!$C$2,"C",IF(J54<[1]奖补比例!$B$2,"B","A"))) -> B | L54: =[1]苏州工业园区工业企业技术改造经济效益表!AJ54 -> 7339.749959 | M54: =[1]苏州工业园区工业企业技术改造经济效益表!AM54 -> 3361.215873 | N54: =IF([1]苏州工业园区工业企业技术改造经济效益表!AN54>=0.7,[1]苏州工业园区工业企业技术改造经济效益表!AM54,0) -> 0 | O54: =IF(IF(K54="A",[1]苏州工业园区工业企业技术改造经济效益表!AJ54*[1]奖补比例!$B$3+N54*[1]奖补比例!$B$5,IF(K54="B",[1]苏州工业园区工业企业技术改造经济效益表!AJ54*[1]奖补比例!$C$3+N54*[1]奖补比例!$C$5,IF(K54="C",[1]苏州工业园区工业企业技术改造经济效益表!AJ54*[1]奖补比例!$D$3+N54*[1]奖补比例!$D$5,[1]苏州工业园区工业企业技术改造经济效益表!AJ54*[1]奖补比例!$E$3+N54*[1]奖补比例!$E$5)))*[1]奖补比例!$G$2>1000,1000,IF(K54="A",[1]苏州工业园区工业企业技术改造经济效益表!AJ54*[1]奖补比例!$B$3+N54*[1]奖补比例!$B$5,IF(K54="B",[1]苏州工业园区工业企业技术改造经济效益表!AJ54*[1]奖补比例!$C$3+N54*[1]奖补比例!$C$5,IF(K54="C",[1]苏州工业园区工业企业技术改造经济效益表!AJ54*[1]奖补比例!$D$3+N54*[1]奖补比例!$D$5,[1]苏州工业园区工业企业技术改造经济效益表!AJ54*[1]奖补比例!$E$3+N54*[1]奖补比例!$E$5)))*[1]奖补比例!$G$2) -> 467.52 | P54: =VLOOKUP(B54,[1]【扣减】省技改综合奖补!$C$2:$E$59,3,0)/10000 -> 47 | Q54: 0 | R54: 0 | S54: =[1]【扣减】人工智能奖补!F53 -> 0 | T54: 0 | U54: =[1]【扣减】投促委!F53 -> 800 | V54: 0 | W54: 0.00 | X54: 6.37% | Y54: =IF([1]项目纳统比对表!D54="否","未纳统",IF([1]项目纳统比对表!F54="否","不足500万元","")) ->  | AA54: 0.00
A55: 52 | B55: =[1]苏州工业园区工业企业技术改造经济效益表!B55 -> 欧瑞康巴尔查斯涂层（苏州）有限公司 | C55: =[1]苏州工业园区工业企业技术改造经济效益表!C55 -> 91320594752733354N | D55: =[1]经济效益!N55 -> 68 | E55: =[1]智能化效益!R55 -> 83.69 | F55: =IF([1]综合素质认定!O55>10,10,[1]综合素质认定!O55) -> 0 | G55: 0 | H55: 0 | I55: 0 | J55: 64.34 | K55: =IF(J55<[1]奖补比例!$D$2,"D",IF(J55<[1]奖补比例!$C$2,"C",IF(J55<[1]奖补比例!$B$2,"B","A"))) -> B | L55: =[1]苏州工业园区工业企业技术改造经济效益表!AJ55 -> 2243.13 | M55: =[1]苏州工业园区工业企业技术改造经济效益表!AM55 -> 0 | N55: =IF([1]苏州工业园区工业企业技术改造经济效益表!AN55>=0.7,[1]苏州工业园区工业企业技术改造经济效益表!AM55,0) -> 0 | O55: =IF(IF(K55="A",[1]苏州工业园区工业企业技术改造经济效益表!AJ55*[1]奖补比例!$B$3+N55*[1]奖补比例!$B$5,IF(K55="B",[1]苏州工业园区工业企业技术改造经济效益表!AJ55*[1]奖补比例!$C$3+N55*[1]奖补比例!$C$5,IF(K55="C",[1]苏州工业园区工业企业技术改造经济效益表!AJ55*[1]奖补比例!$D$3+N55*[1]奖补比例!$D$5,[1]苏州工业园区工业企业技术改造经济效益表!AJ55*[1]奖补比例!$E$3+N55*[1]奖补比例!$E$5)))*[1]奖补比例!$G$2>1000,1000,IF(K55="A",[1]苏州工业园区工业企业技术改造经济效益表!AJ55*[1]奖补比例!$B$3+N55*[1]奖补比例!$B$5,IF(K55="B",[1]苏州工业园区工业企业技术改造经济效益表!AJ55*[1]奖补比例!$C$3+N55*[1]奖补比例!$C$5,IF(K55="C",[1]苏州工业园区工业企业技术改造经济效益表!AJ55*[1]奖补比例!$D$3+N55*[1]奖补比例!$D$5,[1]苏州工业园区工业企业技术改造经济效益表!AJ55*[1]奖补比例!$E$3+N55*[1]奖补比例!$E$5)))*[1]奖补比例!$G$2) -> 142.88 | P55: =VLOOKUP(B55,[1]【扣减】省技改综合奖补!$C$2:$E$59,3,0)/10000 -> 15 | Q55: 0 | R55: 0 | S55: =[1]【扣减】人工智能奖补!F54 -> 0 | T55: 0 | U55: =[1]【扣减】投促委!F54 -> 0 | V55: 127.88 | W55: 127.88 | X55: 6.37% | Y55: =IF([1]项目纳统比对表!D55="否","未纳统",IF([1]项目纳统比对表!F55="否","不足500万元","")) -> 未纳统 | AA55: 127.88
A56: 53 | B56: =[1]苏州工业园区工业企业技术改造经济效益表!B56 -> 欧文斯科宁金属技术（苏州）有限公司 | C56: =[1]苏州工业园区工业企业技术改造经济效益表!C56 -> 91320594783360562G | D56: =[1]经济效益!N56 -> 67 | E56: =[1]智能化效益!R56 -> 83 | F56: =IF([1]综合素质认定!O56>10,10,[1]综合素质认定!O56) -> 0 | G56: 0 | H56: 0 | I56: 0 | J56: 63.50 | K56: =IF(J56<[1]奖补比例!$D$2,"D",IF(J56<[1]奖补比例!$C$2,"C",IF(J56<[1]奖补比例!$B$2,"B","A"))) -> B | L56: =[1]苏州工业园区工业企业技术改造经济效益表!AJ56 -> 1410.03 | M56: =[1]苏州工业园区工业企业技术改造经济效益表!AM56 -> 0 | N56: =IF([1]苏州工业园区工业企业技术改造经济效益表!AN56>=0.7,[1]苏州工业园区工业企业技术改造经济效益表!AM56,0) -> 0 | O56: =IF(IF(K56="A",[1]苏州工业园区工业企业技术改造经济效益表!AJ56*[1]奖补比例!$B$3+N56*[1]奖补比例!$B$5,IF(K56="B",[1]苏州工业园区工业企业技术改造经济效益表!AJ56*[1]奖补比例!$C$3+N56*[1]奖补比例!$C$5,IF(K56="C",[1]苏州工业园区工业企业技术改造经济效益表!AJ56*[1]奖补比例!$D$3+N56*[1]奖补比例!$D$5,[1]苏州工业园区工业企业技术改造经济效益表!AJ56*[1]奖补比例!$E$3+N56*[1]奖补比例!$E$5)))*[1]奖补比例!$G$2>1000,1000,IF(K56="A",[1]苏州工业园区工业企业技术改造经济效益表!AJ56*[1]奖补比例!$B$3+N56*[1]奖补比例!$B$5,IF(K56="B",[1]苏州工业园区工业企业技术改造经济效益表!AJ56*[1]奖补比例!$C$3+N56*[1]奖补比例!$C$5,IF(K56="C",[1]苏州工业园区工业企业技术改造经济效益表!AJ56*[1]奖补比例!$D$3+N56*[1]奖补比例!$D$5,[1]苏州工业园区工业企业技术改造经济效益表!AJ56*[1]奖补比例!$E$3+N56*[1]奖补比例!$E$5)))*[1]奖补比例!$G$2) -> 89.82 | P56: 0 | Q56: 0 | R56: 0 | S56: =[1]【扣减】人工智能奖补!F55 -> 0 | T56: 0 | U56: =[1]【扣减】投促委!F55 -> 0 | V56: 89.82 | W56: 89.82 | X56: 6.37% | Y56: =IF([1]项目纳统比对表!D56="否","未纳统",IF([1]项目纳统比对表!F56="否","不足500万元","")) ->  | AA56: 89.82
A57: 54 | B57: =[1]苏州工业园区工业企业技术改造经济效益表!B57 -> 帕玛斯韦奇航空部件（苏州）有限公司 | C57: =[1]苏州工业园区工业企业技术改造经济效益表!C57 -> 91320594565323798R | D57: =[1]经济效益!N57 -> 42 | E57: =[1]智能化效益!R57 -> 91.93 | F57: =IF([1]综合素质认定!O57>10,10,[1]综合素质认定!O57) -> 1 | G57: 0 | H57: 0 | I57: 0 | J57: 48.79 | K57: =IF(J57<[1]奖补比例!$D$2,"D",IF(J57<[1]奖补比例!$C$2,"C",IF(J57<[1]奖补比例!$B$2,"B","A"))) -> D | L57: =[1]苏州工业园区工业企业技术改造经济效益表!AJ57 -> 1257.23 | M57: =[1]苏州工业园区工业企业技术改造经济效益表!AM57 -> 17.80 | N57: =IF([1]苏州工业园区工业企业技术改造经济效益表!AN57>=0.7,[1]苏州工业园区工业企业技术改造经济效益表!AM57,0) -> 0 | O57: =IF(IF(K57="A",[1]苏州工业园区工业企业技术改造经济效益表!AJ57*[1]奖补比例!$B$3+N57*[1]奖补比例!$B$5,IF(K57="B",[1]苏州工业园区工业企业技术改造经济效益表!AJ57*[1]奖补比例!$C$3+N57*[1]奖补比例!$C$5,IF(K57="C",[1]苏州工业园区工业企业技术改造经济效益表!AJ57*[1]奖补比例!$D$3+N57*[1]奖补比例!$D$5,[1]苏州工业园区工业企业技术改造经济效益表!AJ57*[1]奖补比例!$E$3+N57*[1]奖补比例!$E$5)))*[1]奖补比例!$G$2>1000,1000,IF(K57="A",[1]苏州工业园区工业企业技术改造经济效益表!AJ57*[1]奖补比例!$B$3+N57*[1]奖补比例!$B$5,IF(K57="B",[1]苏州工业园区工业企业技术改造经济效益表!AJ57*[1]奖补比例!$C$3+N57*[1]奖补比例!$C$5,IF(K57="C",[1]苏州工业园区工业企业技术改造经济效益表!AJ57*[1]奖补比例!$D$3+N57*[1]奖补比例!$D$5,[1]苏州工业园区工业企业技术改造经济效益表!AJ57*[1]奖补比例!$E$3+N57*[1]奖补比例!$E$5)))*[1]奖补比例!$G$2) -> 30.03 | P57: 0 | Q57: 0 | R57: 0 | S57: =[1]【扣减】人工智能奖补!F56 -> 0 | T57: 0 | U57: =[1]【扣减】投促委!F56 -> 0 | V57: 30.03 | W57: 30.03 | X57: 2.39% | Y57: =IF([1]项目纳统比对表!D57="否","未纳统",IF([1]项目纳统比对表!F57="否","不足500万元","")) ->  | AA57: 30.03
A58: 55 | B58: =[1]苏州工业园区工业企业技术改造经济效益表!B58 -> 沛嘉医疗科技（苏州）有限公司 | C58: =[1]苏州工业园区工业企业技术改造经济效益表!C58 -> 91320594061881876J | D58: =[1]经济效益!N58 -> 45 | E58: =[1]智能化效益!R58 -> 74.62 | F58: =IF([1]综合素质认定!O58>10,10,[1]综合素质认定!O58) -> 0 | G58: 0 | H58: 0 | I58: 0 | J58: 46.42 | K58: =IF(J58<[1]奖补比例!$D$2,"D",IF(J58<[1]奖补比例!$C$2,"C",IF(J58<[1]奖补比例!$B$2,"B","A"))) -> D | L58: =[1]苏州工业园区工业企业技术改造经济效益表!AJ58 -> 734.5216097 | M58: =[1]苏州工业园区工业企业技术改造经济效益表!AM58 -> 5.90 | N58: =IF([1]苏州工业园区工业企业技术改造经济效益表!AN58>=0.7,[1]苏州工业园区工业企业技术改造经济效益表!AM58,0) -> 0 | O58: =IF(IF(K58="A",[1]苏州工业园区工业企业技术改造经济效益表!AJ58*[1]奖补比例!$B$3+N58*[1]奖补比例!$B$5,IF(K58="B",[1]苏州工业园区工业企业技术改造经济效益表!AJ58*[1]奖补比例!$C$3+N58*[1]奖补比例!$C$5,IF(K58="C",[1]苏州工业园区工业企业技术改造经济效益表!AJ58*[1]奖补比例!$D$3+N58*[1]奖补比例!$D$5,[1]苏州工业园区工业企业技术改造经济效益表!AJ58*[1]奖补比例!$E$3+N58*[1]奖补比例!$E$5)))*[1]奖补比例!$G$2>1000,1000,IF(K58="A",[1]苏州工业园区工业企业技术改造经济效益表!AJ58*[1]奖补比例!$B$3+N58*[1]奖补比例!$B$5,IF(K58="B",[1]苏州工业园区工业企业技术改造经济效益表!AJ58*[1]奖补比例!$C$3+N58*[1]奖补比例!$C$5,IF(K58="C",[1]苏州工业园区工业企业技术改造经济效益表!AJ58*[1]奖补比例!$D$3+N58*[1]奖补比例!$D$5,[1]苏州工业园区工业企业技术改造经济效益表!AJ58*[1]奖补比例!$E$3+N58*[1]奖补比例!$E$5)))*[1]奖补比例!$G$2) -> 17.55 | P58: 0 | Q58: 0 | R58: 0 | S58: =[1]【扣减】人工智能奖补!F57 -> 0 | T58: 0 | U58: =[1]【扣减】投促委!F57 -> 0 | V58: 17.55 | W58: 17.55 | X58: 2.39% | Y58: =IF([1]项目纳统比对表!D58="否","未纳统",IF([1]项目纳统比对表!F58="否","不足500万元","")) ->  | AA58: 17.55
A59: 56 | B59: =[1]苏州工业园区工业企业技术改造经济效益表!B59 -> 普美航空制造（苏州）有限公司 | C59: =[1]苏州工业园区工业企业技术改造经济效益表!C59 -> 913205947589578775 | D59: =[1]经济效益!N59 -> 42 | E59: =[1]智能化效益!R59 -> 90 | F59: =IF([1]综合素质认定!O59>10,10,[1]综合素质认定!O59) -> 1 | G59: 0 | H59: 0 | I59: 0 | J59: 48.40 | K59: =IF(J59<[1]奖补比例!$D$2,"D",IF(J59<[1]奖补比例!$C$2,"C",IF(J59<[1]奖补比例!$B$2,"B","A"))) -> D | L59: =[1]苏州工业园区工业企业技术改造经济效益表!AJ59 -> 1236.18 | M59: =[1]苏州工业园区工业企业技术改造经济效益表!AM59 -> 0 | N59: =IF([1]苏州工业园区工业企业技术改造经济效益表!AN59>=0.7,[1]苏州工业园区工业企业技术改造经济效益表!AM59,0) -> 0 | O59: =IF(IF(K59="A",[1]苏州工业园区工业企业技术改造经济效益表!AJ59*[1]奖补比例!$B$3+N59*[1]奖补比例!$B$5,IF(K59="B",[1]苏州工业园区工业企业技术改造经济效益表!AJ59*[1]奖补比例!$C$3+N59*[1]奖补比例!$C$5,IF(K59="C",[1]苏州工业园区工业企业技术改造经济效益表!AJ59*[1]奖补比例!$D$3+N59*[1]奖补比例!$D$5,[1]苏州工业园区工业企业技术改造经济效益表!AJ59*[1]奖补比例!$E$3+N59*[1]奖补比例!$E$5)))*[1]奖补比例!$G$2>1000,1000,IF(K59="A",[1]苏州工业园区工业企业技术改造经济效益表!AJ59*[1]奖补比例!$B$3+N59*[1]奖补比例!$B$5,IF(K59="B",[1]苏州工业园区工业企业技术改造经济效益表!AJ59*[1]奖补比例!$C$3+N59*[1]奖补比例!$C$5,IF(K59="C",[1]苏州工业园区工业企业技术改造经济效益表!AJ59*[1]奖补比例!$D$3+N59*[1]奖补比例!$D$5,[1]苏州工业园区工业企业技术改造经济效益表!AJ59*[1]奖补比例!$E$3+N59*[1]奖补比例!$E$5)))*[1]奖补比例!$G$2) -> 29.53 | P59: =VLOOKUP(B59,[1]【扣减】省技改综合奖补!$C$2:$E$59,3,0)/10000 -> 17 | Q59: 0 | R59: 0 | S59: =[1]【扣减】人工智能奖补!F58 -> 0 | T59: 0 | U59: =[1]【扣减】投促委!F58 -> 0 | V59: 12.53 | W59: 12.53 | X59: 2.39% | Y59: =IF([1]项目纳统比对表!D59="否","未纳统",IF([1]项目纳统比对表!F59="否","不足500万元","")) ->  | AA59: 12.53
A60: 57 | B60: =[1]苏州工业园区工业企业技术改造经济效益表!B60 -> 颀中科技（苏州）有限公司 | C60: =[1]苏州工业园区工业企业技术改造经济效益表!C60 -> 91320594762849748G | D60: =[1]经济效益!N60 -> 73.77 | E60: =[1]智能化效益!R60 -> 85 | F60: =IF([1]综合素质认定!O60>10,10,[1]综合素质认定!O60) -> 9 | G60: 0 | H60: 0 | I60: 0 | J60: 77.64 | K60: =IF(J60<[1]奖补比例!$D$2,"D",IF(J60<[1]奖补比例!$C$2,"C",IF(J60<[1]奖补比例!$B$2,"B","A"))) -> B | L60: =[1]苏州工业园区工业企业技术改造经济效益表!AJ60 -> 58892.15 | M60: =[1]苏州工业园区工业企业技术改造经济效益表!AM60 -> 0 | N60: =IF([1]苏州工业园区工业企业技术改造经济效益表!AN60>=0.7,[1]苏州工业园区工业企业技术改造经济效益表!AM60,0) -> 0 | O60: =IF(IF(K60="A",[1]苏州工业园区工业企业技术改造经济效益表!AJ60*[1]奖补比例!$B$3+N60*[1]奖补比例!$B$5,IF(K60="B",[1]苏州工业园区工业企业技术改造经济效益表!AJ60*[1]奖补比例!$C$3+N60*[1]奖补比例!$C$5,IF(K60="C",[1]苏州工业园区工业企业技术改造经济效益表!AJ60*[1]奖补比例!$D$3+N60*[1]奖补比例!$D$5,[1]苏州工业园区工业企业技术改造经济效益表!AJ60*[1]奖补比例!$E$3+N60*[1]奖补比例!$E$5)))*[1]奖补比例!$G$2>1000,1000,IF(K60="A",[1]苏州工业园区工业企业技术改造经济效益表!AJ60*[1]奖补比例!$B$3+N60*[1]奖补比例!$B$5,IF(K60="B",[1]苏州工业园区工业企业技术改造经济效益表!AJ60*[1]奖补比例!$C$3+N60*[1]奖补比例!$C$5,IF(K60="C",[1]苏州工业园区工业企业技术改造经济效益表!AJ60*[1]奖补比例!$D$3+N60*[1]奖补比例!$D$5,[1]苏州工业园区工业企业技术改造经济效益表!AJ60*[1]奖补比例!$E$3+N60*[1]奖补比例!$E$5)))*[1]奖补比例!$G$2) -> 1000 | P60: =VLOOKUP(B60,[1]【扣减】省技改综合奖补!$C$2:$E$59,3,0)/10000 -> 168 | Q60: 0 | R60: 0 | S60: =[1]【扣减】人工智能奖补!F59 -> 0 | T60: 0 | U60: =[1]【扣减】投促委!F59 -> 0 | V60: 832 | W60: 832.00 | X60: 1.70% | Y60: =IF([1]项目纳统比对表!D60="否","未纳统",IF([1]项目纳统比对表!F60="否","不足500万元","")) ->  | AA60: 832.00
A61: 58 | B61: =[1]苏州工业园区工业企业技术改造经济效益表!B61 -> 乔治费歇尔金属成型科技（苏州）有限公司 | C61: =[1]苏州工业园区工业企业技术改造经济效益表!C61 -> 913205947596616800 | D61: =[1]经济效益!N61 -> 50.45 | E61: =[1]智能化效益!R61 -> 89.74 | F61: =IF([1]综合素质认定!O61>10,10,[1]综合素质认定!O61) -> 6 | G61: 0 | H61: 0 | I61: 0 | J61: 59.26 | K61: =IF(J61<[1]奖补比例!$D$2,"D",IF(J61<[1]奖补比例!$C$2,"C",IF(J61<[1]奖补比例!$B$2,"B","A"))) -> C | L61: =[1]苏州工业园区工业企业技术改造经济效益表!AJ61 -> 1660.144213 | M61: =[1]苏州工业园区工业企业技术改造经济效益表!AM61 -> 16.03 | N61: =IF([1]苏州工业园区工业企业技术改造经济效益表!AN61>=0.7,[1]苏州工业园区工业企业技术改造经济效益表!AM61,0) -> 0 | O61: =IF(IF(K61="A",[1]苏州工业园区工业企业技术改造经济效益表!AJ61*[1]奖补比例!$B$3+N61*[1]奖补比例!$B$5,IF(K61="B",[1]苏州工业园区工业企业技术改造经济效益表!AJ61*[1]奖补比例!$C$3+N61*[1]奖补比例!$C$5,IF(K61="C",[1]苏州工业园区工业企业技术改造经济效益表!AJ61*[1]奖补比例!$D$3+N61*[1]奖补比例!$D$5,[1]苏州工业园区工业企业技术改造经济效益表!AJ61*[1]奖补比例!$E$3+N61*[1]奖补比例!$E$5)))*[1]奖补比例!$G$2>1000,1000,IF(K61="A",[1]苏州工业园区工业企业技术改造经济效益表!AJ61*[1]奖补比例!$B$3+N61*[1]奖补比例!$B$5,IF(K61="B",[1]苏州工业园区工业企业技术改造经济效益表!AJ61*[1]奖补比例!$C$3+N61*[1]奖补比例!$C$5,IF(K61="C",[1]苏州工业园区工业企业技术改造经济效益表!AJ61*[1]奖补比例!$D$3+N61*[1]奖补比例!$D$5,[1]苏州工业园区工业企业技术改造经济效益表!AJ61*[1]奖补比例!$E$3+N61*[1]奖补比例!$E$5)))*[1]奖补比例!$G$2) -> 66.09 | P61: =VLOOKUP(B61,[1]【扣减】省技改综合奖补!$C$2:$E$59,3,0)/10000 -> 15 | Q61: 0 | R61: =VLOOKUP(B61,[1]【扣减】节能改造项目奖补!$B$2:$C$23,2,0) -> 15 | S61: =[1]【扣减】人工智能奖补!F60 -> 102.2 | T61: 0 | U61: =[1]【扣减】投促委!F60 -> 0 | V61: 0 | W61: 0.00 | X61: 3.98% | Y61: =IF([1]项目纳统比对表!D61="否","未纳统",IF([1]项目纳统比对表!F61="否","不足500万元","")) ->  | AA61: 0.00
A62: 59 | B62: =[1]苏州工业园区工业企业技术改造经济效益表!B62 -> 青山汽车紧固件（苏州）有限公司 | C62: =[1]苏州工业园区工业企业技术改造经济效益表!C62 -> 913205947641645314 | D62: =[1]经济效益!N62 -> 66 | E62: =[1]智能化效益!R62 -> 69.95 | F62: =IF([1]综合素质认定!O62>10,10,[1]综合素质认定!O62) -> 0 | G62: 0 | H62: 0 | I62: 0 | J62: 60.19 | K62: =IF(J62<[1]奖补比例!$D$2,"D",IF(J62<[1]奖补比例!$C$2,"C",IF(J62<[1]奖补比例!$B$2,"B","A"))) -> B | L62: =[1]苏州工业园区工业企业技术改造经济效益表!AJ62 -> 4163 | M62: =[1]苏州工业园区工业企业技术改造经济效益表!AM62 -> 84.42 | N62: =IF([1]苏州工业园区工业企业技术改造经济效益表!AN62>=0.7,[1]苏州工业园区工业企业技术改造经济效益表!AM62,0) -> 0 | O62: =IF(IF(K62="A",[1]苏州工业园区工业企业技术改造经济效益表!AJ62*[1]奖补比例!$B$3+N62*[1]奖补比例!$B$5,IF(K62="B",[1]苏州工业园区工业企业技术改造经济效益表!AJ62*[1]奖补比例!$C$3+N62*[1]奖补比例!$C$5,IF(K62="C",[1]苏州工业园区工业企业技术改造经济效益表!AJ62*[1]奖补比例!$D$3+N62*[1]奖补比例!$D$5,[1]苏州工业园区工业企业技术改造经济效益表!AJ62*[1]奖补比例!$E$3+N62*[1]奖补比例!$E$5)))*[1]奖补比例!$G$2>1000,1000,IF(K62="A",[1]苏州工业园区工业企业技术改造经济效益表!AJ62*[1]奖补比例!$B$3+N62*[1]奖补比例!$B$5,IF(K62="B",[1]苏州工业园区工业企业技术改造经济效益表!AJ62*[1]奖补比例!$C$3+N62*[1]奖补比例!$C$5,IF(K62="C",[1]苏州工业园区工业企业技术改造经济效益表!AJ62*[1]奖补比例!$D$3+N62*[1]奖补比例!$D$5,[1]苏州工业园区工业企业技术改造经济效益表!AJ62*[1]奖补比例!$E$3+N62*[1]奖补比例!$E$5)))*[1]奖补比例!$G$2) -> 265.17 | P62: =VLOOKUP(B62,[1]【扣减】省技改综合奖补!$C$2:$E$59,3,0)/10000 -> 19 | Q62: 0 | R62: 0 | S62: =[1]【扣减】人工智能奖补!F61 -> 0 | T62: 0 | U62: =[1]【扣减】投促委!F61 -> 0 | V62: 246.17 | W62: 246.17 | X62: 6.37% | Y62: =IF([1]项目纳统比对表!D62="否","未纳统",IF([1]项目纳统比对表!F62="否","不足500万元","")) -> 未纳统 | AA62: 246.17
A63: 60 | B63: =[1]苏州工业园区工业企业技术改造经济效益表!B63 -> 日立安斯泰莫汽车系统(苏州)有限公司 | C63: =[1]苏州工业园区工业企业技术改造经济效益表!C63 -> 91320594742473181A | D63: =[1]经济效益!N63 -> 75.41 | E63: =[1]智能化效益!R63 -> 81.48 | F63: =IF([1]综合素质认定!O63>10,10,[1]综合素质认定!O63) -> 0 | G63: 0 | H63: 0 | I63: 0 | J63: 69.09 | K63: =IF(J63<[1]奖补比例!$D$2,"D",IF(J63<[1]奖补比例!$C$2,"C",IF(J63<[1]奖补比例!$B$2,"B","A"))) -> B | L63: =[1]苏州工业园区工业企业技术改造经济效益表!AJ63 -> 4399.15 | M63: =[1]苏州工业园区工业企业技术改造经济效益表!AM63 -> 48.41 | N63: =IF([1]苏州工业园区工业企业技术改造经济效益表!AN63>=0.7,[1]苏州工业园区工业企业技术改造经济效益表!AM63,0) -> 0 | O63: =IF(IF(K63="A",[1]苏州工业园区工业企业技术改造经济效益表!AJ63*[1]奖补比例!$B$3+N63*[1]奖补比例!$B$5,IF(K63="B",[1]苏州工业园区工业企业技术改造经济效益表!AJ63*[1]奖补比例!$C$3+N63*[1]奖补比例!$C$5,IF(K63="C",[1]苏州工业园区工业企业技术改造经济效益表!AJ63*[1]奖补比例!$D$3+N63*[1]奖补比例!$D$5,[1]苏州工业园区工业企业技术改造经济效益表!AJ63*[1]奖补比例!$E$3+N63*[1]奖补比例!$E$5)))*[1]奖补比例!$G$2>1000,1000,IF(K63="A",[1]苏州工业园区工业企业技术改造经济效益表!AJ63*[1]奖补比例!$B$3+N63*[1]奖补比例!$B$5,IF(K63="B",[1]苏州工业园区工业企业技术改造经济效益表!AJ63*[1]奖补比例!$C$3+N63*[1]奖补比例!$C$5,IF(K63="C",[1]苏州工业园区工业企业技术改造经济效益表!AJ63*[1]奖补比例!$D$3+N63*[1]奖补比例!$D$5,[1]苏州工业园区工业企业技术改造经济效益表!AJ63*[1]奖补比例!$E$3+N63*[1]奖补比例!$E$5)))*[1]奖补比例!$G$2) -> 280.21 | P63: =VLOOKUP(B63,[1]【扣减】省技改综合奖补!$C$2:$E$59,3,0)/10000 -> 89 | Q63: 0 | R63: 0 | S63: =[1]【扣减】人工智能奖补!F62 -> 0 | T63: 0 | U63: =[1]【扣减】投促委!F62 -> 0 | V63: 191.21 | W63: 191.21 | X63: 6.37% | Y63: =IF([1]项目纳统比对表!D63="否","未纳统",IF([1]项目纳统比对表!F63="否","不足500万元","")) -> 未纳统 | AA63: 191.21
A64: 61 | B64: =[1]苏州工业园区工业企业技术改造经济效益表!B64 -> 日立仪器（苏州）有限公司 | C64: =[1]苏州工业园区工业企业技术改造经济效益表!C64 -> 91320594608207536E | D64: =[1]经济效益!N64 -> 45.21 | E64: =[1]智能化效益!R64 -> 68 | F64: =IF([1]综合素质认定!O64>10,10,[1]综合素质认定!O64) -> 1 | G64: 0 | H64: 0 | I64: 0 | J64: 46.25 | K64: =IF(J64<[1]奖补比例!$D$2,"D",IF(J64<[1]奖补比例!$C$2,"C",IF(J64<[1]奖补比例!$B$2,"B","A"))) -> D | L64: =[1]苏州工业园区工业企业技术改造经济效益表!AJ64 -> 598.8 | M64: =[1]苏州工业园区工业企业技术改造经济效益表!AM64 -> 13.40 | N64: =IF([1]苏州工业园区工业企业技术改造经济效益表!AN64>=0.7,[1]苏州工业园区工业企业技术改造经济效益表!AM64,0) -> 0 | O64: =IF(IF(K64="A",[1]苏州工业园区工业企业技术改造经济效益表!AJ64*[1]奖补比例!$B$3+N64*[1]奖补比例!$B$5,IF(K64="B",[1]苏州工业园区工业企业技术改造经济效益表!AJ64*[1]奖补比例!$C$3+N64*[1]奖补比例!$C$5,IF(K64="C",[1]苏州工业园区工业企业技术改造经济效益表!AJ64*[1]奖补比例!$D$3+N64*[1]奖补比例!$D$5,[1]苏州工业园区工业企业技术改造经济效益表!AJ64*[1]奖补比例!$E$3+N64*[1]奖补比例!$E$5)))*[1]奖补比例!$G$2>1000,1000,IF(K64="A",[1]苏州工业园区工业企业技术改造经济效益表!AJ64*[1]奖补比例!$B$3+N64*[1]奖补比例!$B$5,IF(K64="B",[1]苏州工业园区工业企业技术改造经济效益表!AJ64*[1]奖补比例!$C$3+N64*[1]奖补比例!$C$5,IF(K64="C",[1]苏州工业园区工业企业技术改造经济效益表!AJ64*[1]奖补比例!$D$3+N64*[1]奖补比例!$D$5,[1]苏州工业园区工业企业技术改造经济效益表!AJ64*[1]奖补比例!$E$3+N64*[1]奖补比例!$E$5)))*[1]奖补比例!$G$2) -> 14.30 | P64: 0 | Q64: 0 | R64: 0 | S64: =[1]【扣减】人工智能奖补!F63 -> 0 | T64: 0 | U64: =[1]【扣减】投促委!F63 -> 0 | V64: 14.30 | W64: 14.30 | X64: 2.39% | Y64: =IF([1]项目纳统比对表!D64="否","未纳统",IF([1]项目纳统比对表!F64="否","不足500万元","")) -> 未纳统 | AA64: 14.30
A65: 62 | B65: =[1]苏州工业园区工业企业技术改造经济效益表!B65 -> 儒拉玛特自动化技术（苏州）有限公司 | C65: =[1]苏州工业园区工业企业技术改造经济效益表!C65 -> 913205947132400989 | D65: =[1]经济效益!N65 -> 27.91 | E65: =[1]智能化效益!R65 -> 70 | F65: =IF([1]综合素质认定!O65>10,10,[1]综合素质认定!O65) -> 2 | G65: 0 | H65: 0 | I65: 0 | J65: 35.53 | K65: =IF(J65<[1]奖补比例!$D$2,"D",IF(J65<[1]奖补比例!$C$2,"C",IF(J65<[1]奖补比例!$B$2,"B","A"))) -> D | L65: =[1]苏州工业园区工业企业技术改造经济效益表!AJ65 -> 209.66 | M65: =[1]苏州工业园区工业企业技术改造经济效益表!AM65 -> 0 | N65: =IF([1]苏州工业园区工业企业技术改造经济效益表!AN65>=0.7,[1]苏州工业园区工业企业技术改造经济效益表!AM65,0) -> 0 | O65: =IF(IF(K65="A",[1]苏州工业园区工业企业技术改造经济效益表!AJ65*[1]奖补比例!$B$3+N65*[1]奖补比例!$B$5,IF(K65="B",[1]苏州工业园区工业企业技术改造经济效益表!AJ65*[1]奖补比例!$C$3+N65*[1]奖补比例!$C$5,IF(K65="C",[1]苏州工业园区工业企业技术改造经济效益表!AJ65*[1]奖补比例!$D$3+N65*[1]奖补比例!$D$5,[1]苏州工业园区工业企业技术改造经济效益表!AJ65*[1]奖补比例!$E$3+N65*[1]奖补比例!$E$5)))*[1]奖补比例!$G$2>1000,1000,IF(K65="A",[1]苏州工业园区工业企业技术改造经济效益表!AJ65*[1]奖补比例!$B$3+N65*[1]奖补比例!$B$5,IF(K65="B",[1]苏州工业园区工业企业技术改造经济效益表!AJ65*[1]奖补比例!$C$3+N65*[1]奖补比例!$C$5,IF(K65="C",[1]苏州工业园区工业企业技术改造经济效益表!AJ65*[1]奖补比例!$D$3+N65*[1]奖补比例!$D$5,[1]苏州工业园区工业企业技术改造经济效益表!AJ65*[1]奖补比例!$E$3+N65*[1]奖补比例!$E$5)))*[1]奖补比例!$G$2) -> 5.01 | P65: 0 | Q65: 0 | R65: 0 | S65: =[1]【扣减】人工智能奖补!F64 -> 0 | T65: 0 | U65: =[1]【扣减】投促委!F64 -> 0 | V65: 5.01 | W65: 5.01 | X65: 2.39% | Y65: =IF([1]项目纳统比对表!D65="否","未纳统",IF([1]项目纳统比对表!F65="否","不足500万元","")) ->  | AA65: 5.01
A66: 63 | B66: =[1]苏州工业园区工业企业技术改造经济效益表!B66 -> 赛峰飞机发动机（苏州）有限公司 | C66: =[1]苏州工业园区工业企业技术改造经济效益表!C66 -> 91320594783360781T | D66: =[1]经济效益!N66 -> 54.62 | E66: =[1]智能化效益!R66 -> 92 | F66: =IF([1]综合素质认定!O66>10,10,[1]综合素质认定!O66) -> 1 | G66: 0 | H66: 0 | I66: 0 | J66: 57.63 | K66: =IF(J66<[1]奖补比例!$D$2,"D",IF(J66<[1]奖补比例!$C$2,"C",IF(J66<[1]奖补比例!$B$2,"B","A"))) -> C | L66: =[1]苏州工业园区工业企业技术改造经济效益表!AJ66 -> 5029.16 | M66: =[1]苏州工业园区工业企业技术改造经济效益表!AM66 -> 0 | N66: =IF([1]苏州工业园区工业企业技术改造经济效益表!AN66>=0.7,[1]苏州工业园区工业企业技术改造经济效益表!AM66,0) -> 0 | O66: =IF(IF(K66="A",[1]苏州工业园区工业企业技术改造经济效益表!AJ66*[1]奖补比例!$B$3+N66*[1]奖补比例!$B$5,IF(K66="B",[1]苏州工业园区工业企业技术改造经济效益表!AJ66*[1]奖补比例!$C$3+N66*[1]奖补比例!$C$5,IF(K66="C",[1]苏州工业园区工业企业技术改造经济效益表!AJ66*[1]奖补比例!$D$3+N66*[1]奖补比例!$D$5,[1]苏州工业园区工业企业技术改造经济效益表!AJ66*[1]奖补比例!$E$3+N66*[1]奖补比例!$E$5)))*[1]奖补比例!$G$2>1000,1000,IF(K66="A",[1]苏州工业园区工业企业技术改造经济效益表!AJ66*[1]奖补比例!$B$3+N66*[1]奖补比例!$B$5,IF(K66="B",[1]苏州工业园区工业企业技术改造经济效益表!AJ66*[1]奖补比例!$C$3+N66*[1]奖补比例!$C$5,IF(K66="C",[1]苏州工业园区工业企业技术改造经济效益表!AJ66*[1]奖补比例!$D$3+N66*[1]奖补比例!$D$5,[1]苏州工业园区工业企业技术改造经济效益表!AJ66*[1]奖补比例!$E$3+N66*[1]奖补比例!$E$5)))*[1]奖补比例!$G$2) -> 200.22 | P66: =VLOOKUP(B66,[1]【扣减】省技改综合奖补!$C$2:$E$59,3,0)/10000 -> 25 | Q66: 0 | R66: 0 | S66: =[1]【扣减】人工智能奖补!F65 -> 0 | T66: 0 | U66: =[1]【扣减】投促委!F65 -> 0 | V66: 175.22 | W66: 175.22 | X66: 3.98% | Y66: =IF([1]项目纳统比对表!D66="否","未纳统",IF([1]项目纳统比对表!F66="否","不足500万元","")) -> 未纳统 | AA66: 175.22
A67: 64 | B67: =[1]苏州工业园区工业企业技术改造经济效益表!B67 -> 赛峰起落架系统（苏州）有限公司 | C67: =[1]苏州工业园区工业企业技术改造经济效益表!C67 -> 913205947833604074 | D67: =[1]经济效益!N67 -> 42.43 | E67: =[1]智能化效益!R67 -> 90 | F67: =IF([1]综合素质认定!O67>10,10,[1]综合素质认定!O67) -> 1 | G67: 0 | H67: 0 | I67: 0 | J67: 48.70 | K67: =IF(J67<[1]奖补比例!$D$2,"D",IF(J67<[1]奖补比例!$C$2,"C",IF(J67<[1]奖补比例!$B$2,"B","A"))) -> D | L67: =[1]苏州工业园区工业企业技术改造经济效益表!AJ67 -> 1708.79 | M67: =[1]苏州工业园区工业企业技术改造经济效益表!AM67 -> 0 | N67: =IF([1]苏州工业园区工业企业技术改造经济效益表!AN67>=0.7,[1]苏州工业园区工业企业技术改造经济效益表!AM67,0) -> 0 | O67: =IF(IF(K67="A",[1]苏州工业园区工业企业技术改造经济效益表!AJ67*[1]奖补比例!$B$3+N67*[1]奖补比例!$B$5,IF(K67="B",[1]苏州工业园区工业企业技术改造经济效益表!AJ67*[1]奖补比例!$C$3+N67*[1]奖补比例!$C$5,IF(K67="C",[1]苏州工业园区工业企业技术改造经济效益表!AJ67*[1]奖补比例!$D$3+N67*[1]奖补比例!$D$5,[1]苏州工业园区工业企业技术改造经济效益表!AJ67*[1]奖补比例!$E$3+N67*[1]奖补比例!$E$5)))*[1]奖补比例!$G$2>1000,1000,IF(K67="A",[1]苏州工业园区工业企业技术改造经济效益表!AJ67*[1]奖补比例!$B$3+N67*[1]奖补比例!$B$5,IF(K67="B",[1]苏州工业园区工业企业技术改造经济效益表!AJ67*[1]奖补比例!$C$3+N67*[1]奖补比例!$C$5,IF(K67="C",[1]苏州工业园区工业企业技术改造经济效益表!AJ67*[1]奖补比例!$D$3+N67*[1]奖补比例!$D$5,[1]苏州工业园区工业企业技术改造经济效益表!AJ67*[1]奖补比例!$E$3+N67*[1]奖补比例!$E$5)))*[1]奖补比例!$G$2) -> 40.82 | P67: =VLOOKUP(B67,[1]【扣减】省技改综合奖补!$C$2:$E$59,3,0)/10000 -> 20 | Q67: 0 | R67: 0 | S67: =[1]【扣减】人工智能奖补!F66 -> 0 | T67: 0 | U67: =[1]【扣减】投促委!F66 -> 0 | V67: 20.82 | W67: 20.82 | X67: =O67/L67 -> 2.39% | Y67: =IF([1]项目纳统比对表!D67="否","未纳统",IF([1]项目纳统比对表!F67="否","不足500万元","")) -> 未纳统 | AA67: 20.82
A68: 65 | B68: =[1]苏州工业园区工业企业技术改造经济效益表!B68 -> 赛卡电子科技（苏州）有限公司 | C68: =[1]苏州工业园区工业企业技术改造经济效益表!C68 -> 91320594MA1T6QD44H | D68: =[1]经济效益!N68 -> 77.65 | E68: =[1]智能化效益!R68 -> 79.03 | F68: =IF([1]综合素质认定!O68>10,10,[1]综合素质认定!O68) -> 0 | G68: 0 | H68: 0 | I68: 0 | J68: =D68*$D$3+E68*$E$3+F68-G68-H68-I68 -> 70.16 | K68: =IF(J68<[1]奖补比例!$D$2,"D",IF(J68<[1]奖补比例!$C$2,"C",IF(J68<[1]奖补比例!$B$2,"B","A"))) -> B | L68: =[1]苏州工业园区工业企业技术改造经济效益表!AJ68 -> 600.71 | M68: =[1]苏州工业园区工业企业技术改造经济效益表!AM68 -> 96.41 | N68: =IF([1]苏州工业园区工业企业技术改造经济效益表!AN68>=0.7,[1]苏州工业园区工业企业技术改造经济效益表!AM68,0) -> 0 | O68: =IF(IF(K68="A",[1]苏州工业园区工业企业技术改造经济效益表!AJ68*[1]奖补比例!$B$3+N68*[1]奖补比例!$B$5,IF(K68="B",[1]苏州工业园区工业企业技术改造经济效益表!AJ68*[1]奖补比例!$C$3+N68*[1]奖补比例!$C$5,IF(K68="C",[1]苏州工业园区工业企业技术改造经济效益表!AJ68*[1]奖补比例!$D$3+N68*[1]奖补比例!$D$5,[1]苏州工业园区工业企业技术改造经济效益表!AJ68*[1]奖补比例!$E$3+N68*[1]奖补比例!$E$5)))*[1]奖补比例!$G$2>1000,1000,IF(K68="A",[1]苏州工业园区工业企业技术改造经济效益表!AJ68*[1]奖补比例!$B$3+N68*[1]奖补比例!$B$5,IF(K68="B",[1]苏州工业园区工业企业技术改造经济效益表!AJ68*[1]奖补比例!$C$3+N68*[1]奖补比例!$C$5,IF(K68="C",[1]苏州工业园区工业企业技术改造经济效益表!AJ68*[1]奖补比例!$D$3+N68*[1]奖补比例!$D$5,[1]苏州工业园区工业企业技术改造经济效益表!AJ68*[1]奖补比例!$E$3+N68*[1]奖补比例!$E$5)))*[1]奖补比例!$G$2) -> 38.26 | P68: 0 | Q68: 0 | R68: 0 | S68: =[1]【扣减】人工智能奖补!F67 -> 0 | T68: 0 | U68: =[1]【扣减】投促委!F67 -> 0 | V68: 38.26 | W68: =ROUND(V68,2) -> 38.26 | X68: 6.37% | Y68: =IF([1]项目纳统比对表!D68="否","未纳统",IF([1]项目纳统比对表!F68="否","不足500万元","")) ->  | AA68: 38.26
A69: 66 | B69: =[1]苏州工业园区工业企业技术改造经济效益表!B69 -> 三积瑞科技（苏州）有限公司 | C69: =[1]苏州工业园区工业企业技术改造经济效益表!C69 -> 91320594735740050R | D69: =[1]经济效益!N69 -> 74.54 | E69: =[1]智能化效益!R69 -> 73.79 | F69: =IF([1]综合素质认定!O69>10,10,[1]综合素质认定!O69) -> 0 | G69: 0 | H69: 0 | I69: 0 | J69: 66.94 | K69: =IF(J69<[1]奖补比例!$D$2,"D",IF(J69<[1]奖补比例!$C$2,"C",IF(J69<[1]奖补比例!$B$2,"B","A"))) -> B | L69: =[1]苏州工业园区工业企业技术改造经济效益表!AJ69 -> 1156.72 | M69: =[1]苏州工业园区工业企业技术改造经济效益表!AM69 -> 231 | N69: =IF([1]苏州工业园区工业企业技术改造经济效益表!AN69>=0.7,[1]苏州工业园区工业企业技术改造经济效益表!AM69,0) -> 0 | O69: =IF(IF(K69="A",[1]苏州工业园区工业企业技术改造经济效益表!AJ69*[1]奖补比例!$B$3+N69*[1]奖补比例!$B$5,IF(K69="B",[1]苏州工业园区工业企业技术改造经济效益表!AJ69*[1]奖补比例!$C$3+N69*[1]奖补比例!$C$5,IF(K69="C",[1]苏州工业园区工业企业技术改造经济效益表!AJ69*[1]奖补比例!$D$3+N69*[1]奖补比例!$D$5,[1]苏州工业园区工业企业技术改造经济效益表!AJ69*[1]奖补比例!$E$3+N69*[1]奖补比例!$E$5)))*[1]奖补比例!$G$2>1000,1000,IF(K69="A",[1]苏州工业园区工业企业技术改造经济效益表!AJ69*[1]奖补比例!$B$3+N69*[1]奖补比例!$B$5,IF(K69="B",[1]苏州工业园区工业企业技术改造经济效益表!AJ69*[1]奖补比例!$C$3+N69*[1]奖补比例!$C$5,IF(K69="C",[1]苏州工业园区工业企业技术改造经济效益表!AJ69*[1]奖补比例!$D$3+N69*[1]奖补比例!$D$5,[1]苏州工业园区工业企业技术改造经济效益表!AJ69*[1]奖补比例!$E$3+N69*[1]奖补比例!$E$5)))*[1]奖补比例!$G$2) -> 73.68 | P69: 0 | Q69: 0 | R69: 0 | S69: =[1]【扣减】人工智能奖补!F68 -> 0 | T69: 0 | U69: =[1]【扣减】投促委!F68 -> 0 | V69: 73.68 | W69: 73.68 | X69: 6.37% | Y69: =IF([1]项目纳统比对表!D69="否","未纳统",IF([1]项目纳统比对表!F69="否","不足500万元","")) ->  | AA69: 73.68
A70: 67 | B70: =[1]苏州工业园区工业企业技术改造经济效益表!B70 -> 三星电子（苏州）半导体有限公司 | C70: =[1]苏州工业园区工业企业技术改造经济效益表!C70 -> 91320594608197753M | D70: =[1]经济效益!N70 -> 64.56 | E70: =[1]智能化效益!R70 -> 85 | F70: =IF([1]综合素质认定!O70>10,10,[1]综合素质认定!O70) -> 1 | G70: 0 | H70: 0 | I70: 0 | J70: 63.19 | K70: =IF(J70<[1]奖补比例!$D$2,"D",IF(J70<[1]奖补比例!$C$2,"C",IF(J70<[1]奖补比例!$B$2,"B","A"))) -> B | L70: =[1]苏州工业园区工业企业技术改造经济效益表!AJ70 -> 8321.86 | M70: =[1]苏州工业园区工业企业技术改造经济效益表!AM70 -> 0 | N70: =IF([1]苏州工业园区工业企业技术改造经济效益表!AN70>=0.7,[1]苏州工业园区工业企业技术改造经济效益表!AM70,0) -> 0 | O70: =IF(IF(K70="A",[1]苏州工业园区工业企业技术改造经济效益表!AJ70*[1]奖补比例!$B$3+N70*[1]奖补比例!$B$5,IF(K70="B",[1]苏州工业园区工业企业技术改造经济效益表!AJ70*[1]奖补比例!$C$3+N70*[1]奖补比例!$C$5,IF(K70="C",[1]苏州工业园区工业企业技术改造经济效益表!AJ70*[1]奖补比例!$D$3+N70*[1]奖补比例!$D$5,[1]苏州工业园区工业企业技术改造经济效益表!AJ70*[1]奖补比例!$E$3+N70*[1]奖补比例!$E$5)))*[1]奖补比例!$G$2>1000,1000,IF(K70="A",[1]苏州工业园区工业企业技术改造经济效益表!AJ70*[1]奖补比例!$B$3+N70*[1]奖补比例!$B$5,IF(K70="B",[1]苏州工业园区工业企业技术改造经济效益表!AJ70*[1]奖补比例!$C$3+N70*[1]奖补比例!$C$5,IF(K70="C",[1]苏州工业园区工业企业技术改造经济效益表!AJ70*[1]奖补比例!$D$3+N70*[1]奖补比例!$D$5,[1]苏州工业园区工业企业技术改造经济效益表!AJ70*[1]奖补比例!$E$3+N70*[1]奖补比例!$E$5)))*[1]奖补比例!$G$2) -> 530.08 | P70: 0 | Q70: 0 | R70: =VLOOKUP(B70,[1]【扣减】节能改造项目奖补!$B$2:$C$23,2,0) -> 14 | S70: =[1]【扣减】人工智能奖补!F69 -> 0 | T70: 0 | U70: =[1]【扣减】投促委!F69 -> 0 | V70: 516.08 | W70: 516.08 | X70: 6.37% | Y70: =IF([1]项目纳统比对表!D70="否","未纳统",IF([1]项目纳统比对表!F70="否","不足500万元","")) -> 未纳统 | AA70: 516.08
A71: 68 | B71: =[1]苏州工业园区工业企业技术改造经济效益表!B71 -> 胜科纳米（苏州）股份有限公司 | C71: =[1]苏州工业园区工业企业技术改造经济效益表!C71 -> 91320594051861281G | D71: =[1]经济效益!N71 -> 88 | E71: =[1]智能化效益!R71 -> 85 | F71: =IF([1]综合素质认定!O71>10,10,[1]综合素质认定!O71) -> 0 | G71: 0 | H71: 0 | I71: 0 | J71: 78.60 | K71: =IF(J71<[1]奖补比例!$D$2,"D",IF(J71<[1]奖补比例!$C$2,"C",IF(J71<[1]奖补比例!$B$2,"B","A"))) -> B | L71: =[1]苏州工业园区工业企业技术改造经济效益表!AJ71 -> 1753.04 | M71: =[1]苏州工业园区工业企业技术改造经济效益表!AM71 -> 191.09 | N71: =IF([1]苏州工业园区工业企业技术改造经济效益表!AN71>=0.7,[1]苏州工业园区工业企业技术改造经济效益表!AM71,0) -> 0 | O71: =IF(IF(K71="A",[1]苏州工业园区工业企业技术改造经济效益表!AJ71*[1]奖补比例!$B$3+N71*[1]奖补比例!$B$5,IF(K71="B",[1]苏州工业园区工业企业技术改造经济效益表!AJ71*[1]奖补比例!$C$3+N71*[1]奖补比例!$C$5,IF(K71="C",[1]苏州工业园区工业企业技术改造经济效益表!AJ71*[1]奖补比例!$D$3+N71*[1]奖补比例!$D$5,[1]苏州工业园区工业企业技术改造经济效益表!AJ71*[1]奖补比例!$E$3+N71*[1]奖补比例!$E$5)))*[1]奖补比例!$G$2>1000,1000,IF(K71="A",[1]苏州工业园区工业企业技术改造经济效益表!AJ71*[1]奖补比例!$B$3+N71*[1]奖补比例!$B$5,IF(K71="B",[1]苏州工业园区工业企业技术改造经济效益表!AJ71*[1]奖补比例!$C$3+N71*[1]奖补比例!$C$5,IF(K71="C",[1]苏州工业园区工业企业技术改造经济效益表!AJ71*[1]奖补比例!$D$3+N71*[1]奖补比例!$D$5,[1]苏州工业园区工业企业技术改造经济效益表!AJ71*[1]奖补比例!$E$3+N71*[1]奖补比例!$E$5)))*[1]奖补比例!$G$2) -> 111.66 | P71: 0 | Q71: 0 | R71: 0 | S71: =[1]【扣减】人工智能奖补!F70 -> 0 | T71: 0 | U71: =[1]【扣减】投促委!F70 -> 0 | V71: 111.66 | W71: 111.66 | X71: 6.37% | Y71: =IF([1]项目纳统比对表!D71="否","未纳统",IF([1]项目纳统比对表!F71="否","不足500万元","")) ->  | AA71: 111.66
A72: 69 | B72: =[1]苏州工业园区工业企业技术改造经济效益表!B72 -> 石通瑞吉亚太电子（苏州）有限公司 | C72: =[1]苏州工业园区工业企业技术改造经济效益表!C72 -> 91320594778676191H | D72: =[1]经济效益!N72 -> 77.46 | E72: =[1]智能化效益!R72 -> 84.74 | F72: =IF([1]综合素质认定!O72>10,10,[1]综合素质认定!O72) -> 0 | G72: 0 | H72: 0 | I72: 0 | J72: 71.17 | K72: =IF(J72<[1]奖补比例!$D$2,"D",IF(J72<[1]奖补比例!$C$2,"C",IF(J72<[1]奖补比例!$B$2,"B","A"))) -> B | L72: =[1]苏州工业园区工业企业技术改造经济效益表!AJ72 -> 3324.76 | M72: =[1]苏州工业园区工业企业技术改造经济效益表!AM72 -> 296.28 | N72: =IF([1]苏州工业园区工业企业技术改造经济效益表!AN72>=0.7,[1]苏州工业园区工业企业技术改造经济效益表!AM72,0) -> 0 | O72: =IF(IF(K72="A",[1]苏州工业园区工业企业技术改造经济效益表!AJ72*[1]奖补比例!$B$3+N72*[1]奖补比例!$B$5,IF(K72="B",[1]苏州工业园区工业企业技术改造经济效益表!AJ72*[1]奖补比例!$C$3+N72*[1]奖补比例!$C$5,IF(K72="C",[1]苏州工业园区工业企业技术改造经济效益表!AJ72*[1]奖补比例!$D$3+N72*[1]奖补比例!$D$5,[1]苏州工业园区工业企业技术改造经济效益表!AJ72*[1]奖补比例!$E$3+N72*[1]奖补比例!$E$5)))*[1]奖补比例!$G$2>1000,1000,IF(K72="A",[1]苏州工业园区工业企业技术改造经济效益表!AJ72*[1]奖补比例!$B$3+N72*[1]奖补比例!$B$5,IF(K72="B",[1]苏州工业园区工业企业技术改造经济效益表!AJ72*[1]奖补比例!$C$3+N72*[1]奖补比例!$C$5,IF(K72="C",[1]苏州工业园区工业企业技术改造经济效益表!AJ72*[1]奖补比例!$D$3+N72*[1]奖补比例!$D$5,[1]苏州工业园区工业企业技术改造经济效益表!AJ72*[1]奖补比例!$E$3+N72*[1]奖补比例!$E$5)))*[1]奖补比例!$G$2) -> 211.78 | P72: =VLOOKUP(B72,[1]【扣减】省技改综合奖补!$C$2:$E$59,3,0)/10000 -> 15 | Q72: 0 | R72: 0 | S72: =[1]【扣减】人工智能奖补!F71 -> 0 | T72: 0 | U72: =[1]【扣减】投促委!F71 -> 0 | V72: 196.78 | W72: 196.78 | X72: 6.37% | Y72: =IF([1]项目纳统比对表!D72="否","未纳统",IF([1]项目纳统比对表!F72="否","不足500万元","")) -> 未纳统 | AA72: 196.78
A73: 70 | B73: =[1]苏州工业园区工业企业技术改造经济效益表!B73 -> 世达普（苏州）通信设备有限公司 | C73: =[1]苏州工业园区工业企业技术改造经济效益表!C73 -> 913205947665333539 | D73: =[1]经济效益!N73 -> 48.75 | E73: =[1]智能化效益!R73 -> 87.19 | F73: =IF([1]综合素质认定!O73>10,10,[1]综合素质认定!O73) -> 1 | G73: 0 | H73: 0 | I73: 0 | J73: 52.57 | K73: =IF(J73<[1]奖补比例!$D$2,"D",IF(J73<[1]奖补比例!$C$2,"C",IF(J73<[1]奖补比例!$B$2,"B","A"))) -> C | L73: =[1]苏州工业园区工业企业技术改造经济效益表!AJ73 -> 3178.41 | M73: =[1]苏州工业园区工业企业技术改造经济效益表!AM73 -> 22.22 | N73: =IF([1]苏州工业园区工业企业技术改造经济效益表!AN73>=0.7,[1]苏州工业园区工业企业技术改造经济效益表!AM73,0) -> 0 | O73: =IF(IF(K73="A",[1]苏州工业园区工业企业技术改造经济效益表!AJ73*[1]奖补比例!$B$3+N73*[1]奖补比例!$B$5,IF(K73="B",[1]苏州工业园区工业企业技术改造经济效益表!AJ73*[1]奖补比例!$C$3+N73*[1]奖补比例!$C$5,IF(K73="C",[1]苏州工业园区工业企业技术改造经济效益表!AJ73*[1]奖补比例!$D$3+N73*[1]奖补比例!$D$5,[1]苏州工业园区工业企业技术改造经济效益表!AJ73*[1]奖补比例!$E$3+N73*[1]奖补比例!$E$5)))*[1]奖补比例!$G$2>1000,1000,IF(K73="A",[1]苏州工业园区工业企业技术改造经济效益表!AJ73*[1]奖补比例!$B$3+N73*[1]奖补比例!$B$5,IF(K73="B",[1]苏州工业园区工业企业技术改造经济效益表!AJ73*[1]奖补比例!$C$3+N73*[1]奖补比例!$C$5,IF(K73="C",[1]苏州工业园区工业企业技术改造经济效益表!AJ73*[1]奖补比例!$D$3+N73*[1]奖补比例!$D$5,[1]苏州工业园区工业企业技术改造经济效益表!AJ73*[1]奖补比例!$E$3+N73*[1]奖补比例!$E$5)))*[1]奖补比例!$G$2) -> 126.54 | P73: =VLOOKUP(B73,[1]【扣减】省技改综合奖补!$C$2:$E$59,3,0)/10000 -> 46 | Q73: 0 | R73: 0 | S73: =[1]【扣减】人工智能奖补!F72 -> 0 | T73: 0 | U73: =[1]【扣减】投促委!F72 -> 0 | V73: 80.54 | W73: 80.54 | X73: 3.98% | Y73: =IF([1]项目纳统比对表!D73="否","未纳统",IF([1]项目纳统比对表!F73="否","不足500万元","")) ->  | AA73: 80.54
A74: 71 | B74: =[1]苏州工业园区工业企业技术改造经济效益表!B74 -> 舒尔电子（苏州）有限公司 | C74: =[1]苏州工业园区工业企业技术改造经济效益表!C74 -> 91320594762449867T | D74: =[1]经济效益!N74 -> 43.49 | E74: =[1]智能化效益!R74 -> 88.81 | F74: =IF([1]综合素质认定!O74>10,10,[1]综合素质认定!O74) -> 1 | G74: 0 | H74: 0 | I74: 0 | J74: 49.21 | K74: =IF(J74<[1]奖补比例!$D$2,"D",IF(J74<[1]奖补比例!$C$2,"C",IF(J74<[1]奖补比例!$B$2,"B","A"))) -> D | L74: =[1]苏州工业园区工业企业技术改造经济效益表!AJ74 -> 800.75 | M74: =[1]苏州工业园区工业企业技术改造经济效益表!AM74 -> 95.31 | N74: =IF([1]苏州工业园区工业企业技术改造经济效益表!AN74>=0.7,[1]苏州工业园区工业企业技术改造经济效益表!AM74,0) -> 0 | O74: =IF(IF(K74="A",[1]苏州工业园区工业企业技术改造经济效益表!AJ74*[1]奖补比例!$B$3+N74*[1]奖补比例!$B$5,IF(K74="B",[1]苏州工业园区工业企业技术改造经济效益表!AJ74*[1]奖补比例!$C$3+N74*[1]奖补比例!$C$5,IF(K74="C",[1]苏州工业园区工业企业技术改造经济效益表!AJ74*[1]奖补比例!$D$3+N74*[1]奖补比例!$D$5,[1]苏州工业园区工业企业技术改造经济效益表!AJ74*[1]奖补比例!$E$3+N74*[1]奖补比例!$E$5)))*[1]奖补比例!$G$2>1000,1000,IF(K74="A",[1]苏州工业园区工业企业技术改造经济效益表!AJ74*[1]奖补比例!$B$3+N74*[1]奖补比例!$B$5,IF(K74="B",[1]苏州工业园区工业企业技术改造经济效益表!AJ74*[1]奖补比例!$C$3+N74*[1]奖补比例!$C$5,IF(K74="C",[1]苏州工业园区工业企业技术改造经济效益表!AJ74*[1]奖补比例!$D$3+N74*[1]奖补比例!$D$5,[1]苏州工业园区工业企业技术改造经济效益表!AJ74*[1]奖补比例!$E$3+N74*[1]奖补比例!$E$5)))*[1]奖补比例!$G$2) -> 19.13 | P74: 0 | Q74: 0 | R74: 0 | S74: =[1]【扣减】人工智能奖补!F73 -> 0 | T74: 0 | U74: =[1]【扣减】投促委!F73 -> 0 | V74: 19.13 | W74: 19.13 | X74: 2.39% | Y74: =IF([1]项目纳统比对表!D74="否","未纳统",IF([1]项目纳统比对表!F74="否","不足500万元","")) ->  | AA74: 19.13
A75: 72 | B75: =[1]苏州工业园区工业企业技术改造经济效益表!B75 -> 丝艾产品标识（苏州）有限公司 | C75: =[1]苏州工业园区工业企业技术改造经济效益表!C75 -> 913205946082293488 | D75: =[1]经济效益!N75 -> 69.66 | E75: =[1]智能化效益!R75 -> 79.70 | F75: =IF([1]综合素质认定!O75>10,10,[1]综合素质认定!O75) -> 0 | G75: 0 | H75: 0 | I75: 0 | J75: 64.70 | K75: =IF(J75<[1]奖补比例!$D$2,"D",IF(J75<[1]奖补比例!$C$2,"C",IF(J75<[1]奖补比例!$B$2,"B","A"))) -> B | L75: =[1]苏州工业园区工业企业技术改造经济效益表!AJ75 -> 1531.3646 | M75: =[1]苏州工业园区工业企业技术改造经济效益表!AM75 -> 0 | N75: =IF([1]苏州工业园区工业企业技术改造经济效益表!AN75>=0.7,[1]苏州工业园区工业企业技术改造经济效益表!AM75,0) -> 0 | O75: =IF(IF(K75="A",[1]苏州工业园区工业企业技术改造经济效益表!AJ75*[1]奖补比例!$B$3+N75*[1]奖补比例!$B$5,IF(K75="B",[1]苏州工业园区工业企业技术改造经济效益表!AJ75*[1]奖补比例!$C$3+N75*[1]奖补比例!$C$5,IF(K75="C",[1]苏州工业园区工业企业技术改造经济效益表!AJ75*[1]奖补比例!$D$3+N75*[1]奖补比例!$D$5,[1]苏州工业园区工业企业技术改造经济效益表!AJ75*[1]奖补比例!$E$3+N75*[1]奖补比例!$E$5)))*[1]奖补比例!$G$2>1000,1000,IF(K75="A",[1]苏州工业园区工业企业技术改造经济效益表!AJ75*[1]奖补比例!$B$3+N75*[1]奖补比例!$B$5,IF(K75="B",[1]苏州工业园区工业企业技术改造经济效益表!AJ75*[1]奖补比例!$C$3+N75*[1]奖补比例!$C$5,IF(K75="C",[1]苏州工业园区工业企业技术改造经济效益表!AJ75*[1]奖补比例!$D$3+N75*[1]奖补比例!$D$5,[1]苏州工业园区工业企业技术改造经济效益表!AJ75*[1]奖补比例!$E$3+N75*[1]奖补比例!$E$5)))*[1]奖补比例!$G$2) -> 97.54 | P75: =VLOOKUP(B75,[1]【扣减】省技改综合奖补!$C$2:$E$59,3,0)/10000 -> 15 | Q75: 0 | R75: 0 | S75: =[1]【扣减】人工智能奖补!F74 -> 0 | T75: 0 | U75: =[1]【扣减】投促委!F74 -> 0 | V75: 82.54 | W75: 82.54 | X75: 6.37% | Y75: =IF([1]项目纳统比对表!D75="否","未纳统",IF([1]项目纳统比对表!F75="否","不足500万元","")) ->  | AA75: 82.54
A76: 73 | B76: =[1]苏州工业园区工业企业技术改造经济效益表!B76 -> 斯凯菲尔电子（苏州）有限公司 | C76: =[1]苏州工业园区工业企业技术改造经济效益表!C76 -> 91320594713244603F | D76: =[1]经济效益!N76 -> 20.32 | E76: =[1]智能化效益!R76 -> 90 | F76: =IF([1]综合素质认定!O76>10,10,[1]综合素质认定!O76) -> 0 | G76: 0 | H76: 0 | I76: 0 | J76: 32.23 | K76: =IF(J76<[1]奖补比例!$D$2,"D",IF(J76<[1]奖补比例!$C$2,"C",IF(J76<[1]奖补比例!$B$2,"B","A"))) -> D | L76: =[1]苏州工业园区工业企业技术改造经济效益表!AJ76 -> 465 | M76: =[1]苏州工业园区工业企业技术改造经济效益表!AM76 -> 0 | N76: =IF([1]苏州工业园区工业企业技术改造经济效益表!AN76>=0.7,[1]苏州工业园区工业企业技术改造经济效益表!AM76,0) -> 0 | O76: =IF(IF(K76="A",[1]苏州工业园区工业企业技术改造经济效益表!AJ76*[1]奖补比例!$B$3+N76*[1]奖补比例!$B$5,IF(K76="B",[1]苏州工业园区工业企业技术改造经济效益表!AJ76*[1]奖补比例!$C$3+N76*[1]奖补比例!$C$5,IF(K76="C",[1]苏州工业园区工业企业技术改造经济效益表!AJ76*[1]奖补比例!$D$3+N76*[1]奖补比例!$D$5,[1]苏州工业园区工业企业技术改造经济效益表!AJ76*[1]奖补比例!$E$3+N76*[1]奖补比例!$E$5)))*[1]奖补比例!$G$2>1000,1000,IF(K76="A",[1]苏州工业园区工业企业技术改造经济效益表!AJ76*[1]奖补比例!$B$3+N76*[1]奖补比例!$B$5,IF(K76="B",[1]苏州工业园区工业企业技术改造经济效益表!AJ76*[1]奖补比例!$C$3+N76*[1]奖补比例!$C$5,IF(K76="C",[1]苏州工业园区工业企业技术改造经济效益表!AJ76*[1]奖补比例!$D$3+N76*[1]奖补比例!$D$5,[1]苏州工业园区工业企业技术改造经济效益表!AJ76*[1]奖补比例!$E$3+N76*[1]奖补比例!$E$5)))*[1]奖补比例!$G$2) -> 11.11 | P76: 0 | Q76: 0 | R76: 0 | S76: =[1]【扣减】人工智能奖补!F75 -> 0 | T76: 0 | U76: =[1]【扣减】投促委!F75 -> 0 | V76: 11.11 | W76: 11.11 | X76: 2.39% | Y76: =IF([1]项目纳统比对表!D76="否","未纳统",IF([1]项目纳统比对表!F76="否","不足500万元","")) ->  | AA76: 11.11
A77: 74 | B77: =[1]苏州工业园区工业企业技术改造经济效益表!B77 -> 苏州UL美华认证有限公司 | C77: =[1]苏州工业园区工业企业技术改造经济效益表!C77 -> 9132059471093641XU | D77: =[1]经济效益!N77 -> 66 | E77: =[1]智能化效益!R77 -> 70 | F77: =IF([1]综合素质认定!O77>10,10,[1]综合素质认定!O77) -> 0 | G77: 0 | H77: 0 | I77: 0 | J77: 60.20 | K77: =IF(J77<[1]奖补比例!$D$2,"D",IF(J77<[1]奖补比例!$C$2,"C",IF(J77<[1]奖补比例!$B$2,"B","A"))) -> B | L77: =[1]苏州工业园区工业企业技术改造经济效益表!AJ77 -> 822.37 | M77: =[1]苏州工业园区工业企业技术改造经济效益表!AM77 -> 11.10 | N77: =IF([1]苏州工业园区工业企业技术改造经济效益表!AN77>=0.7,[1]苏州工业园区工业企业技术改造经济效益表!AM77,0) -> 0 | O77: =IF(IF(K77="A",[1]苏州工业园区工业企业技术改造经济效益表!AJ77*[1]奖补比例!$B$3+N77*[1]奖补比例!$B$5,IF(K77="B",[1]苏州工业园区工业企业技术改造经济效益表!AJ77*[1]奖补比例!$C$3+N77*[1]奖补比例!$C$5,IF(K77="C",[1]苏州工业园区工业企业技术改造经济效益表!AJ77*[1]奖补比例!$D$3+N77*[1]奖补比例!$D$5,[1]苏州工业园区工业企业技术改造经济效益表!AJ77*[1]奖补比例!$E$3+N77*[1]奖补比例!$E$5)))*[1]奖补比例!$G$2>1000,1000,IF(K77="A",[1]苏州工业园区工业企业技术改造经济效益表!AJ77*[1]奖补比例!$B$3+N77*[1]奖补比例!$B$5,IF(K77="B",[1]苏州工业园区工业企业技术改造经济效益表!AJ77*[1]奖补比例!$C$3+N77*[1]奖补比例!$C$5,IF(K77="C",[1]苏州工业园区工业企业技术改造经济效益表!AJ77*[1]奖补比例!$D$3+N77*[1]奖补比例!$D$5,[1]苏州工业园区工业企业技术改造经济效益表!AJ77*[1]奖补比例!$E$3+N77*[1]奖补比例!$E$5)))*[1]奖补比例!$G$2) -> 52.38 | P77: 0 | Q77: 0 | R77: 0 | S77: =[1]【扣减】人工智能奖补!F76 -> 0 | T77: 0 | U77: =[1]【扣减】投促委!F76 -> 279.16 | V77: 0 | W77: 0.00 | X77: 6.37% | Y77: =IF([1]项目纳统比对表!D77="否","未纳统",IF([1]项目纳统比对表!F77="否","不足500万元","")) -> 未纳统 | AA77: 0.00
A78: 75 | B78: =[1]苏州工业园区工业企业技术改造经济效益表!B78 -> 苏州阿诺精密切削技术有限公司 | C78: =[1]苏州工业园区工业企业技术改造经济效益表!C78 -> 9132000073441427XR | D78: =[1]经济效益!N78 -> 77.48 | E78: =[1]智能化效益!R78 -> 79.97 | F78: =IF([1]综合素质认定!O78>10,10,[1]综合素质认定!O78) -> 2 | G78: 0 | H78: 0 | I78: 0 | J78: 72.23 | K78: =IF(J78<[1]奖补比例!$D$2,"D",IF(J78<[1]奖补比例!$C$2,"C",IF(J78<[1]奖补比例!$B$2,"B","A"))) -> B | L78: =[1]苏州工业园区工业企业技术改造经济效益表!AJ78 -> 1723.67 | M78: =[1]苏州工业园区工业企业技术改造经济效益表!AM78 -> 0 | N78: =IF([1]苏州工业园区工业企业技术改造经济效益表!AN78>=0.7,[1]苏州工业园区工业企业技术改造经济效益表!AM78,0) -> 0 | O78: =IF(IF(K78="A",[1]苏州工业园区工业企业技术改造经济效益表!AJ78*[1]奖补比例!$B$3+N78*[1]奖补比例!$B$5,IF(K78="B",[1]苏州工业园区工业企业技术改造经济效益表!AJ78*[1]奖补比例!$C$3+N78*[1]奖补比例!$C$5,IF(K78="C",[1]苏州工业园区工业企业技术改造经济效益表!AJ78*[1]奖补比例!$D$3+N78*[1]奖补比例!$D$5,[1]苏州工业园区工业企业技术改造经济效益表!AJ78*[1]奖补比例!$E$3+N78*[1]奖补比例!$E$5)))*[1]奖补比例!$G$2>1000,1000,IF(K78="A",[1]苏州工业园区工业企业技术改造经济效益表!AJ78*[1]奖补比例!$B$3+N78*[1]奖补比例!$B$5,IF(K78="B",[1]苏州工业园区工业企业技术改造经济效益表!AJ78*[1]奖补比例!$C$3+N78*[1]奖补比例!$C$5,IF(K78="C",[1]苏州工业园区工业企业技术改造经济效益表!AJ78*[1]奖补比例!$D$3+N78*[1]奖补比例!$D$5,[1]苏州工业园区工业企业技术改造经济效益表!AJ78*[1]奖补比例!$E$3+N78*[1]奖补比例!$E$5)))*[1]奖补比例!$G$2) -> 109.79 | P78: =VLOOKUP(B78,[1]【扣减】省技改综合奖补!$C$2:$E$59,3,0)/10000 -> 15 | Q78: 0 | R78: 0 | S78: =[1]【扣减】人工智能奖补!F77 -> 0 | T78: 0 | U78: =[1]【扣减】投促委!F77 -> 0 | V78: 94.79 | W78: 94.79 | X78: 6.37% | Y78: =IF([1]项目纳统比对表!D78="否","未纳统",IF([1]项目纳统比对表!F78="否","不足500万元","")) ->  | AA78: 94.79
A79: 76 | B79: =[1]苏州工业园区工业企业技术改造经济效益表!B79 -> 苏州阿诺医疗器械有限公司 | C79: =[1]苏州工业园区工业企业技术改造经济效益表!C79 -> 91320594MA1WNQ3M38 | D79: =[1]经济效益!N79 -> 61.83 | E79: =[1]智能化效益!R79 -> 87.21 | F79: =IF([1]综合素质认定!O79>10,10,[1]综合素质认定!O79) -> 0 | G79: 0 | H79: 0 | I79: 0 | J79: 60.72 | K79: =IF(J79<[1]奖补比例!$D$2,"D",IF(J79<[1]奖补比例!$C$2,"C",IF(J79<[1]奖补比例!$B$2,"B","A"))) -> B | L79: =[1]苏州工业园区工业企业技术改造经济效益表!AJ79 -> 612.416052 | M79: =[1]苏州工业园区工业企业技术改造经济效益表!AM79 -> 321.18 | N79: =IF([1]苏州工业园区工业企业技术改造经济效益表!AN79>=0.7,[1]苏州工业园区工业企业技术改造经济效益表!AM79,0) -> 0 | O79: =IF(IF(K79="A",[1]苏州工业园区工业企业技术改造经济效益表!AJ79*[1]奖补比例!$B$3+N79*[1]奖补比例!$B$5,IF(K79="B",[1]苏州工业园区工业企业技术改造经济效益表!AJ79*[1]奖补比例!$C$3+N79*[1]奖补比例!$C$5,IF(K79="C",[1]苏州工业园区工业企业技术改造经济效益表!AJ79*[1]奖补比例!$D$3+N79*[1]奖补比例!$D$5,[1]苏州工业园区工业企业技术改造经济效益表!AJ79*[1]奖补比例!$E$3+N79*[1]奖补比例!$E$5)))*[1]奖补比例!$G$2>1000,1000,IF(K79="A",[1]苏州工业园区工业企业技术改造经济效益表!AJ79*[1]奖补比例!$B$3+N79*[1]奖补比例!$B$5,IF(K79="B",[1]苏州工业园区工业企业技术改造经济效益表!AJ79*[1]奖补比例!$C$3+N79*[1]奖补比例!$C$5,IF(K79="C",[1]苏州工业园区工业企业技术改造经济效益表!AJ79*[1]奖补比例!$D$3+N79*[1]奖补比例!$D$5,[1]苏州工业园区工业企业技术改造经济效益表!AJ79*[1]奖补比例!$E$3+N79*[1]奖补比例!$E$5)))*[1]奖补比例!$G$2) -> 39.01 | P79: 0 | Q79: 0 | R79: 0 | S79: =[1]【扣减】人工智能奖补!F78 -> 0 | T79: 0 | U79: =[1]【扣减】投促委!F78 -> 0 | V79: 39.01 | W79: 39.01 | X79: 6.37% | Y79: =IF([1]项目纳统比对表!D79="否","未纳统",IF([1]项目纳统比对表!F79="否","不足500万元","")) -> 未纳统 | AA79: 39.01
A80: 77 | B80: =[1]苏州工业园区工业企业技术改造经济效益表!B80 -> 苏州碧迪医疗器械有限公司 | C80: =[1]苏州工业园区工业企业技术改造经济效益表!C80 -> 9132059460819806XN | D80: =[1]经济效益!N80 -> 45 | E80: =[1]智能化效益!R80 -> 90 | F80: =IF([1]综合素质认定!O80>10,10,[1]综合素质认定!O80) -> 10 | G80: 0 | H80: 0 | I80: 0 | J80: 59.50 | K80: =IF(J80<[1]奖补比例!$D$2,"D",IF(J80<[1]奖补比例!$C$2,"C",IF(J80<[1]奖补比例!$B$2,"B","A"))) -> C | L80: =[1]苏州工业园区工业企业技术改造经济效益表!AJ80 -> 3000.5 | M80: =[1]苏州工业园区工业企业技术改造经济效益表!AM80 -> 0 | N80: =IF([1]苏州工业园区工业企业技术改造经济效益表!AN80>=0.7,[1]苏州工业园区工业企业技术改造经济效益表!AM80,0) -> 0 | O80: =IF(IF(K80="A",[1]苏州工业园区工业企业技术改造经济效益表!AJ80*[1]奖补比例!$B$3+N80*[1]奖补比例!$B$5,IF(K80="B",[1]苏州工业园区工业企业技术改造经济效益表!AJ80*[1]奖补比例!$C$3+N80*[1]奖补比例!$C$5,IF(K80="C",[1]苏州工业园区工业企业技术改造经济效益表!AJ80*[1]奖补比例!$D$3+N80*[1]奖补比例!$D$5,[1]苏州工业园区工业企业技术改造经济效益表!AJ80*[1]奖补比例!$E$3+N80*[1]奖补比例!$E$5)))*[1]奖补比例!$G$2>1000,1000,IF(K80="A",[1]苏州工业园区工业企业技术改造经济效益表!AJ80*[1]奖补比例!$B$3+N80*[1]奖补比例!$B$5,IF(K80="B",[1]苏州工业园区工业企业技术改造经济效益表!AJ80*[1]奖补比例!$C$3+N80*[1]奖补比例!$C$5,IF(K80="C",[1]苏州工业园区工业企业技术改造经济效益表!AJ80*[1]奖补比例!$D$3+N80*[1]奖补比例!$D$5,[1]苏州工业园区工业企业技术改造经济效益表!AJ80*[1]奖补比例!$E$3+N80*[1]奖补比例!$E$5)))*[1]奖补比例!$G$2) -> 119.45 | P80: 0 | Q80: 0 | R80: 0 | S80: =[1]【扣减】人工智能奖补!F79 -> 0 | T80: 0 | U80: =[1]【扣减】投促委!F79 -> 1354 | V80: 0 | W80: 0.00 | X80: 3.98% | Y80: =IF([1]项目纳统比对表!D80="否","未纳统",IF([1]项目纳统比对表!F80="否","不足500万元","")) ->  | AA80: 0.00
A81: 78 | B81: =[1]苏州工业园区工业企业技术改造经济效益表!B81 -> 苏州春兴精工股份有限公司 | C81: =[1]苏州工业园区工业企业技术改造经济效益表!C81 -> 91320000832592061P | D81: =[1]经济效益!N81 -> 43.55 | E81: =[1]智能化效益!R81 -> 81.03 | F81: =IF([1]综合素质认定!O81>10,10,[1]综合素质认定!O81) -> 4 | G81: 0 | H81: 0 | I81: 0 | J81: 50.69 | K81: =IF(J81<[1]奖补比例!$D$2,"D",IF(J81<[1]奖补比例!$C$2,"C",IF(J81<[1]奖补比例!$B$2,"B","A"))) -> C | L81: =[1]苏州工业园区工业企业技术改造经济效益表!AJ81 -> 663.64 | M81: =[1]苏州工业园区工业企业技术改造经济效益表!AM81 -> 0 | N81: =IF([1]苏州工业园区工业企业技术改造经济效益表!AN81>=0.7,[1]苏州工业园区工业企业技术改造经济效益表!AM81,0) -> 0 | O81: =IF(IF(K81="A",[1]苏州工业园区工业企业技术改造经济效益表!AJ81*[1]奖补比例!$B$3+N81*[1]奖补比例!$B$5,IF(K81="B",[1]苏州工业园区工业企业技术改造经济效益表!AJ81*[1]奖补比例!$C$3+N81*[1]奖补比例!$C$5,IF(K81="C",[1]苏州工业园区工业企业技术改造经济效益表!AJ81*[1]奖补比例!$D$3+N81*[1]奖补比例!$D$5,[1]苏州工业园区工业企业技术改造经济效益表!AJ81*[1]奖补比例!$E$3+N81*[1]奖补比例!$E$5)))*[1]奖补比例!$G$2>1000,1000,IF(K81="A",[1]苏州工业园区工业企业技术改造经济效益表!AJ81*[1]奖补比例!$B$3+N81*[1]奖补比例!$B$5,IF(K81="B",[1]苏州工业园区工业企业技术改造经济效益表!AJ81*[1]奖补比例!$C$3+N81*[1]奖补比例!$C$5,IF(K81="C",[1]苏州工业园区工业企业技术改造经济效益表!AJ81*[1]奖补比例!$D$3+N81*[1]奖补比例!$D$5,[1]苏州工业园区工业企业技术改造经济效益表!AJ81*[1]奖补比例!$E$3+N81*[1]奖补比例!$E$5)))*[1]奖补比例!$G$2) -> 26.42 | P81: 0 | Q81: 0 | R81: 0 | S81: =[1]【扣减】人工智能奖补!F80 -> 0 | T81: 0 | U81: =[1]【扣减】投促委!F80 -> 0 | V81: 26.42 | W81: 26.42 | X81: 3.98% | Y81: =IF([1]项目纳统比对表!D81="否","未纳统",IF([1]项目纳统比对表!F81="否","不足500万元","")) ->  | AA81: 26.42
A82: 79 | B82: =[1]苏州工业园区工业企业技术改造经济效益表!B82 -> 苏州德斯倍电子有限公司 | C82: =[1]苏州工业园区工业企业技术改造经济效益表!C82 -> 91320594MA1Y79R715 | D82: =[1]经济效益!N82 -> 68 | E82: =[1]智能化效益!R82 -> 90 | F82: =IF([1]综合素质认定!O82>10,10,[1]综合素质认定!O82) -> 0 | G82: 0 | H82: 0 | I82: 0 | J82: 65.60 | K82: =IF(J82<[1]奖补比例!$D$2,"D",IF(J82<[1]奖补比例!$C$2,"C",IF(J82<[1]奖补比例!$B$2,"B","A"))) -> B | L82: =[1]苏州工业园区工业企业技术改造经济效益表!AJ82 -> 1787.17 | M82: =[1]苏州工业园区工业企业技术改造经济效益表!AM82 -> 590.98 | N82: =IF([1]苏州工业园区工业企业技术改造经济效益表!AN82>=0.7,[1]苏州工业园区工业企业技术改造经济效益表!AM82,0) -> 0 | O82: =IF(IF(K82="A",[1]苏州工业园区工业企业技术改造经济效益表!AJ82*[1]奖补比例!$B$3+N82*[1]奖补比例!$B$5,IF(K82="B",[1]苏州工业园区工业企业技术改造经济效益表!AJ82*[1]奖补比例!$C$3+N82*[1]奖补比例!$C$5,IF(K82="C",[1]苏州工业园区工业企业技术改造经济效益表!AJ82*[1]奖补比例!$D$3+N82*[1]奖补比例!$D$5,[1]苏州工业园区工业企业技术改造经济效益表!AJ82*[1]奖补比例!$E$3+N82*[1]奖补比例!$E$5)))*[1]奖补比例!$G$2>1000,1000,IF(K82="A",[1]苏州工业园区工业企业技术改造经济效益表!AJ82*[1]奖补比例!$B$3+N82*[1]奖补比例!$B$5,IF(K82="B",[1]苏州工业园区工业企业技术改造经济效益表!AJ82*[1]奖补比例!$C$3+N82*[1]奖补比例!$C$5,IF(K82="C",[1]苏州工业园区工业企业技术改造经济效益表!AJ82*[1]奖补比例!$D$3+N82*[1]奖补比例!$D$5,[1]苏州工业园区工业企业技术改造经济效益表!AJ82*[1]奖补比例!$E$3+N82*[1]奖补比例!$E$5)))*[1]奖补比例!$G$2) -> 113.84 | P82: 0 | Q82: 0 | R82: 0 | S82: =[1]【扣减】人工智能奖补!F81 -> 0 | T82: 0 | U82: =[1]【扣减】投促委!F81 -> 0 | V82: 113.84 | W82: 113.84 | X82: 6.37% | Y82: =IF([1]项目纳统比对表!D82="否","未纳统",IF([1]项目纳统比对表!F82="否","不足500万元","")) -> 未纳统 | AA82: 113.84
A83: 80 | B83: =[1]苏州工业园区工业企业技术改造经济效益表!B83 -> 苏州东辉光学有限公司 | C83: =[1]苏州工业园区工业企业技术改造经济效益表!C83 -> 91320594672010084A | D83: =[1]经济效益!N83 -> 75.93 | E83: =[1]智能化效益!R83 -> 90 | F83: =IF([1]综合素质认定!O83>10,10,[1]综合素质认定!O83) -> 1 | G83: 0 | H83: 0 | I83: 0 | J83: 72.15 | K83: =IF(J83<[1]奖补比例!$D$2,"D",IF(J83<[1]奖补比例!$C$2,"C",IF(J83<[1]奖补比例!$B$2,"B","A"))) -> B | L83: =[1]苏州工业园区工业企业技术改造经济效益表!AJ83 -> 961.26 | M83: =[1]苏州工业园区工业企业技术改造经济效益表!AM83 -> 13.39 | N83: =IF([1]苏州工业园区工业企业技术改造经济效益表!AN83>=0.7,[1]苏州工业园区工业企业技术改造经济效益表!AM83,0) -> 0 | O83: =IF(IF(K83="A",[1]苏州工业园区工业企业技术改造经济效益表!AJ83*[1]奖补比例!$B$3+N83*[1]奖补比例!$B$5,IF(K83="B",[1]苏州工业园区工业企业技术改造经济效益表!AJ83*[1]奖补比例!$C$3+N83*[1]奖补比例!$C$5,IF(K83="C",[1]苏州工业园区工业企业技术改造经济效益表!AJ83*[1]奖补比例!$D$3+N83*[1]奖补比例!$D$5,[1]苏州工业园区工业企业技术改造经济效益表!AJ83*[1]奖补比例!$E$3+N83*[1]奖补比例!$E$5)))*[1]奖补比例!$G$2>1000,1000,IF(K83="A",[1]苏州工业园区工业企业技术改造经济效益表!AJ83*[1]奖补比例!$B$3+N83*[1]奖补比例!$B$5,IF(K83="B",[1]苏州工业园区工业企业技术改造经济效益表!AJ83*[1]奖补比例!$C$3+N83*[1]奖补比例!$C$5,IF(K83="C",[1]苏州工业园区工业企业技术改造经济效益表!AJ83*[1]奖补比例!$D$3+N83*[1]奖补比例!$D$5,[1]苏州工业园区工业企业技术改造经济效益表!AJ83*[1]奖补比例!$E$3+N83*[1]奖补比例!$E$5)))*[1]奖补比例!$G$2) -> 61.23 | P83: 0 | Q83: 0 | R83: 0 | S83: =[1]【扣减】人工智能奖补!F82 -> 0 | T83: 0 | U83: =[1]【扣减】投促委!F82 -> 0 | V83: 61.23 | W83: 61.23 | X83: 6.37% | Y83: =IF([1]项目纳统比对表!D83="否","未纳统",IF([1]项目纳统比对表!F83="否","不足500万元","")) ->  | AA83: 61.23
A84: 81 | B84: =[1]苏州工业园区工业企业技术改造经济效益表!B84 -> 苏州恩都法汽车系统有限公司 | C84: =[1]苏州工业园区工业企业技术改造经济效益表!C84 -> 91320594MA1MPXL923 | D84: =[1]经济效益!N84 -> 75.05 | E84: =[1]智能化效益!R84 -> 91.97 | F84: =IF([1]综合素质认定!O84>10,10,[1]综合素质认定!O84) -> 0 | G84: 0 | H84: 0 | I84: 0 | J84: 70.93 | K84: =IF(J84<[1]奖补比例!$D$2,"D",IF(J84<[1]奖补比例!$C$2,"C",IF(J84<[1]奖补比例!$B$2,"B","A"))) -> B | L84: =[1]苏州工业园区工业企业技术改造经济效益表!AJ84 -> 546.01 | M84: =[1]苏州工业园区工业企业技术改造经济效益表!AM84 -> 187.51 | N84: =IF([1]苏州工业园区工业企业技术改造经济效益表!AN84>=0.7,[1]苏州工业园区工业企业技术改造经济效益表!AM84,0) -> 0 | O84: =IF(IF(K84="A",[1]苏州工业园区工业企业技术改造经济效益表!AJ84*[1]奖补比例!$B$3+N84*[1]奖补比例!$B$5,IF(K84="B",[1]苏州工业园区工业企业技术改造经济效益表!AJ84*[1]奖补比例!$C$3+N84*[1]奖补比例!$C$5,IF(K84="C",[1]苏州工业园区工业企业技术改造经济效益表!AJ84*[1]奖补比例!$D$3+N84*[1]奖补比例!$D$5,[1]苏州工业园区工业企业技术改造经济效益表!AJ84*[1]奖补比例!$E$3+N84*[1]奖补比例!$E$5)))*[1]奖补比例!$G$2>1000,1000,IF(K84="A",[1]苏州工业园区工业企业技术改造经济效益表!AJ84*[1]奖补比例!$B$3+N84*[1]奖补比例!$B$5,IF(K84="B",[1]苏州工业园区工业企业技术改造经济效益表!AJ84*[1]奖补比例!$C$3+N84*[1]奖补比例!$C$5,IF(K84="C",[1]苏州工业园区工业企业技术改造经济效益表!AJ84*[1]奖补比例!$D$3+N84*[1]奖补比例!$D$5,[1]苏州工业园区工业企业技术改造经济效益表!AJ84*[1]奖补比例!$E$3+N84*[1]奖补比例!$E$5)))*[1]奖补比例!$G$2) -> 34.78 | P84: 0 | Q84: 0 | R84: 0 | S84: =[1]【扣减】人工智能奖补!F83 -> 0 | T84: 0 | U84: =[1]【扣减】投促委!F83 -> 0 | V84: 34.78 | W84: 34.78 | X84: 6.37% | Y84: =IF([1]项目纳统比对表!D84="否","未纳统",IF([1]项目纳统比对表!F84="否","不足500万元","")) -> 未纳统 | AA84: 34.78
A85: 82 | B85: =[1]苏州工业园区工业企业技术改造经济效益表!B85 -> 苏州富莱克精密工具有限公司 | C85: =[1]苏州工业园区工业企业技术改造经济效益表!C85 -> 91320594672023221K | D85: =[1]经济效益!N85 -> 49.72 | E85: =[1]智能化效益!R85 -> 90 | F85: =IF([1]综合素质认定!O85>10,10,[1]综合素质认定!O85) -> 0 | G85: 0 | H85: 0 | I85: 0 | J85: 52.80 | K85: =IF(J85<[1]奖补比例!$D$2,"D",IF(J85<[1]奖补比例!$C$2,"C",IF(J85<[1]奖补比例!$B$2,"B","A"))) -> C | L85: =[1]苏州工业园区工业企业技术改造经济效益表!AJ85 -> 551.96 | M85: =[1]苏州工业园区工业企业技术改造经济效益表!AM85 -> 0 | N85: =IF([1]苏州工业园区工业企业技术改造经济效益表!AN85>=0.7,[1]苏州工业园区工业企业技术改造经济效益表!AM85,0) -> 0 | O85: =IF(IF(K85="A",[1]苏州工业园区工业企业技术改造经济效益表!AJ85*[1]奖补比例!$B$3+N85*[1]奖补比例!$B$5,IF(K85="B",[1]苏州工业园区工业企业技术改造经济效益表!AJ85*[1]奖补比例!$C$3+N85*[1]奖补比例!$C$5,IF(K85="C",[1]苏州工业园区工业企业技术改造经济效益表!AJ85*[1]奖补比例!$D$3+N85*[1]奖补比例!$D$5,[1]苏州工业园区工业企业技术改造经济效益表!AJ85*[1]奖补比例!$E$3+N85*[1]奖补比例!$E$5)))*[1]奖补比例!$G$2>1000,1000,IF(K85="A",[1]苏州工业园区工业企业技术改造经济效益表!AJ85*[1]奖补比例!$B$3+N85*[1]奖补比例!$B$5,IF(K85="B",[1]苏州工业园区工业企业技术改造经济效益表!AJ85*[1]奖补比例!$C$3+N85*[1]奖补比例!$C$5,IF(K85="C",[1]苏州工业园区工业企业技术改造经济效益表!AJ85*[1]奖补比例!$D$3+N85*[1]奖补比例!$D$5,[1]苏州工业园区工业企业技术改造经济效益表!AJ85*[1]奖补比例!$E$3+N85*[1]奖补比例!$E$5)))*[1]奖补比例!$G$2) -> 21.97 | P85: 0 | Q85: 0 | R85: 0 | S85: =[1]【扣减】人工智能奖补!F84 -> 0 | T85: 0 | U85: =[1]【扣减】投促委!F84 -> 0 | V85: 21.97 | W85: 21.97 | X85: 3.98% | Y85: =IF([1]项目纳统比对表!D85="否","未纳统",IF([1]项目纳统比对表!F85="否","不足500万元","")) -> 未纳统 | AA85: 21.97
A86: 83 | B86: =[1]苏州工业园区工业企业技术改造经济效益表!B86 -> 苏州工业园区久泰精密电子有限公司 | C86: =[1]苏州工业园区工业企业技术改造经济效益表!C86 -> 9132059474624006X0 | D86: =[1]经济效益!N86 -> 70.58 | E86: =[1]智能化效益!R86 -> 88 | F86: =IF([1]综合素质认定!O86>10,10,[1]综合素质认定!O86) -> 0 | G86: 0 | H86: 0 | I86: 0 | J86: 67.00 | K86: =IF(J86<[1]奖补比例!$D$2,"D",IF(J86<[1]奖补比例!$C$2,"C",IF(J86<[1]奖补比例!$B$2,"B","A"))) -> B | L86: =[1]苏州工业园区工业企业技术改造经济效益表!AJ86 -> 3601.35 | M86: =[1]苏州工业园区工业企业技术改造经济效益表!AM86 -> 0 | N86: =IF([1]苏州工业园区工业企业技术改造经济效益表!AN86>=0.7,[1]苏州工业园区工业企业技术改造经济效益表!AM86,0) -> 0 | O86: =IF(IF(K86="A",[1]苏州工业园区工业企业技术改造经济效益表!AJ86*[1]奖补比例!$B$3+N86*[1]奖补比例!$B$5,IF(K86="B",[1]苏州工业园区工业企业技术改造经济效益表!AJ86*[1]奖补比例!$C$3+N86*[1]奖补比例!$C$5,IF(K86="C",[1]苏州工业园区工业企业技术改造经济效益表!AJ86*[1]奖补比例!$D$3+N86*[1]奖补比例!$D$5,[1]苏州工业园区工业企业技术改造经济效益表!AJ86*[1]奖补比例!$E$3+N86*[1]奖补比例!$E$5)))*[1]奖补比例!$G$2>1000,1000,IF(K86="A",[1]苏州工业园区工业企业技术改造经济效益表!AJ86*[1]奖补比例!$B$3+N86*[1]奖补比例!$B$5,IF(K86="B",[1]苏州工业园区工业企业技术改造经济效益表!AJ86*[1]奖补比例!$C$3+N86*[1]奖补比例!$C$5,IF(K86="C",[1]苏州工业园区工业企业技术改造经济效益表!AJ86*[1]奖补比例!$D$3+N86*[1]奖补比例!$D$5,[1]苏州工业园区工业企业技术改造经济效益表!AJ86*[1]奖补比例!$E$3+N86*[1]奖补比例!$E$5)))*[1]奖补比例!$G$2) -> 229.40 | P86: 0 | Q86: 0 | R86: 0 | S86: =[1]【扣减】人工智能奖补!F85 -> 0 | T86: 0 | U86: =[1]【扣减】投促委!F85 -> 0 | V86: 229.40 | W86: 229.40 | X86: 6.37% | Y86: =IF([1]项目纳统比对表!D86="否","未纳统",IF([1]项目纳统比对表!F86="否","不足500万元","")) ->  | AA86: 229.40
A87: 84 | B87: =[1]苏州工业园区工业企业技术改造经济效益表!B87 -> 苏州工业园区蓝天燃气热电有限公司 | C87: =[1]苏州工业园区工业企业技术改造经济效益表!C87 -> 913205947558549871 | D87: =[1]经济效益!N87 -> 89.36 | E87: =[1]智能化效益!R87 -> 80.11 | F87: =IF([1]综合素质认定!O87>10,10,[1]综合素质认定!O87) -> 0 | G87: 0 | H87: 0 | I87: 0 | J87: 78.58 | K87: =IF(J87<[1]奖补比例!$D$2,"D",IF(J87<[1]奖补比例!$C$2,"C",IF(J87<[1]奖补比例!$B$2,"B","A"))) -> B | L87: =[1]苏州工业园区工业企业技术改造经济效益表!AJ87 -> 1252.87 | M87: =[1]苏州工业园区工业企业技术改造经济效益表!AM87 -> 24.37 | N87: =IF([1]苏州工业园区工业企业技术改造经济效益表!AN87>=0.7,[1]苏州工业园区工业企业技术改造经济效益表!AM87,0) -> 0 | O87: =IF(IF(K87="A",[1]苏州工业园区工业企业技术改造经济效益表!AJ87*[1]奖补比例!$B$3+N87*[1]奖补比例!$B$5,IF(K87="B",[1]苏州工业园区工业企业技术改造经济效益表!AJ87*[1]奖补比例!$C$3+N87*[1]奖补比例!$C$5,IF(K87="C",[1]苏州工业园区工业企业技术改造经济效益表!AJ87*[1]奖补比例!$D$3+N87*[1]奖补比例!$D$5,[1]苏州工业园区工业企业技术改造经济效益表!AJ87*[1]奖补比例!$E$3+N87*[1]奖补比例!$E$5)))*[1]奖补比例!$G$2>1000,1000,IF(K87="A",[1]苏州工业园区工业企业技术改造经济效益表!AJ87*[1]奖补比例!$B$3+N87*[1]奖补比例!$B$5,IF(K87="B",[1]苏州工业园区工业企业技术改造经济效益表!AJ87*[1]奖补比例!$C$3+N87*[1]奖补比例!$C$5,IF(K87="C",[1]苏州工业园区工业企业技术改造经济效益表!AJ87*[1]奖补比例!$D$3+N87*[1]奖补比例!$D$5,[1]苏州工业园区工业企业技术改造经济效益表!AJ87*[1]奖补比例!$E$3+N87*[1]奖补比例!$E$5)))*[1]奖补比例!$G$2) -> 79.80 | P87: 0 | Q87: 0 | R87: 0 | S87: =[1]【扣减】人工智能奖补!F86 -> 0 | T87: 0 | U87: =[1]【扣减】投促委!F86 -> 0 | V87: 79.80 | W87: 79.80 | X87: 6.37% | Y87: =IF([1]项目纳统比对表!D87="否","未纳统",IF([1]项目纳统比对表!F87="否","不足500万元","")) -> 未纳统 | AA87: 79.80
A88: 85 | B88: =[1]苏州工业园区工业企业技术改造经济效益表!B88 -> 苏州工业园区星德胜电机有限公司 | C88: =[1]苏州工业园区工业企业技术改造经济效益表!C88 -> 9132059476827691X1 | D88: =[1]经济效益!N88 -> 63 | E88: =[1]智能化效益!R88 -> 90 | F88: =IF([1]综合素质认定!O88>10,10,[1]综合素质认定!O88) -> 1 | G88: 0 | H88: 0 | I88: 0 | J88: 63.10 | K88: =IF(J88<[1]奖补比例!$D$2,"D",IF(J88<[1]奖补比例!$C$2,"C",IF(J88<[1]奖补比例!$B$2,"B","A"))) -> B | L88: =[1]苏州工业园区工业企业技术改造经济效益表!AJ88 -> 1570.75 | M88: =[1]苏州工业园区工业企业技术改造经济效益表!AM88 -> 0 | N88: =IF([1]苏州工业园区工业企业技术改造经济效益表!AN88>=0.7,[1]苏州工业园区工业企业技术改造经济效益表!AM88,0) -> 0 | O88: =IF(IF(K88="A",[1]苏州工业园区工业企业技术改造经济效益表!AJ88*[1]奖补比例!$B$3+N88*[1]奖补比例!$B$5,IF(K88="B",[1]苏州工业园区工业企业技术改造经济效益表!AJ88*[1]奖补比例!$C$3+N88*[1]奖补比例!$C$5,IF(K88="C",[1]苏州工业园区工业企业技术改造经济效益表!AJ88*[1]奖补比例!$D$3+N88*[1]奖补比例!$D$5,[1]苏州工业园区工业企业技术改造经济效益表!AJ88*[1]奖补比例!$E$3+N88*[1]奖补比例!$E$5)))*[1]奖补比例!$G$2>1000,1000,IF(K88="A",[1]苏州工业园区工业企业技术改造经济效益表!AJ88*[1]奖补比例!$B$3+N88*[1]奖补比例!$B$5,IF(K88="B",[1]苏州工业园区工业企业技术改造经济效益表!AJ88*[1]奖补比例!$C$3+N88*[1]奖补比例!$C$5,IF(K88="C",[1]苏州工业园区工业企业技术改造经济效益表!AJ88*[1]奖补比例!$D$3+N88*[1]奖补比例!$D$5,[1]苏州工业园区工业企业技术改造经济效益表!AJ88*[1]奖补比例!$E$3+N88*[1]奖补比例!$E$5)))*[1]奖补比例!$G$2) -> 100.05 | P88: 0 | Q88: 0 | R88: 0 | S88: =[1]【扣减】人工智能奖补!F87 -> 0 | T88: 0 | U88: =[1]【扣减】投促委!F87 -> 0 | V88: 100.05 | W88: 100.05 | X88: 6.37% | Y88: =IF([1]项目纳统比对表!D88="否","未纳统",IF([1]项目纳统比对表!F88="否","不足500万元","")) ->  | AA88: 100.05
A89: 86 | B89: =[1]苏州工业园区工业企业技术改造经济效益表!B89 -> 苏州恒瑞宏远医疗科技有限公司 | C89: =[1]苏州工业园区工业企业技术改造经济效益表!C89 -> 91320594MA1X6PHN6H | D89: =[1]经济效益!N89 -> 70 | E89: =[1]智能化效益!R89 -> 85 | F89: =IF([1]综合素质认定!O89>10,10,[1]综合素质认定!O89) -> 0 | G89: 0 | H89: 0 | I89: 0 | J89: 66 | K89: =IF(J89<[1]奖补比例!$D$2,"D",IF(J89<[1]奖补比例!$C$2,"C",IF(J89<[1]奖补比例!$B$2,"B","A"))) -> B | L89: =[1]苏州工业园区工业企业技术改造经济效益表!AJ89 -> 1627.05 | M89: =[1]苏州工业园区工业企业技术改造经济效益表!AM89 -> 0 | N89: =IF([1]苏州工业园区工业企业技术改造经济效益表!AN89>=0.7,[1]苏州工业园区工业企业技术改造经济效益表!AM89,0) -> 0 | O89: =IF(IF(K89="A",[1]苏州工业园区工业企业技术改造经济效益表!AJ89*[1]奖补比例!$B$3+N89*[1]奖补比例!$B$5,IF(K89="B",[1]苏州工业园区工业企业技术改造经济效益表!AJ89*[1]奖补比例!$C$3+N89*[1]奖补比例!$C$5,IF(K89="C",[1]苏州工业园区工业企业技术改造经济效益表!AJ89*[1]奖补比例!$D$3+N89*[1]奖补比例!$D$5,[1]苏州工业园区工业企业技术改造经济效益表!AJ89*[1]奖补比例!$E$3+N89*[1]奖补比例!$E$5)))*[1]奖补比例!$G$2>1000,1000,IF(K89="A",[1]苏州工业园区工业企业技术改造经济效益表!AJ89*[1]奖补比例!$B$3+N89*[1]奖补比例!$B$5,IF(K89="B",[1]苏州工业园区工业企业技术改造经济效益表!AJ89*[1]奖补比例!$C$3+N89*[1]奖补比例!$C$5,IF(K89="C",[1]苏州工业园区工业企业技术改造经济效益表!AJ89*[1]奖补比例!$D$3+N89*[1]奖补比例!$D$5,[1]苏州工业园区工业企业技术改造经济效益表!AJ89*[1]奖补比例!$E$3+N89*[1]奖补比例!$E$5)))*[1]奖补比例!$G$2) -> 103.64 | P89: =VLOOKUP(B89,[1]【扣减】省技改综合奖补!$C$2:$E$59,3,0)/10000 -> 68 | Q89: 0 | R89: 0 | S89: =[1]【扣减】人工智能奖补!F88 -> 0 | T89: 0 | U89: =[1]【扣减】投促委!F88 -> 278 | V89: 0 | W89: 0.00 | X89: 6.37% | Y89: =IF([1]项目纳统比对表!D89="否","未纳统",IF([1]项目纳统比对表!F89="否","不足500万元","")) -> 不足500万元 | AA89: 0.00
A90: 87 | B90: =[1]苏州工业园区工业企业技术改造经济效益表!B90 -> 苏州华星光电技术有限公司 | C90: =[1]苏州工业园区工业企业技术改造经济效益表!C90 -> 91320594717884886K | D90: =[1]经济效益!N90 -> 51.80 | E90: =[1]智能化效益!R90 -> 90 | F90: =IF([1]综合素质认定!O90>10,10,[1]综合素质认定!O90) -> 1 | G90: 0 | H90: 0 | I90: 0 | J90: 55.26 | K90: =IF(J90<[1]奖补比例!$D$2,"D",IF(J90<[1]奖补比例!$C$2,"C",IF(J90<[1]奖补比例!$B$2,"B","A"))) -> C | L90: =[1]苏州工业园区工业企业技术改造经济效益表!AJ90 -> 6483.89 | M90: =[1]苏州工业园区工业企业技术改造经济效益表!AM90 -> 0 | N90: =IF([1]苏州工业园区工业企业技术改造经济效益表!AN90>=0.7,[1]苏州工业园区工业企业技术改造经济效益表!AM90,0) -> 0 | O90: =IF(IF(K90="A",[1]苏州工业园区工业企业技术改造经济效益表!AJ90*[1]奖补比例!$B$3+N90*[1]奖补比例!$B$5,IF(K90="B",[1]苏州工业园区工业企业技术改造经济效益表!AJ90*[1]奖补比例!$C$3+N90*[1]奖补比例!$C$5,IF(K90="C",[1]苏州工业园区工业企业技术改造经济效益表!AJ90*[1]奖补比例!$D$3+N90*[1]奖补比例!$D$5,[1]苏州工业园区工业企业技术改造经济效益表!AJ90*[1]奖补比例!$E$3+N90*[1]奖补比例!$E$5)))*[1]奖补比例!$G$2>1000,1000,IF(K90="A",[1]苏州工业园区工业企业技术改造经济效益表!AJ90*[1]奖补比例!$B$3+N90*[1]奖补比例!$B$5,IF(K90="B",[1]苏州工业园区工业企业技术改造经济效益表!AJ90*[1]奖补比例!$C$3+N90*[1]奖补比例!$C$5,IF(K90="C",[1]苏州工业园区工业企业技术改造经济效益表!AJ90*[1]奖补比例!$D$3+N90*[1]奖补比例!$D$5,[1]苏州工业园区工业企业技术改造经济效益表!AJ90*[1]奖补比例!$E$3+N90*[1]奖补比例!$E$5)))*[1]奖补比例!$G$2) -> 258.13 | P90: 0 | Q90: 0 | R90: 0 | S90: =[1]【扣减】人工智能奖补!F89 -> 0 | T90: 0 | U90: =[1]【扣减】投促委!F89 -> 0 | V90: 258.13 | W90: 258.13 | X90: 3.98% | Y90: =IF([1]项目纳统比对表!D90="否","未纳统",IF([1]项目纳统比对表!F90="否","不足500万元","")) -> 未纳统 | AA90: 258.13
A91: 88 | B91: =[1]苏州工业园区工业企业技术改造经济效益表!B91 -> 苏州华星光电显示有限公司 | C91: =[1]苏州工业园区工业企业技术改造经济效益表!C91 -> 91320594742473456P | D91: =[1]经济效益!N91 -> 60 | E91: =[1]智能化效益!R91 -> 88 | F91: =IF([1]综合素质认定!O91>10,10,[1]综合素质认定!O91) -> 1 | G91: 0 | H91: 0 | I91: 0 | J91: 60.60 | K91: =IF(J91<[1]奖补比例!$D$2,"D",IF(J91<[1]奖补比例!$C$2,"C",IF(J91<[1]奖补比例!$B$2,"B","A"))) -> B | L91: =[1]苏州工业园区工业企业技术改造经济效益表!AJ91 -> 11677.17 | M91: =[1]苏州工业园区工业企业技术改造经济效益表!AM91 -> 1296.94 | N91: =IF([1]苏州工业园区工业企业技术改造经济效益表!AN91>=0.7,[1]苏州工业园区工业企业技术改造经济效益表!AM91,0) -> 0 | O91: =IF(IF(K91="A",[1]苏州工业园区工业企业技术改造经济效益表!AJ91*[1]奖补比例!$B$3+N91*[1]奖补比例!$B$5,IF(K91="B",[1]苏州工业园区工业企业技术改造经济效益表!AJ91*[1]奖补比例!$C$3+N91*[1]奖补比例!$C$5,IF(K91="C",[1]苏州工业园区工业企业技术改造经济效益表!AJ91*[1]奖补比例!$D$3+N91*[1]奖补比例!$D$5,[1]苏州工业园区工业企业技术改造经济效益表!AJ91*[1]奖补比例!$E$3+N91*[1]奖补比例!$E$5)))*[1]奖补比例!$G$2>1000,1000,IF(K91="A",[1]苏州工业园区工业企业技术改造经济效益表!AJ91*[1]奖补比例!$B$3+N91*[1]奖补比例!$B$5,IF(K91="B",[1]苏州工业园区工业企业技术改造经济效益表!AJ91*[1]奖补比例!$C$3+N91*[1]奖补比例!$C$5,IF(K91="C",[1]苏州工业园区工业企业技术改造经济效益表!AJ91*[1]奖补比例!$D$3+N91*[1]奖补比例!$D$5,[1]苏州工业园区工业企业技术改造经济效益表!AJ91*[1]奖补比例!$E$3+N91*[1]奖补比例!$E$5)))*[1]奖补比例!$G$2) -> 743.81 | P91: 0 | Q91: 0 | R91: =VLOOKUP(B91,[1]【扣减】节能改造项目奖补!$B$2:$C$23,2,0) -> 32 | S91: =[1]【扣减】人工智能奖补!F90 -> 0 | T91: 0 | U91: =[1]【扣减】投促委!F90 -> 0 | V91: 711.81 | W91: 711.81 | X91: 6.37% | Y91: =IF([1]项目纳统比对表!D91="否","未纳统",IF([1]项目纳统比对表!F91="否","不足500万元","")) -> 未纳统 | AA91: 711.81
A92: 89 | B92: =[1]苏州工业园区工业企业技术改造经济效益表!B92 -> 苏州华兴源创科技股份有限公司 | C92: =[1]苏州工业园区工业企业技术改造经济效益表!C92 -> 91320594776412379N | D92: =[1]经济效益!N92 -> 61 | E92: =[1]智能化效益!R92 -> 91.08 | F92: =IF([1]综合素质认定!O92>10,10,[1]综合素质认定!O92) -> 2 | G92: 0 | H92: 0 | I92: 0 | J92: 62.92 | K92: =IF(J92<[1]奖补比例!$D$2,"D",IF(J92<[1]奖补比例!$C$2,"C",IF(J92<[1]奖补比例!$B$2,"B","A"))) -> B | L92: =[1]苏州工业园区工业企业技术改造经济效益表!AJ92 -> 545.08 | M92: =[1]苏州工业园区工业企业技术改造经济效益表!AM92 -> 16.92 | N92: =IF([1]苏州工业园区工业企业技术改造经济效益表!AN92>=0.7,[1]苏州工业园区工业企业技术改造经济效益表!AM92,0) -> 0 | O92: =IF(IF(K92="A",[1]苏州工业园区工业企业技术改造经济效益表!AJ92*[1]奖补比例!$B$3+N92*[1]奖补比例!$B$5,IF(K92="B",[1]苏州工业园区工业企业技术改造经济效益表!AJ92*[1]奖补比例!$C$3+N92*[1]奖补比例!$C$5,IF(K92="C",[1]苏州工业园区工业企业技术改造经济效益表!AJ92*[1]奖补比例!$D$3+N92*[1]奖补比例!$D$5,[1]苏州工业园区工业企业技术改造经济效益表!AJ92*[1]奖补比例!$E$3+N92*[1]奖补比例!$E$5)))*[1]奖补比例!$G$2>1000,1000,IF(K92="A",[1]苏州工业园区工业企业技术改造经济效益表!AJ92*[1]奖补比例!$B$3+N92*[1]奖补比例!$B$5,IF(K92="B",[1]苏州工业园区工业企业技术改造经济效益表!AJ92*[1]奖补比例!$C$3+N92*[1]奖补比例!$C$5,IF(K92="C",[1]苏州工业园区工业企业技术改造经济效益表!AJ92*[1]奖补比例!$D$3+N92*[1]奖补比例!$D$5,[1]苏州工业园区工业企业技术改造经济效益表!AJ92*[1]奖补比例!$E$3+N92*[1]奖补比例!$E$5)))*[1]奖补比例!$G$2) -> 34.72 | P92: 0 | Q92: 0 | R92: 0 | S92: =[1]【扣减】人工智能奖补!F91 -> 0 | T92: 0 | U92: =[1]【扣减】投促委!F91 -> 0 | V92: 34.72 | W92: 34.72 | X92: 6.37% | Y92: =IF([1]项目纳统比对表!D92="否","未纳统",IF([1]项目纳统比对表!F92="否","不足500万元","")) -> 未纳统 | AA92: 34.72
A93: 90 | B93: =[1]苏州工业园区工业企业技术改造经济效益表!B93 -> 苏州吉恒纳米科技有限公司 | C93: =[1]苏州工业园区工业企业技术改造经济效益表!C93 -> 91320594338895913L | D93: =[1]经济效益!N93 -> 84 | E93: =[1]智能化效益!R93 -> 70 | F93: =IF([1]综合素质认定!O93>10,10,[1]综合素质认定!O93) -> 0 | G93: 0 | H93: 0 | I93: 0 | J93: 72.80 | K93: =IF(J93<[1]奖补比例!$D$2,"D",IF(J93<[1]奖补比例!$C$2,"C",IF(J93<[1]奖补比例!$B$2,"B","A"))) -> B | L93: =[1]苏州工业园区工业企业技术改造经济效益表!AJ93 -> 941.41 | M93: =[1]苏州工业园区工业企业技术改造经济效益表!AM93 -> 19.77 | N93: =IF([1]苏州工业园区工业企业技术改造经济效益表!AN93>=0.7,[1]苏州工业园区工业企业技术改造经济效益表!AM93,0) -> 0 | O93: =IF(IF(K93="A",[1]苏州工业园区工业企业技术改造经济效益表!AJ93*[1]奖补比例!$B$3+N93*[1]奖补比例!$B$5,IF(K93="B",[1]苏州工业园区工业企业技术改造经济效益表!AJ93*[1]奖补比例!$C$3+N93*[1]奖补比例!$C$5,IF(K93="C",[1]苏州工业园区工业企业技术改造经济效益表!AJ93*[1]奖补比例!$D$3+N93*[1]奖补比例!$D$5,[1]苏州工业园区工业企业技术改造经济效益表!AJ93*[1]奖补比例!$E$3+N93*[1]奖补比例!$E$5)))*[1]奖补比例!$G$2>1000,1000,IF(K93="A",[1]苏州工业园区工业企业技术改造经济效益表!AJ93*[1]奖补比例!$B$3+N93*[1]奖补比例!$B$5,IF(K93="B",[1]苏州工业园区工业企业技术改造经济效益表!AJ93*[1]奖补比例!$C$3+N93*[1]奖补比例!$C$5,IF(K93="C",[1]苏州工业园区工业企业技术改造经济效益表!AJ93*[1]奖补比例!$D$3+N93*[1]奖补比例!$D$5,[1]苏州工业园区工业企业技术改造经济效益表!AJ93*[1]奖补比例!$E$3+N93*[1]奖补比例!$E$5)))*[1]奖补比例!$G$2) -> 59.97 | P93: 0 | Q93: 0 | R93: 0 | S93: =[1]【扣减】人工智能奖补!F92 -> 0 | T93: 0 | U93: =[1]【扣减】投促委!F92 -> 0 | V93: 59.97 | W93: 59.97 | X93: 6.37% | Y93: =IF([1]项目纳统比对表!D93="否","未纳统",IF([1]项目纳统比对表!F93="否","不足500万元","")) -> 未纳统 | AA93: 59.97
A94: 91 | B94: =[1]苏州工业园区工业企业技术改造经济效益表!B94 -> 苏州晶方半导体科技股份有限公司 | C94: =[1]苏州工业园区工业企业技术改造经济效益表!C94 -> 913200007746765307 | D94: =[1]经济效益!N94 -> 95 | E94: =[1]智能化效益!R94 -> 90.89 | F94: =IF([1]综合素质认定!O94>10,10,[1]综合素质认定!O94) -> 8 | G94: 0 | H94: 0 | I94: 0 | J94: 92.68 | K94: =IF(J94<[1]奖补比例!$D$2,"D",IF(J94<[1]奖补比例!$C$2,"C",IF(J94<[1]奖补比例!$B$2,"B","A"))) -> A | L94: =[1]苏州工业园区工业企业技术改造经济效益表!AJ94 -> 3717.37 | M94: =[1]苏州工业园区工业企业技术改造经济效益表!AM94 -> 781.24 | N94: =IF([1]苏州工业园区工业企业技术改造经济效益表!AN94>=0.7,[1]苏州工业园区工业企业技术改造经济效益表!AM94,0) -> 0 | O94: =IF(IF(K94="A",[1]苏州工业园区工业企业技术改造经济效益表!AJ94*[1]奖补比例!$B$3+N94*[1]奖补比例!$B$5,IF(K94="B",[1]苏州工业园区工业企业技术改造经济效益表!AJ94*[1]奖补比例!$C$3+N94*[1]奖补比例!$C$5,IF(K94="C",[1]苏州工业园区工业企业技术改造经济效益表!AJ94*[1]奖补比例!$D$3+N94*[1]奖补比例!$D$5,[1]苏州工业园区工业企业技术改造经济效益表!AJ94*[1]奖补比例!$E$3+N94*[1]奖补比例!$E$5)))*[1]奖补比例!$G$2>1000,1000,IF(K94="A",[1]苏州工业园区工业企业技术改造经济效益表!AJ94*[1]奖补比例!$B$3+N94*[1]奖补比例!$B$5,IF(K94="B",[1]苏州工业园区工业企业技术改造经济效益表!AJ94*[1]奖补比例!$C$3+N94*[1]奖补比例!$C$5,IF(K94="C",[1]苏州工业园区工业企业技术改造经济效益表!AJ94*[1]奖补比例!$D$3+N94*[1]奖补比例!$D$5,[1]苏州工业园区工业企业技术改造经济效益表!AJ94*[1]奖补比例!$E$3+N94*[1]奖补比例!$E$5)))*[1]奖补比例!$G$2) -> 295.98 | P94: =VLOOKUP(B94,[1]【扣减】省技改综合奖补!$C$2:$E$59,3,0)/10000 -> 19 | Q94: 0 | R94: 0 | S94: =[1]【扣减】人工智能奖补!F93 -> 0 | T94: 0 | U94: =[1]【扣减】投促委!F93 -> 0 | V94: 276.98 | W94: 276.98 | X94: 7.96% | Y94: =IF([1]项目纳统比对表!D94="否","未纳统",IF([1]项目纳统比对表!F94="否","不足500万元","")) ->  | AA94: 276.98
A95: 92 | B95: =[1]苏州工业园区工业企业技术改造经济效益表!B95 -> 苏州晶湛半导体有限公司 | C95: =[1]苏州工业园区工业企业技术改造经济效益表!C95 -> 91320594592520797R | D95: =[1]经济效益!N95 -> 66 | E95: =[1]智能化效益!R95 -> 80 | F95: =IF([1]综合素质认定!O95>10,10,[1]综合素质认定!O95) -> 0 | G95: 0 | H95: 0 | I95: 0 | J95: 62.20 | K95: =IF(J95<[1]奖补比例!$D$2,"D",IF(J95<[1]奖补比例!$C$2,"C",IF(J95<[1]奖补比例!$B$2,"B","A"))) -> B | L95: =[1]苏州工业园区工业企业技术改造经济效益表!AJ95 -> 2597.03 | M95: =[1]苏州工业园区工业企业技术改造经济效益表!AM95 -> 18 | N95: =IF([1]苏州工业园区工业企业技术改造经济效益表!AN95>=0.7,[1]苏州工业园区工业企业技术改造经济效益表!AM95,0) -> 0 | O95: =IF(IF(K95="A",[1]苏州工业园区工业企业技术改造经济效益表!AJ95*[1]奖补比例!$B$3+N95*[1]奖补比例!$B$5,IF(K95="B",[1]苏州工业园区工业企业技术改造经济效益表!AJ95*[1]奖补比例!$C$3+N95*[1]奖补比例!$C$5,IF(K95="C",[1]苏州工业园区工业企业技术改造经济效益表!AJ95*[1]奖补比例!$D$3+N95*[1]奖补比例!$D$5,[1]苏州工业园区工业企业技术改造经济效益表!AJ95*[1]奖补比例!$E$3+N95*[1]奖补比例!$E$5)))*[1]奖补比例!$G$2>1000,1000,IF(K95="A",[1]苏州工业园区工业企业技术改造经济效益表!AJ95*[1]奖补比例!$B$3+N95*[1]奖补比例!$B$5,IF(K95="B",[1]苏州工业园区工业企业技术改造经济效益表!AJ95*[1]奖补比例!$C$3+N95*[1]奖补比例!$C$5,IF(K95="C",[1]苏州工业园区工业企业技术改造经济效益表!AJ95*[1]奖补比例!$D$3+N95*[1]奖补比例!$D$5,[1]苏州工业园区工业企业技术改造经济效益表!AJ95*[1]奖补比例!$E$3+N95*[1]奖补比例!$E$5)))*[1]奖补比例!$G$2) -> 165.42 | P95: =VLOOKUP(B95,[1]【扣减】省技改综合奖补!$C$2:$E$59,3,0)/10000 -> 15 | Q95: 0 | R95: 0 | S95: =[1]【扣减】人工智能奖补!F94 -> 0 | T95: 0 | U95: =[1]【扣减】投促委!F94 -> 0 | V95: 150.42 | W95: 150.42 | X95: 6.37% | Y95: =IF([1]项目纳统比对表!D95="否","未纳统",IF([1]项目纳统比对表!F95="否","不足500万元","")) ->  | AA95: 150.42
A96: 93 | B96: =[1]苏州工业园区工业企业技术改造经济效益表!B96 -> 苏州卡利肯新光讯科技有限公司 | C96: =[1]苏州工业园区工业企业技术改造经济效益表!C96 -> 91320594774676506M | D96: =[1]经济效益!N96 -> 65 | E96: =[1]智能化效益!R96 -> 86.70 | F96: =IF([1]综合素质认定!O96>10,10,[1]综合素质认定!O96) -> 0 | G96: 0 | H96: 0 | I96: 0 | J96: 62.84 | K96: =IF(J96<[1]奖补比例!$D$2,"D",IF(J96<[1]奖补比例!$C$2,"C",IF(J96<[1]奖补比例!$B$2,"B","A"))) -> B | L96: =[1]苏州工业园区工业企业技术改造经济效益表!AJ96 -> 552.81 | M96: =[1]苏州工业园区工业企业技术改造经济效益表!AM96 -> 21.54 | N96: =IF([1]苏州工业园区工业企业技术改造经济效益表!AN96>=0.7,[1]苏州工业园区工业企业技术改造经济效益表!AM96,0) -> 0 | O96: =IF(IF(K96="A",[1]苏州工业园区工业企业技术改造经济效益表!AJ96*[1]奖补比例!$B$3+N96*[1]奖补比例!$B$5,IF(K96="B",[1]苏州工业园区工业企业技术改造经济效益表!AJ96*[1]奖补比例!$C$3+N96*[1]奖补比例!$C$5,IF(K96="C",[1]苏州工业园区工业企业技术改造经济效益表!AJ96*[1]奖补比例!$D$3+N96*[1]奖补比例!$D$5,[1]苏州工业园区工业企业技术改造经济效益表!AJ96*[1]奖补比例!$E$3+N96*[1]奖补比例!$E$5)))*[1]奖补比例!$G$2>1000,1000,IF(K96="A",[1]苏州工业园区工业企业技术改造经济效益表!AJ96*[1]奖补比例!$B$3+N96*[1]奖补比例!$B$5,IF(K96="B",[1]苏州工业园区工业企业技术改造经济效益表!AJ96*[1]奖补比例!$C$3+N96*[1]奖补比例!$C$5,IF(K96="C",[1]苏州工业园区工业企业技术改造经济效益表!AJ96*[1]奖补比例!$D$3+N96*[1]奖补比例!$D$5,[1]苏州工业园区工业企业技术改造经济效益表!AJ96*[1]奖补比例!$E$3+N96*[1]奖补比例!$E$5)))*[1]奖补比例!$G$2) -> 35.21 | P96: 0 | Q96: 0 | R96: 0 | S96: =[1]【扣减】人工智能奖补!F95 -> 40 | T96: 0 | U96: =[1]【扣减】投促委!F95 -> 0 | V96: 0 | W96: 0.00 | X96: 6.37% | Y96: =IF([1]项目纳统比对表!D96="否","未纳统",IF([1]项目纳统比对表!F96="否","不足500万元","")) ->  | AA96: 0.00
A97: 94 | B97: =[1]苏州工业园区工业企业技术改造经济效益表!B97 -> 苏州立昂新材料有限公司 | C97: =[1]苏州工业园区工业企业技术改造经济效益表!C97 -> 91320594339264750C | D97: =[1]经济效益!N97 -> 82 | E97: =[1]智能化效益!R97 -> 85 | F97: =IF([1]综合素质认定!O97>10,10,[1]综合素质认定!O97) -> 0 | G97: 0 | H97: 0 | I97: 0 | J97: 74.40 | K97: =IF(J97<[1]奖补比例!$D$2,"D",IF(J97<[1]奖补比例!$C$2,"C",IF(J97<[1]奖补比例!$B$2,"B","A"))) -> B | L97: =[1]苏州工业园区工业企业技术改造经济效益表!AJ97 -> 682.74 | M97: =[1]苏州工业园区工业企业技术改造经济效益表!AM97 -> 272.11 | N97: =IF([1]苏州工业园区工业企业技术改造经济效益表!AN97>=0.7,[1]苏州工业园区工业企业技术改造经济效益表!AM97,0) -> 0 | O97: =IF(IF(K97="A",[1]苏州工业园区工业企业技术改造经济效益表!AJ97*[1]奖补比例!$B$3+N97*[1]奖补比例!$B$5,IF(K97="B",[1]苏州工业园区工业企业技术改造经济效益表!AJ97*[1]奖补比例!$C$3+N97*[1]奖补比例!$C$5,IF(K97="C",[1]苏州工业园区工业企业技术改造经济效益表!AJ97*[1]奖补比例!$D$3+N97*[1]奖补比例!$D$5,[1]苏州工业园区工业企业技术改造经济效益表!AJ97*[1]奖补比例!$E$3+N97*[1]奖补比例!$E$5)))*[1]奖补比例!$G$2>1000,1000,IF(K97="A",[1]苏州工业园区工业企业技术改造经济效益表!AJ97*[1]奖补比例!$B$3+N97*[1]奖补比例!$B$5,IF(K97="B",[1]苏州工业园区工业企业技术改造经济效益表!AJ97*[1]奖补比例!$C$3+N97*[1]奖补比例!$C$5,IF(K97="C",[1]苏州工业园区工业企业技术改造经济效益表!AJ97*[1]奖补比例!$D$3+N97*[1]奖补比例!$D$5,[1]苏州工业园区工业企业技术改造经济效益表!AJ97*[1]奖补比例!$E$3+N97*[1]奖补比例!$E$5)))*[1]奖补比例!$G$2) -> 43.49 | P97: 0 | Q97: 0 | R97: 0 | S97: =[1]【扣减】人工智能奖补!F96 -> 0 | T97: 0 | U97: =[1]【扣减】投促委!F96 -> 0 | V97: 43.49 | W97: 43.49 | X97: 6.37% | Y97: =IF([1]项目纳统比对表!D97="否","未纳统",IF([1]项目纳统比对表!F97="否","不足500万元","")) -> 未纳统 | AA97: 43.49
A98: 95 | B98: =[1]苏州工业园区工业企业技术改造经济效益表!B98 -> 苏州林华医疗器械股份有限公司 | C98: =[1]苏州工业园区工业企业技术改造经济效益表!C98 -> 91320000608293032F | D98: =[1]经济效益!N98 -> 47.96 | E98: =[1]智能化效益!R98 -> 87.10 | F98: =IF([1]综合素质认定!O98>10,10,[1]综合素质认定!O98) -> 2 | G98: 0 | H98: 0 | I98: 0 | J98: 52.99 | K98: =IF(J98<[1]奖补比例!$D$2,"D",IF(J98<[1]奖补比例!$C$2,"C",IF(J98<[1]奖补比例!$B$2,"B","A"))) -> C | L98: =[1]苏州工业园区工业企业技术改造经济效益表!AJ98 -> 703.43 | M98: =[1]苏州工业园区工业企业技术改造经济效益表!AM98 -> 15.05 | N98: =IF([1]苏州工业园区工业企业技术改造经济效益表!AN98>=0.7,[1]苏州工业园区工业企业技术改造经济效益表!AM98,0) -> 0 | O98: =IF(IF(K98="A",[1]苏州工业园区工业企业技术改造经济效益表!AJ98*[1]奖补比例!$B$3+N98*[1]奖补比例!$B$5,IF(K98="B",[1]苏州工业园区工业企业技术改造经济效益表!AJ98*[1]奖补比例!$C$3+N98*[1]奖补比例!$C$5,IF(K98="C",[1]苏州工业园区工业企业技术改造经济效益表!AJ98*[1]奖补比例!$D$3+N98*[1]奖补比例!$D$5,[1]苏州工业园区工业企业技术改造经济效益表!AJ98*[1]奖补比例!$E$3+N98*[1]奖补比例!$E$5)))*[1]奖补比例!$G$2>1000,1000,IF(K98="A",[1]苏州工业园区工业企业技术改造经济效益表!AJ98*[1]奖补比例!$B$3+N98*[1]奖补比例!$B$5,IF(K98="B",[1]苏州工业园区工业企业技术改造经济效益表!AJ98*[1]奖补比例!$C$3+N98*[1]奖补比例!$C$5,IF(K98="C",[1]苏州工业园区工业企业技术改造经济效益表!AJ98*[1]奖补比例!$D$3+N98*[1]奖补比例!$D$5,[1]苏州工业园区工业企业技术改造经济效益表!AJ98*[1]奖补比例!$E$3+N98*[1]奖补比例!$E$5)))*[1]奖补比例!$G$2) -> 28.00 | P98: =VLOOKUP(B98,[1]【扣减】省技改综合奖补!$C$2:$E$59,3,0)/10000 -> 15 | Q98: 0 | R98: 0 | S98: =[1]【扣减】人工智能奖补!F97 -> 0 | T98: 230.21 | U98: =[1]【扣减】投促委!F97 -> 0 | V98: 0 | W98: 0.00 | X98: 3.98% | Y98: =IF([1]项目纳统比对表!D98="否","未纳统",IF([1]项目纳统比对表!F98="否","不足500万元","")) ->  | AA98: 0.00
A99: 96 | B99: =[1]苏州工业园区工业企业技术改造经济效益表!B99 -> 苏州诺菲纳米科技有限公司 | C99: =[1]苏州工业园区工业企业技术改造经济效益表!C99 -> 91320594588454723T | D99: =[1]经济效益!N99 -> 66 | E99: =[1]智能化效益!R99 -> 91.94 | F99: =IF([1]综合素质认定!O99>10,10,[1]综合素质认定!O99) -> 0 | G99: 0 | H99: 0 | I99: 0 | J99: 64.59 | K99: =IF(J99<[1]奖补比例!$D$2,"D",IF(J99<[1]奖补比例!$C$2,"C",IF(J99<[1]奖补比例!$B$2,"B","A"))) -> B | L99: =[1]苏州工业园区工业企业技术改造经济效益表!AJ99 -> 524.41 | M99: =[1]苏州工业园区工业企业技术改造经济效益表!AM99 -> 0 | N99: =IF([1]苏州工业园区工业企业技术改造经济效益表!AN99>=0.7,[1]苏州工业园区工业企业技术改造经济效益表!AM99,0) -> 0 | O99: =IF(IF(K99="A",[1]苏州工业园区工业企业技术改造经济效益表!AJ99*[1]奖补比例!$B$3+N99*[1]奖补比例!$B$5,IF(K99="B",[1]苏州工业园区工业企业技术改造经济效益表!AJ99*[1]奖补比例!$C$3+N99*[1]奖补比例!$C$5,IF(K99="C",[1]苏州工业园区工业企业技术改造经济效益表!AJ99*[1]奖补比例!$D$3+N99*[1]奖补比例!$D$5,[1]苏州工业园区工业企业技术改造经济效益表!AJ99*[1]奖补比例!$E$3+N99*[1]奖补比例!$E$5)))*[1]奖补比例!$G$2>1000,1000,IF(K99="A",[1]苏州工业园区工业企业技术改造经济效益表!AJ99*[1]奖补比例!$B$3+N99*[1]奖补比例!$B$5,IF(K99="B",[1]苏州工业园区工业企业技术改造经济效益表!AJ99*[1]奖补比例!$C$3+N99*[1]奖补比例!$C$5,IF(K99="C",[1]苏州工业园区工业企业技术改造经济效益表!AJ99*[1]奖补比例!$D$3+N99*[1]奖补比例!$D$5,[1]苏州工业园区工业企业技术改造经济效益表!AJ99*[1]奖补比例!$E$3+N99*[1]奖补比例!$E$5)))*[1]奖补比例!$G$2) -> 33.40 | P99: 0 | Q99: 0 | R99: 0 | S99: =[1]【扣减】人工智能奖补!F98 -> 0 | T99: 0 | U99: =[1]【扣减】投促委!F98 -> 0 | V99: 33.40 | W99: 33.40 | X99: =O99/L99 -> 6.37% | Y99: =IF([1]项目纳统比对表!D99="否","未纳统",IF([1]项目纳统比对表!F99="否","不足500万元","")) -> 未纳统 | AA99: 33.40
A100: 97 | B100: =[1]苏州工业园区工业企业技术改造经济效益表!B100 -> 苏州浦项科技有限公司 | C100: =[1]苏州工业园区工业企业技术改造经济效益表!C100 -> 91320594776896609M | D100: =[1]经济效益!N100 -> 63 | E100: =[1]智能化效益!R100 -> 72.22 | F100: =IF([1]综合素质认定!O100>10,10,[1]综合素质认定!O100) -> 0 | G100: 0 | H100: 0 | I100: 0 | J100: 58.54 | K100: =IF(J100<[1]奖补比例!$D$2,"D",IF(J100<[1]奖补比例!$C$2,"C",IF(J100<[1]奖补比例!$B$2,"B","A"))) -> C | L100: =[1]苏州工业园区工业企业技术改造经济效益表!AJ100 -> 1917.19 | M100: =[1]苏州工业园区工业企业技术改造经济效益表!AM100 -> 0 | N100: =IF([1]苏州工业园区工业企业技术改造经济效益表!AN100>=0.7,[1]苏州工业园区工业企业技术改造经济效益表!AM100,0) -> 0 | O100: =IF(IF(K100="A",[1]苏州工业园区工业企业技术改造经济效益表!AJ100*[1]奖补比例!$B$3+N100*[1]奖补比例!$B$5,IF(K100="B",[1]苏州工业园区工业企业技术改造经济效益表!AJ100*[1]奖补比例!$C$3+N100*[1]奖补比例!$C$5,IF(K100="C",[1]苏州工业园区工业企业技术改造经济效益表!AJ100*[1]奖补比例!$D$3+N100*[1]奖补比例!$D$5,[1]苏州工业园区工业企业技术改造经济效益表!AJ100*[1]奖补比例!$E$3+N100*[1]奖补比例!$E$5)))*[1]奖补比例!$G$2>1000,1000,IF(K100="A",[1]苏州工业园区工业企业技术改造经济效益表!AJ100*[1]奖补比例!$B$3+N100*[1]奖补比例!$B$5,IF(K100="B",[1]苏州工业园区工业企业技术改造经济效益表!AJ100*[1]奖补比例!$C$3+N100*[1]奖补比例!$C$5,IF(K100="C",[1]苏州工业园区工业企业技术改造经济效益表!AJ100*[1]奖补比例!$D$3+N100*[1]奖补比例!$D$5,[1]苏州工业园区工业企业技术改造经济效益表!AJ100*[1]奖补比例!$E$3+N100*[1]奖补比例!$E$5)))*[1]奖补比例!$G$2) -> 76.33 | P100: 0 | Q100: 0 | R100: 0 | S100: =[1]【扣减】人工智能奖补!F99 -> 0 | T100: 0 | U100: =[1]【扣减】投促委!F99 -> 0 | V100: 76.33 | W100: 76.33 | X100: 3.98% | Y100: =IF([1]项目纳统比对表!D100="否","未纳统",IF([1]项目纳统比对表!F100="否","不足500万元","")) ->  | AA100: 76.33
A101: 98 | B101: =[1]苏州工业园区工业企业技术改造经济效益表!B101 -> 苏州千机智能技术有限公司 | C101: =[1]苏州工业园区工业企业技术改造经济效益表!C101 -> 91320594346201571H | D101: =[1]经济效益!N101 -> 65.44 | E101: =[1]智能化效益!R101 -> 90 | F101: =IF([1]综合素质认定!O101>10,10,[1]综合素质认定!O101) -> 2 | G101: 0 | H101: 0 | I101: 0 | J101: 65.80 | K101: =IF(J101<[1]奖补比例!$D$2,"D",IF(J101<[1]奖补比例!$C$2,"C",IF(J101<[1]奖补比例!$B$2,"B","A"))) -> B | L101: =[1]苏州工业园区工业企业技术改造经济效益表!AJ101 -> 1798.36314 | M101: =[1]苏州工业园区工业企业技术改造经济效益表!AM101 -> 0 | N101: =IF([1]苏州工业园区工业企业技术改造经济效益表!AN101>=0.7,[1]苏州工业园区工业企业技术改造经济效益表!AM101,0) -> 0 | O101: =IF(IF(K101="A",[1]苏州工业园区工业企业技术改造经济效益表!AJ101*[1]奖补比例!$B$3+N101*[1]奖补比例!$B$5,IF(K101="B",[1]苏州工业园区工业企业技术改造经济效益表!AJ101*[1]奖补比例!$C$3+N101*[1]奖补比例!$C$5,IF(K101="C",[1]苏州工业园区工业企业技术改造经济效益表!AJ101*[1]奖补比例!$D$3+N101*[1]奖补比例!$D$5,[1]苏州工业园区工业企业技术改造经济效益表!AJ101*[1]奖补比例!$E$3+N101*[1]奖补比例!$E$5)))*[1]奖补比例!$G$2>1000,1000,IF(K101="A",[1]苏州工业园区工业企业技术改造经济效益表!AJ101*[1]奖补比例!$B$3+N101*[1]奖补比例!$B$5,IF(K101="B",[1]苏州工业园区工业企业技术改造经济效益表!AJ101*[1]奖补比例!$C$3+N101*[1]奖补比例!$C$5,IF(K101="C",[1]苏州工业园区工业企业技术改造经济效益表!AJ101*[1]奖补比例!$D$3+N101*[1]奖补比例!$D$5,[1]苏州工业园区工业企业技术改造经济效益表!AJ101*[1]奖补比例!$E$3+N101*[1]奖补比例!$E$5)))*[1]奖补比例!$G$2) -> 114.55 | P101: 0 | Q101: 0 | R101: 0 | S101: =[1]【扣减】人工智能奖补!F100 -> 0 | T101: 0 | U101: =[1]【扣减】投促委!F100 -> 0 | V101: 114.55 | W101: 114.55 | X101: 6.37% | Y101: =IF([1]项目纳统比对表!D101="否","未纳统",IF([1]项目纳统比对表!F101="否","不足500万元","")) ->  | AA101: 114.55
A102: 99 | B102: =[1]苏州工业园区工业企业技术改造经济效益表!B102 -> 苏州群策科技有限公司 | C102: =[1]苏州工业园区工业企业技术改造经济效益表!C102 -> 91320594774676792X | D102: =[1]经济效益!N102 -> 77.77 | E102: =[1]智能化效益!R102 -> 85 | F102: =IF([1]综合素质认定!O102>10,10,[1]综合素质认定!O102) -> 2 | G102: 0 | H102: 0 | I102: 0 | J102: 73.44 | K102: =IF(J102<[1]奖补比例!$D$2,"D",IF(J102<[1]奖补比例!$C$2,"C",IF(J102<[1]奖补比例!$B$2,"B","A"))) -> B | L102: =[1]苏州工业园区工业企业技术改造经济效益表!AJ102 -> 21410.5 | M102: =[1]苏州工业园区工业企业技术改造经济效益表!AM102 -> 0 | N102: =IF([1]苏州工业园区工业企业技术改造经济效益表!AN102>=0.7,[1]苏州工业园区工业企业技术改造经济效益表!AM102,0) -> 0 | O102: =IF(IF(K102="A",[1]苏州工业园区工业企业技术改造经济效益表!AJ102*[1]奖补比例!$B$3+N102*[1]奖补比例!$B$5,IF(K102="B",[1]苏州工业园区工业企业技术改造经济效益表!AJ102*[1]奖补比例!$C$3+N102*[1]奖补比例!$C$5,IF(K102="C",[1]苏州工业园区工业企业技术改造经济效益表!AJ102*[1]奖补比例!$D$3+N102*[1]奖补比例!$D$5,[1]苏州工业园区工业企业技术改造经济效益表!AJ102*[1]奖补比例!$E$3+N102*[1]奖补比例!$E$5)))*[1]奖补比例!$G$2>1000,1000,IF(K102="A",[1]苏州工业园区工业企业技术改造经济效益表!AJ102*[1]奖补比例!$B$3+N102*[1]奖补比例!$B$5,IF(K102="B",[1]苏州工业园区工业企业技术改造经济效益表!AJ102*[1]奖补比例!$C$3+N102*[1]奖补比例!$C$5,IF(K102="C",[1]苏州工业园区工业企业技术改造经济效益表!AJ102*[1]奖补比例!$D$3+N102*[1]奖补比例!$D$5,[1]苏州工业园区工业企业技术改造经济效益表!AJ102*[1]奖补比例!$E$3+N102*[1]奖补比例!$E$5)))*[1]奖补比例!$G$2) -> 1000 | P102: 0 | Q102: 0 | R102: 0 | S102: =[1]【扣减】人工智能奖补!F101 -> 0 | T102: 0 | U102: =[1]【扣减】投促委!F101 -> 500 | V102: 500 | W102: 500.00 | X102: 4.67% | Y102: =IF([1]项目纳统比对表!D102="否","未纳统",IF([1]项目纳统比对表!F102="否","不足500万元","")) -> 未纳统 | AA102: 500.00
A103: 100 | B103: =[1]苏州工业园区工业企业技术改造经济效益表!B103 -> 苏州日月新半导体有限公司 | C103: =[1]苏州工业园区工业企业技术改造经济效益表!C103 -> 91320594728014317G | D103: =[1]经济效益!N103 -> 74.02 | E103: =[1]智能化效益!R103 -> 80 | F103: =IF([1]综合素质认定!O103>10,10,[1]综合素质认定!O103) -> 3 | G103: 0 | H103: 0 | I103: 0 | J103: 70.82 | K103: =IF(J103<[1]奖补比例!$D$2,"D",IF(J103<[1]奖补比例!$C$2,"C",IF(J103<[1]奖补比例!$B$2,"B","A"))) -> B | L103: =[1]苏州工业园区工业企业技术改造经济效益表!AJ103 -> 26814 | M103: =[1]苏州工业园区工业企业技术改造经济效益表!AM103 -> 0 | N103: =IF([1]苏州工业园区工业企业技术改造经济效益表!AN103>=0.7,[1]苏州工业园区工业企业技术改造经济效益表!AM103,0) -> 0 | O103: =IF(IF(K103="A",[1]苏州工业园区工业企业技术改造经济效益表!AJ103*[1]奖补比例!$B$3+N103*[1]奖补比例!$B$5,IF(K103="B",[1]苏州工业园区工业企业技术改造经济效益表!AJ103*[1]奖补比例!$C$3+N103*[1]奖补比例!$C$5,IF(K103="C",[1]苏州工业园区工业企业技术改造经济效益表!AJ103*[1]奖补比例!$D$3+N103*[1]奖补比例!$D$5,[1]苏州工业园区工业企业技术改造经济效益表!AJ103*[1]奖补比例!$E$3+N103*[1]奖补比例!$E$5)))*[1]奖补比例!$G$2>1000,1000,IF(K103="A",[1]苏州工业园区工业企业技术改造经济效益表!AJ103*[1]奖补比例!$B$3+N103*[1]奖补比例!$B$5,IF(K103="B",[1]苏州工业园区工业企业技术改造经济效益表!AJ103*[1]奖补比例!$C$3+N103*[1]奖补比例!$C$5,IF(K103="C",[1]苏州工业园区工业企业技术改造经济效益表!AJ103*[1]奖补比例!$D$3+N103*[1]奖补比例!$D$5,[1]苏州工业园区工业企业技术改造经济效益表!AJ103*[1]奖补比例!$E$3+N103*[1]奖补比例!$E$5)))*[1]奖补比例!$G$2) -> 1000 | P103: =VLOOKUP(B103,[1]【扣减】省技改综合奖补!$C$2:$E$59,3,0)/10000 -> 106 | Q103: 0 | R103: 0 | S103: =[1]【扣减】人工智能奖补!F102 -> 0 | T103: 0 | U103: =[1]【扣减】投促委!F102 -> 0 | V103: 894 | W103: 894.00 | X103: 3.73% | Y103: =IF([1]项目纳统比对表!D103="否","未纳统",IF([1]项目纳统比对表!F103="否","不足500万元","")) ->  | AA103: 894.00
A104: 101 | B104: =[1]苏州工业园区工业企业技术改造经济效益表!B104 -> 苏州盛迪亚生物医药有限公司 | C104: =[1]苏州工业园区工业企业技术改造经济效益表!C104 -> 91320594355003673J | D104: =[1]经济效益!N104 -> 98 | E104: =[1]智能化效益!R104 -> 84.81 | F104: =IF([1]综合素质认定!O104>10,10,[1]综合素质认定!O104) -> 4 | G104: 0 | H104: 0 | I104: 0 | J104: 89.56 | K104: =IF(J104<[1]奖补比例!$D$2,"D",IF(J104<[1]奖补比例!$C$2,"C",IF(J104<[1]奖补比例!$B$2,"B","A"))) -> A | L104: =[1]苏州工业园区工业企业技术改造经济效益表!AJ104 -> 9387.13 | M104: =[1]苏州工业园区工业企业技术改造经济效益表!AM104 -> 865.79 | N104: =IF([1]苏州工业园区工业企业技术改造经济效益表!AN104>=0.7,[1]苏州工业园区工业企业技术改造经济效益表!AM104,0) -> 0 | O104: =IF(IF(K104="A",[1]苏州工业园区工业企业技术改造经济效益表!AJ104*[1]奖补比例!$B$3+N104*[1]奖补比例!$B$5,IF(K104="B",[1]苏州工业园区工业企业技术改造经济效益表!AJ104*[1]奖补比例!$C$3+N104*[1]奖补比例!$C$5,IF(K104="C",[1]苏州工业园区工业企业技术改造经济效益表!AJ104*[1]奖补比例!$D$3+N104*[1]奖补比例!$D$5,[1]苏州工业园区工业企业技术改造经济效益表!AJ104*[1]奖补比例!$E$3+N104*[1]奖补比例!$E$5)))*[1]奖补比例!$G$2>1000,1000,IF(K104="A",[1]苏州工业园区工业企业技术改造经济效益表!AJ104*[1]奖补比例!$B$3+N104*[1]奖补比例!$B$5,IF(K104="B",[1]苏州工业园区工业企业技术改造经济效益表!AJ104*[1]奖补比例!$C$3+N104*[1]奖补比例!$C$5,IF(K104="C",[1]苏州工业园区工业企业技术改造经济效益表!AJ104*[1]奖补比例!$D$3+N104*[1]奖补比例!$D$5,[1]苏州工业园区工业企业技术改造经济效益表!AJ104*[1]奖补比例!$E$3+N104*[1]奖补比例!$E$5)))*[1]奖补比例!$G$2) -> 747.42 | P104: 0 | Q104: 0 | R104: 0 | S104: =[1]【扣减】人工智能奖补!F103 -> 0 | T104: 0 | U104: =[1]【扣减】投促委!F103 -> 0 | V104: 747.42 | W104: 747.42 | X104: 7.96% | Y104: =IF([1]项目纳统比对表!D104="否","未纳统",IF([1]项目纳统比对表!F104="否","不足500万元","")) ->  | AA104: 747.42
A105: 102 | B105: =[1]苏州工业园区工业企业技术改造经济效益表!B105 -> 苏州市利来星辰塑业科技有限公司 | C105: =[1]苏州工业园区工业企业技术改造经济效益表!C105 -> 91320594743127619W | D105: =[1]经济效益!N105 -> 57.19 | E105: =[1]智能化效益!R105 -> 70 | F105: =IF([1]综合素质认定!O105>10,10,[1]综合素质认定!O105) -> 1 | G105: 0 | H105: 0 | I105: 0 | J105: 55.03 | K105: =IF(J105<[1]奖补比例!$D$2,"D",IF(J105<[1]奖补比例!$C$2,"C",IF(J105<[1]奖补比例!$B$2,"B","A"))) -> C | L105: =[1]苏州工业园区工业企业技术改造经济效益表!AJ105 -> 844.44 | M105: =[1]苏州工业园区工业企业技术改造经济效益表!AM105 -> 0 | N105: =IF([1]苏州工业园区工业企业技术改造经济效益表!AN105>=0.7,[1]苏州工业园区工业企业技术改造经济效益表!AM105,0) -> 0 | O105: =IF(IF(K105="A",[1]苏州工业园区工业企业技术改造经济效益表!AJ105*[1]奖补比例!$B$3+N105*[1]奖补比例!$B$5,IF(K105="B",[1]苏州工业园区工业企业技术改造经济效益表!AJ105*[1]奖补比例!$C$3+N105*[1]奖补比例!$C$5,IF(K105="C",[1]苏州工业园区工业企业技术改造经济效益表!AJ105*[1]奖补比例!$D$3+N105*[1]奖补比例!$D$5,[1]苏州工业园区工业企业技术改造经济效益表!AJ105*[1]奖补比例!$E$3+N105*[1]奖补比例!$E$5)))*[1]奖补比例!$G$2>1000,1000,IF(K105="A",[1]苏州工业园区工业企业技术改造经济效益表!AJ105*[1]奖补比例!$B$3+N105*[1]奖补比例!$B$5,IF(K105="B",[1]苏州工业园区工业企业技术改造经济效益表!AJ105*[1]奖补比例!$C$3+N105*[1]奖补比例!$C$5,IF(K105="C",[1]苏州工业园区工业企业技术改造经济效益表!AJ105*[1]奖补比例!$D$3+N105*[1]奖补比例!$D$5,[1]苏州工业园区工业企业技术改造经济效益表!AJ105*[1]奖补比例!$E$3+N105*[1]奖补比例!$E$5)))*[1]奖补比例!$G$2) -> 33.62 | P105: 0 | Q105: 0 | R105: 0 | S105: =[1]【扣减】人工智能奖补!F104 -> 0 | T105: 0 | U105: =[1]【扣减】投促委!F104 -> 0 | V105: 33.62 | W105: 33.62 | X105: 3.98% | Y105: =IF([1]项目纳统比对表!D105="否","未纳统",IF([1]项目纳统比对表!F105="否","不足500万元","")) -> 未纳统 | AA105: 33.62
A106: 103 | B106: =[1]苏州工业园区工业企业技术改造经济效益表!B106 -> 苏州苏试广博环境可靠性实验室有限公司 | C106: =[1]苏州工业园区工业企业技术改造经济效益表!C106 -> 91320594695503316U | D106: =[1]经济效益!N106 -> 65.84 | E106: =[1]智能化效益!R106 -> 89 | F106: =IF([1]综合素质认定!O106>10,10,[1]综合素质认定!O106) -> 0 | G106: 0 | H106: 0 | I106: 0 | J106: 63.89 | K106: =IF(J106<[1]奖补比例!$D$2,"D",IF(J106<[1]奖补比例!$C$2,"C",IF(J106<[1]奖补比例!$B$2,"B","A"))) -> B | L106: =[1]苏州工业园区工业企业技术改造经济效益表!AJ106 -> 2850.63 | M106: =[1]苏州工业园区工业企业技术改造经济效益表!AM106 -> 2328 | N106: =IF([1]苏州工业园区工业企业技术改造经济效益表!AN106>=0.7,[1]苏州工业园区工业企业技术改造经济效益表!AM106,0) -> 2328 | O106: =IF(IF(K106="A",[1]苏州工业园区工业企业技术改造经济效益表!AJ106*[1]奖补比例!$B$3+N106*[1]奖补比例!$B$5,IF(K106="B",[1]苏州工业园区工业企业技术改造经济效益表!AJ106*[1]奖补比例!$C$3+N106*[1]奖补比例!$C$5,IF(K106="C",[1]苏州工业园区工业企业技术改造经济效益表!AJ106*[1]奖补比例!$D$3+N106*[1]奖补比例!$D$5,[1]苏州工业园区工业企业技术改造经济效益表!AJ106*[1]奖补比例!$E$3+N106*[1]奖补比例!$E$5)))*[1]奖补比例!$G$2>1000,1000,IF(K106="A",[1]苏州工业园区工业企业技术改造经济效益表!AJ106*[1]奖补比例!$B$3+N106*[1]奖补比例!$B$5,IF(K106="B",[1]苏州工业园区工业企业技术改造经济效益表!AJ106*[1]奖补比例!$C$3+N106*[1]奖补比例!$C$5,IF(K106="C",[1]苏州工业园区工业企业技术改造经济效益表!AJ106*[1]奖补比例!$D$3+N106*[1]奖补比例!$D$5,[1]苏州工业园区工业企业技术改造经济效益表!AJ106*[1]奖补比例!$E$3+N106*[1]奖补比例!$E$5)))*[1]奖补比例!$G$2) -> 237.19 | P106: =VLOOKUP(B106,[1]【扣减】省技改综合奖补!$C$2:$E$59,3,0)/10000 -> 15 | Q106: 0 | R106: 0 | S106: =[1]【扣减】人工智能奖补!F105 -> 0 | T106: 0 | U106: =[1]【扣减】投促委!F105 -> 0 | V106: 222.19 | W106: 222.19 | X106: 8.32% | Y106: =IF([1]项目纳统比对表!D106="否","未纳统",IF([1]项目纳统比对表!F106="否","不足500万元","")) -> 未纳统 | AA106: 222.19
A107: 104 | B107: =[1]苏州工业园区工业企业技术改造经济效益表!B107 -> 苏州通富超威半导体有限公司 | C107: =[1]苏州工业园区工业企业技术改造经济效益表!C107 -> 91320594759661883L | D107: =[1]经济效益!N107 -> 78.27 | E107: =[1]智能化效益!R107 -> 84.84 | F107: =IF([1]综合素质认定!O107>10,10,[1]综合素质认定!O107) -> 10 | G107: 0 | H107: 0 | I107: 0 | J107: 81.76 | K107: =IF(J107<[1]奖补比例!$D$2,"D",IF(J107<[1]奖补比例!$C$2,"C",IF(J107<[1]奖补比例!$B$2,"B","A"))) -> A | L107: =[1]苏州工业园区工业企业技术改造经济效益表!AJ107 -> 14920.73 | M107: =[1]苏州工业园区工业企业技术改造经济效益表!AM107 -> 0 | N107: =IF([1]苏州工业园区工业企业技术改造经济效益表!AN107>=0.7,[1]苏州工业园区工业企业技术改造经济效益表!AM107,0) -> 0 | O107: =IF(IF(K107="A",[1]苏州工业园区工业企业技术改造经济效益表!AJ107*[1]奖补比例!$B$3+N107*[1]奖补比例!$B$5,IF(K107="B",[1]苏州工业园区工业企业技术改造经济效益表!AJ107*[1]奖补比例!$C$3+N107*[1]奖补比例!$C$5,IF(K107="C",[1]苏州工业园区工业企业技术改造经济效益表!AJ107*[1]奖补比例!$D$3+N107*[1]奖补比例!$D$5,[1]苏州工业园区工业企业技术改造经济效益表!AJ107*[1]奖补比例!$E$3+N107*[1]奖补比例!$E$5)))*[1]奖补比例!$G$2>1000,1000,IF(K107="A",[1]苏州工业园区工业企业技术改造经济效益表!AJ107*[1]奖补比例!$B$3+N107*[1]奖补比例!$B$5,IF(K107="B",[1]苏州工业园区工业企业技术改造经济效益表!AJ107*[1]奖补比例!$C$3+N107*[1]奖补比例!$C$5,IF(K107="C",[1]苏州工业园区工业企业技术改造经济效益表!AJ107*[1]奖补比例!$D$3+N107*[1]奖补比例!$D$5,[1]苏州工业园区工业企业技术改造经济效益表!AJ107*[1]奖补比例!$E$3+N107*[1]奖补比例!$E$5)))*[1]奖补比例!$G$2) -> 1000 | P107: 0 | Q107: 0 | R107: =VLOOKUP(B107,[1]【扣减】节能改造项目奖补!$B$2:$C$23,2,0) -> 13 | S107: =[1]【扣减】人工智能奖补!F106 -> 0 | T107: 0 | U107: =[1]【扣减】投促委!F106 -> 1061 | V107: 0 | W107: 0.00 | X107: 6.70% | Y107: =IF([1]项目纳统比对表!D107="否","未纳统",IF([1]项目纳统比对表!F107="否","不足500万元","")) ->  | AA107: 0.00
A108: 105 | B108: =[1]苏州工业园区工业企业技术改造经济效益表!B108 -> 苏州万龙电气集团股份有限公司 | C108: =[1]苏州工业园区工业企业技术改造经济效益表!C108 -> 9132000076827085X5 | D108: =[1]经济效益!N108 -> 38.34 | E108: =[1]智能化效益!R108 -> 0 | F108: =IF([1]综合素质认定!O108>10,10,[1]综合素质认定!O108) -> 7 | G108: 0 | H108: 0 | I108: 0 | J108: 33.84 | K108: =IF(J108<[1]奖补比例!$D$2,"D",IF(J108<[1]奖补比例!$C$2,"C",IF(J108<[1]奖补比例!$B$2,"B","A"))) -> D | L108: =[1]苏州工业园区工业企业技术改造经济效益表!AJ108 -> 0 | M108: =[1]苏州工业园区工业企业技术改造经济效益表!AM108 -> 315.15 | N108: =IF([1]苏州工业园区工业企业技术改造经济效益表!AN108>=0.7,[1]苏州工业园区工业企业技术改造经济效益表!AM108,0) -> 315.15 | O108: =IF(IF(K108="A",[1]苏州工业园区工业企业技术改造经济效益表!AJ108*[1]奖补比例!$B$3+N108*[1]奖补比例!$B$5,IF(K108="B",[1]苏州工业园区工业企业技术改造经济效益表!AJ108*[1]奖补比例!$C$3+N108*[1]奖补比例!$C$5,IF(K108="C",[1]苏州工业园区工业企业技术改造经济效益表!AJ108*[1]奖补比例!$D$3+N108*[1]奖补比例!$D$5,[1]苏州工业园区工业企业技术改造经济效益表!AJ108*[1]奖补比例!$E$3+N108*[1]奖补比例!$E$5)))*[1]奖补比例!$G$2>1000,1000,IF(K108="A",[1]苏州工业园区工业企业技术改造经济效益表!AJ108*[1]奖补比例!$B$3+N108*[1]奖补比例!$B$5,IF(K108="B",[1]苏州工业园区工业企业技术改造经济效益表!AJ108*[1]奖补比例!$C$3+N108*[1]奖补比例!$C$5,IF(K108="C",[1]苏州工业园区工业企业技术改造经济效益表!AJ108*[1]奖补比例!$D$3+N108*[1]奖补比例!$D$5,[1]苏州工业园区工业企业技术改造经济效益表!AJ108*[1]奖补比例!$E$3+N108*[1]奖补比例!$E$5)))*[1]奖补比例!$G$2) -> 5.02 | P108: =VLOOKUP(B108,[1]【扣减】省技改综合奖补!$C$2:$E$59,3,0)/10000 -> 15 | Q108: 0 | R108: 0 | S108: =[1]【扣减】人工智能奖补!F107 -> 0 | T108: 0 | U108: =[1]【扣减】投促委!F107 -> 0 | V108: 0 | W108: 0.00 | X108: 0.00% | Y108: =IF([1]项目纳统比对表!D108="否","未纳统",IF([1]项目纳统比对表!F108="否","不足500万元","")) ->  | AA108: 0.00
A109: 106 | B109: =[1]苏州工业园区工业企业技术改造经济效益表!B109 -> 苏州微创关节医疗科技有限公司 | C109: =[1]苏州工业园区工业企业技术改造经济效益表!C109 -> 9132059433902399XA | D109: =[1]经济效益!N109 -> 86 | E109: =[1]智能化效益!R109 -> 82.52 | F109: =IF([1]综合素质认定!O109>10,10,[1]综合素质认定!O109) -> 1 | G109: 0 | H109: 0 | I109: 0 | J109: 77.70 | K109: =IF(J109<[1]奖补比例!$D$2,"D",IF(J109<[1]奖补比例!$C$2,"C",IF(J109<[1]奖补比例!$B$2,"B","A"))) -> B | L109: =[1]苏州工业园区工业企业技术改造经济效益表!AJ109 -> 1944.63 | M109: =[1]苏州工业园区工业企业技术改造经济效益表!AM109 -> 0 | N109: =IF([1]苏州工业园区工业企业技术改造经济效益表!AN109>=0.7,[1]苏州工业园区工业企业技术改造经济效益表!AM109,0) -> 0 | O109: =IF(IF(K109="A",[1]苏州工业园区工业企业技术改造经济效益表!AJ109*[1]奖补比例!$B$3+N109*[1]奖补比例!$B$5,IF(K109="B",[1]苏州工业园区工业企业技术改造经济效益表!AJ109*[1]奖补比例!$C$3+N109*[1]奖补比例!$C$5,IF(K109="C",[1]苏州工业园区工业企业技术改造经济效益表!AJ109*[1]奖补比例!$D$3+N109*[1]奖补比例!$D$5,[1]苏州工业园区工业企业技术改造经济效益表!AJ109*[1]奖补比例!$E$3+N109*[1]奖补比例!$E$5)))*[1]奖补比例!$G$2>1000,1000,IF(K109="A",[1]苏州工业园区工业企业技术改造经济效益表!AJ109*[1]奖补比例!$B$3+N109*[1]奖补比例!$B$5,IF(K109="B",[1]苏州工业园区工业企业技术改造经济效益表!AJ109*[1]奖补比例!$C$3+N109*[1]奖补比例!$C$5,IF(K109="C",[1]苏州工业园区工业企业技术改造经济效益表!AJ109*[1]奖补比例!$D$3+N109*[1]奖补比例!$D$5,[1]苏州工业园区工业企业技术改造经济效益表!AJ109*[1]奖补比例!$E$3+N109*[1]奖补比例!$E$5)))*[1]奖补比例!$G$2) -> 123.87 | P109: =VLOOKUP(B109,[1]【扣减】省技改综合奖补!$C$2:$E$59,3,0)/10000 -> 15 | Q109: 0 | R109: 0 | S109: =[1]【扣减】人工智能奖补!F108 -> 0 | T109: 0 | U109: =[1]【扣减】投促委!F108 -> 0 | V109: 108.87 | W109: 108.87 | X109: =O109/L109 -> 6.37% | Y109: =IF([1]项目纳统比对表!D109="否","未纳统",IF([1]项目纳统比对表!F109="否","不足500万元","")) ->  | AA109: 108.87
A110: 107 | B110: =[1]苏州工业园区工业企业技术改造经济效益表!B110 -> 苏州微创脊柱创伤医疗科技有限公司 | C110: =[1]苏州工业园区工业企业技术改造经济效益表!C110 -> 91320582755087095L | D110: =[1]经济效益!N110 -> 64 | E110: =[1]智能化效益!R110 -> 75 | F110: =IF([1]综合素质认定!O110>10,10,[1]综合素质认定!O110) -> 0 | G110: 0 | H110: 0 | I110: 0 | J110: 59.80 | K110: =IF(J110<[1]奖补比例!$D$2,"D",IF(J110<[1]奖补比例!$C$2,"C",IF(J110<[1]奖补比例!$B$2,"B","A"))) -> C | L110: =[1]苏州工业园区工业企业技术改造经济效益表!AJ110 -> 512.04 | M110: =[1]苏州工业园区工业企业技术改造经济效益表!AM110 -> 0 | N110: =IF([1]苏州工业园区工业企业技术改造经济效益表!AN110>=0.7,[1]苏州工业园区工业企业技术改造经济效益表!AM110,0) -> 0 | O110: =IF(IF(K110="A",[1]苏州工业园区工业企业技术改造经济效益表!AJ110*[1]奖补比例!$B$3+N110*[1]奖补比例!$B$5,IF(K110="B",[1]苏州工业园区工业企业技术改造经济效益表!AJ110*[1]奖补比例!$C$3+N110*[1]奖补比例!$C$5,IF(K110="C",[1]苏州工业园区工业企业技术改造经济效益表!AJ110*[1]奖补比例!$D$3+N110*[1]奖补比例!$D$5,[1]苏州工业园区工业企业技术改造经济效益表!AJ110*[1]奖补比例!$E$3+N110*[1]奖补比例!$E$5)))*[1]奖补比例!$G$2>1000,1000,IF(K110="A",[1]苏州工业园区工业企业技术改造经济效益表!AJ110*[1]奖补比例!$B$3+N110*[1]奖补比例!$B$5,IF(K110="B",[1]苏州工业园区工业企业技术改造经济效益表!AJ110*[1]奖补比例!$C$3+N110*[1]奖补比例!$C$5,IF(K110="C",[1]苏州工业园区工业企业技术改造经济效益表!AJ110*[1]奖补比例!$D$3+N110*[1]奖补比例!$D$5,[1]苏州工业园区工业企业技术改造经济效益表!AJ110*[1]奖补比例!$E$3+N110*[1]奖补比例!$E$5)))*[1]奖补比例!$G$2) -> 20.38 | P110: 0 | Q110: 0 | R110: 0 | S110: =[1]【扣减】人工智能奖补!F109 -> 0 | T110: 0 | U110: =[1]【扣减】投促委!F109 -> 0 | V110: 20.38 | W110: 20.38 | X110: 3.98% | Y110: =IF([1]项目纳统比对表!D110="否","未纳统",IF([1]项目纳统比对表!F110="否","不足500万元","")) -> 未纳统 | AA110: 20.38
A111: 108 | B111: =[1]苏州工业园区工业企业技术改造经济效益表!B111 -> 苏州新凯紧固系统有限公司 | C111: =[1]苏州工业园区工业企业技术改造经济效益表!C111 -> 913205947539393628 | D111: =[1]经济效益!N111 -> 51.90 | E111: =[1]智能化效益!R111 -> 89.67 | F111: =IF([1]综合素质认定!O111>10,10,[1]综合素质认定!O111) -> 2 | G111: 0 | H111: 0 | I111: 0 | J111: 56.26 | K111: =IF(J111<[1]奖补比例!$D$2,"D",IF(J111<[1]奖补比例!$C$2,"C",IF(J111<[1]奖补比例!$B$2,"B","A"))) -> C | L111: =[1]苏州工业园区工业企业技术改造经济效益表!AJ111 -> 1358.04 | M111: =[1]苏州工业园区工业企业技术改造经济效益表!AM111 -> 12.81 | N111: =IF([1]苏州工业园区工业企业技术改造经济效益表!AN111>=0.7,[1]苏州工业园区工业企业技术改造经济效益表!AM111,0) -> 0 | O111: =IF(IF(K111="A",[1]苏州工业园区工业企业技术改造经济效益表!AJ111*[1]奖补比例!$B$3+N111*[1]奖补比例!$B$5,IF(K111="B",[1]苏州工业园区工业企业技术改造经济效益表!AJ111*[1]奖补比例!$C$3+N111*[1]奖补比例!$C$5,IF(K111="C",[1]苏州工业园区工业企业技术改造经济效益表!AJ111*[1]奖补比例!$D$3+N111*[1]奖补比例!$D$5,[1]苏州工业园区工业企业技术改造经济效益表!AJ111*[1]奖补比例!$E$3+N111*[1]奖补比例!$E$5)))*[1]奖补比例!$G$2>1000,1000,IF(K111="A",[1]苏州工业园区工业企业技术改造经济效益表!AJ111*[1]奖补比例!$B$3+N111*[1]奖补比例!$B$5,IF(K111="B",[1]苏州工业园区工业企业技术改造经济效益表!AJ111*[1]奖补比例!$C$3+N111*[1]奖补比例!$C$5,IF(K111="C",[1]苏州工业园区工业企业技术改造经济效益表!AJ111*[1]奖补比例!$D$3+N111*[1]奖补比例!$D$5,[1]苏州工业园区工业企业技术改造经济效益表!AJ111*[1]奖补比例!$E$3+N111*[1]奖补比例!$E$5)))*[1]奖补比例!$G$2) -> 54.06 | P111: 0 | Q111: 0 | R111: 0 | S111: =[1]【扣减】人工智能奖补!F110 -> 0 | T111: 0 | U111: =[1]【扣减】投促委!F110 -> 0 | V111: 54.06 | W111: 54.06 | X111: 3.98% | Y111: =IF([1]项目纳统比对表!D111="否","未纳统",IF([1]项目纳统比对表!F111="否","不足500万元","")) -> 未纳统 | AA111: 54.06
A112: 109 | B112: =[1]苏州工业园区工业企业技术改造经济效益表!B112 -> 苏州新锐合金工具股份有限公司 | C112: =[1]苏州工业园区工业企业技术改造经济效益表!C112 -> 9132000077867054XF | D112: =[1]经济效益!N112 -> 69.22 | E112: =[1]智能化效益!R112 -> 87.78 | F112: =IF([1]综合素质认定!O112>10,10,[1]综合素质认定!O112) -> 3 | G112: 0 | H112: 0 | I112: 0 | J112: 69.01 | K112: =IF(J112<[1]奖补比例!$D$2,"D",IF(J112<[1]奖补比例!$C$2,"C",IF(J112<[1]奖补比例!$B$2,"B","A"))) -> B | L112: =[1]苏州工业园区工业企业技术改造经济效益表!AJ112 -> 964.88 | M112: =[1]苏州工业园区工业企业技术改造经济效益表!AM112 -> 0 | N112: =IF([1]苏州工业园区工业企业技术改造经济效益表!AN112>=0.7,[1]苏州工业园区工业企业技术改造经济效益表!AM112,0) -> 0 | O112: =IF(IF(K112="A",[1]苏州工业园区工业企业技术改造经济效益表!AJ112*[1]奖补比例!$B$3+N112*[1]奖补比例!$B$5,IF(K112="B",[1]苏州工业园区工业企业技术改造经济效益表!AJ112*[1]奖补比例!$C$3+N112*[1]奖补比例!$C$5,IF(K112="C",[1]苏州工业园区工业企业技术改造经济效益表!AJ112*[1]奖补比例!$D$3+N112*[1]奖补比例!$D$5,[1]苏州工业园区工业企业技术改造经济效益表!AJ112*[1]奖补比例!$E$3+N112*[1]奖补比例!$E$5)))*[1]奖补比例!$G$2>1000,1000,IF(K112="A",[1]苏州工业园区工业企业技术改造经济效益表!AJ112*[1]奖补比例!$B$3+N112*[1]奖补比例!$B$5,IF(K112="B",[1]苏州工业园区工业企业技术改造经济效益表!AJ112*[1]奖补比例!$C$3+N112*[1]奖补比例!$C$5,IF(K112="C",[1]苏州工业园区工业企业技术改造经济效益表!AJ112*[1]奖补比例!$D$3+N112*[1]奖补比例!$D$5,[1]苏州工业园区工业企业技术改造经济效益表!AJ112*[1]奖补比例!$E$3+N112*[1]奖补比例!$E$5)))*[1]奖补比例!$G$2) -> 61.46 | P112: 0 | Q112: 0 | R112: 0 | S112: =[1]【扣减】人工智能奖补!F111 -> 0 | T112: 0 | U112: =[1]【扣减】投促委!F111 -> 0 | V112: 61.46 | W112: 61.46 | X112: 6.37% | Y112: =IF([1]项目纳统比对表!D112="否","未纳统",IF([1]项目纳统比对表!F112="否","不足500万元","")) ->  | AA112: 61.46
A113: 110 | B113: =[1]苏州工业园区工业企业技术改造经济效益表!B113 -> 苏州星诺奇科技股份有限公司 | C113: =[1]苏州工业园区工业企业技术改造经济效益表!C113 -> 913200005642769422 | D113: =[1]经济效益!N113 -> 60.30 | E113: =[1]智能化效益!R113 -> 72 | F113: =IF([1]综合素质认定!O113>10,10,[1]综合素质认定!O113) -> 4 | G113: 0 | H113: 0 | I113: 0 | J113: 60.61 | K113: =IF(J113<[1]奖补比例!$D$2,"D",IF(J113<[1]奖补比例!$C$2,"C",IF(J113<[1]奖补比例!$B$2,"B","A"))) -> B | L113: =[1]苏州工业园区工业企业技术改造经济效益表!AJ113 -> 1070.31 | M113: =[1]苏州工业园区工业企业技术改造经济效益表!AM113 -> 41.25 | N113: =IF([1]苏州工业园区工业企业技术改造经济效益表!AN113>=0.7,[1]苏州工业园区工业企业技术改造经济效益表!AM113,0) -> 0 | O113: =IF(IF(K113="A",[1]苏州工业园区工业企业技术改造经济效益表!AJ113*[1]奖补比例!$B$3+N113*[1]奖补比例!$B$5,IF(K113="B",[1]苏州工业园区工业企业技术改造经济效益表!AJ113*[1]奖补比例!$C$3+N113*[1]奖补比例!$C$5,IF(K113="C",[1]苏州工业园区工业企业技术改造经济效益表!AJ113*[1]奖补比例!$D$3+N113*[1]奖补比例!$D$5,[1]苏州工业园区工业企业技术改造经济效益表!AJ113*[1]奖补比例!$E$3+N113*[1]奖补比例!$E$5)))*[1]奖补比例!$G$2>1000,1000,IF(K113="A",[1]苏州工业园区工业企业技术改造经济效益表!AJ113*[1]奖补比例!$B$3+N113*[1]奖补比例!$B$5,IF(K113="B",[1]苏州工业园区工业企业技术改造经济效益表!AJ113*[1]奖补比例!$C$3+N113*[1]奖补比例!$C$5,IF(K113="C",[1]苏州工业园区工业企业技术改造经济效益表!AJ113*[1]奖补比例!$D$3+N113*[1]奖补比例!$D$5,[1]苏州工业园区工业企业技术改造经济效益表!AJ113*[1]奖补比例!$E$3+N113*[1]奖补比例!$E$5)))*[1]奖补比例!$G$2) -> 68.18 | P113: 0 | Q113: 0 | R113: 0 | S113: =[1]【扣减】人工智能奖补!F112 -> 0 | T113: 0 | U113: =[1]【扣减】投促委!F112 -> 0 | V113: 68.18 | W113: 68.18 | X113: 6.37% | Y113: =IF([1]项目纳统比对表!D113="否","未纳统",IF([1]项目纳统比对表!F113="否","不足500万元","")) ->  | AA113: 68.18
A114: 111 | B114: =[1]苏州工业园区工业企业技术改造经济效益表!B114 -> 苏州兴胜科半导体材料有限公司 | C114: =[1]苏州工业园区工业企业技术改造经济效益表!C114 -> 91320594747307756U | D114: =[1]经济效益!N114 -> 85.09 | E114: =[1]智能化效益!R114 -> 70.20 | F114: =IF([1]综合素质认定!O114>10,10,[1]综合素质认定!O114) -> 0 | G114: 0 | H114: 0 | I114: 0 | J114: 73.61 | K114: =IF(J114<[1]奖补比例!$D$2,"D",IF(J114<[1]奖补比例!$C$2,"C",IF(J114<[1]奖补比例!$B$2,"B","A"))) -> B | L114: =[1]苏州工业园区工业企业技术改造经济效益表!AJ114 -> 1033.66 | M114: =[1]苏州工业园区工业企业技术改造经济效益表!AM114 -> 65.06 | N114: =IF([1]苏州工业园区工业企业技术改造经济效益表!AN114>=0.7,[1]苏州工业园区工业企业技术改造经济效益表!AM114,0) -> 0 | O114: =IF(IF(K114="A",[1]苏州工业园区工业企业技术改造经济效益表!AJ114*[1]奖补比例!$B$3+N114*[1]奖补比例!$B$5,IF(K114="B",[1]苏州工业园区工业企业技术改造经济效益表!AJ114*[1]奖补比例!$C$3+N114*[1]奖补比例!$C$5,IF(K114="C",[1]苏州工业园区工业企业技术改造经济效益表!AJ114*[1]奖补比例!$D$3+N114*[1]奖补比例!$D$5,[1]苏州工业园区工业企业技术改造经济效益表!AJ114*[1]奖补比例!$E$3+N114*[1]奖补比例!$E$5)))*[1]奖补比例!$G$2>1000,1000,IF(K114="A",[1]苏州工业园区工业企业技术改造经济效益表!AJ114*[1]奖补比例!$B$3+N114*[1]奖补比例!$B$5,IF(K114="B",[1]苏州工业园区工业企业技术改造经济效益表!AJ114*[1]奖补比例!$C$3+N114*[1]奖补比例!$C$5,IF(K114="C",[1]苏州工业园区工业企业技术改造经济效益表!AJ114*[1]奖补比例!$D$3+N114*[1]奖补比例!$D$5,[1]苏州工业园区工业企业技术改造经济效益表!AJ114*[1]奖补比例!$E$3+N114*[1]奖补比例!$E$5)))*[1]奖补比例!$G$2) -> 65.84 | P114: 0 | Q114: 0 | R114: 0 | S114: =[1]【扣减】人工智能奖补!F113 -> 0 | T114: 0 | U114: =[1]【扣减】投促委!F113 -> 0 | V114: 65.84 | W114: 65.84 | X114: 6.37% | Y114: =IF([1]项目纳统比对表!D114="否","未纳统",IF([1]项目纳统比对表!F114="否","不足500万元","")) -> 不足500万元 | AA114: 65.84
A115: 112 | B115: =[1]苏州工业园区工业企业技术改造经济效益表!B115 -> 苏州旭创科技有限公司 | C115: =[1]苏州工业园区工业企业技术改造经济效益表!C115 -> 913205946739170837 | D115: =[1]经济效益!N115 -> 99.37 | E115: =[1]智能化效益!R115 -> 87 | F115: =IF([1]综合素质认定!O115>10,10,[1]综合素质认定!O115) -> 3 | G115: 0 | H115: 0 | I115: 0 | J115: 89.96 | K115: =IF(J115<[1]奖补比例!$D$2,"D",IF(J115<[1]奖补比例!$C$2,"C",IF(J115<[1]奖补比例!$B$2,"B","A"))) -> A | L115: =[1]苏州工业园区工业企业技术改造经济效益表!AJ115 -> 16292.04 | M115: =[1]苏州工业园区工业企业技术改造经济效益表!AM115 -> 68 | N115: =IF([1]苏州工业园区工业企业技术改造经济效益表!AN115>=0.7,[1]苏州工业园区工业企业技术改造经济效益表!AM115,0) -> 0 | O115: =IF(IF(K115="A",[1]苏州工业园区工业企业技术改造经济效益表!AJ115*[1]奖补比例!$B$3+N115*[1]奖补比例!$B$5,IF(K115="B",[1]苏州工业园区工业企业技术改造经济效益表!AJ115*[1]奖补比例!$C$3+N115*[1]奖补比例!$C$5,IF(K115="C",[1]苏州工业园区工业企业技术改造经济效益表!AJ115*[1]奖补比例!$D$3+N115*[1]奖补比例!$D$5,[1]苏州工业园区工业企业技术改造经济效益表!AJ115*[1]奖补比例!$E$3+N115*[1]奖补比例!$E$5)))*[1]奖补比例!$G$2>1000,1000,IF(K115="A",[1]苏州工业园区工业企业技术改造经济效益表!AJ115*[1]奖补比例!$B$3+N115*[1]奖补比例!$B$5,IF(K115="B",[1]苏州工业园区工业企业技术改造经济效益表!AJ115*[1]奖补比例!$C$3+N115*[1]奖补比例!$C$5,IF(K115="C",[1]苏州工业园区工业企业技术改造经济效益表!AJ115*[1]奖补比例!$D$3+N115*[1]奖补比例!$D$5,[1]苏州工业园区工业企业技术改造经济效益表!AJ115*[1]奖补比例!$E$3+N115*[1]奖补比例!$E$5)))*[1]奖补比例!$G$2) -> 1000 | P115: 0 | Q115: 0 | R115: =VLOOKUP(B115,[1]【扣减】节能改造项目奖补!$B$2:$C$23,2,0) -> 14 | S115: =[1]【扣减】人工智能奖补!F114 -> 0 | T115: 0 | U115: =[1]【扣减】投促委!F114 -> 0 | V115: 986 | W115: 986.00 | X115: 6.14% | Y115: =IF([1]项目纳统比对表!D115="否","未纳统",IF([1]项目纳统比对表!F115="否","不足500万元","")) -> 未纳统 | AA115: 986.00
A116: 113 | B116: =[1]苏州工业园区工业企业技术改造经济效益表!B116 -> 苏州一光仪器有限公司 | C116: =[1]苏州工业园区工业企业技术改造经济效益表!C116 -> 91320594716806851B | D116: =[1]经济效益!N116 -> 77.01 | E116: =[1]智能化效益!R116 -> 90 | F116: =IF([1]综合素质认定!O116>10,10,[1]综合素质认定!O116) -> 3 | G116: 0 | H116: 0 | I116: 0 | J116: 74.91 | K116: =IF(J116<[1]奖补比例!$D$2,"D",IF(J116<[1]奖补比例!$C$2,"C",IF(J116<[1]奖补比例!$B$2,"B","A"))) -> B | L116: =[1]苏州工业园区工业企业技术改造经济效益表!AJ116 -> 574.9 | M116: =[1]苏州工业园区工业企业技术改造经济效益表!AM116 -> 0 | N116: =IF([1]苏州工业园区工业企业技术改造经济效益表!AN116>=0.7,[1]苏州工业园区工业企业技术改造经济效益表!AM116,0) -> 0 | O116: =IF(IF(K116="A",[1]苏州工业园区工业企业技术改造经济效益表!AJ116*[1]奖补比例!$B$3+N116*[1]奖补比例!$B$5,IF(K116="B",[1]苏州工业园区工业企业技术改造经济效益表!AJ116*[1]奖补比例!$C$3+N116*[1]奖补比例!$C$5,IF(K116="C",[1]苏州工业园区工业企业技术改造经济效益表!AJ116*[1]奖补比例!$D$3+N116*[1]奖补比例!$D$5,[1]苏州工业园区工业企业技术改造经济效益表!AJ116*[1]奖补比例!$E$3+N116*[1]奖补比例!$E$5)))*[1]奖补比例!$G$2>1000,1000,IF(K116="A",[1]苏州工业园区工业企业技术改造经济效益表!AJ116*[1]奖补比例!$B$3+N116*[1]奖补比例!$B$5,IF(K116="B",[1]苏州工业园区工业企业技术改造经济效益表!AJ116*[1]奖补比例!$C$3+N116*[1]奖补比例!$C$5,IF(K116="C",[1]苏州工业园区工业企业技术改造经济效益表!AJ116*[1]奖补比例!$D$3+N116*[1]奖补比例!$D$5,[1]苏州工业园区工业企业技术改造经济效益表!AJ116*[1]奖补比例!$E$3+N116*[1]奖补比例!$E$5)))*[1]奖补比例!$G$2) -> 36.62 | P116: 0 | Q116: 0 | R116: 0 | S116: =[1]【扣减】人工智能奖补!F115 -> 0 | T116: 0 | U116: =[1]【扣减】投促委!F115 -> 0 | V116: 36.62 | W116: 36.62 | X116: 6.37% | Y116: =IF([1]项目纳统比对表!D116="否","未纳统",IF([1]项目纳统比对表!F116="否","不足500万元","")) ->  | AA116: 36.62
A117: 114 | B117: =[1]苏州工业园区工业企业技术改造经济效益表!B117 -> 苏州亦崴电子科技有限公司 | C117: =[1]苏州工业园区工业企业技术改造经济效益表!C117 -> 91320594088549339X | D117: =[1]经济效益!N117 -> 42 | E117: =[1]智能化效益!R117 -> 70 | F117: =IF([1]综合素质认定!O117>10,10,[1]综合素质认定!O117) -> 0 | G117: 0 | H117: 0 | I117: 0 | J117: 43.40 | K117: =IF(J117<[1]奖补比例!$D$2,"D",IF(J117<[1]奖补比例!$C$2,"C",IF(J117<[1]奖补比例!$B$2,"B","A"))) -> D | L117: =[1]苏州工业园区工业企业技术改造经济效益表!AJ117 -> 1811.62 | M117: =[1]苏州工业园区工业企业技术改造经济效益表!AM117 -> 0 | N117: =IF([1]苏州工业园区工业企业技术改造经济效益表!AN117>=0.7,[1]苏州工业园区工业企业技术改造经济效益表!AM117,0) -> 0 | O117: =IF(IF(K117="A",[1]苏州工业园区工业企业技术改造经济效益表!AJ117*[1]奖补比例!$B$3+N117*[1]奖补比例!$B$5,IF(K117="B",[1]苏州工业园区工业企业技术改造经济效益表!AJ117*[1]奖补比例!$C$3+N117*[1]奖补比例!$C$5,IF(K117="C",[1]苏州工业园区工业企业技术改造经济效益表!AJ117*[1]奖补比例!$D$3+N117*[1]奖补比例!$D$5,[1]苏州工业园区工业企业技术改造经济效益表!AJ117*[1]奖补比例!$E$3+N117*[1]奖补比例!$E$5)))*[1]奖补比例!$G$2>1000,1000,IF(K117="A",[1]苏州工业园区工业企业技术改造经济效益表!AJ117*[1]奖补比例!$B$3+N117*[1]奖补比例!$B$5,IF(K117="B",[1]苏州工业园区工业企业技术改造经济效益表!AJ117*[1]奖补比例!$C$3+N117*[1]奖补比例!$C$5,IF(K117="C",[1]苏州工业园区工业企业技术改造经济效益表!AJ117*[1]奖补比例!$D$3+N117*[1]奖补比例!$D$5,[1]苏州工业园区工业企业技术改造经济效益表!AJ117*[1]奖补比例!$E$3+N117*[1]奖补比例!$E$5)))*[1]奖补比例!$G$2) -> 43.27 | P117: 0 | Q117: 0 | R117: 0 | S117: =[1]【扣减】人工智能奖补!F116 -> 0 | T117: 0 | U117: =[1]【扣减】投促委!F116 -> 0 | V117: 43.27 | W117: 43.27 | X117: 2.39% | Y117: =IF([1]项目纳统比对表!D117="否","未纳统",IF([1]项目纳统比对表!F117="否","不足500万元","")) -> 未纳统 | AA117: 43.27
A118: 115 | B118: =[1]苏州工业园区工业企业技术改造经济效益表!B118 -> 苏州益而益电器制造有限公司 | C118: =[1]苏州工业园区工业企业技术改造经济效益表!C118 -> 91320594784380928B | D118: =[1]经济效益!N118 -> 67.42 | E118: =[1]智能化效益!R118 -> 90.49 | F118: =IF([1]综合素质认定!O118>10,10,[1]综合素质认定!O118) -> 2 | G118: 0 | H118: 0 | I118: 0 | J118: 67.29 | K118: =IF(J118<[1]奖补比例!$D$2,"D",IF(J118<[1]奖补比例!$C$2,"C",IF(J118<[1]奖补比例!$B$2,"B","A"))) -> B | L118: =[1]苏州工业园区工业企业技术改造经济效益表!AJ118 -> 1097.33 | M118: =[1]苏州工业园区工业企业技术改造经济效益表!AM118 -> 67.3 | N118: =IF([1]苏州工业园区工业企业技术改造经济效益表!AN118>=0.7,[1]苏州工业园区工业企业技术改造经济效益表!AM118,0) -> 0 | O118: =IF(IF(K118="A",[1]苏州工业园区工业企业技术改造经济效益表!AJ118*[1]奖补比例!$B$3+N118*[1]奖补比例!$B$5,IF(K118="B",[1]苏州工业园区工业企业技术改造经济效益表!AJ118*[1]奖补比例!$C$3+N118*[1]奖补比例!$C$5,IF(K118="C",[1]苏州工业园区工业企业技术改造经济效益表!AJ118*[1]奖补比例!$D$3+N118*[1]奖补比例!$D$5,[1]苏州工业园区工业企业技术改造经济效益表!AJ118*[1]奖补比例!$E$3+N118*[1]奖补比例!$E$5)))*[1]奖补比例!$G$2>1000,1000,IF(K118="A",[1]苏州工业园区工业企业技术改造经济效益表!AJ118*[1]奖补比例!$B$3+N118*[1]奖补比例!$B$5,IF(K118="B",[1]苏州工业园区工业企业技术改造经济效益表!AJ118*[1]奖补比例!$C$3+N118*[1]奖补比例!$C$5,IF(K118="C",[1]苏州工业园区工业企业技术改造经济效益表!AJ118*[1]奖补比例!$D$3+N118*[1]奖补比例!$D$5,[1]苏州工业园区工业企业技术改造经济效益表!AJ118*[1]奖补比例!$E$3+N118*[1]奖补比例!$E$5)))*[1]奖补比例!$G$2) -> 69.90 | P118: 0 | Q118: 0 | R118: 0 | S118: =[1]【扣减】人工智能奖补!F117 -> 0 | T118: 0 | U118: =[1]【扣减】投促委!F117 -> 0 | V118: 69.90 | W118: 69.90 | X118: 6.37% | Y118: =IF([1]项目纳统比对表!D118="否","未纳统",IF([1]项目纳统比对表!F118="否","不足500万元","")) ->  | AA118: 69.90
A119: 116 | B119: =[1]苏州工业园区工业企业技术改造经济效益表!B119 -> 苏州震坤科技有限公司 | C119: =[1]苏州工业园区工业企业技术改造经济效益表!C119 -> 91320594782062547E | D119: =[1]经济效益!N119 -> 70.15 | E119: =[1]智能化效益!R119 -> 80 | F119: =IF([1]综合素质认定!O119>10,10,[1]综合素质认定!O119) -> 6 | G119: 0 | H119: 0 | I119: 0 | J119: 71.10 | K119: =IF(J119<[1]奖补比例!$D$2,"D",IF(J119<[1]奖补比例!$C$2,"C",IF(J119<[1]奖补比例!$B$2,"B","A"))) -> B | L119: =[1]苏州工业园区工业企业技术改造经济效益表!AJ119 -> 1117.06 | M119: =[1]苏州工业园区工业企业技术改造经济效益表!AM119 -> 0 | N119: =IF([1]苏州工业园区工业企业技术改造经济效益表!AN119>=0.7,[1]苏州工业园区工业企业技术改造经济效益表!AM119,0) -> 0 | O119: =IF(IF(K119="A",[1]苏州工业园区工业企业技术改造经济效益表!AJ119*[1]奖补比例!$B$3+N119*[1]奖补比例!$B$5,IF(K119="B",[1]苏州工业园区工业企业技术改造经济效益表!AJ119*[1]奖补比例!$C$3+N119*[1]奖补比例!$C$5,IF(K119="C",[1]苏州工业园区工业企业技术改造经济效益表!AJ119*[1]奖补比例!$D$3+N119*[1]奖补比例!$D$5,[1]苏州工业园区工业企业技术改造经济效益表!AJ119*[1]奖补比例!$E$3+N119*[1]奖补比例!$E$5)))*[1]奖补比例!$G$2>1000,1000,IF(K119="A",[1]苏州工业园区工业企业技术改造经济效益表!AJ119*[1]奖补比例!$B$3+N119*[1]奖补比例!$B$5,IF(K119="B",[1]苏州工业园区工业企业技术改造经济效益表!AJ119*[1]奖补比例!$C$3+N119*[1]奖补比例!$C$5,IF(K119="C",[1]苏州工业园区工业企业技术改造经济效益表!AJ119*[1]奖补比例!$D$3+N119*[1]奖补比例!$D$5,[1]苏州工业园区工业企业技术改造经济效益表!AJ119*[1]奖补比例!$E$3+N119*[1]奖补比例!$E$5)))*[1]奖补比例!$G$2) -> 71.15 | P119: 0 | Q119: 0 | R119: 0 | S119: =[1]【扣减】人工智能奖补!F118 -> 0 | T119: 0 | U119: =[1]【扣减】投促委!F118 -> 0 | V119: 71.15 | W119: 71.15 | X119: 6.37% | Y119: =IF([1]项目纳统比对表!D119="否","未纳统",IF([1]项目纳统比对表!F119="否","不足500万元","")) ->  | AA119: 71.15
A120: 117 | B120: =[1]苏州工业园区工业企业技术改造经济效益表!B120 -> 苏州紫翔电子科技有限公司 | C120: =[1]苏州工业园区工业企业技术改造经济效益表!C120 -> 913205947406994356 | D120: =[1]经济效益!N120 -> 95 | E120: =[1]智能化效益!R120 -> 75.32 | F120: =IF([1]综合素质认定!O120>10,10,[1]综合素质认定!O120) -> 1 | G120: 0 | H120: 0 | I120: 0 | J120: 82.56 | K120: =IF(J120<[1]奖补比例!$D$2,"D",IF(J120<[1]奖补比例!$C$2,"C",IF(J120<[1]奖补比例!$B$2,"B","A"))) -> A | L120: =[1]苏州工业园区工业企业技术改造经济效益表!AJ120 -> 13173.17 | M120: =[1]苏州工业园区工业企业技术改造经济效益表!AM120 -> 332.24 | N120: =IF([1]苏州工业园区工业企业技术改造经济效益表!AN120>=0.7,[1]苏州工业园区工业企业技术改造经济效益表!AM120,0) -> 0 | O120: =IF(IF(K120="A",[1]苏州工业园区工业企业技术改造经济效益表!AJ120*[1]奖补比例!$B$3+N120*[1]奖补比例!$B$5,IF(K120="B",[1]苏州工业园区工业企业技术改造经济效益表!AJ120*[1]奖补比例!$C$3+N120*[1]奖补比例!$C$5,IF(K120="C",[1]苏州工业园区工业企业技术改造经济效益表!AJ120*[1]奖补比例!$D$3+N120*[1]奖补比例!$D$5,[1]苏州工业园区工业企业技术改造经济效益表!AJ120*[1]奖补比例!$E$3+N120*[1]奖补比例!$E$5)))*[1]奖补比例!$G$2>1000,1000,IF(K120="A",[1]苏州工业园区工业企业技术改造经济效益表!AJ120*[1]奖补比例!$B$3+N120*[1]奖补比例!$B$5,IF(K120="B",[1]苏州工业园区工业企业技术改造经济效益表!AJ120*[1]奖补比例!$C$3+N120*[1]奖补比例!$C$5,IF(K120="C",[1]苏州工业园区工业企业技术改造经济效益表!AJ120*[1]奖补比例!$D$3+N120*[1]奖补比例!$D$5,[1]苏州工业园区工业企业技术改造经济效益表!AJ120*[1]奖补比例!$E$3+N120*[1]奖补比例!$E$5)))*[1]奖补比例!$G$2) -> 1000 | P120: =VLOOKUP(B120,[1]【扣减】省技改综合奖补!$C$2:$E$59,3,0)/10000 -> 52 | Q120: 0 | R120: 0 | S120: =[1]【扣减】人工智能奖补!F119 -> 0 | T120: 0 | U120: =[1]【扣减】投促委!F119 -> 0 | V120: 948 | W120: 948.00 | X120: 7.59% | Y120: =IF([1]项目纳统比对表!D120="否","未纳统",IF([1]项目纳统比对表!F120="否","不足500万元","")) ->  | AA120: 948.00
A121: 118 | B121: =[1]苏州工业园区工业企业技术改造经济效益表!B121 -> 太极半导体（苏州）有限公司 | C121: =[1]苏州工业园区工业企业技术改造经济效益表!C121 -> 913205940601875249 | D121: =[1]经济效益!N121 -> 66.31 | E121: =[1]智能化效益!R121 -> 92 | F121: =IF([1]综合素质认定!O121>10,10,[1]综合素质认定!O121) -> 5 | G121: 0 | H121: 0 | I121: 0 | J121: 69.82 | K121: =IF(J121<[1]奖补比例!$D$2,"D",IF(J121<[1]奖补比例!$C$2,"C",IF(J121<[1]奖补比例!$B$2,"B","A"))) -> B | L121: =[1]苏州工业园区工业企业技术改造经济效益表!AJ121 -> 1821.73 | M121: =[1]苏州工业园区工业企业技术改造经济效益表!AM121 -> 0 | N121: =IF([1]苏州工业园区工业企业技术改造经济效益表!AN121>=0.7,[1]苏州工业园区工业企业技术改造经济效益表!AM121,0) -> 0 | O121: =IF(IF(K121="A",[1]苏州工业园区工业企业技术改造经济效益表!AJ121*[1]奖补比例!$B$3+N121*[1]奖补比例!$B$5,IF(K121="B",[1]苏州工业园区工业企业技术改造经济效益表!AJ121*[1]奖补比例!$C$3+N121*[1]奖补比例!$C$5,IF(K121="C",[1]苏州工业园区工业企业技术改造经济效益表!AJ121*[1]奖补比例!$D$3+N121*[1]奖补比例!$D$5,[1]苏州工业园区工业企业技术改造经济效益表!AJ121*[1]奖补比例!$E$3+N121*[1]奖补比例!$E$5)))*[1]奖补比例!$G$2>1000,1000,IF(K121="A",[1]苏州工业园区工业企业技术改造经济效益表!AJ121*[1]奖补比例!$B$3+N121*[1]奖补比例!$B$5,IF(K121="B",[1]苏州工业园区工业企业技术改造经济效益表!AJ121*[1]奖补比例!$C$3+N121*[1]奖补比例!$C$5,IF(K121="C",[1]苏州工业园区工业企业技术改造经济效益表!AJ121*[1]奖补比例!$D$3+N121*[1]奖补比例!$D$5,[1]苏州工业园区工业企业技术改造经济效益表!AJ121*[1]奖补比例!$E$3+N121*[1]奖补比例!$E$5)))*[1]奖补比例!$G$2) -> 116.04 | P121: =VLOOKUP(B121,[1]【扣减】省技改综合奖补!$C$2:$E$59,3,0)/10000 -> 15 | Q121: 0 | R121: 0 | S121: =[1]【扣减】人工智能奖补!F120 -> 0 | T121: 0 | U121: =[1]【扣减】投促委!F120 -> 0 | V121: 101.04 | W121: 101.04 | X121: 6.37% | Y121: =IF([1]项目纳统比对表!D121="否","未纳统",IF([1]项目纳统比对表!F121="否","不足500万元","")) -> 未纳统 | AA121: 101.04
A122: 119 | B122: =[1]苏州工业园区工业企业技术改造经济效益表!B122 -> 特思通管路技术（苏州）有限公司 | C122: =[1]苏州工业园区工业企业技术改造经济效益表!C122 -> 91320594598553290R | D122: =[1]经济效益!N122 -> 64.39 | E122: =[1]智能化效益!R122 -> 80 | F122: =IF([1]综合素质认定!O122>10,10,[1]综合素质认定!O122) -> 0 | G122: 0 | H122: 0 | I122: 0 | J122: 61.08 | K122: =IF(J122<[1]奖补比例!$D$2,"D",IF(J122<[1]奖补比例!$C$2,"C",IF(J122<[1]奖补比例!$B$2,"B","A"))) -> B | L122: =[1]苏州工业园区工业企业技术改造经济效益表!AJ122 -> 584.73 | M122: =[1]苏州工业园区工业企业技术改造经济效益表!AM122 -> 21.09 | N122: =IF([1]苏州工业园区工业企业技术改造经济效益表!AN122>=0.7,[1]苏州工业园区工业企业技术改造经济效益表!AM122,0) -> 0 | O122: =IF(IF(K122="A",[1]苏州工业园区工业企业技术改造经济效益表!AJ122*[1]奖补比例!$B$3+N122*[1]奖补比例!$B$5,IF(K122="B",[1]苏州工业园区工业企业技术改造经济效益表!AJ122*[1]奖补比例!$C$3+N122*[1]奖补比例!$C$5,IF(K122="C",[1]苏州工业园区工业企业技术改造经济效益表!AJ122*[1]奖补比例!$D$3+N122*[1]奖补比例!$D$5,[1]苏州工业园区工业企业技术改造经济效益表!AJ122*[1]奖补比例!$E$3+N122*[1]奖补比例!$E$5)))*[1]奖补比例!$G$2>1000,1000,IF(K122="A",[1]苏州工业园区工业企业技术改造经济效益表!AJ122*[1]奖补比例!$B$3+N122*[1]奖补比例!$B$5,IF(K122="B",[1]苏州工业园区工业企业技术改造经济效益表!AJ122*[1]奖补比例!$C$3+N122*[1]奖补比例!$C$5,IF(K122="C",[1]苏州工业园区工业企业技术改造经济效益表!AJ122*[1]奖补比例!$D$3+N122*[1]奖补比例!$D$5,[1]苏州工业园区工业企业技术改造经济效益表!AJ122*[1]奖补比例!$E$3+N122*[1]奖补比例!$E$5)))*[1]奖补比例!$G$2) -> 37.25 | P122: 0 | Q122: 0 | R122: 0 | S122: =[1]【扣减】人工智能奖补!F121 -> 0 | T122: 0 | U122: =[1]【扣减】投促委!F121 -> 0 | V122: 37.25 | W122: 37.25 | X122: 6.37% | Y122: =IF([1]项目纳统比对表!D122="否","未纳统",IF([1]项目纳统比对表!F122="否","不足500万元","")) -> 未纳统 | AA122: 37.25
A123: 120 | B123: =[1]苏州工业园区工业企业技术改造经济效益表!B123 -> 万通（苏州）定量阀系统有限公司 | C123: =[1]苏州工业园区工业企业技术改造经济效益表!C123 -> 913205946082357212 | D123: =[1]经济效益!N123 -> 45.20 | E123: =[1]智能化效益!R123 -> 80 | F123: =IF([1]综合素质认定!O123>10,10,[1]综合素质认定!O123) -> 0 | G123: 0 | H123: 0 | I123: 0 | J123: 47.64 | K123: =IF(J123<[1]奖补比例!$D$2,"D",IF(J123<[1]奖补比例!$C$2,"C",IF(J123<[1]奖补比例!$B$2,"B","A"))) -> D | L123: =[1]苏州工业园区工业企业技术改造经济效益表!AJ123 -> 1228.42 | M123: =[1]苏州工业园区工业企业技术改造经济效益表!AM123 -> 191.56 | N123: =IF([1]苏州工业园区工业企业技术改造经济效益表!AN123>=0.7,[1]苏州工业园区工业企业技术改造经济效益表!AM123,0) -> 0 | O123: =IF(IF(K123="A",[1]苏州工业园区工业企业技术改造经济效益表!AJ123*[1]奖补比例!$B$3+N123*[1]奖补比例!$B$5,IF(K123="B",[1]苏州工业园区工业企业技术改造经济效益表!AJ123*[1]奖补比例!$C$3+N123*[1]奖补比例!$C$5,IF(K123="C",[1]苏州工业园区工业企业技术改造经济效益表!AJ123*[1]奖补比例!$D$3+N123*[1]奖补比例!$D$5,[1]苏州工业园区工业企业技术改造经济效益表!AJ123*[1]奖补比例!$E$3+N123*[1]奖补比例!$E$5)))*[1]奖补比例!$G$2>1000,1000,IF(K123="A",[1]苏州工业园区工业企业技术改造经济效益表!AJ123*[1]奖补比例!$B$3+N123*[1]奖补比例!$B$5,IF(K123="B",[1]苏州工业园区工业企业技术改造经济效益表!AJ123*[1]奖补比例!$C$3+N123*[1]奖补比例!$C$5,IF(K123="C",[1]苏州工业园区工业企业技术改造经济效益表!AJ123*[1]奖补比例!$D$3+N123*[1]奖补比例!$D$5,[1]苏州工业园区工业企业技术改造经济效益表!AJ123*[1]奖补比例!$E$3+N123*[1]奖补比例!$E$5)))*[1]奖补比例!$G$2) -> 29.34 | P123: 0 | Q123: 0 | R123: 0 | S123: =[1]【扣减】人工智能奖补!F122 -> 0 | T123: 0 | U123: =[1]【扣减】投促委!F122 -> 0 | V123: 29.34 | W123: 29.34 | X123: 2.39% | Y123: =IF([1]项目纳统比对表!D123="否","未纳统",IF([1]项目纳统比对表!F123="否","不足500万元","")) ->  | AA123: 29.34
A124: 121 | B124: =[1]苏州工业园区工业企业技术改造经济效益表!B124 -> 旺矽科技（苏州）有限公司 | C124: =[1]苏州工业园区工业企业技术改造经济效益表!C124 -> 91320594MA1PCMQ10H | D124: =[1]经济效益!N124 -> 84.18 | E124: =[1]智能化效益!R124 -> 71.01 | F124: =IF([1]综合素质认定!O124>10,10,[1]综合素质认定!O124) -> 0 | G124: 0 | H124: 0 | I124: 0 | J124: 73.13 | K124: =IF(J124<[1]奖补比例!$D$2,"D",IF(J124<[1]奖补比例!$C$2,"C",IF(J124<[1]奖补比例!$B$2,"B","A"))) -> B | L124: =[1]苏州工业园区工业企业技术改造经济效益表!AJ124 -> 781.34 | M124: =[1]苏州工业园区工业企业技术改造经济效益表!AM124 -> 87.47 | N124: =IF([1]苏州工业园区工业企业技术改造经济效益表!AN124>=0.7,[1]苏州工业园区工业企业技术改造经济效益表!AM124,0) -> 0 | O124: =IF(IF(K124="A",[1]苏州工业园区工业企业技术改造经济效益表!AJ124*[1]奖补比例!$B$3+N124*[1]奖补比例!$B$5,IF(K124="B",[1]苏州工业园区工业企业技术改造经济效益表!AJ124*[1]奖补比例!$C$3+N124*[1]奖补比例!$C$5,IF(K124="C",[1]苏州工业园区工业企业技术改造经济效益表!AJ124*[1]奖补比例!$D$3+N124*[1]奖补比例!$D$5,[1]苏州工业园区工业企业技术改造经济效益表!AJ124*[1]奖补比例!$E$3+N124*[1]奖补比例!$E$5)))*[1]奖补比例!$G$2>1000,1000,IF(K124="A",[1]苏州工业园区工业企业技术改造经济效益表!AJ124*[1]奖补比例!$B$3+N124*[1]奖补比例!$B$5,IF(K124="B",[1]苏州工业园区工业企业技术改造经济效益表!AJ124*[1]奖补比例!$C$3+N124*[1]奖补比例!$C$5,IF(K124="C",[1]苏州工业园区工业企业技术改造经济效益表!AJ124*[1]奖补比例!$D$3+N124*[1]奖补比例!$D$5,[1]苏州工业园区工业企业技术改造经济效益表!AJ124*[1]奖补比例!$E$3+N124*[1]奖补比例!$E$5)))*[1]奖补比例!$G$2) -> 49.77 | P124: 0 | Q124: 0 | R124: 0 | S124: =[1]【扣减】人工智能奖补!F123 -> 0 | T124: 0 | U124: =[1]【扣减】投促委!F123 -> 0 | V124: 49.77 | W124: 49.77 | X124: 6.37% | Y124: =IF([1]项目纳统比对表!D124="否","未纳统",IF([1]项目纳统比对表!F124="否","不足500万元","")) -> 未纳统 | AA124: 49.77
A125: 122 | B125: =[1]苏州工业园区工业企业技术改造经济效益表!B125 -> 威特立创能科技（苏州）有限公司 | C125: =[1]苏州工业园区工业企业技术改造经济效益表!C125 -> 91320594753217968W | D125: =[1]经济效益!N125 -> 80 | E125: =[1]智能化效益!R125 -> 70 | F125: =IF([1]综合素质认定!O125>10,10,[1]综合素质认定!O125) -> 0 | G125: 0 | H125: 0 | I125: 0 | J125: 70 | K125: =IF(J125<[1]奖补比例!$D$2,"D",IF(J125<[1]奖补比例!$C$2,"C",IF(J125<[1]奖补比例!$B$2,"B","A"))) -> B | L125: =[1]苏州工业园区工业企业技术改造经济效益表!AJ125 -> 1030.085702 | M125: =[1]苏州工业园区工业企业技术改造经济效益表!AM125 -> 0 | N125: =IF([1]苏州工业园区工业企业技术改造经济效益表!AN125>=0.7,[1]苏州工业园区工业企业技术改造经济效益表!AM125,0) -> 0 | O125: =IF(IF(K125="A",[1]苏州工业园区工业企业技术改造经济效益表!AJ125*[1]奖补比例!$B$3+N125*[1]奖补比例!$B$5,IF(K125="B",[1]苏州工业园区工业企业技术改造经济效益表!AJ125*[1]奖补比例!$C$3+N125*[1]奖补比例!$C$5,IF(K125="C",[1]苏州工业园区工业企业技术改造经济效益表!AJ125*[1]奖补比例!$D$3+N125*[1]奖补比例!$D$5,[1]苏州工业园区工业企业技术改造经济效益表!AJ125*[1]奖补比例!$E$3+N125*[1]奖补比例!$E$5)))*[1]奖补比例!$G$2>1000,1000,IF(K125="A",[1]苏州工业园区工业企业技术改造经济效益表!AJ125*[1]奖补比例!$B$3+N125*[1]奖补比例!$B$5,IF(K125="B",[1]苏州工业园区工业企业技术改造经济效益表!AJ125*[1]奖补比例!$C$3+N125*[1]奖补比例!$C$5,IF(K125="C",[1]苏州工业园区工业企业技术改造经济效益表!AJ125*[1]奖补比例!$D$3+N125*[1]奖补比例!$D$5,[1]苏州工业园区工业企业技术改造经济效益表!AJ125*[1]奖补比例!$E$3+N125*[1]奖补比例!$E$5)))*[1]奖补比例!$G$2) -> 65.61 | P125: 0 | Q125: 0 | R125: 0 | S125: =[1]【扣减】人工智能奖补!F124 -> 0 | T125: 0 | U125: =[1]【扣减】投促委!F124 -> 0 | V125: 65.61 | W125: 65.61 | X125: 6.37% | Y125: =IF([1]项目纳统比对表!D125="否","未纳统",IF([1]项目纳统比对表!F125="否","不足500万元","")) -> 未纳统 | AA125: 65.61
A126: 123 | B126: =[1]苏州工业园区工业企业技术改造经济效益表!B126 -> 维斯克凡科技（苏州）有限公司 | C126: =[1]苏州工业园区工业企业技术改造经济效益表!C126 -> 913205946913295177 | D126: =[1]经济效益!N126 -> 62.51 | E126: =[1]智能化效益!R126 -> 87.41 | F126: =IF([1]综合素质认定!O126>10,10,[1]综合素质认定!O126) -> 1 | G126: 0 | H126: 0 | I126: 0 | J126: 62.24 | K126: =IF(J126<[1]奖补比例!$D$2,"D",IF(J126<[1]奖补比例!$C$2,"C",IF(J126<[1]奖补比例!$B$2,"B","A"))) -> B | L126: =[1]苏州工业园区工业企业技术改造经济效益表!AJ126 -> 605.99 | M126: =[1]苏州工业园区工业企业技术改造经济效益表!AM126 -> 8.60 | N126: =IF([1]苏州工业园区工业企业技术改造经济效益表!AN126>=0.7,[1]苏州工业园区工业企业技术改造经济效益表!AM126,0) -> 0 | O126: =IF(IF(K126="A",[1]苏州工业园区工业企业技术改造经济效益表!AJ126*[1]奖补比例!$B$3+N126*[1]奖补比例!$B$5,IF(K126="B",[1]苏州工业园区工业企业技术改造经济效益表!AJ126*[1]奖补比例!$C$3+N126*[1]奖补比例!$C$5,IF(K126="C",[1]苏州工业园区工业企业技术改造经济效益表!AJ126*[1]奖补比例!$D$3+N126*[1]奖补比例!$D$5,[1]苏州工业园区工业企业技术改造经济效益表!AJ126*[1]奖补比例!$E$3+N126*[1]奖补比例!$E$5)))*[1]奖补比例!$G$2>1000,1000,IF(K126="A",[1]苏州工业园区工业企业技术改造经济效益表!AJ126*[1]奖补比例!$B$3+N126*[1]奖补比例!$B$5,IF(K126="B",[1]苏州工业园区工业企业技术改造经济效益表!AJ126*[1]奖补比例!$C$3+N126*[1]奖补比例!$C$5,IF(K126="C",[1]苏州工业园区工业企业技术改造经济效益表!AJ126*[1]奖补比例!$D$3+N126*[1]奖补比例!$D$5,[1]苏州工业园区工业企业技术改造经济效益表!AJ126*[1]奖补比例!$E$3+N126*[1]奖补比例!$E$5)))*[1]奖补比例!$G$2) -> 38.60 | P126: 0 | Q126: 0 | R126: 0 | S126: =[1]【扣减】人工智能奖补!F125 -> 0 | T126: 0 | U126: =[1]【扣减】投促委!F125 -> 0 | V126: 38.60 | W126: 38.60 | X126: 6.37% | Y126: =IF([1]项目纳统比对表!D126="否","未纳统",IF([1]项目纳统比对表!F126="否","不足500万元","")) -> 未纳统 | AA126: 38.60
A127: 124 | B127: =[1]苏州工业园区工业企业技术改造经济效益表!B127 -> 伟创力电子技术（苏州）有限公司 | C127: =[1]苏州工业园区工业企业技术改造经济效益表!C127 -> 913205946082381568 | D127: =[1]经济效益!N127 -> 89.45 | E127: =[1]智能化效益!R127 -> 88.79 | F127: =IF([1]综合素质认定!O127>10,10,[1]综合素质认定!O127) -> 10 | G127: 0 | H127: 0 | I127: 0 | J127: 90.37 | K127: =IF(J127<[1]奖补比例!$D$2,"D",IF(J127<[1]奖补比例!$C$2,"C",IF(J127<[1]奖补比例!$B$2,"B","A"))) -> A | L127: =[1]苏州工业园区工业企业技术改造经济效益表!AJ127 -> 1839.51 | M127: =[1]苏州工业园区工业企业技术改造经济效益表!AM127 -> 12.62 | N127: =IF([1]苏州工业园区工业企业技术改造经济效益表!AN127>=0.7,[1]苏州工业园区工业企业技术改造经济效益表!AM127,0) -> 0 | O127: =IF(IF(K127="A",[1]苏州工业园区工业企业技术改造经济效益表!AJ127*[1]奖补比例!$B$3+N127*[1]奖补比例!$B$5,IF(K127="B",[1]苏州工业园区工业企业技术改造经济效益表!AJ127*[1]奖补比例!$C$3+N127*[1]奖补比例!$C$5,IF(K127="C",[1]苏州工业园区工业企业技术改造经济效益表!AJ127*[1]奖补比例!$D$3+N127*[1]奖补比例!$D$5,[1]苏州工业园区工业企业技术改造经济效益表!AJ127*[1]奖补比例!$E$3+N127*[1]奖补比例!$E$5)))*[1]奖补比例!$G$2>1000,1000,IF(K127="A",[1]苏州工业园区工业企业技术改造经济效益表!AJ127*[1]奖补比例!$B$3+N127*[1]奖补比例!$B$5,IF(K127="B",[1]苏州工业园区工业企业技术改造经济效益表!AJ127*[1]奖补比例!$C$3+N127*[1]奖补比例!$C$5,IF(K127="C",[1]苏州工业园区工业企业技术改造经济效益表!AJ127*[1]奖补比例!$D$3+N127*[1]奖补比例!$D$5,[1]苏州工业园区工业企业技术改造经济效益表!AJ127*[1]奖补比例!$E$3+N127*[1]奖补比例!$E$5)))*[1]奖补比例!$G$2) -> 146.47 | P127: =VLOOKUP(B127,[1]【扣减】省技改综合奖补!$C$2:$E$59,3,0)/10000 -> 15 | Q127: 0 | R127: =VLOOKUP(B127,[1]【扣减】节能改造项目奖补!$B$2:$C$23,2,0) -> 27 | S127: =[1]【扣减】人工智能奖补!F126 -> 0 | T127: 0 | U127: =[1]【扣减】投促委!F126 -> 0 | V127: 104.47 | W127: 104.47 | X127: 7.96% | Y127: =IF([1]项目纳统比对表!D127="否","未纳统",IF([1]项目纳统比对表!F127="否","不足500万元","")) ->  | AA127: 104.47
A128: 125 | B128: =[1]苏州工业园区工业企业技术改造经济效益表!B128 -> 卫材（中国）药业有限公司 | C128: =[1]苏州工业园区工业企业技术改造经济效益表!C128 -> 91320594608205450R | D128: =[1]经济效益!N128 -> 42 | E128: =[1]智能化效益!R128 -> 81 | F128: =IF([1]综合素质认定!O128>10,10,[1]综合素质认定!O128) -> 1 | G128: 0 | H128: 0 | I128: 0 | J128: 46.60 | K128: =IF(J128<[1]奖补比例!$D$2,"D",IF(J128<[1]奖补比例!$C$2,"C",IF(J128<[1]奖补比例!$B$2,"B","A"))) -> D | L128: =[1]苏州工业园区工业企业技术改造经济效益表!AJ128 -> 1211.59 | M128: =[1]苏州工业园区工业企业技术改造经济效益表!AM128 -> 0 | N128: =IF([1]苏州工业园区工业企业技术改造经济效益表!AN128>=0.7,[1]苏州工业园区工业企业技术改造经济效益表!AM128,0) -> 0 | O128: =IF(IF(K128="A",[1]苏州工业园区工业企业技术改造经济效益表!AJ128*[1]奖补比例!$B$3+N128*[1]奖补比例!$B$5,IF(K128="B",[1]苏州工业园区工业企业技术改造经济效益表!AJ128*[1]奖补比例!$C$3+N128*[1]奖补比例!$C$5,IF(K128="C",[1]苏州工业园区工业企业技术改造经济效益表!AJ128*[1]奖补比例!$D$3+N128*[1]奖补比例!$D$5,[1]苏州工业园区工业企业技术改造经济效益表!AJ128*[1]奖补比例!$E$3+N128*[1]奖补比例!$E$5)))*[1]奖补比例!$G$2>1000,1000,IF(K128="A",[1]苏州工业园区工业企业技术改造经济效益表!AJ128*[1]奖补比例!$B$3+N128*[1]奖补比例!$B$5,IF(K128="B",[1]苏州工业园区工业企业技术改造经济效益表!AJ128*[1]奖补比例!$C$3+N128*[1]奖补比例!$C$5,IF(K128="C",[1]苏州工业园区工业企业技术改造经济效益表!AJ128*[1]奖补比例!$D$3+N128*[1]奖补比例!$D$5,[1]苏州工业园区工业企业技术改造经济效益表!AJ128*[1]奖补比例!$E$3+N128*[1]奖补比例!$E$5)))*[1]奖补比例!$G$2) -> 28.94 | P128: =VLOOKUP(B128,[1]【扣减】省技改综合奖补!$C$2:$E$59,3,0)/10000 -> 119 | Q128: 0 | R128: 0 | S128: =[1]【扣减】人工智能奖补!F127 -> 0 | T128: 0 | U128: =[1]【扣减】投促委!F127 -> 768 | V128: 0 | W128: 0.00 | X128: 2.39% | Y128: =IF([1]项目纳统比对表!D128="否","未纳统",IF([1]项目纳统比对表!F128="否","不足500万元","")) ->  | AA128: 0.00
A129: 126 | B129: =[1]苏州工业园区工业企业技术改造经济效益表!B129 -> 矽品科技（苏州）有限公司 | C129: =[1]苏州工业园区工业企业技术改造经济效益表!C129 -> 91320594733338789U | D129: =[1]经济效益!N129 -> 100 | E129: =[1]智能化效益!R129 -> 85 | F129: =IF([1]综合素质认定!O129>10,10,[1]综合素质认定!O129) -> 6 | G129: 0 | H129: 0 | I129: 0 | J129: 93 | K129: =IF(J129<[1]奖补比例!$D$2,"D",IF(J129<[1]奖补比例!$C$2,"C",IF(J129<[1]奖补比例!$B$2,"B","A"))) -> A | L129: =[1]苏州工业园区工业企业技术改造经济效益表!AJ129 -> 18355.5 | M129: =[1]苏州工业园区工业企业技术改造经济效益表!AM129 -> 0 | N129: =IF([1]苏州工业园区工业企业技术改造经济效益表!AN129>=0.7,[1]苏州工业园区工业企业技术改造经济效益表!AM129,0) -> 0 | O129: =IF(IF(K129="A",[1]苏州工业园区工业企业技术改造经济效益表!AJ129*[1]奖补比例!$B$3+N129*[1]奖补比例!$B$5,IF(K129="B",[1]苏州工业园区工业企业技术改造经济效益表!AJ129*[1]奖补比例!$C$3+N129*[1]奖补比例!$C$5,IF(K129="C",[1]苏州工业园区工业企业技术改造经济效益表!AJ129*[1]奖补比例!$D$3+N129*[1]奖补比例!$D$5,[1]苏州工业园区工业企业技术改造经济效益表!AJ129*[1]奖补比例!$E$3+N129*[1]奖补比例!$E$5)))*[1]奖补比例!$G$2>1000,1000,IF(K129="A",[1]苏州工业园区工业企业技术改造经济效益表!AJ129*[1]奖补比例!$B$3+N129*[1]奖补比例!$B$5,IF(K129="B",[1]苏州工业园区工业企业技术改造经济效益表!AJ129*[1]奖补比例!$C$3+N129*[1]奖补比例!$C$5,IF(K129="C",[1]苏州工业园区工业企业技术改造经济效益表!AJ129*[1]奖补比例!$D$3+N129*[1]奖补比例!$D$5,[1]苏州工业园区工业企业技术改造经济效益表!AJ129*[1]奖补比例!$E$3+N129*[1]奖补比例!$E$5)))*[1]奖补比例!$G$2) -> 1000 | P129: =VLOOKUP(B129,[1]【扣减】省技改综合奖补!$C$2:$E$59,3,0)/10000 -> 51 | Q129: 0 | R129: =VLOOKUP(B129,[1]【扣减】节能改造项目奖补!$B$2:$C$23,2,0) -> 26 | S129: =[1]【扣减】人工智能奖补!F128 -> 0 | T129: 0 | U129: =[1]【扣减】投促委!F128 -> 0 | V129: 923 | W129: 923.00 | X129: 5.45% | Y129: =IF([1]项目纳统比对表!D129="否","未纳统",IF([1]项目纳统比对表!F129="否","不足500万元","")) ->  | AA129: 923.00
A130: 127 | B130: =[1]苏州工业园区工业企业技术改造经济效益表!B130 -> 信达生物制药（苏州）有限公司 | C130: =[1]苏州工业园区工业企业技术改造经济效益表!C130 -> 9132059458102064XX | D130: =[1]经济效益!N130 -> 92 | E130: =[1]智能化效益!R130 -> 91.96 | F130: =IF([1]综合素质认定!O130>10,10,[1]综合素质认定!O130) -> 10 | G130: 0 | H130: 0 | I130: 0 | J130: 92.79 | K130: =IF(J130<[1]奖补比例!$D$2,"D",IF(J130<[1]奖补比例!$C$2,"C",IF(J130<[1]奖补比例!$B$2,"B","A"))) -> A | L130: =[1]苏州工业园区工业企业技术改造经济效益表!AJ130 -> 2424.06 | M130: =[1]苏州工业园区工业企业技术改造经济效益表!AM130 -> 9.52 | N130: =IF([1]苏州工业园区工业企业技术改造经济效益表!AN130>=0.7,[1]苏州工业园区工业企业技术改造经济效益表!AM130,0) -> 0 | O130: =IF(IF(K130="A",[1]苏州工业园区工业企业技术改造经济效益表!AJ130*[1]奖补比例!$B$3+N130*[1]奖补比例!$B$5,IF(K130="B",[1]苏州工业园区工业企业技术改造经济效益表!AJ130*[1]奖补比例!$C$3+N130*[1]奖补比例!$C$5,IF(K130="C",[1]苏州工业园区工业企业技术改造经济效益表!AJ130*[1]奖补比例!$D$3+N130*[1]奖补比例!$D$5,[1]苏州工业园区工业企业技术改造经济效益表!AJ130*[1]奖补比例!$E$3+N130*[1]奖补比例!$E$5)))*[1]奖补比例!$G$2>1000,1000,IF(K130="A",[1]苏州工业园区工业企业技术改造经济效益表!AJ130*[1]奖补比例!$B$3+N130*[1]奖补比例!$B$5,IF(K130="B",[1]苏州工业园区工业企业技术改造经济效益表!AJ130*[1]奖补比例!$C$3+N130*[1]奖补比例!$C$5,IF(K130="C",[1]苏州工业园区工业企业技术改造经济效益表!AJ130*[1]奖补比例!$D$3+N130*[1]奖补比例!$D$5,[1]苏州工业园区工业企业技术改造经济效益表!AJ130*[1]奖补比例!$E$3+N130*[1]奖补比例!$E$5)))*[1]奖补比例!$G$2) -> 193.01 | P130: 0 | Q130: 0 | R130: 0 | S130: =[1]【扣减】人工智能奖补!F129 -> 0 | T130: 0 | U130: =[1]【扣减】投促委!F129 -> 0 | V130: 193.01 | W130: 193.01 | X130: 7.96% | Y130: =IF([1]项目纳统比对表!D130="否","未纳统",IF([1]项目纳统比对表!F130="否","不足500万元","")) ->  | AA130: 193.01
A131: 128 | B131: =[1]苏州工业园区工业企业技术改造经济效益表!B131 -> 星崎电机（苏州）有限公司 | C131: =[1]苏州工业园区工业企业技术改造经济效益表!C131 -> 91320594783360204F | D131: =[1]经济效益!N131 -> 23.73 | E131: =[1]智能化效益!R131 -> 89.95 | F131: =IF([1]综合素质认定!O131>10,10,[1]综合素质认定!O131) -> 1 | G131: 0 | H131: 0 | I131: 0 | J131: 35.60 | K131: =IF(J131<[1]奖补比例!$D$2,"D",IF(J131<[1]奖补比例!$C$2,"C",IF(J131<[1]奖补比例!$B$2,"B","A"))) -> D | L131: =[1]苏州工业园区工业企业技术改造经济效益表!AJ131 -> 0 | M131: =[1]苏州工业园区工业企业技术改造经济效益表!AM131 -> 0 | N131: =IF([1]苏州工业园区工业企业技术改造经济效益表!AN131>=0.7,[1]苏州工业园区工业企业技术改造经济效益表!AM131,0) -> 0 | O131: =IF(IF(K131="A",[1]苏州工业园区工业企业技术改造经济效益表!AJ131*[1]奖补比例!$B$3+N131*[1]奖补比例!$B$5,IF(K131="B",[1]苏州工业园区工业企业技术改造经济效益表!AJ131*[1]奖补比例!$C$3+N131*[1]奖补比例!$C$5,IF(K131="C",[1]苏州工业园区工业企业技术改造经济效益表!AJ131*[1]奖补比例!$D$3+N131*[1]奖补比例!$D$5,[1]苏州工业园区工业企业技术改造经济效益表!AJ131*[1]奖补比例!$E$3+N131*[1]奖补比例!$E$5)))*[1]奖补比例!$G$2>1000,1000,IF(K131="A",[1]苏州工业园区工业企业技术改造经济效益表!AJ131*[1]奖补比例!$B$3+N131*[1]奖补比例!$B$5,IF(K131="B",[1]苏州工业园区工业企业技术改造经济效益表!AJ131*[1]奖补比例!$C$3+N131*[1]奖补比例!$C$5,IF(K131="C",[1]苏州工业园区工业企业技术改造经济效益表!AJ131*[1]奖补比例!$D$3+N131*[1]奖补比例!$D$5,[1]苏州工业园区工业企业技术改造经济效益表!AJ131*[1]奖补比例!$E$3+N131*[1]奖补比例!$E$5)))*[1]奖补比例!$G$2) -> 0 | P131: 0 | Q131: 0 | R131: 0 | S131: =[1]【扣减】人工智能奖补!F130 -> 0 | T131: 0 | U131: =[1]【扣减】投促委!F130 -> 0 | V131: 0 | W131: 0.00 | X131: 0.00% | Y131: =IF([1]项目纳统比对表!D131="否","未纳统",IF([1]项目纳统比对表!F131="否","不足500万元","")) -> 未纳统 | Z131: 未通过 | AA131: 0.00
A132: 129 | B132: =[1]苏州工业园区工业企业技术改造经济效益表!B132 -> 扬昕科技（苏州）有限公司 | C132: =[1]苏州工业园区工业企业技术改造经济效益表!C132 -> 913205947589579819 | D132: =[1]经济效益!N132 -> 60.57 | E132: =[1]智能化效益!R132 -> 93.86 | F132: =IF([1]综合素质认定!O132>10,10,[1]综合素质认定!O132) -> 1 | G132: 0 | H132: 0 | I132: 0 | J132: =D132*$D$3+E132*$E$3+F132-G132-H132-I132 -> 62.17 | K132: =IF(J132<[1]奖补比例!$D$2,"D",IF(J132<[1]奖补比例!$C$2,"C",IF(J132<[1]奖补比例!$B$2,"B","A"))) -> B | L132: =[1]苏州工业园区工业企业技术改造经济效益表!AJ132 -> 1008.77 | M132: =[1]苏州工业园区工业企业技术改造经济效益表!AM132 -> 56.50 | N132: =IF([1]苏州工业园区工业企业技术改造经济效益表!AN132>=0.7,[1]苏州工业园区工业企业技术改造经济效益表!AM132,0) -> 0 | O132: =IF(IF(K132="A",[1]苏州工业园区工业企业技术改造经济效益表!AJ132*[1]奖补比例!$B$3+N132*[1]奖补比例!$B$5,IF(K132="B",[1]苏州工业园区工业企业技术改造经济效益表!AJ132*[1]奖补比例!$C$3+N132*[1]奖补比例!$C$5,IF(K132="C",[1]苏州工业园区工业企业技术改造经济效益表!AJ132*[1]奖补比例!$D$3+N132*[1]奖补比例!$D$5,[1]苏州工业园区工业企业技术改造经济效益表!AJ132*[1]奖补比例!$E$3+N132*[1]奖补比例!$E$5)))*[1]奖补比例!$G$2>1000,1000,IF(K132="A",[1]苏州工业园区工业企业技术改造经济效益表!AJ132*[1]奖补比例!$B$3+N132*[1]奖补比例!$B$5,IF(K132="B",[1]苏州工业园区工业企业技术改造经济效益表!AJ132*[1]奖补比例!$C$3+N132*[1]奖补比例!$C$5,IF(K132="C",[1]苏州工业园区工业企业技术改造经济效益表!AJ132*[1]奖补比例!$D$3+N132*[1]奖补比例!$D$5,[1]苏州工业园区工业企业技术改造经济效益表!AJ132*[1]奖补比例!$E$3+N132*[1]奖补比例!$E$5)))*[1]奖补比例!$G$2) -> 64.26 | P132: 0 | Q132: 0 | R132: 0 | S132: =[1]【扣减】人工智能奖补!F131 -> 0 | T132: 0 | U132: =[1]【扣减】投促委!F131 -> 0 | V132: 64.26 | W132: =ROUND(V132,2) -> 64.26 | X132: =O132/L132 -> 6.37% | Y132: =IF([1]项目纳统比对表!D132="否","未纳统",IF([1]项目纳统比对表!F132="否","不足500万元","")) ->  | AA132: 64.26
A133: 130 | B133: =[1]苏州工业园区工业企业技术改造经济效益表!B133 -> 伊顿电气有限公司 | C133: =[1]苏州工业园区工业企业技术改造经济效益表!C133 -> 91320594608238244N | D133: =[1]经济效益!N133 -> 63.00 | E133: =[1]智能化效益!R133 -> 89.30 | F133: =IF([1]综合素质认定!O133>10,10,[1]综合素质认定!O133) -> 1 | G133: 0 | H133: 0 | I133: 0 | J133: 62.96 | K133: =IF(J133<[1]奖补比例!$D$2,"D",IF(J133<[1]奖补比例!$C$2,"C",IF(J133<[1]奖补比例!$B$2,"B","A"))) -> B | L133: =[1]苏州工业园区工业企业技术改造经济效益表!AJ133 -> 1305.03 | M133: =[1]苏州工业园区工业企业技术改造经济效益表!AM133 -> 219.87 | N133: =IF([1]苏州工业园区工业企业技术改造经济效益表!AN133>=0.7,[1]苏州工业园区工业企业技术改造经济效益表!AM133,0) -> 0 | O133: =IF(IF(K133="A",[1]苏州工业园区工业企业技术改造经济效益表!AJ133*[1]奖补比例!$B$3+N133*[1]奖补比例!$B$5,IF(K133="B",[1]苏州工业园区工业企业技术改造经济效益表!AJ133*[1]奖补比例!$C$3+N133*[1]奖补比例!$C$5,IF(K133="C",[1]苏州工业园区工业企业技术改造经济效益表!AJ133*[1]奖补比例!$D$3+N133*[1]奖补比例!$D$5,[1]苏州工业园区工业企业技术改造经济效益表!AJ133*[1]奖补比例!$E$3+N133*[1]奖补比例!$E$5)))*[1]奖补比例!$G$2>1000,1000,IF(K133="A",[1]苏州工业园区工业企业技术改造经济效益表!AJ133*[1]奖补比例!$B$3+N133*[1]奖补比例!$B$5,IF(K133="B",[1]苏州工业园区工业企业技术改造经济效益表!AJ133*[1]奖补比例!$C$3+N133*[1]奖补比例!$C$5,IF(K133="C",[1]苏州工业园区工业企业技术改造经济效益表!AJ133*[1]奖补比例!$D$3+N133*[1]奖补比例!$D$5,[1]苏州工业园区工业企业技术改造经济效益表!AJ133*[1]奖补比例!$E$3+N133*[1]奖补比例!$E$5)))*[1]奖补比例!$G$2) -> 83.13 | P133: 0 | Q133: 0 | R133: 0 | S133: =[1]【扣减】人工智能奖补!F132 -> 0 | T133: 0 | U133: =[1]【扣减】投促委!F132 -> 0 | V133: 83.13 | W133: 83.13 | X133: 6.37% | Y133: =IF([1]项目纳统比对表!D133="否","未纳统",IF([1]项目纳统比对表!F133="否","不足500万元","")) ->  | AA133: 83.13
A134: 131 | B134: =[1]苏州工业园区工业企业技术改造经济效益表!B134 -> 伊利苏州乳业有限责任公司 | C134: =[1]苏州工业园区工业企业技术改造经济效益表!C134 -> 913205947802655190 | D134: =[1]经济效益!N134 -> 66 | E134: =[1]智能化效益!R134 -> 94.18 | F134: =IF([1]综合素质认定!O134>10,10,[1]综合素质认定!O134) -> 5 | G134: 0 | H134: 0 | I134: 0 | J134: 70.04 | K134: =IF(J134<[1]奖补比例!$D$2,"D",IF(J134<[1]奖补比例!$C$2,"C",IF(J134<[1]奖补比例!$B$2,"B","A"))) -> B | L134: =[1]苏州工业园区工业企业技术改造经济效益表!AJ134 -> 3990.635 | M134: =[1]苏州工业园区工业企业技术改造经济效益表!AM134 -> 0 | N134: =IF([1]苏州工业园区工业企业技术改造经济效益表!AN134>=0.7,[1]苏州工业园区工业企业技术改造经济效益表!AM134,0) -> 0 | O134: =IF(IF(K134="A",[1]苏州工业园区工业企业技术改造经济效益表!AJ134*[1]奖补比例!$B$3+N134*[1]奖补比例!$B$5,IF(K134="B",[1]苏州工业园区工业企业技术改造经济效益表!AJ134*[1]奖补比例!$C$3+N134*[1]奖补比例!$C$5,IF(K134="C",[1]苏州工业园区工业企业技术改造经济效益表!AJ134*[1]奖补比例!$D$3+N134*[1]奖补比例!$D$5,[1]苏州工业园区工业企业技术改造经济效益表!AJ134*[1]奖补比例!$E$3+N134*[1]奖补比例!$E$5)))*[1]奖补比例!$G$2>1000,1000,IF(K134="A",[1]苏州工业园区工业企业技术改造经济效益表!AJ134*[1]奖补比例!$B$3+N134*[1]奖补比例!$B$5,IF(K134="B",[1]苏州工业园区工业企业技术改造经济效益表!AJ134*[1]奖补比例!$C$3+N134*[1]奖补比例!$C$5,IF(K134="C",[1]苏州工业园区工业企业技术改造经济效益表!AJ134*[1]奖补比例!$D$3+N134*[1]奖补比例!$D$5,[1]苏州工业园区工业企业技术改造经济效益表!AJ134*[1]奖补比例!$E$3+N134*[1]奖补比例!$E$5)))*[1]奖补比例!$G$2) -> 254.19 | P134: =VLOOKUP(B134,[1]【扣减】省技改综合奖补!$C$2:$E$59,3,0)/10000 -> 21 | Q134: 0 | R134: 0 | S134: =[1]【扣减】人工智能奖补!F133 -> 0 | T134: 0 | U134: =[1]【扣减】投促委!F133 -> 0 | V134: 233.19 | W134: 233.19 | X134: 6.37% | Y134: =IF([1]项目纳统比对表!D134="否","未纳统",IF([1]项目纳统比对表!F134="否","不足500万元","")) ->  | AA134: 233.19
A135: 132 | B135: =[1]苏州工业园区工业企业技术改造经济效益表!B135 -> 英特诺物流机械（苏州）有限公司 | C135: =[1]苏州工业园区工业企业技术改造经济效益表!C135 -> 91320594738299707F | D135: =[1]经济效益!N135 -> 49.42 | E135: =[1]智能化效益!R135 -> 67.65 | F135: =IF([1]综合素质认定!O135>10,10,[1]综合素质认定!O135) -> 0 | G135: 0 | H135: 0 | I135: 0 | J135: 48.12 | K135: =IF(J135<[1]奖补比例!$D$2,"D",IF(J135<[1]奖补比例!$C$2,"C",IF(J135<[1]奖补比例!$B$2,"B","A"))) -> D | L135: =[1]苏州工业园区工业企业技术改造经济效益表!AJ135 -> 1148.16 | M135: =[1]苏州工业园区工业企业技术改造经济效益表!AM135 -> 0.94 | N135: =IF([1]苏州工业园区工业企业技术改造经济效益表!AN135>=0.7,[1]苏州工业园区工业企业技术改造经济效益表!AM135,0) -> 0 | O135: =IF(IF(K135="A",[1]苏州工业园区工业企业技术改造经济效益表!AJ135*[1]奖补比例!$B$3+N135*[1]奖补比例!$B$5,IF(K135="B",[1]苏州工业园区工业企业技术改造经济效益表!AJ135*[1]奖补比例!$C$3+N135*[1]奖补比例!$C$5,IF(K135="C",[1]苏州工业园区工业企业技术改造经济效益表!AJ135*[1]奖补比例!$D$3+N135*[1]奖补比例!$D$5,[1]苏州工业园区工业企业技术改造经济效益表!AJ135*[1]奖补比例!$E$3+N135*[1]奖补比例!$E$5)))*[1]奖补比例!$G$2>1000,1000,IF(K135="A",[1]苏州工业园区工业企业技术改造经济效益表!AJ135*[1]奖补比例!$B$3+N135*[1]奖补比例!$B$5,IF(K135="B",[1]苏州工业园区工业企业技术改造经济效益表!AJ135*[1]奖补比例!$C$3+N135*[1]奖补比例!$C$5,IF(K135="C",[1]苏州工业园区工业企业技术改造经济效益表!AJ135*[1]奖补比例!$D$3+N135*[1]奖补比例!$D$5,[1]苏州工业园区工业企业技术改造经济效益表!AJ135*[1]奖补比例!$E$3+N135*[1]奖补比例!$E$5)))*[1]奖补比例!$G$2) -> 27.43 | P135: 0 | Q135: 0 | R135: 0 | S135: =[1]【扣减】人工智能奖补!F134 -> 0 | T135: 0 | U135: =[1]【扣减】投促委!F134 -> 0 | V135: 27.43 | W135: 27.43 | X135: 2.39% | Y135: =IF([1]项目纳统比对表!D135="否","未纳统",IF([1]项目纳统比对表!F135="否","不足500万元","")) -> 未纳统 | AA135: 27.43
A136: 133 | B136: =[1]苏州工业园区工业企业技术改造经济效益表!B136 -> 莹特丽科技（苏州工业园区）有限公司 | C136: =[1]苏州工业园区工业企业技术改造经济效益表!C136 -> 9132059477689665XQ | D136: =[1]经济效益!N136 -> 43.24 | E136: =[1]智能化效益!R136 -> 80 | F136: =IF([1]综合素质认定!O136>10,10,[1]综合素质认定!O136) -> 0 | G136: 0 | H136: 0 | I136: 0 | J136: 46.27 | K136: =IF(J136<[1]奖补比例!$D$2,"D",IF(J136<[1]奖补比例!$C$2,"C",IF(J136<[1]奖补比例!$B$2,"B","A"))) -> D | L136: =[1]苏州工业园区工业企业技术改造经济效益表!AJ136 -> 650.15 | M136: =[1]苏州工业园区工业企业技术改造经济效益表!AM136 -> 592.27 | N136: =IF([1]苏州工业园区工业企业技术改造经济效益表!AN136>=0.7,[1]苏州工业园区工业企业技术改造经济效益表!AM136,0) -> 592.27 | O136: =IF(IF(K136="A",[1]苏州工业园区工业企业技术改造经济效益表!AJ136*[1]奖补比例!$B$3+N136*[1]奖补比例!$B$5,IF(K136="B",[1]苏州工业园区工业企业技术改造经济效益表!AJ136*[1]奖补比例!$C$3+N136*[1]奖补比例!$C$5,IF(K136="C",[1]苏州工业园区工业企业技术改造经济效益表!AJ136*[1]奖补比例!$D$3+N136*[1]奖补比例!$D$5,[1]苏州工业园区工业企业技术改造经济效益表!AJ136*[1]奖补比例!$E$3+N136*[1]奖补比例!$E$5)))*[1]奖补比例!$G$2>1000,1000,IF(K136="A",[1]苏州工业园区工业企业技术改造经济效益表!AJ136*[1]奖补比例!$B$3+N136*[1]奖补比例!$B$5,IF(K136="B",[1]苏州工业园区工业企业技术改造经济效益表!AJ136*[1]奖补比例!$C$3+N136*[1]奖补比例!$C$5,IF(K136="C",[1]苏州工业园区工业企业技术改造经济效益表!AJ136*[1]奖补比例!$D$3+N136*[1]奖补比例!$D$5,[1]苏州工业园区工业企业技术改造经济效益表!AJ136*[1]奖补比例!$E$3+N136*[1]奖补比例!$E$5)))*[1]奖补比例!$G$2) -> 24.96 | P136: 0 | Q136: 0 | R136: 0 | S136: =[1]【扣减】人工智能奖补!F135 -> 0 | T136: 0 | U136: =[1]【扣减】投促委!F135 -> 0 | V136: 24.96 | W136: 24.96 | X136: 3.84% | Y136: =IF([1]项目纳统比对表!D136="否","未纳统",IF([1]项目纳统比对表!F136="否","不足500万元","")) ->  | AA136: 24.96
A137: 134 | B137: =[1]苏州工业园区工业企业技术改造经济效益表!B137 -> 友达光电（苏州）有限公司 | C137: =[1]苏州工业园区工业企业技术改造经济效益表!C137 -> 91320594728739895L | D137: =[1]经济效益!N137 -> 75.13 | E137: =[1]智能化效益!R137 -> 90 | F137: =IF([1]综合素质认定!O137>10,10,[1]综合素质认定!O137) -> 10 | G137: 0 | H137: 0 | I137: 0 | J137: 80.59 | K137: =IF(J137<[1]奖补比例!$D$2,"D",IF(J137<[1]奖补比例!$C$2,"C",IF(J137<[1]奖补比例!$B$2,"B","A"))) -> A | L137: =[1]苏州工业园区工业企业技术改造经济效益表!AJ137 -> 13963.14 | M137: =[1]苏州工业园区工业企业技术改造经济效益表!AM137 -> 2566.30 | N137: =IF([1]苏州工业园区工业企业技术改造经济效益表!AN137>=0.7,[1]苏州工业园区工业企业技术改造经济效益表!AM137,0) -> 0 | O137: =IF(IF(K137="A",[1]苏州工业园区工业企业技术改造经济效益表!AJ137*[1]奖补比例!$B$3+N137*[1]奖补比例!$B$5,IF(K137="B",[1]苏州工业园区工业企业技术改造经济效益表!AJ137*[1]奖补比例!$C$3+N137*[1]奖补比例!$C$5,IF(K137="C",[1]苏州工业园区工业企业技术改造经济效益表!AJ137*[1]奖补比例!$D$3+N137*[1]奖补比例!$D$5,[1]苏州工业园区工业企业技术改造经济效益表!AJ137*[1]奖补比例!$E$3+N137*[1]奖补比例!$E$5)))*[1]奖补比例!$G$2>1000,1000,IF(K137="A",[1]苏州工业园区工业企业技术改造经济效益表!AJ137*[1]奖补比例!$B$3+N137*[1]奖补比例!$B$5,IF(K137="B",[1]苏州工业园区工业企业技术改造经济效益表!AJ137*[1]奖补比例!$C$3+N137*[1]奖补比例!$C$5,IF(K137="C",[1]苏州工业园区工业企业技术改造经济效益表!AJ137*[1]奖补比例!$D$3+N137*[1]奖补比例!$D$5,[1]苏州工业园区工业企业技术改造经济效益表!AJ137*[1]奖补比例!$E$3+N137*[1]奖补比例!$E$5)))*[1]奖补比例!$G$2) -> 1000 | P137: =VLOOKUP(B137,[1]【扣减】省技改综合奖补!$C$2:$E$59,3,0)/10000 -> 227 | Q137: 0 | R137: =VLOOKUP(B137,[1]【扣减】节能改造项目奖补!$B$2:$C$23,2,0) -> 60 | S137: =[1]【扣减】人工智能奖补!F136 -> 211.4 | T137: 0 | U137: =[1]【扣减】投促委!F136 -> 0 | V137: 501.60 | W137: 501.60 | X137: 7.16% | Y137: =IF([1]项目纳统比对表!D137="否","未纳统",IF([1]项目纳统比对表!F137="否","不足500万元","")) -> 不足500万元 | AA137: 501.60
A138: 135 | B138: =[1]苏州工业园区工业企业技术改造经济效益表!B138 -> 卓越（苏州）自动化设备有限公司 | C138: =[1]苏州工业园区工业企业技术改造经济效益表!C138 -> 91320594746240086T | D138: =[1]经济效益!N138 -> 24.86 | E138: =[1]智能化效益!R138 -> 90 | F138: =IF([1]综合素质认定!O138>10,10,[1]综合素质认定!O138) -> 1 | G138: 0 | H138: 0 | I138: 0 | J138: 36.40 | K138: =IF(J138<[1]奖补比例!$D$2,"D",IF(J138<[1]奖补比例!$C$2,"C",IF(J138<[1]奖补比例!$B$2,"B","A"))) -> D | L138: =[1]苏州工业园区工业企业技术改造经济效益表!AJ138 -> 136.6 | M138: =[1]苏州工业园区工业企业技术改造经济效益表!AM138 -> 48.94 | N138: =IF([1]苏州工业园区工业企业技术改造经济效益表!AN138>=0.7,[1]苏州工业园区工业企业技术改造经济效益表!AM138,0) -> 0 | O138: =IF(IF(K138="A",[1]苏州工业园区工业企业技术改造经济效益表!AJ138*[1]奖补比例!$B$3+N138*[1]奖补比例!$B$5,IF(K138="B",[1]苏州工业园区工业企业技术改造经济效益表!AJ138*[1]奖补比例!$C$3+N138*[1]奖补比例!$C$5,IF(K138="C",[1]苏州工业园区工业企业技术改造经济效益表!AJ138*[1]奖补比例!$D$3+N138*[1]奖补比例!$D$5,[1]苏州工业园区工业企业技术改造经济效益表!AJ138*[1]奖补比例!$E$3+N138*[1]奖补比例!$E$5)))*[1]奖补比例!$G$2>1000,1000,IF(K138="A",[1]苏州工业园区工业企业技术改造经济效益表!AJ138*[1]奖补比例!$B$3+N138*[1]奖补比例!$B$5,IF(K138="B",[1]苏州工业园区工业企业技术改造经济效益表!AJ138*[1]奖补比例!$C$3+N138*[1]奖补比例!$C$5,IF(K138="C",[1]苏州工业园区工业企业技术改造经济效益表!AJ138*[1]奖补比例!$D$3+N138*[1]奖补比例!$D$5,[1]苏州工业园区工业企业技术改造经济效益表!AJ138*[1]奖补比例!$E$3+N138*[1]奖补比例!$E$5)))*[1]奖补比例!$G$2) -> 3.26 | P138: 0 | Q138: 0 | R138: 0 | S138: =[1]【扣减】人工智能奖补!F137 -> 0 | T138: 0 | U138: =[1]【扣减】投促委!F137 -> 0 | V138: 3.26 | W138: 3.26 | X138: 2.39% | Y138: =IF([1]项目纳统比对表!D138="否","未纳统",IF([1]项目纳统比对表!F138="否","不足500万元","")) -> 未纳统 | AA138: 3.26

Sheet 奖补企业清单
A1: 2021年苏州工业园区产业转型升级（技术改造）专项资金奖补企业清单 （项目实施期为2019年度）
A3: 奖补类别 | B3: 序号 | C3: 企业名称 | D3: 奖补金额（万元） | E3: 备注
A4: 技改卓越奖 | B4: 1 | C4: 矽品科技（苏州）有限公司 | D4: 923.00
B5: 2 | C5: 信达生物制药（苏州）有限公司 | D5: 193.01
B6: 3 | C6: 苏州晶方半导体科技股份有限公司 | D6: 276.98
B7: 4 | C7: 博世汽车部件（苏州）有限公司 | D7: 0.00 | E7: 扣除重复补贴后奖补金额为0
B8: 5 | C8: 伟创力电子技术（苏州）有限公司 | D8: 104.47
B9: 6 | C9: 苏州旭创科技有限公司 | D9: 986.00
B10: 7 | C10: 京隆科技（苏州）有限公司 | D10: 817.00
B11: 8 | C11: 苏州盛迪亚生物医药有限公司 | D11: 747.42
B12: 9 | C12: 基美电子（苏州）有限公司 | D12: 428.99
B13: 10 | C13: 苏州紫翔电子科技有限公司 | D13: 948.00
B14: 11 | C14: 嘉盛半导体（苏州）有限公司 | D14: 944.00
B15: 12 | C15: 苏州通富超威半导体有限公司 | D15: 0.00 | E15: 扣除重复补贴后奖补金额为0
B16: 13 | C16: 友达光电（苏州）有限公司 | D16: 501.60
B17: 14 | C17: 米巴精密零部件（中国）有限公司 | D17: 589.90
A18: 技改贡献奖 | B18: 15 | C18: 安特（苏州）精密机械有限公司 | D18: 68.12
B19: 16 | C19: 胜科纳米（苏州）股份有限公司 | D19: 111.66
B20: 17 | C20: 苏州工业园区蓝天燃气热电有限公司 | D20: 79.80
B21: 18 | C21: 百得（苏州）科技有限公司 | D21: 218.73
B22: 19 | C22: 苏州微创关节医疗科技有限公司 | D22: 108.87
B23: 20 | C23: 颀中科技（苏州）有限公司 | D23: 832.00
B24: 21 | C24: 安拓锐高新测试技术（苏州）有限公司 | D24: 61.37
B25: 22 | C25: 苏州一光仪器有限公司 | D25: 36.62
B26: 23 | C26: 皆可博（苏州）车辆控制系统有限公司 | D26: 88.58
B27: 24 | C27: 广濑电机（苏州）有限公司 | D27: 86.88
B28: 25 | C28: 苏州立昂新材料有限公司 | D28: 43.49
B29: 26 | C29: 苏州兴胜科半导体材料有限公司 | D29: 65.84
B30: 27 | C30: 摩登纳（中国）自动化设备有限公司 | D30: 392.29
B31: 28 | C31: 苏州群策科技有限公司 | D31: 500.00
B32: 29 | C32: 宏利科技（苏州）有限公司 | D32: 76.17
B33: 30 | C33: 旺矽科技（苏州）有限公司 | D33: 49.77
B34: 31 | C34: 苏州吉恒纳米科技有限公司 | D34: 59.97
B35: 32 | C35: 乐家洁具（苏州）有限公司 | D35: 33.58
B36: 33 | C36: 苏州阿诺精密切削技术有限公司 | D36: 94.79
B37: 34 | C37: 苏州东辉光学有限公司 | D37: 61.23
B38: 35 | C38: 石通瑞吉亚太电子（苏州）有限公司 | D38: 196.78
B39: 36 | C39: 苏州震坤科技有限公司 | D39: 71.15
B40: 37 | C40: 苏州恩都法汽车系统有限公司 | D40: 34.78
B41: 38 | C41: 苏州日月新半导体有限公司 | D41: 894.00
B42: 39 | C42: 赛卡电子科技（苏州）有限公司 | D42: 38.26
B43: 40 | C43: 伊利苏州乳业有限责任公司 | D43: 233.19
B44: 41 | C44: 威特立创能科技（苏州）有限公司 | D44: 65.61
B45: 42 | C45: 太极半导体（苏州）有限公司 | D45: 101.04
B46: 43 | C46: 日立安斯泰莫汽车系统(苏州)有限公司 | D46: 191.21
B47: 44 | C47: 苏州新锐合金工具股份有限公司 | D47: 61.46
B48: 45 | C48: 绿点（苏州）科技有限公司 | D48: 299.47
B49: 46 | C49: 耐世特汽车系统（苏州）有限公司 | D49: 0.00 | E49: 扣除重复补贴后奖补金额为0
B50: 47 | C50: 苏州益而益电器制造有限公司 | D50: 69.90
B51: 48 | C51: 百得（苏州）精密制造有限公司 | D51: 32.62
B52: 49 | C52: 苏州工业园区久泰精密电子有限公司 | D52: 229.40
B53: 50 | C53: 三积瑞科技（苏州）有限公司 | D53: 73.68
B54: 51 | C54: 博瑞制药(苏州)有限公司 | D54: 49.52
B55: 52 | C55: 大同精密金属（苏州）有限公司 | D55: 144.06
B56: 53 | C56: 苏州恒瑞宏远医疗科技有限公司 | D56: 0.00 | E56: 扣除重复补贴后奖补金额为0
B57: 54 | C57: 苏州千机智能技术有限公司 | D57: 114.55
B58: 55 | C58: 苏州德斯倍电子有限公司 | D58: 113.84
B59: 56 | C59: 安波福电子（苏州）有限公司 | D59: 10.73
B60: 57 | C60: 丝艾产品标识（苏州）有限公司 | D60: 82.54
B61: 58 | C61: 苏州诺菲纳米科技有限公司 | D61: 33.40
B62: 59 | C62: 大金机电设备（苏州）有限公司 | D62: 59.90
B63: 60 | C63: SEW-电机(苏州)有限公司 | D63: 0.00 | E63: 扣除重复补贴后奖补金额为0
B64: 61 | C64: 欧瑞康巴尔查斯涂层（苏州）有限公司 | D64: 127.88
B65: 62 | C65: 苏州苏试广博环境可靠性实验室有限公司 | D65: 222.19
B66: 63 | C66: 欧文斯科宁金属技术（苏州）有限公司 | D66: 89.82
B67: 64 | C67: 三星电子（苏州）半导体有限公司 | D67: 516.08
B68: 65 | C68: 久保田农业机械（苏州）有限公司 | D68: 55.39
B69: 66 | C69: 苏州工业园区星德胜电机有限公司 | D69: 100.05
B70: 67 | C70: 大金制冷（苏州）有限公司 | D70: 38.83
B71: 68 | C71: 伊顿电气有限公司 | D71: 83.13
B72: 69 | C72: 苏州华兴源创科技股份有限公司 | D72: 34.72
B73: 70 | C73: 苏州卡利肯新光讯科技有限公司 | D73: 0.00 | E73: 扣除重复补贴后奖补金额为0
B74: 71 | C74: 康德瑞恩电磁科技（中国）有限公司 | D74: 3.17
B75: 72 | C75: 维斯克凡科技（苏州）有限公司 | D75: 38.60
B76: 73 | C76: 苏州晶湛半导体有限公司 | D76: 150.42
B77: 74 | C77: 扬昕科技（苏州）有限公司 | D77: 64.26
B78: 75 | C78: 力成科技（苏州）有限公司 | D78: 172.75
B79: 76 | C79: 特思通管路技术（苏州）有限公司 | D79: 37.25
B80: 77 | C80: 康美包（苏州）有限公司 | D80: 0.00 | E80: 扣除重复补贴后奖补金额为0
B81: 78 | C81: 苏州阿诺医疗器械有限公司 | D81: 39.01
B82: 79 | C82: 苏州星诺奇科技股份有限公司 | D82: 68.18
B83: 80 | C83: 苏州华星光电显示有限公司 | D83: 711.81
B84: 81 | C84: 苏州UL美华认证有限公司 | D84: 0.00 | E84: 扣除重复补贴后奖补金额为0
B85: 82 | C85: 青山汽车紧固件（苏州）有限公司 | D85: 246.17
A86: 技改提升奖 | B86: 83 | C86: 苏州微创脊柱创伤医疗科技有限公司 | D86: 20.38
B87: 84 | C87: 百得（苏州）电动工具有限公司 | D87: 60.70
B88: 85 | C88: 苏州碧迪医疗器械有限公司 | D88: 0.00 | E88: 扣除重复补贴后奖补金额为0
B89: 86 | C89: 乔治费歇尔金属成型科技（苏州）有限公司 | D89: 0.00 | E89: 扣除重复补贴后奖补金额为0
B90: 87 | C90: 快捷半导体（苏州）有限公司 | D90: 343.94
B91: 88 | C91: 恩德斯豪斯流量仪表技术（中国）有限公司 | D91: 33.64
B92: 89 | C92: 苏州浦项科技有限公司 | D92: 76.33
B93: 90 | C93: 艾利（苏州）有限公司 | D93: 28.06
B94: 91 | C94: 爱发科电子材料（苏州）有限公司 | D94: 29.68
B95: 92 | C95: 赛峰飞机发动机（苏州）有限公司 | D95: 175.22
B96: 93 | C96: 杰纬特科技(苏州)有限公司 | D96: 53.38
B97: 94 | C97: 佰电科技（苏州）有限公司 | D97: 35.01
B98: 95 | C98: 宝时得科技（中国）有限公司 | D98: 22.42
B99: 96 | C99: 苏州新凯紧固系统有限公司 | D99: 54.06
B100: 97 | C100: 艾默生环境优化技术（苏州）有限公司 | D100: 109.63
B101: 98 | C101: 库力索法半导体（苏州）有限公司 | D101: 37.85
B102: 99 | C102: 苏州华星光电技术有限公司 | D102: 258.13
B103: 100 | C103: 苏州市利来星辰塑业科技有限公司 | D103: 33.62
B104: 101 | C104: 豪梅特航空机件(苏州)有限公司 | D104: 199.55
B105: 102 | C105: 牧东光电科技有限公司 | D105: 245.74
B106: 103 | C106: 德莎（苏州）胶带技术有限公司 | D106: 177.88
B107: 104 | C107: 飞比达电子元器件（苏州）有限公司 | D107: 23.40
B108: 105 | C108: 苏州林华医疗器械股份有限公司 | D108: 0.00 | E108: 扣除重复补贴后奖补金额为0
B109: 106 | C109: 苏州富莱克精密工具有限公司 | D109: 21.97
B110: 107 | C110: 世达普（苏州）通信设备有限公司 | D110: 80.54
B111: 108 | C111: 贝朗医疗（苏州）有限公司 | D111: 86.95
B112: 109 | C112: 江天精密制造科技（苏州）有限公司 | D112: 0.00 | E112: 扣除重复补贴后奖补金额为0
B113: 110 | C113: 苏州春兴精工股份有限公司 | D113: 26.42
B114: 111 | C114: 大金空调（苏州）有限公司 | D114: 63.22
A115: 技改鼓励奖 | B115: 112 | C115: 舒尔电子（苏州）有限公司 | D115: 19.13
B116: 113 | C116: 高德（苏州）电子有限公司 | D116: 18.18
B117: 114 | C117: 格里森齿轮科技（苏州）有限责任公司 | D117: 35.65
B118: 115 | C118: 帕玛斯韦奇航空部件（苏州）有限公司 | D118: 30.03
B119: 116 | C119: 赛峰起落架系统（苏州）有限公司 | D119: 20.82
B120: 117 | C120: 普美航空制造（苏州）有限公司 | D120: 12.53
B121: 118 | C121: 英特诺物流机械（苏州）有限公司 | D121: 27.43
B122: 119 | C122: 万通（苏州）定量阀系统有限公司 | D122: 29.34
B123: 120 | C123: 博思格钢铁（苏州）有限公司 | D123: 0.00 | E123: 扣除重复补贴后奖补金额为0
B124: 121 | C124: 卫材（中国）药业有限公司 | D124: 0.00 | E124: 扣除重复补贴后奖补金额为0
B125: 122 | C125: 横河电机（苏州）有限公司 | D125: 16.54
B126: 123 | C126: 沛嘉医疗科技（苏州）有限公司 | D126: 17.55
B127: 124 | C127: 莹特丽科技（苏州工业园区）有限公司 | D127: 24.96
B128: 125 | C128: 日立仪器（苏州）有限公司 | D128: 14.30
B129: 126 | C129: 参天制药（中国）有限公司 | D129: 56.63
B130: 127 | C130: 大同电工(苏州)有限公司 | D130: 24.61
B131: 128 | C131: 苏州亦崴电子科技有限公司 | D131: 43.27
B132: 129 | C132: 卓越（苏州）自动化设备有限公司 | D132: 3.26
B133: 130 | C133: 儒拉玛特自动化技术（苏州）有限公司 | D133: 5.01
B134: 131 | C134: 斯凯菲尔电子（苏州）有限公司 | D134: 11.11
